Workbook

Sheet Integrated Dashboard
A1: Emergency Order Master Dashboard 2019-YTD
A2: Integrated view of EO activity, receiving agencies, purpose/use, and available emergency fund capacity
A4: Source Fund Summary
A5: Fund (listed in order of use) | B5: Current Balance
A6: 85900 Federal Reimbursement Revolving Fund | B6: ='Executive Dashboard'!J4 -> 793177.28
A7: 85400 Appropriations Contingency Fund | B7: ='Executive Dashboard'!J5 -> 26175663.29
A8: 85200 Operating Reserve Fund | B8: ='Executive Dashboard'!J6 -> 401538341.5
A9: Total Balance | B9: =SUM(B6:B8) -> 428507182.1
A11: EO Portfolio Summary
A12: Total EO Records | B12: =COUNTA('EO Linked'!B:B)-1 -> 1172
A13: EOs with Budget Code (Zcode) | B13: =COUNTIF('EO Linked'!J:J,"<>")-1 -> 1172
A14: Total EO Funding Authorized | B14: =SUM('EO Linked'!H:H) -> 741508607 | G14: =B14-SUM(C22:C28) -> 0
A15: Linked Budget | B15: =SUM('EO Linked'!K:K) -> 711587607
A16: Linked Expense | B16: =SUM('EO Linked'!L:L) -> 608748521.9 | G16: =B14-SUM(C32:C45) -> 0
A17: Linked Encumbrances | B17: =SUM('EO Linked'!N:N) -> 14726000.87
A18: Linked Reversions | B18: =SUM('EO Linked'!O:O) -> 73512457.94
A20: EO Type Breakdown
A21: EO Purpose | B21: Count | C21: Authorized Amount | D21: Remaining Balance
A22: Fire | B22: =COUNTIF('EO Master Input'!$F:$F,A22) -> 615 | C22: =SUMIF('EO Master Input'!$F:$F,A22,'EO Master Input'!$H:$H) -> 455954607 | D22: =SUMIF('EO Master Input'!$F:$F,A22,'EO Master Input'!$Q:$Q) -> 61679385.73
A23: Flooding | B23: =COUNTIF('EO Master Input'!$F:$F,A23) -> 231 | C23: =SUMIF('EO Master Input'!$F:$F,A23,'EO Master Input'!$H:$H) -> 171111000 | D23: =SUMIF('EO Master Input'!$F:$F,A23,'EO Master Input'!$Q:$Q) -> 34396184.57
A24: Other | B24: =COUNTIF('EO Master Input'!$F:$F,A24) -> 184 | C24: =SUMIF('EO Master Input'!$F:$F,A24,'EO Master Input'!$H:$H) -> 42983000 | D24: =SUMIF('EO Master Input'!$F:$F,A24,'EO Master Input'!$Q:$Q) -> 5639914.46
A25: Pandemic | B25: =COUNTIF('EO Master Input'!$F:$F,A25) -> 90 | C25: =SUMIF('EO Master Input'!$F:$F,A25,'EO Master Input'!$H:$H) -> 39500000 | D25: =SUMIF('EO Master Input'!$F:$F,A25,'EO Master Input'!$Q:$Q) -> 9211613.83
A26: Crime | B26: =COUNTIF('EO Master Input'!$F:$F,A26) -> 45 | C26: =SUMIF('EO Master Input'!$F:$F,A26,'EO Master Input'!$H:$H) -> 25860000 | D26: =SUMIF('EO Master Input'!$F:$F,A26,'EO Master Input'!$Q:$Q) -> 5114937.69
A27: Storm | B27: =COUNTIF('EO Master Input'!$F:$F,A27) -> 3 | C27: =SUMIF('EO Master Input'!$F:$F,A27,'EO Master Input'!$H:$H) -> 6100000 | D27: =SUMIF('EO Master Input'!$F:$F,A27,'EO Master Input'!$Q:$Q) -> 1992047.9
A28: Drought | B28: =COUNTIF('EO Master Input'!$F:$F,A28) -> 4 | C28: =SUMIF('EO Master Input'!$F:$F,A28,'EO Master Input'!$H:$H) -> 0 | D28: =SUMIF('EO Master Input'!$F:$F,A28,'EO Master Input'!$Q:$Q) -> 0
A30: Agencies Receiving EO Funding | G30: =SUM(D22:D28)-SUM(D32:D45) -> 0
A31: Agency | B31: EO Count | C31: Authorized Amount | D31: Remaining Balance
A32: Homeland Sec. & Emerg. Mgmt. | B32: =COUNTIF('EO Master Input'!$D:$D,A32) -> 503 | C32: =SUMIF('EO Master Input'!$D:$D,A32,'EO Master Input'!$H:$H) -> 376775607 | D32: =SUMIF('EO Master Input'!$D:$D,A32,'EO Master Input'!$Q:$Q) -> 68247453.55
A33: Energy, Minerals & Resources | B33: =COUNTIF('EO Master Input'!$D:$D,A33) -> 195 | C33: =SUMIF('EO Master Input'!$D:$D,A33,'EO Master Input'!$H:$H) -> 146250000 | D33: =SUMIF('EO Master Input'!$D:$D,A33,'EO Master Input'!$Q:$Q) -> 29949724.49 | G33: =SUM(C22:C28)-SUM(C32:C45) -> 0
A34: Department of Transportation | B34: =COUNTIF('EO Master Input'!$D:$D,A34) -> 146 | C34: =SUMIF('EO Master Input'!$D:$D,A34,'EO Master Input'!$H:$H) -> 109500000 | D34: =SUMIF('EO Master Input'!$D:$D,A34,'EO Master Input'!$Q:$Q) -> 2957815.85
A35: Military Affairs Department | B35: =COUNTIF('EO Master Input'!$D:$D,A35) -> 54 | C35: =SUMIF('EO Master Input'!$D:$D,A35,'EO Master Input'!$H:$H) -> 35240000 | D35: =SUMIF('EO Master Input'!$D:$D,A35,'EO Master Input'!$Q:$Q) -> 4080962.99
A36: Department of Health | B36: =COUNTIF('EO Master Input'!$D:$D,A36) -> 8 | C36: =SUMIF('EO Master Input'!$D:$D,A36,'EO Master Input'!$H:$H) -> 30830000 | D36: =SUMIF('EO Master Input'!$D:$D,A36,'EO Master Input'!$Q:$Q) -> 8019226.11
A37: Health Care Authority | B37: =COUNTIF('EO Master Input'!$D:$D,A37) -> 40 | C37: =SUMIF('EO Master Input'!$D:$D,A37,'EO Master Input'!$H:$H) -> 30000000 | D37: =SUMIF('EO Master Input'!$D:$D,A37,'EO Master Input'!$Q:$Q) -> 1913879
A38: Department of Public Safety | B38: =COUNTIF('EO Master Input'!$D:$D,A38) -> 12 | C38: =SUMIF('EO Master Input'!$D:$D,A38,'EO Master Input'!$H:$H) -> 7563000 | D38: =SUMIF('EO Master Input'!$D:$D,A38,'EO Master Input'!$Q:$Q) -> 169.93
A39: Non-Budgeted EO | B39: =COUNTIF('EO Master Input'!$D:$D,A39) -> 0 | C39: =SUMIF('EO Master Input'!$D:$D,A39,'EO Master Input'!$H:$H) -> 0 | D39: =SUMIF('EO Master Input'!$D:$D,A39,'EO Master Input'!$Q:$Q) -> 0
A40: NM Environment Department | B40: =COUNTIF('EO Master Input'!$D:$D,A40) -> 2 | C40: =SUMIF('EO Master Input'!$D:$D,A40,'EO Master Input'!$H:$H) -> 850000 | D40: =SUMIF('EO Master Input'!$D:$D,A40,'EO Master Input'!$Q:$Q) -> 179004.01
A41: Children, Youth & Family Dept | B41: =COUNTIF('EO Master Input'!$D:$D,A41) -> 4 | C41: =SUMIF('EO Master Input'!$D:$D,A41,'EO Master Input'!$H:$H) -> 750000 | D41: =SUMIF('EO Master Input'!$D:$D,A41,'EO Master Input'!$Q:$Q) -> 312073.75
A42: Aging and Long Term Services | B42: =COUNTIF('EO Master Input'!$D:$D,A42) -> 1 | C42: =SUMIF('EO Master Input'!$D:$D,A42,'EO Master Input'!$H:$H) -> 750000 | D42: =SUMIF('EO Master Input'!$D:$D,A42,'EO Master Input'!$Q:$Q) -> 31259.85
A43: Public Education Department | B43: =COUNTIF('EO Master Input'!$D:$D,A43) -> 1 | C43: =SUMIF('EO Master Input'!$D:$D,A43,'EO Master Input'!$H:$H) -> 750000 | D43: =SUMIF('EO Master Input'!$D:$D,A43,'EO Master Input'!$Q:$Q) -> 92514.65
A44: No Agency | B44: =COUNTIF('EO Master Input'!$D:$D,A44) -> 205 | C44: =SUMIF('EO Master Input'!$D:$D,A44,'EO Master Input'!$H:$H) -> 2250000 | D44: =SUMIF('EO Master Input'!$D:$D,A44,'EO Master Input'!$Q:$Q) -> 2250000
A45: Public Regulation Commission | B45: =COUNTIF('EO Master Input'!$D:$D,A45) -> 1 | C45: =SUMIF('EO Master Input'!$D:$D,A45,'EO Master Input'!$H:$H) -> 0 | D45: =SUMIF('EO Master Input'!$D:$D,A45,'EO Master Input'!$Q:$Q) -> 0
A47: Monthly Refresh Process
A48: 1. Append new GL lines to the three fund Raw GL tabs.
A49: 2. Paste updated EO data into EO Master Input / pull down EO Linked rows.
A50: 3. Paste updated SHARE KK / ENC / GL / Reversions into the corresponding input tabs.
A51: 4. Add or update fund assignments in EO Fund Allocation Input using the Zcode.
A52: 5. Review EO Linked and this dashboard for refreshed balances and category summaries.

Sheet EO Analysis Tool
B1: Executive Analysis Tool - State of New Mexico
B4: Filter Controls | I4: Selected Agency by Fiscal Year
B5: Select Agency | C5: All | I5: Fiscal Year | J5: EO Count | K5: Authorized
B6: Select Fiscal Year | C6: All | I6: 2019 | J6: =IF($C$5="All","",COUNTIFS('EO Master Input'!$W$2:$W$5000,$C$5,'EO Master Input'!$A$2:$A$5000,I6)) ->  | K6: =IF($C$5="All","",SUMIFS('EO Master Input'!$H$2:$H$5000,'EO Master Input'!$W$2:$W$5000,$C$5,'EO Master Input'!$A$2:$A$5000,I6)) -> 
B7: Select EO Type | C7: All | I7: 2020 | J7: =IF($C$5="All","",COUNTIFS('EO Master Input'!$W$2:$W$5000,$C$5,'EO Master Input'!$A$2:$A$5000,I7)) ->  | K7: =IF($C$5="All","",SUMIFS('EO Master Input'!$H$2:$H$5000,'EO Master Input'!$W$2:$W$5000,$C$5,'EO Master Input'!$A$2:$A$5000,I7)) -> 
I8: 2021 | J8: =IF($C$5="All","",COUNTIFS('EO Master Input'!$W$2:$W$5000,$C$5,'EO Master Input'!$A$2:$A$5000,I8)) ->  | K8: =IF($C$5="All","",SUMIFS('EO Master Input'!$H$2:$H$5000,'EO Master Input'!$W$2:$W$5000,$C$5,'EO Master Input'!$A$2:$A$5000,I8)) -> 
I9: 2022 | J9: =IF($C$5="All","",COUNTIFS('EO Master Input'!$W$2:$W$5000,$C$5,'EO Master Input'!$A$2:$A$5000,I9)) ->  | K9: =IF($C$5="All","",SUMIFS('EO Master Input'!$H$2:$H$5000,'EO Master Input'!$W$2:$W$5000,$C$5,'EO Master Input'!$A$2:$A$5000,I9)) -> 
B10: Summary Results | I10: 2023 | J10: =IF($C$5="All","",COUNTIFS('EO Master Input'!$W$2:$W$5000,$C$5,'EO Master Input'!$A$2:$A$5000,I10)) ->  | K10: =IF($C$5="All","",SUMIFS('EO Master Input'!$H$2:$H$5000,'EO Master Input'!$W$2:$W$5000,$C$5,'EO Master Input'!$A$2:$A$5000,I10)) -> 
B11: EO Count | C11: =SUM('EO Master Input'!$X$2:$X$5000) -> 1172 | D11: Authorized Amount | E11: =SUMIFS('EO Master Input'!$H$2:$H$5000,'EO Master Input'!$X$2:$X$5000,1) -> 741508607 | F11: Linked Budget | G11: =SUMIFS('EO Master Input'!$K$2:$K$5000,'EO Master Input'!$X$2:$X$5000,1) -> 711587607 | I11: 2024 | J11: =IF($C$5="All","",COUNTIFS('EO Master Input'!$W$2:$W$5000,$C$5,'EO Master Input'!$A$2:$A$5000,I11)) ->  | K11: =IF($C$5="All","",SUMIFS('EO Master Input'!$H$2:$H$5000,'EO Master Input'!$W$2:$W$5000,$C$5,'EO Master Input'!$A$2:$A$5000,I11)) -> 
I12: 2025 | J12: =IF($C$5="All","",COUNTIFS('EO Master Input'!$W$2:$W$5000,$C$5,'EO Master Input'!$A$2:$A$5000,I12)) ->  | K12: =IF($C$5="All","",SUMIFS('EO Master Input'!$H$2:$H$5000,'EO Master Input'!$W$2:$W$5000,$C$5,'EO Master Input'!$A$2:$A$5000,I12)) -> 
B13: Spent | C13: =SUMIFS('EO Master Input'!$M$2:$M$5000,'EO Master Input'!$X$2:$X$5000,1) -> 608748521.9 | D13: Encumbered | E13: =SUMIFS('EO Master Input'!$N$2:$N$5000,'EO Master Input'!$X$2:$X$5000,1) -> 14726000.87 | F13: Balance | G13: =SUMIFS('EO Master Input'!$Q$2:$Q$5000,'EO Master Input'!$X$2:$X$5000,1) -> 118034084.2 | I13: 2026 | J13: =IF($C$5="All","",COUNTIFS('EO Master Input'!$W$2:$W$5000,$C$5,'EO Master Input'!$A$2:$A$5000,I13)) ->  | K13: =IF($C$5="All","",SUMIFS('EO Master Input'!$H$2:$H$5000,'EO Master Input'!$W$2:$W$5000,$C$5,'EO Master Input'!$A$2:$A$5000,I13)) -> 
B16: Matching EO Detail
B17: EO # | C17: Agency # | D17: Agency Name | E17: Fiscal Year | F17: EO Type | G17: Purpose | H17: EO Amount | I17: Spent | J17: Encumbered | K17: Balance | L17: Reversions | M17: RowHelper
B18: =IFERROR(INDEX('EO Master Input'!$B$2:$B$5000,MATCH($M18,'EO Master Input'!$Y$2:$Y$5000,0)),"") -> 2019-001 | C18: =IFERROR(INDEX('EO Master Input'!$C$2:$C$5000,MATCH($M18,'EO Master Input'!$Y$2:$Y$5000,0)),"-") -> 0 | D18: =IFERROR(INDEX('EO Master Input'!$D$2:$D$5000,MATCH($M18,'EO Master Input'!$Y$2:$Y$5000,0)),"") -> No Agency | E18: =IFERROR(INDEX('EO Master Input'!$A$2:$A$5000,MATCH($M18,'EO Master Input'!$Y$2:$Y$5000,0)),"") -> 2019 | F18: =IFERROR(INDEX('EO Master Input'!$F$2:$F$5000,MATCH($M18,'EO Master Input'!$Y$2:$Y$5000,0)),"") -> Other | G18: =IFERROR(INDEX('EO Master Input'!$E$2:$E$5000,MATCH($M18,'EO Master Input'!$Y$2:$Y$5000,0)),"") -> Standardized Testing | H18: =IFERROR(INDEX('EO Master Input'!$H$2:$H$5000,MATCH($M18,'EO Master Input'!$Y$2:$Y$5000,0)),"") -> 0 | I18: =IFERROR(INDEX('EO Master Input'!$S$2:$S$5000,MATCH($M18,'EO Master Input'!$Y$2:$Y$5000,0)),"") -> 0 | J18: =IFERROR(INDEX('EO Master Input'!$N$2:$N$5000,MATCH($M18,'EO Master Input'!$Y$2:$Y$5000,0)),"") -> 0 | K18: =IFERROR(INDEX('EO Master Input'!$Q$2:$Q$5000,MATCH($M18,'EO Master Input'!$Y$2:$Y$5000,0)),"") -> 0 | L18: =IFERROR(INDEX('EO Master Input'!$O$2:$O$5000,MATCH($M18,'EO Master Input'!$Y$2:$Y$5000,0)),"") -> 0 | M18: 1
B19: =IFERROR(INDEX('EO Master Input'!$B$2:$B$5000,MATCH($M19,'EO Master Input'!$Y$2:$Y$5000,0)),"") -> 2019-002 | C19: =IFERROR(INDEX('EO Master Input'!$C$2:$C$5000,MATCH($M19,'EO Master Input'!$Y$2:$Y$5000,0)),"-") -> 0 | D19: =IFERROR(INDEX('EO Master Input'!$D$2:$D$5000,MATCH($M19,'EO Master Input'!$Y$2:$Y$5000,0)),"") -> No Agency | E19: =IFERROR(INDEX('EO Master Input'!$A$2:$A$5000,MATCH($M19,'EO Master Input'!$Y$2:$Y$5000,0)),"") -> 2019 | F19: =IFERROR(INDEX('EO Master Input'!$F$2:$F$5000,MATCH($M19,'EO Master Input'!$Y$2:$Y$5000,0)),"") -> Other | G19: =IFERROR(INDEX('EO Master Input'!$E$2:$E$5000,MATCH($M19,'EO Master Input'!$Y$2:$Y$5000,0)),"") -> Standardized Testing | H19: =IFERROR(INDEX('EO Master Input'!$H$2:$H$5000,MATCH($M19,'EO Master Input'!$Y$2:$Y$5000,0)),"") -> 0 | I19: =IFERROR(INDEX('EO Master Input'!$S$2:$S$5000,MATCH($M19,'EO Master Input'!$Y$2:$Y$5000,0)),"") -> 0 | J19: =IFERROR(INDEX('EO Master Input'!$N$2:$N$5000,MATCH($M19,'EO Master Input'!$Y$2:$Y$5000,0)),"") -> 0 | K19: =IFERROR(INDEX('EO Master Input'!$Q$2:$Q$5000,MATCH($M19,'EO Master Input'!$Y$2:$Y$5000,0)),"") -> 0 | L19: =IFERROR(INDEX('EO Master Input'!$O$2:$O$5000,MATCH($M19,'EO Master Input'!$Y$2:$Y$5000,0)),"") -> 0 | M19: 2
B20: =IFERROR(INDEX('EO Master Input'!$B$2:$B$5000,MATCH($M20,'EO Master Input'!$Y$2:$Y$5000,0)),"") -> 2019-003 | C20: =IFERROR(INDEX('EO Master Input'!$C$2:$C$5000,MATCH($M20,'EO Master Input'!$Y$2:$Y$5000,0)),"-") -> 0 | D20: =IFERROR(INDEX('EO Master Input'!$D$2:$D$5000,MATCH($M20,'EO Master Input'!$Y$2:$Y$5000,0)),"") -> No Agency | E20: =IFERROR(INDEX('EO Master Input'!$A$2:$A$5000,MATCH($M20,'EO Master Input'!$Y$2:$Y$5000,0)),"") -> 2019 | F20: =IFERROR(INDEX('EO Master Input'!$F$2:$F$5000,MATCH($M20,'EO Master Input'!$Y$2:$Y$5000,0)),"") -> Other | G20: =IFERROR(INDEX('EO Master Input'!$E$2:$E$5000,MATCH($M20,'EO Master Input'!$Y$2:$Y$5000,0)),"") -> Climate Change and Energy Waste | H20: =IFERROR(INDEX('EO Master Input'!$H$2:$H$5000,MATCH($M20,'EO Master Input'!$Y$2:$Y$5000,0)),"") -> 0 | I20: =IFERROR(INDEX('EO Master Input'!$S$2:$S$5000,MATCH($M20,'EO Master Input'!$Y$2:$Y$5000,0)),"") -> 0 | J20: =IFERROR(INDEX('EO Master Input'!$N$2:$N$5000,MATCH($M20,'EO Master Input'!$Y$2:$Y$5000,0)),"") -> 0 | K20: =IFERROR(INDEX('EO Master Input'!$Q$2:$Q$5000,MATCH($M20,'EO Master Input'!$Y$2:$Y$5000,0)),"") -> 0 | L20: =IFERROR(INDEX('EO Master Input'!$O$2:$O$5000,MATCH($M20,'EO Master Input'!$Y$2:$Y$5000,0)),"") -> 0 | M20: 3
B21: =IFERROR(INDEX('EO Master Input'!$B$2:$B$5000,MATCH($M21,'EO Master Input'!$Y$2:$Y$5000,0)),"") -> 2019-004 | C21: =IFERROR(INDEX('EO Master Input'!$C$2:$C$5000,MATCH($M21,'EO Master Input'!$Y$2:$Y$5000,0)),"-") -> 0 | D21: =IFERROR(INDEX('EO Master Input'!$D$2:$D$5000,MATCH($M21,'EO Master Input'!$Y$2:$Y$5000,0)),"") -> No Agency | E21: =IFERROR(INDEX('EO Master Input'!$A$2:$A$5000,MATCH($M21,'EO Master Input'!$Y$2:$Y$5000,0)),"") -> 2019 | F21: =IFERROR(INDEX('EO Master Input'!$F$2:$F$5000,MATCH($M21,'EO Master Input'!$Y$2:$Y$5000,0)),"") -> Other | G21: =IFERROR(INDEX('EO Master Input'!$E$2:$E$5000,MATCH($M21,'EO Master Input'!$Y$2:$Y$5000,0)),"") -> Memorial | H21: =IFERROR(INDEX('EO Master Input'!$H$2:$H$5000,MATCH($M21,'EO Master Input'!$Y$2:$Y$5000,0)),"") -> 0 | I21: =IFERROR(INDEX('EO Master Input'!$S$2:$S$5000,MATCH($M21,'EO Master Input'!$Y$2:$Y$5000,0)),"") -> 0 | J21: =IFERROR(INDEX('EO Master Input'!$N$2:$N$5000,MATCH($M21,'EO Master Input'!$Y$2:$Y$5000,0)),"") -> 0 | K21: =IFERROR(INDEX('EO Master Input'!$Q$2:$Q$5000,MATCH($M21,'EO Master Input'!$Y$2:$Y$5000,0)),"") -> 0 | L21: =IFERROR(INDEX('EO Master Input'!$O$2:$O$5000,MATCH($M21,'EO Master Input'!$Y$2:$Y$5000,0)),"") -> 0 | M21: 4
B22: =IFERROR(INDEX('EO Master Input'!$B$2:$B$5000,MATCH($M22,'EO Master Input'!$Y$2:$Y$5000,0)),"") -> 2019-005 | C22: =IFERROR(INDEX('EO Master Input'!$C$2:$C$5000,MATCH($M22,'EO Master Input'!$Y$2:$Y$5000,0)),"-") -> 0 | D22: =IFERROR(INDEX('EO Master Input'!$D$2:$D$5000,MATCH($M22,'EO Master Input'!$Y$2:$Y$5000,0)),"") -> No Agency | E22: =IFERROR(INDEX('EO Master Input'!$A$2:$A$5000,MATCH($M22,'EO Master Input'!$Y$2:$Y$5000,0)),"") -> 2019 | F22: =IFERROR(INDEX('EO Master Input'!$F$2:$F$5000,MATCH($M22,'EO Master Input'!$Y$2:$Y$5000,0)),"") -> Other | G22: =IFERROR(INDEX('EO Master Input'!$E$2:$E$5000,MATCH($M22,'EO Master Input'!$Y$2:$Y$5000,0)),"") -> PERA Solvency Task Force | H22: =IFERROR(INDEX('EO Master Input'!$H$2:$H$5000,MATCH($M22,'EO Master Input'!$Y$2:$Y$5000,0)),"") -> 0 | I22: =IFERROR(INDEX('EO Master Input'!$S$2:$S$5000,MATCH($M22,'EO Master Input'!$Y$2:$Y$5000,0)),"") -> 0 | J22: =IFERROR(INDEX('EO Master Input'!$N$2:$N$5000,MATCH($M22,'EO Master Input'!$Y$2:$Y$5000,0)),"") -> 0 | K22: =IFERROR(INDEX('EO Master Input'!$Q$2:$Q$5000,MATCH($M22,'EO Master Input'!$Y$2:$Y$5000,0)),"") -> 0 | L22: =IFERROR(INDEX('EO Master Input'!$O$2:$O$5000,MATCH($M22,'EO Master Input'!$Y$2:$Y$5000,0)),"") -> 0 | M22: 5
B23: =IFERROR(INDEX('EO Master Input'!$B$2:$B$5000,MATCH($M23,'EO Master Input'!$Y$2:$Y$5000,0)),"") -> 2019-006 | C23: =IFERROR(INDEX('EO Master Input'!$C$2:$C$5000,MATCH($M23,'EO Master Input'!$Y$2:$Y$5000,0)),"-") -> 0 | D23: =IFERROR(INDEX('EO Master Input'!$D$2:$D$5000,MATCH($M23,'EO Master Input'!$Y$2:$Y$5000,0)),"") -> No Agency | E23: =IFERROR(INDEX('EO Master Input'!$A$2:$A$5000,MATCH($M23,'EO Master Input'!$Y$2:$Y$5000,0)),"") -> 2019 | F23: =IFERROR(INDEX('EO Master Input'!$F$2:$F$5000,MATCH($M23,'EO Master Input'!$Y$2:$Y$5000,0)),"") -> Other | G23: =IFERROR(INDEX('EO Master Input'!$E$2:$E$5000,MATCH($M23,'EO Master Input'!$Y$2:$Y$5000,0)),"") -> Memorial | H23: =IFERROR(INDEX('EO Master Input'!$H$2:$H$5000,MATCH($M23,'EO Master Input'!$Y$2:$Y$5000,0)),"") -> 0 | I23: =IFERROR(INDEX('EO Master Input'!$S$2:$S$5000,MATCH($M23,'EO Master Input'!$Y$2:$Y$5000,0)),"") -> 0 | J23: =IFERROR(INDEX('EO Master Input'!$N$2:$N$5000,MATCH($M23,'EO Master Input'!$Y$2:$Y$5000,0)),"") -> 0 | K23: =IFERROR(INDEX('EO Master Input'!$Q$2:$Q$5000,MATCH($M23,'EO Master Input'!$Y$2:$Y$5000,0)),"") -> 0 | L23: =IFERROR(INDEX('EO Master Input'!$O$2:$O$5000,MATCH($M23,'EO Master Input'!$Y$2:$Y$5000,0)),"") -> 0 | M23: 6
B24: =IFERROR(INDEX('EO Master Input'!$B$2:$B$5000,MATCH($M24,'EO Master Input'!$Y$2:$Y$5000,0)),"") -> 2019-007 | C24: =IFERROR(INDEX('EO Master Input'!$C$2:$C$5000,MATCH($M24,'EO Master Input'!$Y$2:$Y$5000,0)),"-") -> 0 | D24: =IFERROR(INDEX('EO Master Input'!$D$2:$D$5000,MATCH($M24,'EO Master Input'!$Y$2:$Y$5000,0)),"") -> No Agency | E24: =IFERROR(INDEX('EO Master Input'!$A$2:$A$5000,MATCH($M24,'EO Master Input'!$Y$2:$Y$5000,0)),"") -> 2019 | F24: =IFERROR(INDEX('EO Master Input'!$F$2:$F$5000,MATCH($M24,'EO Master Input'!$Y$2:$Y$5000,0)),"") -> Other | G24: =IFERROR(INDEX('EO Master Input'!$E$2:$E$5000,MATCH($M24,'EO Master Input'!$Y$2:$Y$5000,0)),"") -> Complete Count Commission | H24: =IFERROR(INDEX('EO Master Input'!$H$2:$H$5000,MATCH($M24,'EO Master Input'!$Y$2:$Y$5000,0)),"") -> 0 | I24: =IFERROR(INDEX('EO Master Input'!$S$2:$S$5000,MATCH($M24,'EO Master Input'!$Y$2:$Y$5000,0)),"") -> 0 | J24: =IFERROR(INDEX('EO Master Input'!$N$2:$N$5000,MATCH($M24,'EO Master Input'!$Y$2:$Y$5000,0)),"") -> 0 | K24: =IFERROR(INDEX('EO Master Input'!$Q$2:$Q$5000,MATCH($M24,'EO Master Input'!$Y$2:$Y$5000,0)),"") -> 0 | L24: =IFERROR(INDEX('EO Master Input'!$O$2:$O$5000,MATCH($M24,'EO Master Input'!$Y$2:$Y$5000,0)),"") -> 0 | M24: 7
B25: =IFERROR(INDEX('EO Master Input'!$B$2:$B$5000,MATCH($M25,'EO Master Input'!$Y$2:$Y$5000,0)),"") -> 2019-008 | C25: =IFERROR(INDEX('EO Master Input'!$C$2:$C$5000,MATCH($M25,'EO Master Input'!$Y$2:$Y$5000,0)),"-") -> 79500 | D25: =IFERROR(INDEX('EO Master Input'!$D$2:$D$5000,MATCH($M25,'EO Master Input'!$Y$2:$Y$5000,0)),"") -> Homeland Sec. & Emerg. Mgmt. | E25: =IFERROR(INDEX('EO Master Input'!$A$2:$A$5000,MATCH($M25,'EO Master Input'!$Y$2:$Y$5000,0)),"") -> 2019 | F25: =IFERROR(INDEX('EO Master Input'!$F$2:$F$5000,MATCH($M25,'EO Master Input'!$Y$2:$Y$5000,0)),"") -> Storm | G25: =IFERROR(INDEX('EO Master Input'!$E$2:$E$5000,MATCH($M25,'EO Master Input'!$Y$2:$Y$5000,0)),"") -> Winter Storm (Mulitple Counties) | H25: =IFERROR(INDEX('EO Master Input'!$H$2:$H$5000,MATCH($M25,'EO Master Input'!$Y$2:$Y$5000,0)),"") -> 5150000 | I25: =IFERROR(INDEX('EO Master Input'!$S$2:$S$5000,MATCH($M25,'EO Master Input'!$Y$2:$Y$5000,0)),"") -> 3630904.57 | J25: =IFERROR(INDEX('EO Master Input'!$N$2:$N$5000,MATCH($M25,'EO Master Input'!$Y$2:$Y$5000,0)),"") -> 0 | K25: =IFERROR(INDEX('EO Master Input'!$Q$2:$Q$5000,MATCH($M25,'EO Master Input'!$Y$2:$Y$5000,0)),"") -> 1519095.43 | L25: =IFERROR(INDEX('EO Master Input'!$O$2:$O$5000,MATCH($M25,'EO Master Input'!$Y$2:$Y$5000,0)),"") -> 1519095.43 | M25: 8
B26: =IFERROR(INDEX('EO Master Input'!$B$2:$B$5000,MATCH($M26,'EO Master Input'!$Y$2:$Y$5000,0)),"") -> 2019-009 | C26: =IFERROR(INDEX('EO Master Input'!$C$2:$C$5000,MATCH($M26,'EO Master Input'!$Y$2:$Y$5000,0)),"-") -> 79500 | D26: =IFERROR(INDEX('EO Master Input'!$D$2:$D$5000,MATCH($M26,'EO Master Input'!$Y$2:$Y$5000,0)),"") -> Homeland Sec. & Emerg. Mgmt. | E26: =IFERROR(INDEX('EO Master Input'!$A$2:$A$5000,MATCH($M26,'EO Master Input'!$Y$2:$Y$5000,0)),"") -> 2019 | F26: =IFERROR(INDEX('EO Master Input'!$F$2:$F$5000,MATCH($M26,'EO Master Input'!$Y$2:$Y$5000,0)),"") -> Storm | G26: =IFERROR(INDEX('EO Master Input'!$E$2:$E$5000,MATCH($M26,'EO Master Input'!$Y$2:$Y$5000,0)),"") -> Storms | H26: =IFERROR(INDEX('EO Master Input'!$H$2:$H$5000,MATCH($M26,'EO Master Input'!$Y$2:$Y$5000,0)),"") -> 750000 | I26: =IFERROR(INDEX('EO Master Input'!$S$2:$S$5000,MATCH($M26,'EO Master Input'!$Y$2:$Y$5000,0)),"") -> 472009.13 | J26: =IFERROR(INDEX('EO Master Input'!$N$2:$N$5000,MATCH($M26,'EO Master Input'!$Y$2:$Y$5000,0)),"") -> 0 | K26: =IFERROR(INDEX('EO Master Input'!$Q$2:$Q$5000,MATCH($M26,'EO Master Input'!$Y$2:$Y$5000,0)),"") -> 277990.87 | L26: =IFERROR(INDEX('EO Master Input'!$O$2:$O$5000,MATCH($M26,'EO Master Input'!$Y$2:$Y$5000,0)),"") -> 0 | M26: 9
B27: =IFERROR(INDEX('EO Master Input'!$B$2:$B$5000,MATCH($M27,'EO Master Input'!$Y$2:$Y$5000,0)),"") -> 2019-010 | C27: =IFERROR(INDEX('EO Master Input'!$C$2:$C$5000,MATCH($M27,'EO Master Input'!$Y$2:$Y$5000,0)),"-") -> 0 | D27: =IFERROR(INDEX('EO Master Input'!$D$2:$D$5000,MATCH($M27,'EO Master Input'!$Y$2:$Y$5000,0)),"") -> No Agency | E27: =IFERROR(INDEX('EO Master Input'!$A$2:$A$5000,MATCH($M27,'EO Master Input'!$Y$2:$Y$5000,0)),"") -> 2019 | F27: =IFERROR(INDEX('EO Master Input'!$F$2:$F$5000,MATCH($M27,'EO Master Input'!$Y$2:$Y$5000,0)),"") -> Other | G27: =IFERROR(INDEX('EO Master Input'!$E$2:$E$5000,MATCH($M27,'EO Master Input'!$Y$2:$Y$5000,0)),"") -> Memorial | H27: =IFERROR(INDEX('EO Master Input'!$H$2:$H$5000,MATCH($M27,'EO Master Input'!$Y$2:$Y$5000,0)),"") -> 0 | I27: =IFERROR(INDEX('EO Master Input'!$S$2:$S$5000,MATCH($M27,'EO Master Input'!$Y$2:$Y$5000,0)),"") -> 0 | J27: =IFERROR(INDEX('EO Master Input'!$N$2:$N$5000,MATCH($M27,'EO Master Input'!$Y$2:$Y$5000,0)),"") -> 0 | K27: =IFERROR(INDEX('EO Master Input'!$Q$2:$Q$5000,MATCH($M27,'EO Master Input'!$Y$2:$Y$5000,0)),"") -> 0 | L27: =IFERROR(INDEX('EO Master Input'!$O$2:$O$5000,MATCH($M27,'EO Master Input'!$Y$2:$Y$5000,0)),"") -> 0 | M27: 10
B28: =IFERROR(INDEX('EO Master Input'!$B$2:$B$5000,MATCH($M28,'EO Master Input'!$Y$2:$Y$5000,0)),"") -> 2019-011 | C28: =IFERROR(INDEX('EO Master Input'!$C$2:$C$5000,MATCH($M28,'EO Master Input'!$Y$2:$Y$5000,0)),"-") -> 0 | D28: =IFERROR(INDEX('EO Master Input'!$D$2:$D$5000,MATCH($M28,'EO Master Input'!$Y$2:$Y$5000,0)),"") -> No Agency | E28: =IFERROR(INDEX('EO Master Input'!$A$2:$A$5000,MATCH($M28,'EO Master Input'!$Y$2:$Y$5000,0)),"") -> 2019 | F28: =IFERROR(INDEX('EO Master Input'!$F$2:$F$5000,MATCH($M28,'EO Master Input'!$Y$2:$Y$5000,0)),"") -> Other | G28: =IFERROR(INDEX('EO Master Input'!$E$2:$E$5000,MATCH($M28,'EO Master Input'!$Y$2:$Y$5000,0)),"") -> Return human recources | H28: =IFERROR(INDEX('EO Master Input'!$H$2:$H$5000,MATCH($M28,'EO Master Input'!$Y$2:$Y$5000,0)),"") -> 0 | I28: =IFERROR(INDEX('EO Master Input'!$S$2:$S$5000,MATCH($M28,'EO Master Input'!$Y$2:$Y$5000,0)),"") -> 0 | J28: =IFERROR(INDEX('EO Master Input'!$N$2:$N$5000,MATCH($M28,'EO Master Input'!$Y$2:$Y$5000,0)),"") -> 0 | K28: =IFERROR(INDEX('EO Master Input'!$Q$2:$Q$5000,MATCH($M28,'EO Master Input'!$Y$2:$Y$5000,0)),"") -> 0 | L28: =IFERROR(INDEX('EO Master Input'!$O$2:$O$5000,MATCH($M28,'EO Master Input'!$Y$2:$Y$5000,0)),"") -> 0 | M28: 11
B29: =IFERROR(INDEX('EO Master Input'!$B$2:$B$5000,MATCH($M29,'EO Master Input'!$Y$2:$Y$5000,0)),"") -> 2019-012 | C29: =IFERROR(INDEX('EO Master Input'!$C$2:$C$5000,MATCH($M29,'EO Master Input'!$Y$2:$Y$5000,0)),"-") -> 0 | D29: =IFERROR(INDEX('EO Master Input'!$D$2:$D$5000,MATCH($M29,'EO Master Input'!$Y$2:$Y$5000,0)),"") -> No Agency | E29: =IFERROR(INDEX('EO Master Input'!$A$2:$A$5000,MATCH($M29,'EO Master Input'!$Y$2:$Y$5000,0)),"") -> 2019 | F29: =IFERROR(INDEX('EO Master Input'!$F$2:$F$5000,MATCH($M29,'EO Master Input'!$Y$2:$Y$5000,0)),"") -> Other | G29: =IFERROR(INDEX('EO Master Input'!$E$2:$E$5000,MATCH($M29,'EO Master Input'!$Y$2:$Y$5000,0)),"") -> Memorial | H29: =IFERROR(INDEX('EO Master Input'!$H$2:$H$5000,MATCH($M29,'EO Master Input'!$Y$2:$Y$5000,0)),"") -> 0 | I29: =IFERROR(INDEX('EO Master Input'!$S$2:$S$5000,MATCH($M29,'EO Master Input'!$Y$2:$Y$5000,0)),"") -> 0 | J29: =IFERROR(INDEX('EO Master Input'!$N$2:$N$5000,MATCH($M29,'EO Master Input'!$Y$2:$Y$5000,0)),"") -> 0 | K29: =IFERROR(INDEX('EO Master Input'!$Q$2:$Q$5000,MATCH($M29,'EO Master Input'!$Y$2:$Y$5000,0)),"") -> 0 | L29: =IFERROR(INDEX('EO Master Input'!$O$2:$O$5000,MATCH($M29,'EO Master Input'!$Y$2:$Y$5000,0)),"") -> 0 | M29: 12
B30: =IFERROR(INDEX('EO Master Input'!$B$2:$B$5000,MATCH($M30,'EO Master Input'!$Y$2:$Y$5000,0)),"") -> 2019-013 | C30: =IFERROR(INDEX('EO Master Input'!$C$2:$C$5000,MATCH($M30,'EO Master Input'!$Y$2:$Y$5000,0)),"-") -> 0 | D30: =IFERROR(INDEX('EO Master Input'!$D$2:$D$5000,MATCH($M30,'EO Master Input'!$Y$2:$Y$5000,0)),"") -> No Agency | E30: =IFERROR(INDEX('EO Master Input'!$A$2:$A$5000,MATCH($M30,'EO Master Input'!$Y$2:$Y$5000,0)),"") -> 2019 | F30: =IFERROR(INDEX('EO Master Input'!$F$2:$F$5000,MATCH($M30,'EO Master Input'!$Y$2:$Y$5000,0)),"") -> Other | G30: =IFERROR(INDEX('EO Master Input'!$E$2:$E$5000,MATCH($M30,'EO Master Input'!$Y$2:$Y$5000,0)),"") -> Flags to Half Staff | H30: =IFERROR(INDEX('EO Master Input'!$H$2:$H$5000,MATCH($M30,'EO Master Input'!$Y$2:$Y$5000,0)),"") -> 0 | I30: =IFERROR(INDEX('EO Master Input'!$S$2:$S$5000,MATCH($M30,'EO Master Input'!$Y$2:$Y$5000,0)),"") -> 0 | J30: =IFERROR(INDEX('EO Master Input'!$N$2:$N$5000,MATCH($M30,'EO Master Input'!$Y$2:$Y$5000,0)),"") -> 0 | K30: =IFERROR(INDEX('EO Master Input'!$Q$2:$Q$5000,MATCH($M30,'EO Master Input'!$Y$2:$Y$5000,0)),"") -> 0 | L30: =IFERROR(INDEX('EO Master Input'!$O$2:$O$5000,MATCH($M30,'EO Master Input'!$Y$2:$Y$5000,0)),"") -> 0 | M30: 13
B31: =IFERROR(INDEX('EO Master Input'!$B$2:$B$5000,MATCH($M31,'EO Master Input'!$Y$2:$Y$5000,0)),"") -> 2019-014 | C31: =IFERROR(INDEX('EO Master Input'!$C$2:$C$5000,MATCH($M31,'EO Master Input'!$Y$2:$Y$5000,0)),"-") -> 79500 | D31: =IFERROR(INDEX('EO Master Input'!$D$2:$D$5000,MATCH($M31,'EO Master Input'!$Y$2:$Y$5000,0)),"") -> Homeland Sec. & Emerg. Mgmt. | E31: =IFERROR(INDEX('EO Master Input'!$A$2:$A$5000,MATCH($M31,'EO Master Input'!$Y$2:$Y$5000,0)),"") -> 2019 | F31: =IFERROR(INDEX('EO Master Input'!$F$2:$F$5000,MATCH($M31,'EO Master Input'!$Y$2:$Y$5000,0)),"") -> Flooding | G31: =IFERROR(INDEX('EO Master Input'!$E$2:$E$5000,MATCH($M31,'EO Master Input'!$Y$2:$Y$5000,0)),"") -> Flooding (Rio Arriba and Sandoval County) | H31: =IFERROR(INDEX('EO Master Input'!$H$2:$H$5000,MATCH($M31,'EO Master Input'!$Y$2:$Y$5000,0)),"") -> 2500000 | I31: =IFERROR(INDEX('EO Master Input'!$S$2:$S$5000,MATCH($M31,'EO Master Input'!$Y$2:$Y$5000,0)),"") -> 1027234.92 | J31: =IFERROR(INDEX('EO Master Input'!$N$2:$N$5000,MATCH($M31,'EO Master Input'!$Y$2:$Y$5000,0)),"") -> 0 | K31: =IFERROR(INDEX('EO Master Input'!$Q$2:$Q$5000,MATCH($M31,'EO Master Input'!$Y$2:$Y$5000,0)),"") -> 1472765.08 | L31: =IFERROR(INDEX('EO Master Input'!$O$2:$O$5000,MATCH($M31,'EO Master Input'!$Y$2:$Y$5000,0)),"") -> 2683827.88 | M31: 14
B32: =IFERROR(INDEX('EO Master Input'!$B$2:$B$5000,MATCH($M32,'EO Master Input'!$Y$2:$Y$5000,0)),"") -> 2019-015 | C32: =IFERROR(INDEX('EO Master Input'!$C$2:$C$5000,MATCH($M32,'EO Master Input'!$Y$2:$Y$5000,0)),"-") -> 79500 | D32: =IFERROR(INDEX('EO Master Input'!$D$2:$D$5000,MATCH($M32,'EO Master Input'!$Y$2:$Y$5000,0)),"") -> Homeland Sec. & Emerg. Mgmt. | E32: =IFERROR(INDEX('EO Master Input'!$A$2:$A$5000,MATCH($M32,'EO Master Input'!$Y$2:$Y$5000,0)),"") -> 2019 | F32: =IFERROR(INDEX('EO Master Input'!$F$2:$F$5000,MATCH($M32,'EO Master Input'!$Y$2:$Y$5000,0)),"") -> Crime | G32: =IFERROR(INDEX('EO Master Input'!$E$2:$E$5000,MATCH($M32,'EO Master Input'!$Y$2:$Y$5000,0)),"") -> Civil Support | H32: =IFERROR(INDEX('EO Master Input'!$H$2:$H$5000,MATCH($M32,'EO Master Input'!$Y$2:$Y$5000,0)),"") -> 750000 | I32: =IFERROR(INDEX('EO Master Input'!$S$2:$S$5000,MATCH($M32,'EO Master Input'!$Y$2:$Y$5000,0)),"") -> 0 | J32: =IFERROR(INDEX('EO Master Input'!$N$2:$N$5000,MATCH($M32,'EO Master Input'!$Y$2:$Y$5000,0)),"") -> 0 | K32: =IFERROR(INDEX('EO Master Input'!$Q$2:$Q$5000,MATCH($M32,'EO Master Input'!$Y$2:$Y$5000,0)),"") -> 750000 | L32: =IFERROR(INDEX('EO Master Input'!$O$2:$O$5000,MATCH($M32,'EO Master Input'!$Y$2:$Y$5000,0)),"") -> 0 | M32: 15
B33: =IFERROR(INDEX('EO Master Input'!$B$2:$B$5000,MATCH($M33,'EO Master Input'!$Y$2:$Y$5000,0)),"") -> 2019-016 | C33: =IFERROR(INDEX('EO Master Input'!$C$2:$C$5000,MATCH($M33,'EO Master Input'!$Y$2:$Y$5000,0)),"-") -> 79500 | D33: =IFERROR(INDEX('EO Master Input'!$D$2:$D$5000,MATCH($M33,'EO Master Input'!$Y$2:$Y$5000,0)),"") -> Homeland Sec. & Emerg. Mgmt. | E33: =IFERROR(INDEX('EO Master Input'!$A$2:$A$5000,MATCH($M33,'EO Master Input'!$Y$2:$Y$5000,0)),"") -> 2019 | F33: =IFERROR(INDEX('EO Master Input'!$F$2:$F$5000,MATCH($M33,'EO Master Input'!$Y$2:$Y$5000,0)),"") -> Crime | G33: =IFERROR(INDEX('EO Master Input'!$E$2:$E$5000,MATCH($M33,'EO Master Input'!$Y$2:$Y$5000,0)),"") -> Civil Support | H33: =IFERROR(INDEX('EO Master Input'!$H$2:$H$5000,MATCH($M33,'EO Master Input'!$Y$2:$Y$5000,0)),"") -> 750000 | I33: =IFERROR(INDEX('EO Master Input'!$S$2:$S$5000,MATCH($M33,'EO Master Input'!$Y$2:$Y$5000,0)),"") -> 601209.99 | J33: =IFERROR(INDEX('EO Master Input'!$N$2:$N$5000,MATCH($M33,'EO Master Input'!$Y$2:$Y$5000,0)),"") -> 0 | K33: =IFERROR(INDEX('EO Master Input'!$Q$2:$Q$5000,MATCH($M33,'EO Master Input'!$Y$2:$Y$5000,0)),"") -> 148790.01 | L33: =IFERROR(INDEX('EO Master Input'!$O$2:$O$5000,MATCH($M33,'EO Master Input'!$Y$2:$Y$5000,0)),"") -> 148790.01 | M33: 16
B34: =IFERROR(INDEX('EO Master Input'!$B$2:$B$5000,MATCH($M34,'EO Master Input'!$Y$2:$Y$5000,0)),"") -> 2019-017 | C34: =IFERROR(INDEX('EO Master Input'!$C$2:$C$5000,MATCH($M34,'EO Master Input'!$Y$2:$Y$5000,0)),"-") -> 52100 | D34: =IFERROR(INDEX('EO Master Input'!$D$2:$D$5000,MATCH($M34,'EO Master Input'!$Y$2:$Y$5000,0)),"") -> Energy, Minerals & Resources | E34: =IFERROR(INDEX('EO Master Input'!$A$2:$A$5000,MATCH($M34,'EO Master Input'!$Y$2:$Y$5000,0)),"") -> 2020 | F34: =IFERROR(INDEX('EO Master Input'!$F$2:$F$5000,MATCH($M34,'EO Master Input'!$Y$2:$Y$5000,0)),"") -> Fire | G34: =IFERROR(INDEX('EO Master Input'!$E$2:$E$5000,MATCH($M34,'EO Master Input'!$Y$2:$Y$5000,0)),"") -> Wildfires | H34: =IFERROR(INDEX('EO Master Input'!$H$2:$H$5000,MATCH($M34,'EO Master Input'!$Y$2:$Y$5000,0)),"") -> 750000 | I34: =IFERROR(INDEX('EO Master Input'!$S$2:$S$5000,MATCH($M34,'EO Master Input'!$Y$2:$Y$5000,0)),"") -> 750000 | J34: =IFERROR(INDEX('EO Master Input'!$N$2:$N$5000,MATCH($M34,'EO Master Input'!$Y$2:$Y$5000,0)),"") -> 0 | K34: =IFERROR(INDEX('EO Master Input'!$Q$2:$Q$5000,MATCH($M34,'EO Master Input'!$Y$2:$Y$5000,0)),"") -> 0 | L34: =IFERROR(INDEX('EO Master Input'!$O$2:$O$5000,MATCH($M34,'EO Master Input'!$Y$2:$Y$5000,0)),"") -> 0 | M34: 17
B35: =IFERROR(INDEX('EO Master Input'!$B$2:$B$5000,MATCH($M35,'EO Master Input'!$Y$2:$Y$5000,0)),"") -> 2019-018 | C35: =IFERROR(INDEX('EO Master Input'!$C$2:$C$5000,MATCH($M35,'EO Master Input'!$Y$2:$Y$5000,0)),"-") -> 52100 | D35: =IFERROR(INDEX('EO Master Input'!$D$2:$D$5000,MATCH($M35,'EO Master Input'!$Y$2:$Y$5000,0)),"") -> Energy, Minerals & Resources | E35: =IFERROR(INDEX('EO Master Input'!$A$2:$A$5000,MATCH($M35,'EO Master Input'!$Y$2:$Y$5000,0)),"") -> 2020 | F35: =IFERROR(INDEX('EO Master Input'!$F$2:$F$5000,MATCH($M35,'EO Master Input'!$Y$2:$Y$5000,0)),"") -> Fire | G35: =IFERROR(INDEX('EO Master Input'!$E$2:$E$5000,MATCH($M35,'EO Master Input'!$Y$2:$Y$5000,0)),"") -> Wildfires | H35: =IFERROR(INDEX('EO Master Input'!$H$2:$H$5000,MATCH($M35,'EO Master Input'!$Y$2:$Y$5000,0)),"") -> 750000 | I35: =IFERROR(INDEX('EO Master Input'!$S$2:$S$5000,MATCH($M35,'EO Master Input'!$Y$2:$Y$5000,0)),"") -> 750000 | J35: =IFERROR(INDEX('EO Master Input'!$N$2:$N$5000,MATCH($M35,'EO Master Input'!$Y$2:$Y$5000,0)),"") -> 0 | K35: =IFERROR(INDEX('EO Master Input'!$Q$2:$Q$5000,MATCH($M35,'EO Master Input'!$Y$2:$Y$5000,0)),"") -> 0 | L35: =IFERROR(INDEX('EO Master Input'!$O$2:$O$5000,MATCH($M35,'EO Master Input'!$Y$2:$Y$5000,0)),"") -> 0 | M35: 18
B36: =IFERROR(INDEX('EO Master Input'!$B$2:$B$5000,MATCH($M36,'EO Master Input'!$Y$2:$Y$5000,0)),"") -> 2019-019 | C36: =IFERROR(INDEX('EO Master Input'!$C$2:$C$5000,MATCH($M36,'EO Master Input'!$Y$2:$Y$5000,0)),"-") -> 52100 | D36: =IFERROR(INDEX('EO Master Input'!$D$2:$D$5000,MATCH($M36,'EO Master Input'!$Y$2:$Y$5000,0)),"") -> Energy, Minerals & Resources | E36: =IFERROR(INDEX('EO Master Input'!$A$2:$A$5000,MATCH($M36,'EO Master Input'!$Y$2:$Y$5000,0)),"") -> 2020 | F36: =IFERROR(INDEX('EO Master Input'!$F$2:$F$5000,MATCH($M36,'EO Master Input'!$Y$2:$Y$5000,0)),"") -> Fire | G36: =IFERROR(INDEX('EO Master Input'!$E$2:$E$5000,MATCH($M36,'EO Master Input'!$Y$2:$Y$5000,0)),"") -> Wildfires | H36: =IFERROR(INDEX('EO Master Input'!$H$2:$H$5000,MATCH($M36,'EO Master Input'!$Y$2:$Y$5000,0)),"") -> 750000 | I36: =IFERROR(INDEX('EO Master Input'!$S$2:$S$5000,MATCH($M36,'EO Master Input'!$Y$2:$Y$5000,0)),"") -> 750000 | J36: =IFERROR(INDEX('EO Master Input'!$N$2:$N$5000,MATCH($M36,'EO Master Input'!$Y$2:$Y$5000,0)),"") -> 0 | K36: =IFERROR(INDEX('EO Master Input'!$Q$2:$Q$5000,MATCH($M36,'EO Master Input'!$Y$2:$Y$5000,0)),"") -> 0 | L36: =IFERROR(INDEX('EO Master Input'!$O$2:$O$5000,MATCH($M36,'EO Master Input'!$Y$2:$Y$5000,0)),"") -> 0 | M36: 19
B37: =IFERROR(INDEX('EO Master Input'!$B$2:$B$5000,MATCH($M37,'EO Master Input'!$Y$2:$Y$5000,0)),"") -> 2019-020 | C37: =IFERROR(INDEX('EO Master Input'!$C$2:$C$5000,MATCH($M37,'EO Master Input'!$Y$2:$Y$5000,0)),"-") -> 52100 | D37: =IFERROR(INDEX('EO Master Input'!$D$2:$D$5000,MATCH($M37,'EO Master Input'!$Y$2:$Y$5000,0)),"") -> Energy, Minerals & Resources | E37: =IFERROR(INDEX('EO Master Input'!$A$2:$A$5000,MATCH($M37,'EO Master Input'!$Y$2:$Y$5000,0)),"") -> 2020 | F37: =IFERROR(INDEX('EO Master Input'!$F$2:$F$5000,MATCH($M37,'EO Master Input'!$Y$2:$Y$5000,0)),"") -> Fire | G37: =IFERROR(INDEX('EO Master Input'!$E$2:$E$5000,MATCH($M37,'EO Master Input'!$Y$2:$Y$5000,0)),"") -> Wildfires | H37: =IFERROR(INDEX('EO Master Input'!$H$2:$H$5000,MATCH($M37,'EO Master Input'!$Y$2:$Y$5000,0)),"") -> 750000 | I37: =IFERROR(INDEX('EO Master Input'!$S$2:$S$5000,MATCH($M37,'EO Master Input'!$Y$2:$Y$5000,0)),"") -> 750000 | J37: =IFERROR(INDEX('EO Master Input'!$N$2:$N$5000,MATCH($M37,'EO Master Input'!$Y$2:$Y$5000,0)),"") -> 0 | K37: =IFERROR(INDEX('EO Master Input'!$Q$2:$Q$5000,MATCH($M37,'EO Master Input'!$Y$2:$Y$5000,0)),"") -> 0 | L37: =IFERROR(INDEX('EO Master Input'!$O$2:$O$5000,MATCH($M37,'EO Master Input'!$Y$2:$Y$5000,0)),"") -> 0 | M37: 20
B38: =IFERROR(INDEX('EO Master Input'!$B$2:$B$5000,MATCH($M38,'EO Master Input'!$Y$2:$Y$5000,0)),"") -> 2019-021 | C38: =IFERROR(INDEX('EO Master Input'!$C$2:$C$5000,MATCH($M38,'EO Master Input'!$Y$2:$Y$5000,0)),"-") -> 52100 | D38: =IFERROR(INDEX('EO Master Input'!$D$2:$D$5000,MATCH($M38,'EO Master Input'!$Y$2:$Y$5000,0)),"") -> Energy, Minerals & Resources | E38: =IFERROR(INDEX('EO Master Input'!$A$2:$A$5000,MATCH($M38,'EO Master Input'!$Y$2:$Y$5000,0)),"") -> 2020 | F38: =IFERROR(INDEX('EO Master Input'!$F$2:$F$5000,MATCH($M38,'EO Master Input'!$Y$2:$Y$5000,0)),"") -> Fire | G38: =IFERROR(INDEX('EO Master Input'!$E$2:$E$5000,MATCH($M38,'EO Master Input'!$Y$2:$Y$5000,0)),"") -> Wildfires | H38: =IFERROR(INDEX('EO Master Input'!$H$2:$H$5000,MATCH($M38,'EO Master Input'!$Y$2:$Y$5000,0)),"") -> 750000 | I38: =IFERROR(INDEX('EO Master Input'!$S$2:$S$5000,MATCH($M38,'EO Master Input'!$Y$2:$Y$5000,0)),"") -> 750000 | J38: =IFERROR(INDEX('EO Master Input'!$N$2:$N$5000,MATCH($M38,'EO Master Input'!$Y$2:$Y$5000,0)),"") -> 0 | K38: =IFERROR(INDEX('EO Master Input'!$Q$2:$Q$5000,MATCH($M38,'EO Master Input'!$Y$2:$Y$5000,0)),"") -> 0 | L38: =IFERROR(INDEX('EO Master Input'!$O$2:$O$5000,MATCH($M38,'EO Master Input'!$Y$2:$Y$5000,0)),"") -> 0 | M38: 21
B39: =IFERROR(INDEX('EO Master Input'!$B$2:$B$5000,MATCH($M39,'EO Master Input'!$Y$2:$Y$5000,0)),"") -> 2019-022 | C39: =IFERROR(INDEX('EO Master Input'!$C$2:$C$5000,MATCH($M39,'EO Master Input'!$Y$2:$Y$5000,0)),"-") -> 52100 | D39: =IFERROR(INDEX('EO Master Input'!$D$2:$D$5000,MATCH($M39,'EO Master Input'!$Y$2:$Y$5000,0)),"") -> Energy, Minerals & Resources | E39: =IFERROR(INDEX('EO Master Input'!$A$2:$A$5000,MATCH($M39,'EO Master Input'!$Y$2:$Y$5000,0)),"") -> 2020 | F39: =IFERROR(INDEX('EO Master Input'!$F$2:$F$5000,MATCH($M39,'EO Master Input'!$Y$2:$Y$5000,0)),"") -> Fire | G39: =IFERROR(INDEX('EO Master Input'!$E$2:$E$5000,MATCH($M39,'EO Master Input'!$Y$2:$Y$5000,0)),"") -> Wildfires | H39: =IFERROR(INDEX('EO Master Input'!$H$2:$H$5000,MATCH($M39,'EO Master Input'!$Y$2:$Y$5000,0)),"") -> 750000 | I39: =IFERROR(INDEX('EO Master Input'!$S$2:$S$5000,MATCH($M39,'EO Master Input'!$Y$2:$Y$5000,0)),"") -> 750000 | J39: =IFERROR(INDEX('EO Master Input'!$N$2:$N$5000,MATCH($M39,'EO Master Input'!$Y$2:$Y$5000,0)),"") -> 0 | K39: =IFERROR(INDEX('EO Master Input'!$Q$2:$Q$5000,MATCH($M39,'EO Master Input'!$Y$2:$Y$5000,0)),"") -> 0 | L39: =IFERROR(INDEX('EO Master Input'!$O$2:$O$5000,MATCH($M39,'EO Master Input'!$Y$2:$Y$5000,0)),"") -> 0 | M39: 22
B40: =IFERROR(INDEX('EO Master Input'!$B$2:$B$5000,MATCH($M40,'EO Master Input'!$Y$2:$Y$5000,0)),"") -> 2019-023 | C40: =IFERROR(INDEX('EO Master Input'!$C$2:$C$5000,MATCH($M40,'EO Master Input'!$Y$2:$Y$5000,0)),"-") -> 0 | D40: =IFERROR(INDEX('EO Master Input'!$D$2:$D$5000,MATCH($M40,'EO Master Input'!$Y$2:$Y$5000,0)),"") -> No Agency | E40: =IFERROR(INDEX('EO Master Input'!$A$2:$A$5000,MATCH($M40,'EO Master Input'!$Y$2:$Y$5000,0)),"") -> 2020 | F40: =IFERROR(INDEX('EO Master Input'!$F$2:$F$5000,MATCH($M40,'EO Master Input'!$Y$2:$Y$5000,0)),"") -> Other | G40: =IFERROR(INDEX('EO Master Input'!$E$2:$E$5000,MATCH($M40,'EO Master Input'!$Y$2:$Y$5000,0)),"") -> Flags to Half Staff | H40: =IFERROR(INDEX('EO Master Input'!$H$2:$H$5000,MATCH($M40,'EO Master Input'!$Y$2:$Y$5000,0)),"") -> 0 | I40: =IFERROR(INDEX('EO Master Input'!$S$2:$S$5000,MATCH($M40,'EO Master Input'!$Y$2:$Y$5000,0)),"") -> 0 | J40: =IFERROR(INDEX('EO Master Input'!$N$2:$N$5000,MATCH($M40,'EO Master Input'!$Y$2:$Y$5000,0)),"") -> 0 | K40: =IFERROR(INDEX('EO Master Input'!$Q$2:$Q$5000,MATCH($M40,'EO Master Input'!$Y$2:$Y$5000,0)),"") -> 0 | L40: =IFERROR(INDEX('EO Master Input'!$O$2:$O$5000,MATCH($M40,'EO Master Input'!$Y$2:$Y$5000,0)),"") -> 0 | M40: 23
B41: =IFERROR(INDEX('EO Master Input'!$B$2:$B$5000,MATCH($M41,'EO Master Input'!$Y$2:$Y$5000,0)),"") -> 2019-024 | C41: =IFERROR(INDEX('EO Master Input'!$C$2:$C$5000,MATCH($M41,'EO Master Input'!$Y$2:$Y$5000,0)),"-") -> 0 | D41: =IFERROR(INDEX('EO Master Input'!$D$2:$D$5000,MATCH($M41,'EO Master Input'!$Y$2:$Y$5000,0)),"") -> No Agency | E41: =IFERROR(INDEX('EO Master Input'!$A$2:$A$5000,MATCH($M41,'EO Master Input'!$Y$2:$Y$5000,0)),"") -> 2020 | F41: =IFERROR(INDEX('EO Master Input'!$F$2:$F$5000,MATCH($M41,'EO Master Input'!$Y$2:$Y$5000,0)),"") -> Other | G41: =IFERROR(INDEX('EO Master Input'!$E$2:$E$5000,MATCH($M41,'EO Master Input'!$Y$2:$Y$5000,0)),"") -> Fitness & Wellness | H41: =IFERROR(INDEX('EO Master Input'!$H$2:$H$5000,MATCH($M41,'EO Master Input'!$Y$2:$Y$5000,0)),"") -> 0 | I41: =IFERROR(INDEX('EO Master Input'!$S$2:$S$5000,MATCH($M41,'EO Master Input'!$Y$2:$Y$5000,0)),"") -> 0 | J41: =IFERROR(INDEX('EO Master Input'!$N$2:$N$5000,MATCH($M41,'EO Master Input'!$Y$2:$Y$5000,0)),"") -> 0 | K41: =IFERROR(INDEX('EO Master Input'!$Q$2:$Q$5000,MATCH($M41,'EO Master Input'!$Y$2:$Y$5000,0)),"") -> 0 | L41: =IFERROR(INDEX('EO Master Input'!$O$2:$O$5000,MATCH($M41,'EO Master Input'!$Y$2:$Y$5000,0)),"") -> 0 | M41: 24
B42: =IFERROR(INDEX('EO Master Input'!$B$2:$B$5000,MATCH($M42,'EO Master Input'!$Y$2:$Y$5000,0)),"") -> 2019-025 | C42: =IFERROR(INDEX('EO Master Input'!$C$2:$C$5000,MATCH($M42,'EO Master Input'!$Y$2:$Y$5000,0)),"-") -> 0 | D42: =IFERROR(INDEX('EO Master Input'!$D$2:$D$5000,MATCH($M42,'EO Master Input'!$Y$2:$Y$5000,0)),"") -> No Agency | E42: =IFERROR(INDEX('EO Master Input'!$A$2:$A$5000,MATCH($M42,'EO Master Input'!$Y$2:$Y$5000,0)),"") -> 2020 | F42: =IFERROR(INDEX('EO Master Input'!$F$2:$F$5000,MATCH($M42,'EO Master Input'!$Y$2:$Y$5000,0)),"") -> Other | G42: =IFERROR(INDEX('EO Master Input'!$E$2:$E$5000,MATCH($M42,'EO Master Input'!$Y$2:$Y$5000,0)),"") -> Flags to Half Staff | H42: =IFERROR(INDEX('EO Master Input'!$H$2:$H$5000,MATCH($M42,'EO Master Input'!$Y$2:$Y$5000,0)),"") -> 0 | I42: =IFERROR(INDEX('EO Master Input'!$S$2:$S$5000,MATCH($M42,'EO Master Input'!$Y$2:$Y$5000,0)),"") -> 0 | J42: =IFERROR(INDEX('EO Master Input'!$N$2:$N$5000,MATCH($M42,'EO Master Input'!$Y$2:$Y$5000,0)),"") -> 0 | K42: =IFERROR(INDEX('EO Master Input'!$Q$2:$Q$5000,MATCH($M42,'EO Master Input'!$Y$2:$Y$5000,0)),"") -> 0 | L42: =IFERROR(INDEX('EO Master Input'!$O$2:$O$5000,MATCH($M42,'EO Master Input'!$Y$2:$Y$5000,0)),"") -> 0 | M42: 25
B43: =IFERROR(INDEX('EO Master Input'!$B$2:$B$5000,MATCH($M43,'EO Master Input'!$Y$2:$Y$5000,0)),"") -> 2019-026 | C43: =IFERROR(INDEX('EO Master Input'!$C$2:$C$5000,MATCH($M43,'EO Master Input'!$Y$2:$Y$5000,0)),"-") -> 0 | D43: =IFERROR(INDEX('EO Master Input'!$D$2:$D$5000,MATCH($M43,'EO Master Input'!$Y$2:$Y$5000,0)),"") -> No Agency | E43: =IFERROR(INDEX('EO Master Input'!$A$2:$A$5000,MATCH($M43,'EO Master Input'!$Y$2:$Y$5000,0)),"") -> 2020 | F43: =IFERROR(INDEX('EO Master Input'!$F$2:$F$5000,MATCH($M43,'EO Master Input'!$Y$2:$Y$5000,0)),"") -> Other | G43: =IFERROR(INDEX('EO Master Input'!$E$2:$E$5000,MATCH($M43,'EO Master Input'!$Y$2:$Y$5000,0)),"") -> Transfer Credits | H43: =IFERROR(INDEX('EO Master Input'!$H$2:$H$5000,MATCH($M43,'EO Master Input'!$Y$2:$Y$5000,0)),"") -> 0 | I43: =IFERROR(INDEX('EO Master Input'!$S$2:$S$5000,MATCH($M43,'EO Master Input'!$Y$2:$Y$5000,0)),"") -> 0 | J43: =IFERROR(INDEX('EO Master Input'!$N$2:$N$5000,MATCH($M43,'EO Master Input'!$Y$2:$Y$5000,0)),"") -> 0 | K43: =IFERROR(INDEX('EO Master Input'!$Q$2:$Q$5000,MATCH($M43,'EO Master Input'!$Y$2:$Y$5000,0)),"") -> 0 | L43: =IFERROR(INDEX('EO Master Input'!$O$2:$O$5000,MATCH($M43,'EO Master Input'!$Y$2:$Y$5000,0)),"") -> 0 | M43: 26
B44: =IFERROR(INDEX('EO Master Input'!$B$2:$B$5000,MATCH($M44,'EO Master Input'!$Y$2:$Y$5000,0)),"") -> 2019-027 | C44: =IFERROR(INDEX('EO Master Input'!$C$2:$C$5000,MATCH($M44,'EO Master Input'!$Y$2:$Y$5000,0)),"-") -> 0 | D44: =IFERROR(INDEX('EO Master Input'!$D$2:$D$5000,MATCH($M44,'EO Master Input'!$Y$2:$Y$5000,0)),"") -> No Agency | E44: =IFERROR(INDEX('EO Master Input'!$A$2:$A$5000,MATCH($M44,'EO Master Input'!$Y$2:$Y$5000,0)),"") -> 2020 | F44: =IFERROR(INDEX('EO Master Input'!$F$2:$F$5000,MATCH($M44,'EO Master Input'!$Y$2:$Y$5000,0)),"") -> Other | G44: =IFERROR(INDEX('EO Master Input'!$E$2:$E$5000,MATCH($M44,'EO Master Input'!$Y$2:$Y$5000,0)),"") -> Flags to Half Staff | H44: =IFERROR(INDEX('EO Master Input'!$H$2:$H$5000,MATCH($M44,'EO Master Input'!$Y$2:$Y$5000,0)),"") -> 0 | I44: =IFERROR(INDEX('EO Master Input'!$S$2:$S$5000,MATCH($M44,'EO Master Input'!$Y$2:$Y$5000,0)),"") -> 0 | J44: =IFERROR(INDEX('EO Master Input'!$N$2:$N$5000,MATCH($M44,'EO Master Input'!$Y$2:$Y$5000,0)),"") -> 0 | K44: =IFERROR(INDEX('EO Master Input'!$Q$2:$Q$5000,MATCH($M44,'EO Master Input'!$Y$2:$Y$5000,0)),"") -> 0 | L44: =IFERROR(INDEX('EO Master Input'!$O$2:$O$5000,MATCH($M44,'EO Master Input'!$Y$2:$Y$5000,0)),"") -> 0 | M44: 27
B45: =IFERROR(INDEX('EO Master Input'!$B$2:$B$5000,MATCH($M45,'EO Master Input'!$Y$2:$Y$5000,0)),"") -> 2019-028 | C45: =IFERROR(INDEX('EO Master Input'!$C$2:$C$5000,MATCH($M45,'EO Master Input'!$Y$2:$Y$5000,0)),"-") -> 52100 | D45: =IFERROR(INDEX('EO Master Input'!$D$2:$D$5000,MATCH($M45,'EO Master Input'!$Y$2:$Y$5000,0)),"") -> Energy, Minerals & Resources | E45: =IFERROR(INDEX('EO Master Input'!$A$2:$A$5000,MATCH($M45,'EO Master Input'!$Y$2:$Y$5000,0)),"") -> 2020 | F45: =IFERROR(INDEX('EO Master Input'!$F$2:$F$5000,MATCH($M45,'EO Master Input'!$Y$2:$Y$5000,0)),"") -> Fire | G45: =IFERROR(INDEX('EO Master Input'!$E$2:$E$5000,MATCH($M45,'EO Master Input'!$Y$2:$Y$5000,0)),"") -> Wildfires | H45: =IFERROR(INDEX('EO Master Input'!$H$2:$H$5000,MATCH($M45,'EO Master Input'!$Y$2:$Y$5000,0)),"") -> 750000 | I45: =IFERROR(INDEX('EO Master Input'!$S$2:$S$5000,MATCH($M45,'EO Master Input'!$Y$2:$Y$5000,0)),"") -> 678068.43 | J45: =IFERROR(INDEX('EO Master Input'!$N$2:$N$5000,MATCH($M45,'EO Master Input'!$Y$2:$Y$5000,0)),"") -> 0 | K45: =IFERROR(INDEX('EO Master Input'!$Q$2:$Q$5000,MATCH($M45,'EO Master Input'!$Y$2:$Y$5000,0)),"") -> 71931.57 | L45: =IFERROR(INDEX('EO Master Input'!$O$2:$O$5000,MATCH($M45,'EO Master Input'!$Y$2:$Y$5000,0)),"") -> 0 | M45: 28
B46: =IFERROR(INDEX('EO Master Input'!$B$2:$B$5000,MATCH($M46,'EO Master Input'!$Y$2:$Y$5000,0)),"") -> 2019-029 | C46: =IFERROR(INDEX('EO Master Input'!$C$2:$C$5000,MATCH($M46,'EO Master Input'!$Y$2:$Y$5000,0)),"-") -> 52100 | D46: =IFERROR(INDEX('EO Master Input'!$D$2:$D$5000,MATCH($M46,'EO Master Input'!$Y$2:$Y$5000,0)),"") -> Energy, Minerals & Resources | E46: =IFERROR(INDEX('EO Master Input'!$A$2:$A$5000,MATCH($M46,'EO Master Input'!$Y$2:$Y$5000,0)),"") -> 2020 | F46: =IFERROR(INDEX('EO Master Input'!$F$2:$F$5000,MATCH($M46,'EO Master Input'!$Y$2:$Y$5000,0)),"") -> Fire | G46: =IFERROR(INDEX('EO Master Input'!$E$2:$E$5000,MATCH($M46,'EO Master Input'!$Y$2:$Y$5000,0)),"") -> Wildfires | H46: =IFERROR(INDEX('EO Master Input'!$H$2:$H$5000,MATCH($M46,'EO Master Input'!$Y$2:$Y$5000,0)),"") -> 750000 | I46: =IFERROR(INDEX('EO Master Input'!$S$2:$S$5000,MATCH($M46,'EO Master Input'!$Y$2:$Y$5000,0)),"") -> 689592.07 | J46: =IFERROR(INDEX('EO Master Input'!$N$2:$N$5000,MATCH($M46,'EO Master Input'!$Y$2:$Y$5000,0)),"") -> 0 | K46: =IFERROR(INDEX('EO Master Input'!$Q$2:$Q$5000,MATCH($M46,'EO Master Input'!$Y$2:$Y$5000,0)),"") -> 60407.93 | L46: =IFERROR(INDEX('EO Master Input'!$O$2:$O$5000,MATCH($M46,'EO Master Input'!$Y$2:$Y$5000,0)),"") -> 0 | M46: 29
B47: =IFERROR(INDEX('EO Master Input'!$B$2:$B$5000,MATCH($M47,'EO Master Input'!$Y$2:$Y$5000,0)),"") -> 2019-030 | C47: =IFERROR(INDEX('EO Master Input'!$C$2:$C$5000,MATCH($M47,'EO Master Input'!$Y$2:$Y$5000,0)),"-") -> 0 | D47: =IFERROR(INDEX('EO Master Input'!$D$2:$D$5000,MATCH($M47,'EO Master Input'!$Y$2:$Y$5000,0)),"") -> No Agency | E47: =IFERROR(INDEX('EO Master Input'!$A$2:$A$5000,MATCH($M47,'EO Master Input'!$Y$2:$Y$5000,0)),"") -> 2020 | F47: =IFERROR(INDEX('EO Master Input'!$F$2:$F$5000,MATCH($M47,'EO Master Input'!$Y$2:$Y$5000,0)),"") -> Other | G47: =IFERROR(INDEX('EO Master Input'!$E$2:$E$5000,MATCH($M47,'EO Master Input'!$Y$2:$Y$5000,0)),"") -> Flags to Half Staff | H47: =IFERROR(INDEX('EO Master Input'!$H$2:$H$5000,MATCH($M47,'EO Master Input'!$Y$2:$Y$5000,0)),"") -> 0 | I47: =IFERROR(INDEX('EO Master Input'!$S$2:$S$5000,MATCH($M47,'EO Master Input'!$Y$2:$Y$5000,0)),"") -> 0 | J47: =IFERROR(INDEX('EO Master Input'!$N$2:$N$5000,MATCH($M47,'EO Master Input'!$Y$2:$Y$5000,0)),"") -> 0 | K47: =IFERROR(INDEX('EO Master Input'!$Q$2:$Q$5000,MATCH($M47,'EO Master Input'!$Y$2:$Y$5000,0)),"") -> 0 | L47: =IFERROR(INDEX('EO Master Input'!$O$2:$O$5000,MATCH($M47,'EO Master Input'!$Y$2:$Y$5000,0)),"") -> 0 | M47: 30
B48: =IFERROR(INDEX('EO Master Input'!$B$2:$B$5000,MATCH($M48,'EO Master Input'!$Y$2:$Y$5000,0)),"") -> 2019-031 | C48: =IFERROR(INDEX('EO Master Input'!$C$2:$C$5000,MATCH($M48,'EO Master Input'!$Y$2:$Y$5000,0)),"-") -> 0 | D48: =IFERROR(INDEX('EO Master Input'!$D$2:$D$5000,MATCH($M48,'EO Master Input'!$Y$2:$Y$5000,0)),"") -> No Agency | E48: =IFERROR(INDEX('EO Master Input'!$A$2:$A$5000,MATCH($M48,'EO Master Input'!$Y$2:$Y$5000,0)),"") -> 2020 | F48: =IFERROR(INDEX('EO Master Input'!$F$2:$F$5000,MATCH($M48,'EO Master Input'!$Y$2:$Y$5000,0)),"") -> Other | G48: =IFERROR(INDEX('EO Master Input'!$E$2:$E$5000,MATCH($M48,'EO Master Input'!$Y$2:$Y$5000,0)),"") -> Flags to Half Staff | H48: =IFERROR(INDEX('EO Master Input'!$H$2:$H$5000,MATCH($M48,'EO Master Input'!$Y$2:$Y$5000,0)),"") -> 0 | I48: =IFERROR(INDEX('EO Master Input'!$S$2:$S$5000,MATCH($M48,'EO Master Input'!$Y$2:$Y$5000,0)),"") -> 0 | J48: =IFERROR(INDEX('EO Master Input'!$N$2:$N$5000,MATCH($M48,'EO Master Input'!$Y$2:$Y$5000,0)),"") -> 0 | K48: =IFERROR(INDEX('EO Master Input'!$Q$2:$Q$5000,MATCH($M48,'EO Master Input'!$Y$2:$Y$5000,0)),"") -> 0 | L48: =IFERROR(INDEX('EO Master Input'!$O$2:$O$5000,MATCH($M48,'EO Master Input'!$Y$2:$Y$5000,0)),"") -> 0 | M48: 31
B49: =IFERROR(INDEX('EO Master Input'!$B$2:$B$5000,MATCH($M49,'EO Master Input'!$Y$2:$Y$5000,0)),"") -> 2019-032 | C49: =IFERROR(INDEX('EO Master Input'!$C$2:$C$5000,MATCH($M49,'EO Master Input'!$Y$2:$Y$5000,0)),"-") -> 0 | D49: =IFERROR(INDEX('EO Master Input'!$D$2:$D$5000,MATCH($M49,'EO Master Input'!$Y$2:$Y$5000,0)),"") -> No Agency | E49: =IFERROR(INDEX('EO Master Input'!$A$2:$A$5000,MATCH($M49,'EO Master Input'!$Y$2:$Y$5000,0)),"") -> 2020 | F49: =IFERROR(INDEX('EO Master Input'!$F$2:$F$5000,MATCH($M49,'EO Master Input'!$Y$2:$Y$5000,0)),"") -> Other | G49: =IFERROR(INDEX('EO Master Input'!$E$2:$E$5000,MATCH($M49,'EO Master Input'!$Y$2:$Y$5000,0)),"") -> Alternative Work Schedules | H49: =IFERROR(INDEX('EO Master Input'!$H$2:$H$5000,MATCH($M49,'EO Master Input'!$Y$2:$Y$5000,0)),"") -> 0 | I49: =IFERROR(INDEX('EO Master Input'!$S$2:$S$5000,MATCH($M49,'EO Master Input'!$Y$2:$Y$5000,0)),"") -> 0 | J49: =IFERROR(INDEX('EO Master Input'!$N$2:$N$5000,MATCH($M49,'EO Master Input'!$Y$2:$Y$5000,0)),"") -> 0 | K49: =IFERROR(INDEX('EO Master Input'!$Q$2:$Q$5000,MATCH($M49,'EO Master Input'!$Y$2:$Y$5000,0)),"") -> 0 | L49: =IFERROR(INDEX('EO Master Input'!$O$2:$O$5000,MATCH($M49,'EO Master Input'!$Y$2:$Y$5000,0)),"") -> 0 | M49: 32
B50: =IFERROR(INDEX('EO Master Input'!$B$2:$B$5000,MATCH($M50,'EO Master Input'!$Y$2:$Y$5000,0)),"") -> 2019-033 | C50: =IFERROR(INDEX('EO Master Input'!$C$2:$C$5000,MATCH($M50,'EO Master Input'!$Y$2:$Y$5000,0)),"-") -> 0 | D50: =IFERROR(INDEX('EO Master Input'!$D$2:$D$5000,MATCH($M50,'EO Master Input'!$Y$2:$Y$5000,0)),"") -> No Agency | E50: =IFERROR(INDEX('EO Master Input'!$A$2:$A$5000,MATCH($M50,'EO Master Input'!$Y$2:$Y$5000,0)),"") -> 2020 | F50: =IFERROR(INDEX('EO Master Input'!$F$2:$F$5000,MATCH($M50,'EO Master Input'!$Y$2:$Y$5000,0)),"") -> Other | G50: =IFERROR(INDEX('EO Master Input'!$E$2:$E$5000,MATCH($M50,'EO Master Input'!$Y$2:$Y$5000,0)),"") -> NM Guards Life Insurance | H50: =IFERROR(INDEX('EO Master Input'!$H$2:$H$5000,MATCH($M50,'EO Master Input'!$Y$2:$Y$5000,0)),"") -> 0 | I50: =IFERROR(INDEX('EO Master Input'!$S$2:$S$5000,MATCH($M50,'EO Master Input'!$Y$2:$Y$5000,0)),"") -> 0 | J50: =IFERROR(INDEX('EO Master Input'!$N$2:$N$5000,MATCH($M50,'EO Master Input'!$Y$2:$Y$5000,0)),"") -> 0 | K50: =IFERROR(INDEX('EO Master Input'!$Q$2:$Q$5000,MATCH($M50,'EO Master Input'!$Y$2:$Y$5000,0)),"") -> 0 | L50: =IFERROR(INDEX('EO Master Input'!$O$2:$O$5000,MATCH($M50,'EO Master Input'!$Y$2:$Y$5000,0)),"") -> 0 | M50: 33
B51: =IFERROR(INDEX('EO Master Input'!$B$2:$B$5000,MATCH($M51,'EO Master Input'!$Y$2:$Y$5000,0)),"") -> 2019-034 | C51: =IFERROR(INDEX('EO Master Input'!$C$2:$C$5000,MATCH($M51,'EO Master Input'!$Y$2:$Y$5000,0)),"-") -> 0 | D51: =IFERROR(INDEX('EO Master Input'!$D$2:$D$5000,MATCH($M51,'EO Master Input'!$Y$2:$Y$5000,0)),"") -> No Agency | E51: =IFERROR(INDEX('EO Master Input'!$A$2:$A$5000,MATCH($M51,'EO Master Input'!$Y$2:$Y$5000,0)),"") -> 2020 | F51: =IFERROR(INDEX('EO Master Input'!$F$2:$F$5000,MATCH($M51,'EO Master Input'!$Y$2:$Y$5000,0)),"") -> Other | G51: =IFERROR(INDEX('EO Master Input'!$E$2:$E$5000,MATCH($M51,'EO Master Input'!$Y$2:$Y$5000,0)),"") -> Fugitive Apprehension Unit | H51: =IFERROR(INDEX('EO Master Input'!$H$2:$H$5000,MATCH($M51,'EO Master Input'!$Y$2:$Y$5000,0)),"") -> 0 | I51: =IFERROR(INDEX('EO Master Input'!$S$2:$S$5000,MATCH($M51,'EO Master Input'!$Y$2:$Y$5000,0)),"") -> 0 | J51: =IFERROR(INDEX('EO Master Input'!$N$2:$N$5000,MATCH($M51,'EO Master Input'!$Y$2:$Y$5000,0)),"") -> 0 | K51: =IFERROR(INDEX('EO Master Input'!$Q$2:$Q$5000,MATCH($M51,'EO Master Input'!$Y$2:$Y$5000,0)),"") -> 0 | L51: =IFERROR(INDEX('EO Master Input'!$O$2:$O$5000,MATCH($M51,'EO Master Input'!$Y$2:$Y$5000,0)),"") -> 0 | M51: 34
B52: =IFERROR(INDEX('EO Master Input'!$B$2:$B$5000,MATCH($M52,'EO Master Input'!$Y$2:$Y$5000,0)),"") -> 2019-035 | C52: =IFERROR(INDEX('EO Master Input'!$C$2:$C$5000,MATCH($M52,'EO Master Input'!$Y$2:$Y$5000,0)),"-") -> 79500 | D52: =IFERROR(INDEX('EO Master Input'!$D$2:$D$5000,MATCH($M52,'EO Master Input'!$Y$2:$Y$5000,0)),"") -> Homeland Sec. & Emerg. Mgmt. | E52: =IFERROR(INDEX('EO Master Input'!$A$2:$A$5000,MATCH($M52,'EO Master Input'!$Y$2:$Y$5000,0)),"") -> 2020 | F52: =IFERROR(INDEX('EO Master Input'!$F$2:$F$5000,MATCH($M52,'EO Master Input'!$Y$2:$Y$5000,0)),"") -> Flooding | G52: =IFERROR(INDEX('EO Master Input'!$E$2:$E$5000,MATCH($M52,'EO Master Input'!$Y$2:$Y$5000,0)),"") -> Flooding (Hidalgo, Luna and Socorro Counties) | H52: =IFERROR(INDEX('EO Master Input'!$H$2:$H$5000,MATCH($M52,'EO Master Input'!$Y$2:$Y$5000,0)),"") -> 1000000 | I52: =IFERROR(INDEX('EO Master Input'!$S$2:$S$5000,MATCH($M52,'EO Master Input'!$Y$2:$Y$5000,0)),"") -> 15495.5 | J52: =IFERROR(INDEX('EO Master Input'!$N$2:$N$5000,MATCH($M52,'EO Master Input'!$Y$2:$Y$5000,0)),"") -> 0 | K52: =IFERROR(INDEX('EO Master Input'!$Q$2:$Q$5000,MATCH($M52,'EO Master Input'!$Y$2:$Y$5000,0)),"") -> 984504.5 | L52: =IFERROR(INDEX('EO Master Input'!$O$2:$O$5000,MATCH($M52,'EO Master Input'!$Y$2:$Y$5000,0)),"") -> 0 | M52: 35
B53: =IFERROR(INDEX('EO Master Input'!$B$2:$B$5000,MATCH($M53,'EO Master Input'!$Y$2:$Y$5000,0)),"") -> 2019-036 | C53: =IFERROR(INDEX('EO Master Input'!$C$2:$C$5000,MATCH($M53,'EO Master Input'!$Y$2:$Y$5000,0)),"-") -> 0 | D53: =IFERROR(INDEX('EO Master Input'!$D$2:$D$5000,MATCH($M53,'EO Master Input'!$Y$2:$Y$5000,0)),"") -> No Agency | E53: =IFERROR(INDEX('EO Master Input'!$A$2:$A$5000,MATCH($M53,'EO Master Input'!$Y$2:$Y$5000,0)),"") -> 2020 | F53: =IFERROR(INDEX('EO Master Input'!$F$2:$F$5000,MATCH($M53,'EO Master Input'!$Y$2:$Y$5000,0)),"") -> Other | G53: =IFERROR(INDEX('EO Master Input'!$E$2:$E$5000,MATCH($M53,'EO Master Input'!$Y$2:$Y$5000,0)),"") -> Paid Parental Leave | H53: =IFERROR(INDEX('EO Master Input'!$H$2:$H$5000,MATCH($M53,'EO Master Input'!$Y$2:$Y$5000,0)),"") -> 0 | I53: =IFERROR(INDEX('EO Master Input'!$S$2:$S$5000,MATCH($M53,'EO Master Input'!$Y$2:$Y$5000,0)),"") -> 0 | J53: =IFERROR(INDEX('EO Master Input'!$N$2:$N$5000,MATCH($M53,'EO Master Input'!$Y$2:$Y$5000,0)),"") -> 0 | K53: =IFERROR(INDEX('EO Master Input'!$Q$2:$Q$5000,MATCH($M53,'EO Master Input'!$Y$2:$Y$5000,0)),"") -> 0 | L53: =IFERROR(INDEX('EO Master Input'!$O$2:$O$5000,MATCH($M53,'EO Master Input'!$Y$2:$Y$5000,0)),"") -> 0 | M53: 36
B54: =IFERROR(INDEX('EO Master Input'!$B$2:$B$5000,MATCH($M54,'EO Master Input'!$Y$2:$Y$5000,0)),"") -> 2020-001 | C54: =IFERROR(INDEX('EO Master Input'!$C$2:$C$5000,MATCH($M54,'EO Master Input'!$Y$2:$Y$5000,0)),"-") -> 0 | D54: =IFERROR(INDEX('EO Master Input'!$D$2:$D$5000,MATCH($M54,'EO Master Input'!$Y$2:$Y$5000,0)),"") -> No Agency | E54: =IFERROR(INDEX('EO Master Input'!$A$2:$A$5000,MATCH($M54,'EO Master Input'!$Y$2:$Y$5000,0)),"") -> 2020 | F54: =IFERROR(INDEX('EO Master Input'!$F$2:$F$5000,MATCH($M54,'EO Master Input'!$Y$2:$Y$5000,0)),"") -> Other | G54: =IFERROR(INDEX('EO Master Input'!$E$2:$E$5000,MATCH($M54,'EO Master Input'!$Y$2:$Y$5000,0)),"") -> Flags to Half Staff | H54: =IFERROR(INDEX('EO Master Input'!$H$2:$H$5000,MATCH($M54,'EO Master Input'!$Y$2:$Y$5000,0)),"") -> 0 | I54: =IFERROR(INDEX('EO Master Input'!$S$2:$S$5000,MATCH($M54,'EO Master Input'!$Y$2:$Y$5000,0)),"") -> 0 | J54: =IFERROR(INDEX('EO Master Input'!$N$2:$N$5000,MATCH($M54,'EO Master Input'!$Y$2:$Y$5000,0)),"") -> 0 | K54: =IFERROR(INDEX('EO Master Input'!$Q$2:$Q$5000,MATCH($M54,'EO Master Input'!$Y$2:$Y$5000,0)),"") -> 0 | L54: =IFERROR(INDEX('EO Master Input'!$O$2:$O$5000,MATCH($M54,'EO Master Input'!$Y$2:$Y$5000,0)),"") -> 0 | M54: 37
B55: =IFERROR(INDEX('EO Master Input'!$B$2:$B$5000,MATCH($M55,'EO Master Input'!$Y$2:$Y$5000,0)),"") -> 2020-002 | C55: =IFERROR(INDEX('EO Master Input'!$C$2:$C$5000,MATCH($M55,'EO Master Input'!$Y$2:$Y$5000,0)),"-") -> 0 | D55: =IFERROR(INDEX('EO Master Input'!$D$2:$D$5000,MATCH($M55,'EO Master Input'!$Y$2:$Y$5000,0)),"") -> No Agency | E55: =IFERROR(INDEX('EO Master Input'!$A$2:$A$5000,MATCH($M55,'EO Master Input'!$Y$2:$Y$5000,0)),"") -> 2020 | F55: =IFERROR(INDEX('EO Master Input'!$F$2:$F$5000,MATCH($M55,'EO Master Input'!$Y$2:$Y$5000,0)),"") -> Other | G55: =IFERROR(INDEX('EO Master Input'!$E$2:$E$5000,MATCH($M55,'EO Master Input'!$Y$2:$Y$5000,0)),"") -> Flags to Half Staff | H55: =IFERROR(INDEX('EO Master Input'!$H$2:$H$5000,MATCH($M55,'EO Master Input'!$Y$2:$Y$5000,0)),"") -> 0 | I55: =IFERROR(INDEX('EO Master Input'!$S$2:$S$5000,MATCH($M55,'EO Master Input'!$Y$2:$Y$5000,0)),"") -> 0 | J55: =IFERROR(INDEX('EO Master Input'!$N$2:$N$5000,MATCH($M55,'EO Master Input'!$Y$2:$Y$5000,0)),"") -> 0 | K55: =IFERROR(INDEX('EO Master Input'!$Q$2:$Q$5000,MATCH($M55,'EO Master Input'!$Y$2:$Y$5000,0)),"") -> 0 | L55: =IFERROR(INDEX('EO Master Input'!$O$2:$O$5000,MATCH($M55,'EO Master Input'!$Y$2:$Y$5000,0)),"") -> 0 | M55: 38
B56: =IFERROR(INDEX('EO Master Input'!$B$2:$B$5000,MATCH($M56,'EO Master Input'!$Y$2:$Y$5000,0)),"") -> 2020-003 | C56: =IFERROR(INDEX('EO Master Input'!$C$2:$C$5000,MATCH($M56,'EO Master Input'!$Y$2:$Y$5000,0)),"-") -> 0 | D56: =IFERROR(INDEX('EO Master Input'!$D$2:$D$5000,MATCH($M56,'EO Master Input'!$Y$2:$Y$5000,0)),"") -> No Agency | E56: =IFERROR(INDEX('EO Master Input'!$A$2:$A$5000,MATCH($M56,'EO Master Input'!$Y$2:$Y$5000,0)),"") -> 2020 | F56: =IFERROR(INDEX('EO Master Input'!$F$2:$F$5000,MATCH($M56,'EO Master Input'!$Y$2:$Y$5000,0)),"") -> Other | G56: =IFERROR(INDEX('EO Master Input'!$E$2:$E$5000,MATCH($M56,'EO Master Input'!$Y$2:$Y$5000,0)),"") -> Flags to Half Staff | H56: =IFERROR(INDEX('EO Master Input'!$H$2:$H$5000,MATCH($M56,'EO Master Input'!$Y$2:$Y$5000,0)),"") -> 0 | I56: =IFERROR(INDEX('EO Master Input'!$S$2:$S$5000,MATCH($M56,'EO Master Input'!$Y$2:$Y$5000,0)),"") -> 0 | J56: =IFERROR(INDEX('EO Master Input'!$N$2:$N$5000,MATCH($M56,'EO Master Input'!$Y$2:$Y$5000,0)),"") -> 0 | K56: =IFERROR(INDEX('EO Master Input'!$Q$2:$Q$5000,MATCH($M56,'EO Master Input'!$Y$2:$Y$5000,0)),"") -> 0 | L56: =IFERROR(INDEX('EO Master Input'!$O$2:$O$5000,MATCH($M56,'EO Master Input'!$Y$2:$Y$5000,0)),"") -> 0 | M56: 39
B57: =IFERROR(INDEX('EO Master Input'!$B$2:$B$5000,MATCH($M57,'EO Master Input'!$Y$2:$Y$5000,0)),"") -> 2020-004 | C57: =IFERROR(INDEX('EO Master Input'!$C$2:$C$5000,MATCH($M57,'EO Master Input'!$Y$2:$Y$5000,0)),"-") -> 0 | D57: =IFERROR(INDEX('EO Master Input'!$D$2:$D$5000,MATCH($M57,'EO Master Input'!$Y$2:$Y$5000,0)),"") -> No Agency | E57: =IFERROR(INDEX('EO Master Input'!$A$2:$A$5000,MATCH($M57,'EO Master Input'!$Y$2:$Y$5000,0)),"") -> 2020 | F57: =IFERROR(INDEX('EO Master Input'!$F$2:$F$5000,MATCH($M57,'EO Master Input'!$Y$2:$Y$5000,0)),"") -> Pandemic | G57: =IFERROR(INDEX('EO Master Input'!$E$2:$E$5000,MATCH($M57,'EO Master Input'!$Y$2:$Y$5000,0)),"") -> PHO due to COVID | H57: =IFERROR(INDEX('EO Master Input'!$H$2:$H$5000,MATCH($M57,'EO Master Input'!$Y$2:$Y$5000,0)),"") -> 0 | I57: =IFERROR(INDEX('EO Master Input'!$S$2:$S$5000,MATCH($M57,'EO Master Input'!$Y$2:$Y$5000,0)),"") -> 0 | J57: =IFERROR(INDEX('EO Master Input'!$N$2:$N$5000,MATCH($M57,'EO Master Input'!$Y$2:$Y$5000,0)),"") -> 0 | K57: =IFERROR(INDEX('EO Master Input'!$Q$2:$Q$5000,MATCH($M57,'EO Master Input'!$Y$2:$Y$5000,0)),"") -> 0 | L57: =IFERROR(INDEX('EO Master Input'!$O$2:$O$5000,MATCH($M57,'EO Master Input'!$Y$2:$Y$5000,0)),"") -> 0 | M57: 40
B58: =IFERROR(INDEX('EO Master Input'!$B$2:$B$5000,MATCH($M58,'EO Master Input'!$Y$2:$Y$5000,0)),"") -> 2020-005 | C58: =IFERROR(INDEX('EO Master Input'!$C$2:$C$5000,MATCH($M58,'EO Master Input'!$Y$2:$Y$5000,0)),"-") -> 0 | D58: =IFERROR(INDEX('EO Master Input'!$D$2:$D$5000,MATCH($M58,'EO Master Input'!$Y$2:$Y$5000,0)),"") -> No Agency | E58: =IFERROR(INDEX('EO Master Input'!$A$2:$A$5000,MATCH($M58,'EO Master Input'!$Y$2:$Y$5000,0)),"") -> 2020 | F58: =IFERROR(INDEX('EO Master Input'!$F$2:$F$5000,MATCH($M58,'EO Master Input'!$Y$2:$Y$5000,0)),"") -> Pandemic | G58: =IFERROR(INDEX('EO Master Input'!$E$2:$E$5000,MATCH($M58,'EO Master Input'!$Y$2:$Y$5000,0)),"") -> PHO due to COVID School Closures | H58: =IFERROR(INDEX('EO Master Input'!$H$2:$H$5000,MATCH($M58,'EO Master Input'!$Y$2:$Y$5000,0)),"") -> 0 | I58: =IFERROR(INDEX('EO Master Input'!$S$2:$S$5000,MATCH($M58,'EO Master Input'!$Y$2:$Y$5000,0)),"") -> 0 | J58: =IFERROR(INDEX('EO Master Input'!$N$2:$N$5000,MATCH($M58,'EO Master Input'!$Y$2:$Y$5000,0)),"") -> 0 | K58: =IFERROR(INDEX('EO Master Input'!$Q$2:$Q$5000,MATCH($M58,'EO Master Input'!$Y$2:$Y$5000,0)),"") -> 0 | L58: =IFERROR(INDEX('EO Master Input'!$O$2:$O$5000,MATCH($M58,'EO Master Input'!$Y$2:$Y$5000,0)),"") -> 0 | M58: 41
B59: =IFERROR(INDEX('EO Master Input'!$B$2:$B$5000,MATCH($M59,'EO Master Input'!$Y$2:$Y$5000,0)),"") -> 2020-006 | C59: =IFERROR(INDEX('EO Master Input'!$C$2:$C$5000,MATCH($M59,'EO Master Input'!$Y$2:$Y$5000,0)),"-") -> 70500 | D59: =IFERROR(INDEX('EO Master Input'!$D$2:$D$5000,MATCH($M59,'EO Master Input'!$Y$2:$Y$5000,0)),"") -> Military Affairs Department | E59: =IFERROR(INDEX('EO Master Input'!$A$2:$A$5000,MATCH($M59,'EO Master Input'!$Y$2:$Y$5000,0)),"") -> 2020 | F59: =IFERROR(INDEX('EO Master Input'!$F$2:$F$5000,MATCH($M59,'EO Master Input'!$Y$2:$Y$5000,0)),"") -> Pandemic | G59: =IFERROR(INDEX('EO Master Input'!$E$2:$E$5000,MATCH($M59,'EO Master Input'!$Y$2:$Y$5000,0)),"") -> NG COVID PHO | H59: =IFERROR(INDEX('EO Master Input'!$H$2:$H$5000,MATCH($M59,'EO Master Input'!$Y$2:$Y$5000,0)),"") -> 250000 | I59: =IFERROR(INDEX('EO Master Input'!$S$2:$S$5000,MATCH($M59,'EO Master Input'!$Y$2:$Y$5000,0)),"") -> 250000 | J59: =IFERROR(INDEX('EO Master Input'!$N$2:$N$5000,MATCH($M59,'EO Master Input'!$Y$2:$Y$5000,0)),"") -> 0 | K59: =IFERROR(INDEX('EO Master Input'!$Q$2:$Q$5000,MATCH($M59,'EO Master Input'!$Y$2:$Y$5000,0)),"") -> 0 | L59: =IFERROR(INDEX('EO Master Input'!$O$2:$O$5000,MATCH($M59,'EO Master Input'!$Y$2:$Y$5000,0)),"") -> 245158.48 | M59: 42
B60: =IFERROR(INDEX('EO Master Input'!$B$2:$B$5000,MATCH($M60,'EO Master Input'!$Y$2:$Y$5000,0)),"") -> 2020-007 | C60: =IFERROR(INDEX('EO Master Input'!$C$2:$C$5000,MATCH($M60,'EO Master Input'!$Y$2:$Y$5000,0)),"-") -> 79500 | D60: =IFERROR(INDEX('EO Master Input'!$D$2:$D$5000,MATCH($M60,'EO Master Input'!$Y$2:$Y$5000,0)),"") -> Homeland Sec. & Emerg. Mgmt. | E60: =IFERROR(INDEX('EO Master Input'!$A$2:$A$5000,MATCH($M60,'EO Master Input'!$Y$2:$Y$5000,0)),"") -> 2020 | F60: =IFERROR(INDEX('EO Master Input'!$F$2:$F$5000,MATCH($M60,'EO Master Input'!$Y$2:$Y$5000,0)),"") -> Pandemic | G60: =IFERROR(INDEX('EO Master Input'!$E$2:$E$5000,MATCH($M60,'EO Master Input'!$Y$2:$Y$5000,0)),"") -> DHSEM COVID PHO | H60: =IFERROR(INDEX('EO Master Input'!$H$2:$H$5000,MATCH($M60,'EO Master Input'!$Y$2:$Y$5000,0)),"") -> 750000 | I60: =IFERROR(INDEX('EO Master Input'!$S$2:$S$5000,MATCH($M60,'EO Master Input'!$Y$2:$Y$5000,0)),"") -> 490973.38 | J60: =IFERROR(INDEX('EO Master Input'!$N$2:$N$5000,MATCH($M60,'EO Master Input'!$Y$2:$Y$5000,0)),"") -> 0 | K60: =IFERROR(INDEX('EO Master Input'!$Q$2:$Q$5000,MATCH($M60,'EO Master Input'!$Y$2:$Y$5000,0)),"") -> 259026.62 | L60: =IFERROR(INDEX('EO Master Input'!$O$2:$O$5000,MATCH($M60,'EO Master Input'!$Y$2:$Y$5000,0)),"") -> 0 | M60: 43
B61: =IFERROR(INDEX('EO Master Input'!$B$2:$B$5000,MATCH($M61,'EO Master Input'!$Y$2:$Y$5000,0)),"") -> 2020-008 | C61: =IFERROR(INDEX('EO Master Input'!$C$2:$C$5000,MATCH($M61,'EO Master Input'!$Y$2:$Y$5000,0)),"-") -> 66500 | D61: =IFERROR(INDEX('EO Master Input'!$D$2:$D$5000,MATCH($M61,'EO Master Input'!$Y$2:$Y$5000,0)),"") -> Department of Health | E61: =IFERROR(INDEX('EO Master Input'!$A$2:$A$5000,MATCH($M61,'EO Master Input'!$Y$2:$Y$5000,0)),"") -> 2020 | F61: =IFERROR(INDEX('EO Master Input'!$F$2:$F$5000,MATCH($M61,'EO Master Input'!$Y$2:$Y$5000,0)),"") -> Pandemic | G61: =IFERROR(INDEX('EO Master Input'!$E$2:$E$5000,MATCH($M61,'EO Master Input'!$Y$2:$Y$5000,0)),"") -> DOH COVID PHO | H61: =IFERROR(INDEX('EO Master Input'!$H$2:$H$5000,MATCH($M61,'EO Master Input'!$Y$2:$Y$5000,0)),"") -> 750000 | I61: =IFERROR(INDEX('EO Master Input'!$S$2:$S$5000,MATCH($M61,'EO Master Input'!$Y$2:$Y$5000,0)),"") -> 750000 | J61: =IFERROR(INDEX('EO Master Input'!$N$2:$N$5000,MATCH($M61,'EO Master Input'!$Y$2:$Y$5000,0)),"") -> 0 | K61: =IFERROR(INDEX('EO Master Input'!$Q$2:$Q$5000,MATCH($M61,'EO Master Input'!$Y$2:$Y$5000,0)),"") -> 0 | L61: =IFERROR(INDEX('EO Master Input'!$O$2:$O$5000,MATCH($M61,'EO Master Input'!$Y$2:$Y$5000,0)),"") -> 0 | M61: 44
B62: =IFERROR(INDEX('EO Master Input'!$B$2:$B$5000,MATCH($M62,'EO Master Input'!$Y$2:$Y$5000,0)),"") -> 2020-009 | C62: =IFERROR(INDEX('EO Master Input'!$C$2:$C$5000,MATCH($M62,'EO Master Input'!$Y$2:$Y$5000,0)),"-") -> 92400 | D62: =IFERROR(INDEX('EO Master Input'!$D$2:$D$5000,MATCH($M62,'EO Master Input'!$Y$2:$Y$5000,0)),"") -> Public Education Department | E62: =IFERROR(INDEX('EO Master Input'!$A$2:$A$5000,MATCH($M62,'EO Master Input'!$Y$2:$Y$5000,0)),"") -> 2020 | F62: =IFERROR(INDEX('EO Master Input'!$F$2:$F$5000,MATCH($M62,'EO Master Input'!$Y$2:$Y$5000,0)),"") -> Pandemic | G62: =IFERROR(INDEX('EO Master Input'!$E$2:$E$5000,MATCH($M62,'EO Master Input'!$Y$2:$Y$5000,0)),"") -> PED COVID PHO | H62: =IFERROR(INDEX('EO Master Input'!$H$2:$H$5000,MATCH($M62,'EO Master Input'!$Y$2:$Y$5000,0)),"") -> 750000 | I62: =IFERROR(INDEX('EO Master Input'!$S$2:$S$5000,MATCH($M62,'EO Master Input'!$Y$2:$Y$5000,0)),"") -> 657485.35 | J62: =IFERROR(INDEX('EO Master Input'!$N$2:$N$5000,MATCH($M62,'EO Master Input'!$Y$2:$Y$5000,0)),"") -> 0 | K62: =IFERROR(INDEX('EO Master Input'!$Q$2:$Q$5000,MATCH($M62,'EO Master Input'!$Y$2:$Y$5000,0)),"") -> 92514.65 | L62: =IFERROR(INDEX('EO Master Input'!$O$2:$O$5000,MATCH($M62,'EO Master Input'!$Y$2:$Y$5000,0)),"") -> 799144.57 | M62: 45
B63: =IFERROR(INDEX('EO Master Input'!$B$2:$B$5000,MATCH($M63,'EO Master Input'!$Y$2:$Y$5000,0)),"") -> 2020-010 | C63: =IFERROR(INDEX('EO Master Input'!$C$2:$C$5000,MATCH($M63,'EO Master Input'!$Y$2:$Y$5000,0)),"-") -> 69000 | D63: =IFERROR(INDEX('EO Master Input'!$D$2:$D$5000,MATCH($M63,'EO Master Input'!$Y$2:$Y$5000,0)),"") -> Children, Youth & Family Dept | E63: =IFERROR(INDEX('EO Master Input'!$A$2:$A$5000,MATCH($M63,'EO Master Input'!$Y$2:$Y$5000,0)),"") -> 2020 | F63: =IFERROR(INDEX('EO Master Input'!$F$2:$F$5000,MATCH($M63,'EO Master Input'!$Y$2:$Y$5000,0)),"") -> Pandemic | G63: =IFERROR(INDEX('EO Master Input'!$E$2:$E$5000,MATCH($M63,'EO Master Input'!$Y$2:$Y$5000,0)),"") -> CYFD CPVOD PHO | H63: =IFERROR(INDEX('EO Master Input'!$H$2:$H$5000,MATCH($M63,'EO Master Input'!$Y$2:$Y$5000,0)),"") -> 750000 | I63: =IFERROR(INDEX('EO Master Input'!$S$2:$S$5000,MATCH($M63,'EO Master Input'!$Y$2:$Y$5000,0)),"") -> 437926.25 | J63: =IFERROR(INDEX('EO Master Input'!$N$2:$N$5000,MATCH($M63,'EO Master Input'!$Y$2:$Y$5000,0)),"") -> 0 | K63: =IFERROR(INDEX('EO Master Input'!$Q$2:$Q$5000,MATCH($M63,'EO Master Input'!$Y$2:$Y$5000,0)),"") -> 312073.75 | L63: =IFERROR(INDEX('EO Master Input'!$O$2:$O$5000,MATCH($M63,'EO Master Input'!$Y$2:$Y$5000,0)),"") -> 533084.26 | M63: 46
B64: =IFERROR(INDEX('EO Master Input'!$B$2:$B$5000,MATCH($M64,'EO Master Input'!$Y$2:$Y$5000,0)),"") -> 2020-011 | C64: =IFERROR(INDEX('EO Master Input'!$C$2:$C$5000,MATCH($M64,'EO Master Input'!$Y$2:$Y$5000,0)),"-") -> 70500 | D64: =IFERROR(INDEX('EO Master Input'!$D$2:$D$5000,MATCH($M64,'EO Master Input'!$Y$2:$Y$5000,0)),"") -> Military Affairs Department | E64: =IFERROR(INDEX('EO Master Input'!$A$2:$A$5000,MATCH($M64,'EO Master Input'!$Y$2:$Y$5000,0)),"") -> 2020 | F64: =IFERROR(INDEX('EO Master Input'!$F$2:$F$5000,MATCH($M64,'EO Master Input'!$Y$2:$Y$5000,0)),"") -> Pandemic | G64: =IFERROR(INDEX('EO Master Input'!$E$2:$E$5000,MATCH($M64,'EO Master Input'!$Y$2:$Y$5000,0)),"") -> NG COVID PHO | H64: =IFERROR(INDEX('EO Master Input'!$H$2:$H$5000,MATCH($M64,'EO Master Input'!$Y$2:$Y$5000,0)),"") -> 750000 | I64: =IFERROR(INDEX('EO Master Input'!$S$2:$S$5000,MATCH($M64,'EO Master Input'!$Y$2:$Y$5000,0)),"") -> 750000 | J64: =IFERROR(INDEX('EO Master Input'!$N$2:$N$5000,MATCH($M64,'EO Master Input'!$Y$2:$Y$5000,0)),"") -> 0 | K64: =IFERROR(INDEX('EO Master Input'!$Q$2:$Q$5000,MATCH($M64,'EO Master Input'!$Y$2:$Y$5000,0)),"") -> 0 | L64: =IFERROR(INDEX('EO Master Input'!$O$2:$O$5000,MATCH($M64,'EO Master Input'!$Y$2:$Y$5000,0)),"") -> 599142.95 | M64: 47
B65: =IFERROR(INDEX('EO Master Input'!$B$2:$B$5000,MATCH($M65,'EO Master Input'!$Y$2:$Y$5000,0)),"") -> 2020-012 | C65: =IFERROR(INDEX('EO Master Input'!$C$2:$C$5000,MATCH($M65,'EO Master Input'!$Y$2:$Y$5000,0)),"-") -> 0 | D65: =IFERROR(INDEX('EO Master Input'!$D$2:$D$5000,MATCH($M65,'EO Master Input'!$Y$2:$Y$5000,0)),"") -> No Agency | E65: =IFERROR(INDEX('EO Master Input'!$A$2:$A$5000,MATCH($M65,'EO Master Input'!$Y$2:$Y$5000,0)),"") -> 2020 | F65: =IFERROR(INDEX('EO Master Input'!$F$2:$F$5000,MATCH($M65,'EO Master Input'!$Y$2:$Y$5000,0)),"") -> Pandemic | G65: =IFERROR(INDEX('EO Master Input'!$E$2:$E$5000,MATCH($M65,'EO Master Input'!$Y$2:$Y$5000,0)),"") -> PHO due to COVID School Closures | H65: =IFERROR(INDEX('EO Master Input'!$H$2:$H$5000,MATCH($M65,'EO Master Input'!$Y$2:$Y$5000,0)),"") -> 0 | I65: =IFERROR(INDEX('EO Master Input'!$S$2:$S$5000,MATCH($M65,'EO Master Input'!$Y$2:$Y$5000,0)),"") -> 0 | J65: =IFERROR(INDEX('EO Master Input'!$N$2:$N$5000,MATCH($M65,'EO Master Input'!$Y$2:$Y$5000,0)),"") -> 0 | K65: =IFERROR(INDEX('EO Master Input'!$Q$2:$Q$5000,MATCH($M65,'EO Master Input'!$Y$2:$Y$5000,0)),"") -> 0 | L65: =IFERROR(INDEX('EO Master Input'!$O$2:$O$5000,MATCH($M65,'EO Master Input'!$Y$2:$Y$5000,0)),"") -> 0 | M65: 48
B66: =IFERROR(INDEX('EO Master Input'!$B$2:$B$5000,MATCH($M66,'EO Master Input'!$Y$2:$Y$5000,0)),"") -> 2020-013 | C66: =IFERROR(INDEX('EO Master Input'!$C$2:$C$5000,MATCH($M66,'EO Master Input'!$Y$2:$Y$5000,0)),"-") -> 0 | D66: =IFERROR(INDEX('EO Master Input'!$D$2:$D$5000,MATCH($M66,'EO Master Input'!$Y$2:$Y$5000,0)),"") -> No Agency | E66: =IFERROR(INDEX('EO Master Input'!$A$2:$A$5000,MATCH($M66,'EO Master Input'!$Y$2:$Y$5000,0)),"") -> 2020 | F66: =IFERROR(INDEX('EO Master Input'!$F$2:$F$5000,MATCH($M66,'EO Master Input'!$Y$2:$Y$5000,0)),"") -> Pandemic | G66: =IFERROR(INDEX('EO Master Input'!$E$2:$E$5000,MATCH($M66,'EO Master Input'!$Y$2:$Y$5000,0)),"") -> PHO Self Isolation | H66: =IFERROR(INDEX('EO Master Input'!$H$2:$H$5000,MATCH($M66,'EO Master Input'!$Y$2:$Y$5000,0)),"") -> 0 | I66: =IFERROR(INDEX('EO Master Input'!$S$2:$S$5000,MATCH($M66,'EO Master Input'!$Y$2:$Y$5000,0)),"") -> 0 | J66: =IFERROR(INDEX('EO Master Input'!$N$2:$N$5000,MATCH($M66,'EO Master Input'!$Y$2:$Y$5000,0)),"") -> 0 | K66: =IFERROR(INDEX('EO Master Input'!$Q$2:$Q$5000,MATCH($M66,'EO Master Input'!$Y$2:$Y$5000,0)),"") -> 0 | L66: =IFERROR(INDEX('EO Master Input'!$O$2:$O$5000,MATCH($M66,'EO Master Input'!$Y$2:$Y$5000,0)),"") -> 0 | M66: 49
B67: =IFERROR(INDEX('EO Master Input'!$B$2:$B$5000,MATCH($M67,'EO Master Input'!$Y$2:$Y$5000,0)),"") -> 2020-014 | C67: =IFERROR(INDEX('EO Master Input'!$C$2:$C$5000,MATCH($M67,'EO Master Input'!$Y$2:$Y$5000,0)),"-") -> 66500 | D67: =IFERROR(INDEX('EO Master Input'!$D$2:$D$5000,MATCH($M67,'EO Master Input'!$Y$2:$Y$5000,0)),"") -> Department of Health | E67: =IFERROR(INDEX('EO Master Input'!$A$2:$A$5000,MATCH($M67,'EO Master Input'!$Y$2:$Y$5000,0)),"") -> 2020 | F67: =IFERROR(INDEX('EO Master Input'!$F$2:$F$5000,MATCH($M67,'EO Master Input'!$Y$2:$Y$5000,0)),"") -> Pandemic | G67: =IFERROR(INDEX('EO Master Input'!$E$2:$E$5000,MATCH($M67,'EO Master Input'!$Y$2:$Y$5000,0)),"") -> DOH COVID PHO | H67: =IFERROR(INDEX('EO Master Input'!$H$2:$H$5000,MATCH($M67,'EO Master Input'!$Y$2:$Y$5000,0)),"") -> 20000000 | I67: =IFERROR(INDEX('EO Master Input'!$S$2:$S$5000,MATCH($M67,'EO Master Input'!$Y$2:$Y$5000,0)),"") -> 12398687.24 | J67: =IFERROR(INDEX('EO Master Input'!$N$2:$N$5000,MATCH($M67,'EO Master Input'!$Y$2:$Y$5000,0)),"") -> 0 | K67: =IFERROR(INDEX('EO Master Input'!$Q$2:$Q$5000,MATCH($M67,'EO Master Input'!$Y$2:$Y$5000,0)),"") -> 7601312.76 | L67: =IFERROR(INDEX('EO Master Input'!$O$2:$O$5000,MATCH($M67,'EO Master Input'!$Y$2:$Y$5000,0)),"") -> 7601313 | M67: 50
B68: =IFERROR(INDEX('EO Master Input'!$B$2:$B$5000,MATCH($M68,'EO Master Input'!$Y$2:$Y$5000,0)),"") -> 2020-015 | C68: =IFERROR(INDEX('EO Master Input'!$C$2:$C$5000,MATCH($M68,'EO Master Input'!$Y$2:$Y$5000,0)),"-") -> 0 | D68: =IFERROR(INDEX('EO Master Input'!$D$2:$D$5000,MATCH($M68,'EO Master Input'!$Y$2:$Y$5000,0)),"") -> No Agency | E68: =IFERROR(INDEX('EO Master Input'!$A$2:$A$5000,MATCH($M68,'EO Master Input'!$Y$2:$Y$5000,0)),"") -> 2020 | F68: =IFERROR(INDEX('EO Master Input'!$F$2:$F$5000,MATCH($M68,'EO Master Input'!$Y$2:$Y$5000,0)),"") -> Pandemic | G68: =IFERROR(INDEX('EO Master Input'!$E$2:$E$5000,MATCH($M68,'EO Master Input'!$Y$2:$Y$5000,0)),"") -> Temporarily Permitting Notarial Acts Through Audio-Visual Technology | H68: =IFERROR(INDEX('EO Master Input'!$H$2:$H$5000,MATCH($M68,'EO Master Input'!$Y$2:$Y$5000,0)),"") -> 0 | I68: =IFERROR(INDEX('EO Master Input'!$S$2:$S$5000,MATCH($M68,'EO Master Input'!$Y$2:$Y$5000,0)),"") -> 0 | J68: =IFERROR(INDEX('EO Master Input'!$N$2:$N$5000,MATCH($M68,'EO Master Input'!$Y$2:$Y$5000,0)),"") -> 0 | K68: =IFERROR(INDEX('EO Master Input'!$Q$2:$Q$5000,MATCH($M68,'EO Master Input'!$Y$2:$Y$5000,0)),"") -> 0 | L68: =IFERROR(INDEX('EO Master Input'!$O$2:$O$5000,MATCH($M68,'EO Master Input'!$Y$2:$Y$5000,0)),"") -> 0 | M68: 51
B69: =IFERROR(INDEX('EO Master Input'!$B$2:$B$5000,MATCH($M69,'EO Master Input'!$Y$2:$Y$5000,0)),"") -> 2020-016 | C69: =IFERROR(INDEX('EO Master Input'!$C$2:$C$5000,MATCH($M69,'EO Master Input'!$Y$2:$Y$5000,0)),"-") -> 0 | D69: =IFERROR(INDEX('EO Master Input'!$D$2:$D$5000,MATCH($M69,'EO Master Input'!$Y$2:$Y$5000,0)),"") -> No Agency | E69: =IFERROR(INDEX('EO Master Input'!$A$2:$A$5000,MATCH($M69,'EO Master Input'!$Y$2:$Y$5000,0)),"") -> 2020 | F69: =IFERROR(INDEX('EO Master Input'!$F$2:$F$5000,MATCH($M69,'EO Master Input'!$Y$2:$Y$5000,0)),"") -> Pandemic | G69: =IFERROR(INDEX('EO Master Input'!$E$2:$E$5000,MATCH($M69,'EO Master Input'!$Y$2:$Y$5000,0)),"") -> Directing the Motor Vehicle Division of the Taxation and Revenue Department to Temporarily Waive All Late | H69: =IFERROR(INDEX('EO Master Input'!$H$2:$H$5000,MATCH($M69,'EO Master Input'!$Y$2:$Y$5000,0)),"") -> 0 | I69: =IFERROR(INDEX('EO Master Input'!$S$2:$S$5000,MATCH($M69,'EO Master Input'!$Y$2:$Y$5000,0)),"") -> 0 | J69: =IFERROR(INDEX('EO Master Input'!$N$2:$N$5000,MATCH($M69,'EO Master Input'!$Y$2:$Y$5000,0)),"") -> 0 | K69: =IFERROR(INDEX('EO Master Input'!$Q$2:$Q$5000,MATCH($M69,'EO Master Input'!$Y$2:$Y$5000,0)),"") -> 0 | L69: =IFERROR(INDEX('EO Master Input'!$O$2:$O$5000,MATCH($M69,'EO Master Input'!$Y$2:$Y$5000,0)),"") -> 0 | M69: 52
B70: =IFERROR(INDEX('EO Master Input'!$B$2:$B$5000,MATCH($M70,'EO Master Input'!$Y$2:$Y$5000,0)),"") -> 2020-017 | C70: =IFERROR(INDEX('EO Master Input'!$C$2:$C$5000,MATCH($M70,'EO Master Input'!$Y$2:$Y$5000,0)),"-") -> 0 | D70: =IFERROR(INDEX('EO Master Input'!$D$2:$D$5000,MATCH($M70,'EO Master Input'!$Y$2:$Y$5000,0)),"") -> No Agency | E70: =IFERROR(INDEX('EO Master Input'!$A$2:$A$5000,MATCH($M70,'EO Master Input'!$Y$2:$Y$5000,0)),"") -> 2020 | F70: =IFERROR(INDEX('EO Master Input'!$F$2:$F$5000,MATCH($M70,'EO Master Input'!$Y$2:$Y$5000,0)),"") -> Pandemic | G70: =IFERROR(INDEX('EO Master Input'!$E$2:$E$5000,MATCH($M70,'EO Master Input'!$Y$2:$Y$5000,0)),"") -> Directing the New Mexico Department of Transportation to Create Emergency Expedited Special Permits | H70: =IFERROR(INDEX('EO Master Input'!$H$2:$H$5000,MATCH($M70,'EO Master Input'!$Y$2:$Y$5000,0)),"") -> 0 | I70: =IFERROR(INDEX('EO Master Input'!$S$2:$S$5000,MATCH($M70,'EO Master Input'!$Y$2:$Y$5000,0)),"") -> 0 | J70: =IFERROR(INDEX('EO Master Input'!$N$2:$N$5000,MATCH($M70,'EO Master Input'!$Y$2:$Y$5000,0)),"") -> 0 | K70: =IFERROR(INDEX('EO Master Input'!$Q$2:$Q$5000,MATCH($M70,'EO Master Input'!$Y$2:$Y$5000,0)),"") -> 0 | L70: =IFERROR(INDEX('EO Master Input'!$O$2:$O$5000,MATCH($M70,'EO Master Input'!$Y$2:$Y$5000,0)),"") -> 0 | M70: 53
B71: =IFERROR(INDEX('EO Master Input'!$B$2:$B$5000,MATCH($M71,'EO Master Input'!$Y$2:$Y$5000,0)),"") -> 2020-018 | C71: =IFERROR(INDEX('EO Master Input'!$C$2:$C$5000,MATCH($M71,'EO Master Input'!$Y$2:$Y$5000,0)),"-") -> 79500 | D71: =IFERROR(INDEX('EO Master Input'!$D$2:$D$5000,MATCH($M71,'EO Master Input'!$Y$2:$Y$5000,0)),"") -> Homeland Sec. & Emerg. Mgmt. | E71: =IFERROR(INDEX('EO Master Input'!$A$2:$A$5000,MATCH($M71,'EO Master Input'!$Y$2:$Y$5000,0)),"") -> 2020 | F71: =IFERROR(INDEX('EO Master Input'!$F$2:$F$5000,MATCH($M71,'EO Master Input'!$Y$2:$Y$5000,0)),"") -> Pandemic | G71: =IFERROR(INDEX('EO Master Input'!$E$2:$E$5000,MATCH($M71,'EO Master Input'!$Y$2:$Y$5000,0)),"") -> DHSEM COVID PHO | H71: =IFERROR(INDEX('EO Master Input'!$H$2:$H$5000,MATCH($M71,'EO Master Input'!$Y$2:$Y$5000,0)),"") -> 750000 | I71: =IFERROR(INDEX('EO Master Input'!$S$2:$S$5000,MATCH($M71,'EO Master Input'!$Y$2:$Y$5000,0)),"") -> 556921.09 | J71: =IFERROR(INDEX('EO Master Input'!$N$2:$N$5000,MATCH($M71,'EO Master Input'!$Y$2:$Y$5000,0)),"") -> 0 | K71: =IFERROR(INDEX('EO Master Input'!$Q$2:$Q$5000,MATCH($M71,'EO Master Input'!$Y$2:$Y$5000,0)),"") -> 193078.91 | L71: =IFERROR(INDEX('EO Master Input'!$O$2:$O$5000,MATCH($M71,'EO Master Input'!$Y$2:$Y$5000,0)),"") -> 0 | M71: 54
B72: =IFERROR(INDEX('EO Master Input'!$B$2:$B$5000,MATCH($M72,'EO Master Input'!$Y$2:$Y$5000,0)),"") -> 2020-019 | C72: =IFERROR(INDEX('EO Master Input'!$C$2:$C$5000,MATCH($M72,'EO Master Input'!$Y$2:$Y$5000,0)),"-") -> 62400 | D72: =IFERROR(INDEX('EO Master Input'!$D$2:$D$5000,MATCH($M72,'EO Master Input'!$Y$2:$Y$5000,0)),"") -> Aging and Long Term Services | E72: =IFERROR(INDEX('EO Master Input'!$A$2:$A$5000,MATCH($M72,'EO Master Input'!$Y$2:$Y$5000,0)),"") -> 2020 | F72: =IFERROR(INDEX('EO Master Input'!$F$2:$F$5000,MATCH($M72,'EO Master Input'!$Y$2:$Y$5000,0)),"") -> Pandemic | G72: =IFERROR(INDEX('EO Master Input'!$E$2:$E$5000,MATCH($M72,'EO Master Input'!$Y$2:$Y$5000,0)),"") -> ALTSD COVID PHO | H72: =IFERROR(INDEX('EO Master Input'!$H$2:$H$5000,MATCH($M72,'EO Master Input'!$Y$2:$Y$5000,0)),"") -> 750000 | I72: =IFERROR(INDEX('EO Master Input'!$S$2:$S$5000,MATCH($M72,'EO Master Input'!$Y$2:$Y$5000,0)),"") -> 718740.15 | J72: =IFERROR(INDEX('EO Master Input'!$N$2:$N$5000,MATCH($M72,'EO Master Input'!$Y$2:$Y$5000,0)),"") -> 0 | K72: =IFERROR(INDEX('EO Master Input'!$Q$2:$Q$5000,MATCH($M72,'EO Master Input'!$Y$2:$Y$5000,0)),"") -> 31259.85 | L72: =IFERROR(INDEX('EO Master Input'!$O$2:$O$5000,MATCH($M72,'EO Master Input'!$Y$2:$Y$5000,0)),"") -> 750000 | M72: 55
B73: =IFERROR(INDEX('EO Master Input'!$B$2:$B$5000,MATCH($M73,'EO Master Input'!$Y$2:$Y$5000,0)),"") -> 2020-020 | C73: =IFERROR(INDEX('EO Master Input'!$C$2:$C$5000,MATCH($M73,'EO Master Input'!$Y$2:$Y$5000,0)),"-") -> 0 | D73: =IFERROR(INDEX('EO Master Input'!$D$2:$D$5000,MATCH($M73,'EO Master Input'!$Y$2:$Y$5000,0)),"") -> No Agency | E73: =IFERROR(INDEX('EO Master Input'!$A$2:$A$5000,MATCH($M73,'EO Master Input'!$Y$2:$Y$5000,0)),"") -> 2020 | F73: =IFERROR(INDEX('EO Master Input'!$F$2:$F$5000,MATCH($M73,'EO Master Input'!$Y$2:$Y$5000,0)),"") -> Pandemic | G73: =IFERROR(INDEX('EO Master Input'!$E$2:$E$5000,MATCH($M73,'EO Master Input'!$Y$2:$Y$5000,0)),"") -> Order Allowing Certain Canadian Nurses to Provide Care During the Pendency of the COVID-19 Pandemic | H73: =IFERROR(INDEX('EO Master Input'!$H$2:$H$5000,MATCH($M73,'EO Master Input'!$Y$2:$Y$5000,0)),"") -> 0 | I73: =IFERROR(INDEX('EO Master Input'!$S$2:$S$5000,MATCH($M73,'EO Master Input'!$Y$2:$Y$5000,0)),"") -> 0 | J73: =IFERROR(INDEX('EO Master Input'!$N$2:$N$5000,MATCH($M73,'EO Master Input'!$Y$2:$Y$5000,0)),"") -> 0 | K73: =IFERROR(INDEX('EO Master Input'!$Q$2:$Q$5000,MATCH($M73,'EO Master Input'!$Y$2:$Y$5000,0)),"") -> 0 | L73: =IFERROR(INDEX('EO Master Input'!$O$2:$O$5000,MATCH($M73,'EO Master Input'!$Y$2:$Y$5000,0)),"") -> 0 | M73: 56
B74: =IFERROR(INDEX('EO Master Input'!$B$2:$B$5000,MATCH($M74,'EO Master Input'!$Y$2:$Y$5000,0)),"") -> 2020-021 | C74: =IFERROR(INDEX('EO Master Input'!$C$2:$C$5000,MATCH($M74,'EO Master Input'!$Y$2:$Y$5000,0)),"-") -> 0 | D74: =IFERROR(INDEX('EO Master Input'!$D$2:$D$5000,MATCH($M74,'EO Master Input'!$Y$2:$Y$5000,0)),"") -> No Agency | E74: =IFERROR(INDEX('EO Master Input'!$A$2:$A$5000,MATCH($M74,'EO Master Input'!$Y$2:$Y$5000,0)),"") -> 2020 | F74: =IFERROR(INDEX('EO Master Input'!$F$2:$F$5000,MATCH($M74,'EO Master Input'!$Y$2:$Y$5000,0)),"") -> Other | G74: =IFERROR(INDEX('EO Master Input'!$E$2:$E$5000,MATCH($M74,'EO Master Input'!$Y$2:$Y$5000,0)),"") -> Commuting the Sentences of Incarcerated Individuals | H74: =IFERROR(INDEX('EO Master Input'!$H$2:$H$5000,MATCH($M74,'EO Master Input'!$Y$2:$Y$5000,0)),"") -> 0 | I74: =IFERROR(INDEX('EO Master Input'!$S$2:$S$5000,MATCH($M74,'EO Master Input'!$Y$2:$Y$5000,0)),"") -> 0 | J74: =IFERROR(INDEX('EO Master Input'!$N$2:$N$5000,MATCH($M74,'EO Master Input'!$Y$2:$Y$5000,0)),"") -> 0 | K74: =IFERROR(INDEX('EO Master Input'!$Q$2:$Q$5000,MATCH($M74,'EO Master Input'!$Y$2:$Y$5000,0)),"") -> 0 | L74: =IFERROR(INDEX('EO Master Input'!$O$2:$O$5000,MATCH($M74,'EO Master Input'!$Y$2:$Y$5000,0)),"") -> 0 | M74: 57
B75: =IFERROR(INDEX('EO Master Input'!$B$2:$B$5000,MATCH($M75,'EO Master Input'!$Y$2:$Y$5000,0)),"") -> 2020-022 | C75: =IFERROR(INDEX('EO Master Input'!$C$2:$C$5000,MATCH($M75,'EO Master Input'!$Y$2:$Y$5000,0)),"-") -> 0 | D75: =IFERROR(INDEX('EO Master Input'!$D$2:$D$5000,MATCH($M75,'EO Master Input'!$Y$2:$Y$5000,0)),"") -> No Agency | E75: =IFERROR(INDEX('EO Master Input'!$A$2:$A$5000,MATCH($M75,'EO Master Input'!$Y$2:$Y$5000,0)),"") -> 2020 | F75: =IFERROR(INDEX('EO Master Input'!$F$2:$F$5000,MATCH($M75,'EO Master Input'!$Y$2:$Y$5000,0)),"") -> Pandemic | G75: =IFERROR(INDEX('EO Master Input'!$E$2:$E$5000,MATCH($M75,'EO Master Input'!$Y$2:$Y$5000,0)),"") -> Renew PHO due to COVID | H75: =IFERROR(INDEX('EO Master Input'!$H$2:$H$5000,MATCH($M75,'EO Master Input'!$Y$2:$Y$5000,0)),"") -> 0 | I75: =IFERROR(INDEX('EO Master Input'!$S$2:$S$5000,MATCH($M75,'EO Master Input'!$Y$2:$Y$5000,0)),"") -> 0 | J75: =IFERROR(INDEX('EO Master Input'!$N$2:$N$5000,MATCH($M75,'EO Master Input'!$Y$2:$Y$5000,0)),"") -> 0 | K75: =IFERROR(INDEX('EO Master Input'!$Q$2:$Q$5000,MATCH($M75,'EO Master Input'!$Y$2:$Y$5000,0)),"") -> 0 | L75: =IFERROR(INDEX('EO Master Input'!$O$2:$O$5000,MATCH($M75,'EO Master Input'!$Y$2:$Y$5000,0)),"") -> 0 | M75: 58
B76: =IFERROR(INDEX('EO Master Input'!$B$2:$B$5000,MATCH($M76,'EO Master Input'!$Y$2:$Y$5000,0)),"") -> 2020-023 | C76: =IFERROR(INDEX('EO Master Input'!$C$2:$C$5000,MATCH($M76,'EO Master Input'!$Y$2:$Y$5000,0)),"-") -> 66500 | D76: =IFERROR(INDEX('EO Master Input'!$D$2:$D$5000,MATCH($M76,'EO Master Input'!$Y$2:$Y$5000,0)),"") -> Department of Health | E76: =IFERROR(INDEX('EO Master Input'!$A$2:$A$5000,MATCH($M76,'EO Master Input'!$Y$2:$Y$5000,0)),"") -> 2020 | F76: =IFERROR(INDEX('EO Master Input'!$F$2:$F$5000,MATCH($M76,'EO Master Input'!$Y$2:$Y$5000,0)),"") -> Pandemic | G76: =IFERROR(INDEX('EO Master Input'!$E$2:$E$5000,MATCH($M76,'EO Master Input'!$Y$2:$Y$5000,0)),"") -> DOH COVID PHO | H76: =IFERROR(INDEX('EO Master Input'!$H$2:$H$5000,MATCH($M76,'EO Master Input'!$Y$2:$Y$5000,0)),"") -> 10000000 | I76: =IFERROR(INDEX('EO Master Input'!$S$2:$S$5000,MATCH($M76,'EO Master Input'!$Y$2:$Y$5000,0)),"") -> 9597188.77 | J76: =IFERROR(INDEX('EO Master Input'!$N$2:$N$5000,MATCH($M76,'EO Master Input'!$Y$2:$Y$5000,0)),"") -> 0 | K76: =IFERROR(INDEX('EO Master Input'!$Q$2:$Q$5000,MATCH($M76,'EO Master Input'!$Y$2:$Y$5000,0)),"") -> 402811.23 | L76: =IFERROR(INDEX('EO Master Input'!$O$2:$O$5000,MATCH($M76,'EO Master Input'!$Y$2:$Y$5000,0)),"") -> 402811.16 | M76: 59
B77: =IFERROR(INDEX('EO Master Input'!$B$2:$B$5000,MATCH($M77,'EO Master Input'!$Y$2:$Y$5000,0)),"") -> 2020-024 | C77: =IFERROR(INDEX('EO Master Input'!$C$2:$C$5000,MATCH($M77,'EO Master Input'!$Y$2:$Y$5000,0)),"-") -> 0 | D77: =IFERROR(INDEX('EO Master Input'!$D$2:$D$5000,MATCH($M77,'EO Master Input'!$Y$2:$Y$5000,0)),"") -> No Agency | E77: =IFERROR(INDEX('EO Master Input'!$A$2:$A$5000,MATCH($M77,'EO Master Input'!$Y$2:$Y$5000,0)),"") -> 2020 | F77: =IFERROR(INDEX('EO Master Input'!$F$2:$F$5000,MATCH($M77,'EO Master Input'!$Y$2:$Y$5000,0)),"") -> Pandemic | G77: =IFERROR(INDEX('EO Master Input'!$E$2:$E$5000,MATCH($M77,'EO Master Input'!$Y$2:$Y$5000,0)),"") -> Order Clarifying That In-Person Shareholders’ and Members’ Meetings | H77: =IFERROR(INDEX('EO Master Input'!$H$2:$H$5000,MATCH($M77,'EO Master Input'!$Y$2:$Y$5000,0)),"") -> 0 | I77: =IFERROR(INDEX('EO Master Input'!$S$2:$S$5000,MATCH($M77,'EO Master Input'!$Y$2:$Y$5000,0)),"") -> 0 | J77: =IFERROR(INDEX('EO Master Input'!$N$2:$N$5000,MATCH($M77,'EO Master Input'!$Y$2:$Y$5000,0)),"") -> 0 | K77: =IFERROR(INDEX('EO Master Input'!$Q$2:$Q$5000,MATCH($M77,'EO Master Input'!$Y$2:$Y$5000,0)),"") -> 0 | L77: =IFERROR(INDEX('EO Master Input'!$O$2:$O$5000,MATCH($M77,'EO Master Input'!$Y$2:$Y$5000,0)),"") -> 0 | M77: 60
B78: =IFERROR(INDEX('EO Master Input'!$B$2:$B$5000,MATCH($M78,'EO Master Input'!$Y$2:$Y$5000,0)),"") -> 2020-025 | C78: =IFERROR(INDEX('EO Master Input'!$C$2:$C$5000,MATCH($M78,'EO Master Input'!$Y$2:$Y$5000,0)),"-") -> 0 | D78: =IFERROR(INDEX('EO Master Input'!$D$2:$D$5000,MATCH($M78,'EO Master Input'!$Y$2:$Y$5000,0)),"") -> No Agency | E78: =IFERROR(INDEX('EO Master Input'!$A$2:$A$5000,MATCH($M78,'EO Master Input'!$Y$2:$Y$5000,0)),"") -> 2020 | F78: =IFERROR(INDEX('EO Master Input'!$F$2:$F$5000,MATCH($M78,'EO Master Input'!$Y$2:$Y$5000,0)),"") -> Pandemic | G78: =IFERROR(INDEX('EO Master Input'!$E$2:$E$5000,MATCH($M78,'EO Master Input'!$Y$2:$Y$5000,0)),"") -> Directing All Executive Agencies to Afford a Presumption of a Compensable Occupational Disease | H78: =IFERROR(INDEX('EO Master Input'!$H$2:$H$5000,MATCH($M78,'EO Master Input'!$Y$2:$Y$5000,0)),"") -> 0 | I78: =IFERROR(INDEX('EO Master Input'!$S$2:$S$5000,MATCH($M78,'EO Master Input'!$Y$2:$Y$5000,0)),"") -> 0 | J78: =IFERROR(INDEX('EO Master Input'!$N$2:$N$5000,MATCH($M78,'EO Master Input'!$Y$2:$Y$5000,0)),"") -> 0 | K78: =IFERROR(INDEX('EO Master Input'!$Q$2:$Q$5000,MATCH($M78,'EO Master Input'!$Y$2:$Y$5000,0)),"") -> 0 | L78: =IFERROR(INDEX('EO Master Input'!$O$2:$O$5000,MATCH($M78,'EO Master Input'!$Y$2:$Y$5000,0)),"") -> 0 | M78: 61
B79: =IFERROR(INDEX('EO Master Input'!$B$2:$B$5000,MATCH($M79,'EO Master Input'!$Y$2:$Y$5000,0)),"") -> 2020-026 | C79: =IFERROR(INDEX('EO Master Input'!$C$2:$C$5000,MATCH($M79,'EO Master Input'!$Y$2:$Y$5000,0)),"-") -> 0 | D79: =IFERROR(INDEX('EO Master Input'!$D$2:$D$5000,MATCH($M79,'EO Master Input'!$Y$2:$Y$5000,0)),"") -> No Agency | E79: =IFERROR(INDEX('EO Master Input'!$A$2:$A$5000,MATCH($M79,'EO Master Input'!$Y$2:$Y$5000,0)),"") -> 2020 | F79: =IFERROR(INDEX('EO Master Input'!$F$2:$F$5000,MATCH($M79,'EO Master Input'!$Y$2:$Y$5000,0)),"") -> Pandemic | G79: =IFERROR(INDEX('EO Master Input'!$E$2:$E$5000,MATCH($M79,'EO Master Input'!$Y$2:$Y$5000,0)),"") -> Renew PHO due to COVID | H79: =IFERROR(INDEX('EO Master Input'!$H$2:$H$5000,MATCH($M79,'EO Master Input'!$Y$2:$Y$5000,0)),"") -> 0 | I79: =IFERROR(INDEX('EO Master Input'!$S$2:$S$5000,MATCH($M79,'EO Master Input'!$Y$2:$Y$5000,0)),"") -> 0 | J79: =IFERROR(INDEX('EO Master Input'!$N$2:$N$5000,MATCH($M79,'EO Master Input'!$Y$2:$Y$5000,0)),"") -> 0 | K79: =IFERROR(INDEX('EO Master Input'!$Q$2:$Q$5000,MATCH($M79,'EO Master Input'!$Y$2:$Y$5000,0)),"") -> 0 | L79: =IFERROR(INDEX('EO Master Input'!$O$2:$O$5000,MATCH($M79,'EO Master Input'!$Y$2:$Y$5000,0)),"") -> 0 | M79: 62
B80: =IFERROR(INDEX('EO Master Input'!$B$2:$B$5000,MATCH($M80,'EO Master Input'!$Y$2:$Y$5000,0)),"") -> 2020-027 | C80: =IFERROR(INDEX('EO Master Input'!$C$2:$C$5000,MATCH($M80,'EO Master Input'!$Y$2:$Y$5000,0)),"-") -> 0 | D80: =IFERROR(INDEX('EO Master Input'!$D$2:$D$5000,MATCH($M80,'EO Master Input'!$Y$2:$Y$5000,0)),"") -> No Agency | E80: =IFERROR(INDEX('EO Master Input'!$A$2:$A$5000,MATCH($M80,'EO Master Input'!$Y$2:$Y$5000,0)),"") -> 2020 | F80: =IFERROR(INDEX('EO Master Input'!$F$2:$F$5000,MATCH($M80,'EO Master Input'!$Y$2:$Y$5000,0)),"") -> Pandemic | G80: =IFERROR(INDEX('EO Master Input'!$E$2:$E$5000,MATCH($M80,'EO Master Input'!$Y$2:$Y$5000,0)),"") -> Granting City of Gallup’s Request for Declaration of Emergency | H80: =IFERROR(INDEX('EO Master Input'!$H$2:$H$5000,MATCH($M80,'EO Master Input'!$Y$2:$Y$5000,0)),"") -> 0 | I80: =IFERROR(INDEX('EO Master Input'!$S$2:$S$5000,MATCH($M80,'EO Master Input'!$Y$2:$Y$5000,0)),"") -> 0 | J80: =IFERROR(INDEX('EO Master Input'!$N$2:$N$5000,MATCH($M80,'EO Master Input'!$Y$2:$Y$5000,0)),"") -> 0 | K80: =IFERROR(INDEX('EO Master Input'!$Q$2:$Q$5000,MATCH($M80,'EO Master Input'!$Y$2:$Y$5000,0)),"") -> 0 | L80: =IFERROR(INDEX('EO Master Input'!$O$2:$O$5000,MATCH($M80,'EO Master Input'!$Y$2:$Y$5000,0)),"") -> 0 | M80: 63
B81: =IFERROR(INDEX('EO Master Input'!$B$2:$B$5000,MATCH($M81,'EO Master Input'!$Y$2:$Y$5000,0)),"") -> 2020-028 | C81: =IFERROR(INDEX('EO Master Input'!$C$2:$C$5000,MATCH($M81,'EO Master Input'!$Y$2:$Y$5000,0)),"-") -> 0 | D81: =IFERROR(INDEX('EO Master Input'!$D$2:$D$5000,MATCH($M81,'EO Master Input'!$Y$2:$Y$5000,0)),"") -> No Agency | E81: =IFERROR(INDEX('EO Master Input'!$A$2:$A$5000,MATCH($M81,'EO Master Input'!$Y$2:$Y$5000,0)),"") -> 2020 | F81: =IFERROR(INDEX('EO Master Input'!$F$2:$F$5000,MATCH($M81,'EO Master Input'!$Y$2:$Y$5000,0)),"") -> Pandemic | G81: =IFERROR(INDEX('EO Master Input'!$E$2:$E$5000,MATCH($M81,'EO Master Input'!$Y$2:$Y$5000,0)),"") -> Granting City of Gallup’s Second Request for Declaration of Emergency | H81: =IFERROR(INDEX('EO Master Input'!$H$2:$H$5000,MATCH($M81,'EO Master Input'!$Y$2:$Y$5000,0)),"") -> 0 | I81: =IFERROR(INDEX('EO Master Input'!$S$2:$S$5000,MATCH($M81,'EO Master Input'!$Y$2:$Y$5000,0)),"") -> 0 | J81: =IFERROR(INDEX('EO Master Input'!$N$2:$N$5000,MATCH($M81,'EO Master Input'!$Y$2:$Y$5000,0)),"") -> 0 | K81: =IFERROR(INDEX('EO Master Input'!$Q$2:$Q$5000,MATCH($M81,'EO Master Input'!$Y$2:$Y$5000,0)),"") -> 0 | L81: =IFERROR(INDEX('EO Master Input'!$O$2:$O$5000,MATCH($M81,'EO Master Input'!$Y$2:$Y$5000,0)),"") -> 0 | M81: 64
B82: =IFERROR(INDEX('EO Master Input'!$B$2:$B$5000,MATCH($M82,'EO Master Input'!$Y$2:$Y$5000,0)),"") -> 2020-029 | C82: =IFERROR(INDEX('EO Master Input'!$C$2:$C$5000,MATCH($M82,'EO Master Input'!$Y$2:$Y$5000,0)),"-") -> 0 | D82: =IFERROR(INDEX('EO Master Input'!$D$2:$D$5000,MATCH($M82,'EO Master Input'!$Y$2:$Y$5000,0)),"") -> No Agency | E82: =IFERROR(INDEX('EO Master Input'!$A$2:$A$5000,MATCH($M82,'EO Master Input'!$Y$2:$Y$5000,0)),"") -> 2020 | F82: =IFERROR(INDEX('EO Master Input'!$F$2:$F$5000,MATCH($M82,'EO Master Input'!$Y$2:$Y$5000,0)),"") -> Pandemic | G82: =IFERROR(INDEX('EO Master Input'!$E$2:$E$5000,MATCH($M82,'EO Master Input'!$Y$2:$Y$5000,0)),"") -> Granting City of Gallup’s Third Request for Declaration of Emergency | H82: =IFERROR(INDEX('EO Master Input'!$H$2:$H$5000,MATCH($M82,'EO Master Input'!$Y$2:$Y$5000,0)),"") -> 0 | I82: =IFERROR(INDEX('EO Master Input'!$S$2:$S$5000,MATCH($M82,'EO Master Input'!$Y$2:$Y$5000,0)),"") -> 0 | J82: =IFERROR(INDEX('EO Master Input'!$N$2:$N$5000,MATCH($M82,'EO Master Input'!$Y$2:$Y$5000,0)),"") -> 0 | K82: =IFERROR(INDEX('EO Master Input'!$Q$2:$Q$5000,MATCH($M82,'EO Master Input'!$Y$2:$Y$5000,0)),"") -> 0 | L82: =IFERROR(INDEX('EO Master Input'!$O$2:$O$5000,MATCH($M82,'EO Master Input'!$Y$2:$Y$5000,0)),"") -> 0 | M82: 65
B83: =IFERROR(INDEX('EO Master Input'!$B$2:$B$5000,MATCH($M83,'EO Master Input'!$Y$2:$Y$5000,0)),"") -> 2020-030 | C83: =IFERROR(INDEX('EO Master Input'!$C$2:$C$5000,MATCH($M83,'EO Master Input'!$Y$2:$Y$5000,0)),"-") -> 0 | D83: =IFERROR(INDEX('EO Master Input'!$D$2:$D$5000,MATCH($M83,'EO Master Input'!$Y$2:$Y$5000,0)),"") -> No Agency | E83: =IFERROR(INDEX('EO Master Input'!$A$2:$A$5000,MATCH($M83,'EO Master Input'!$Y$2:$Y$5000,0)),"") -> 2020 | F83: =IFERROR(INDEX('EO Master Input'!$F$2:$F$5000,MATCH($M83,'EO Master Input'!$Y$2:$Y$5000,0)),"") -> Pandemic | G83: =IFERROR(INDEX('EO Master Input'!$E$2:$E$5000,MATCH($M83,'EO Master Input'!$Y$2:$Y$5000,0)),"") -> Renew PHO due to COVID | H83: =IFERROR(INDEX('EO Master Input'!$H$2:$H$5000,MATCH($M83,'EO Master Input'!$Y$2:$Y$5000,0)),"") -> 0 | I83: =IFERROR(INDEX('EO Master Input'!$S$2:$S$5000,MATCH($M83,'EO Master Input'!$Y$2:$Y$5000,0)),"") -> 0 | J83: =IFERROR(INDEX('EO Master Input'!$N$2:$N$5000,MATCH($M83,'EO Master Input'!$Y$2:$Y$5000,0)),"") -> 0 | K83: =IFERROR(INDEX('EO Master Input'!$Q$2:$Q$5000,MATCH($M83,'EO Master Input'!$Y$2:$Y$5000,0)),"") -> 0 | L83: =IFERROR(INDEX('EO Master Input'!$O$2:$O$5000,MATCH($M83,'EO Master Input'!$Y$2:$Y$5000,0)),"") -> 0 | M83: 66
B84: =IFERROR(INDEX('EO Master Input'!$B$2:$B$5000,MATCH($M84,'EO Master Input'!$Y$2:$Y$5000,0)),"") -> 2020-031 | C84: =IFERROR(INDEX('EO Master Input'!$C$2:$C$5000,MATCH($M84,'EO Master Input'!$Y$2:$Y$5000,0)),"-") -> 0 | D84: =IFERROR(INDEX('EO Master Input'!$D$2:$D$5000,MATCH($M84,'EO Master Input'!$Y$2:$Y$5000,0)),"") -> No Agency | E84: =IFERROR(INDEX('EO Master Input'!$A$2:$A$5000,MATCH($M84,'EO Master Input'!$Y$2:$Y$5000,0)),"") -> 2020 | F84: =IFERROR(INDEX('EO Master Input'!$F$2:$F$5000,MATCH($M84,'EO Master Input'!$Y$2:$Y$5000,0)),"") -> Other | G84: =IFERROR(INDEX('EO Master Input'!$E$2:$E$5000,MATCH($M84,'EO Master Input'!$Y$2:$Y$5000,0)),"") -> Flags to Half Staff | H84: =IFERROR(INDEX('EO Master Input'!$H$2:$H$5000,MATCH($M84,'EO Master Input'!$Y$2:$Y$5000,0)),"") -> 0 | I84: =IFERROR(INDEX('EO Master Input'!$S$2:$S$5000,MATCH($M84,'EO Master Input'!$Y$2:$Y$5000,0)),"") -> 0 | J84: =IFERROR(INDEX('EO Master Input'!$N$2:$N$5000,MATCH($M84,'EO Master Input'!$Y$2:$Y$5000,0)),"") -> 0 | K84: =IFERROR(INDEX('EO Master Input'!$Q$2:$Q$5000,MATCH($M84,'EO Master Input'!$Y$2:$Y$5000,0)),"") -> 0 | L84: =IFERROR(INDEX('EO Master Input'!$O$2:$O$5000,MATCH($M84,'EO Master Input'!$Y$2:$Y$5000,0)),"") -> 0 | M84: 67
B85: =IFERROR(INDEX('EO Master Input'!$B$2:$B$5000,MATCH($M85,'EO Master Input'!$Y$2:$Y$5000,0)),"") -> 2020-032 | C85: =IFERROR(INDEX('EO Master Input'!$C$2:$C$5000,MATCH($M85,'EO Master Input'!$Y$2:$Y$5000,0)),"-") -> 79500 | D85: =IFERROR(INDEX('EO Master Input'!$D$2:$D$5000,MATCH($M85,'EO Master Input'!$Y$2:$Y$5000,0)),"") -> Homeland Sec. & Emerg. Mgmt. | E85: =IFERROR(INDEX('EO Master Input'!$A$2:$A$5000,MATCH($M85,'EO Master Input'!$Y$2:$Y$5000,0)),"") -> 2020 | F85: =IFERROR(INDEX('EO Master Input'!$F$2:$F$5000,MATCH($M85,'EO Master Input'!$Y$2:$Y$5000,0)),"") -> Flooding | G85: =IFERROR(INDEX('EO Master Input'!$E$2:$E$5000,MATCH($M85,'EO Master Input'!$Y$2:$Y$5000,0)),"") -> Declaring a Continuing State of Emergency Due to Flooding in Roosevelt County and Providing Additional Relief Funding | H85: =IFERROR(INDEX('EO Master Input'!$H$2:$H$5000,MATCH($M85,'EO Master Input'!$Y$2:$Y$5000,0)),"") -> 221000 | I85: =IFERROR(INDEX('EO Master Input'!$S$2:$S$5000,MATCH($M85,'EO Master Input'!$Y$2:$Y$5000,0)),"") -> 0 | J85: =IFERROR(INDEX('EO Master Input'!$N$2:$N$5000,MATCH($M85,'EO Master Input'!$Y$2:$Y$5000,0)),"") -> 0 | K85: =IFERROR(INDEX('EO Master Input'!$Q$2:$Q$5000,MATCH($M85,'EO Master Input'!$Y$2:$Y$5000,0)),"") -> 221000 | L85: =IFERROR(INDEX('EO Master Input'!$O$2:$O$5000,MATCH($M85,'EO Master Input'!$Y$2:$Y$5000,0)),"") -> 0 | M85: 68
B86: =IFERROR(INDEX('EO Master Input'!$B$2:$B$5000,MATCH($M86,'EO Master Input'!$Y$2:$Y$5000,0)),"") -> 2020-033 | C86: =IFERROR(INDEX('EO Master Input'!$C$2:$C$5000,MATCH($M86,'EO Master Input'!$Y$2:$Y$5000,0)),"-") -> 79500 | D86: =IFERROR(INDEX('EO Master Input'!$D$2:$D$5000,MATCH($M86,'EO Master Input'!$Y$2:$Y$5000,0)),"") -> Homeland Sec. & Emerg. Mgmt. | E86: =IFERROR(INDEX('EO Master Input'!$A$2:$A$5000,MATCH($M86,'EO Master Input'!$Y$2:$Y$5000,0)),"") -> 2020 | F86: =IFERROR(INDEX('EO Master Input'!$F$2:$F$5000,MATCH($M86,'EO Master Input'!$Y$2:$Y$5000,0)),"") -> Flooding | G86: =IFERROR(INDEX('EO Master Input'!$E$2:$E$5000,MATCH($M86,'EO Master Input'!$Y$2:$Y$5000,0)),"") -> DECLARING A STATE OF EMERGENCY DUE TO FLOODING IN CURRY AND EDDY COUNTIES AND PROVIDING EMERGENCY FUNDING | H86: =IFERROR(INDEX('EO Master Input'!$H$2:$H$5000,MATCH($M86,'EO Master Input'!$Y$2:$Y$5000,0)),"") -> 2000000 | I86: =IFERROR(INDEX('EO Master Input'!$S$2:$S$5000,MATCH($M86,'EO Master Input'!$Y$2:$Y$5000,0)),"") -> 462066.22 | J86: =IFERROR(INDEX('EO Master Input'!$N$2:$N$5000,MATCH($M86,'EO Master Input'!$Y$2:$Y$5000,0)),"") -> 0 | K86: =IFERROR(INDEX('EO Master Input'!$Q$2:$Q$5000,MATCH($M86,'EO Master Input'!$Y$2:$Y$5000,0)),"") -> 1537933.78 | L86: =IFERROR(INDEX('EO Master Input'!$O$2:$O$5000,MATCH($M86,'EO Master Input'!$Y$2:$Y$5000,0)),"") -> 1537933.78 | M86: 69
B87: =IFERROR(INDEX('EO Master Input'!$B$2:$B$5000,MATCH($M87,'EO Master Input'!$Y$2:$Y$5000,0)),"") -> 2020-034 | C87: =IFERROR(INDEX('EO Master Input'!$C$2:$C$5000,MATCH($M87,'EO Master Input'!$Y$2:$Y$5000,0)),"-") -> 52100 | D87: =IFERROR(INDEX('EO Master Input'!$D$2:$D$5000,MATCH($M87,'EO Master Input'!$Y$2:$Y$5000,0)),"") -> Energy, Minerals & Resources | E87: =IFERROR(INDEX('EO Master Input'!$A$2:$A$5000,MATCH($M87,'EO Master Input'!$Y$2:$Y$5000,0)),"") -> 2020 | F87: =IFERROR(INDEX('EO Master Input'!$F$2:$F$5000,MATCH($M87,'EO Master Input'!$Y$2:$Y$5000,0)),"") -> Fire | G87: =IFERROR(INDEX('EO Master Input'!$E$2:$E$5000,MATCH($M87,'EO Master Input'!$Y$2:$Y$5000,0)),"") -> Emergency Funds for Forestry Division of the Energy, Minerals and Natural Resources Department | H87: =IFERROR(INDEX('EO Master Input'!$H$2:$H$5000,MATCH($M87,'EO Master Input'!$Y$2:$Y$5000,0)),"") -> 750000 | I87: =IFERROR(INDEX('EO Master Input'!$S$2:$S$5000,MATCH($M87,'EO Master Input'!$Y$2:$Y$5000,0)),"") -> 750000 | J87: =IFERROR(INDEX('EO Master Input'!$N$2:$N$5000,MATCH($M87,'EO Master Input'!$Y$2:$Y$5000,0)),"") -> 0 | K87: =IFERROR(INDEX('EO Master Input'!$Q$2:$Q$5000,MATCH($M87,'EO Master Input'!$Y$2:$Y$5000,0)),"") -> -1.164153218e-10 | L87: =IFERROR(INDEX('EO Master Input'!$O$2:$O$5000,MATCH($M87,'EO Master Input'!$Y$2:$Y$5000,0)),"") -> 4388666.54 | M87: 70
B88: =IFERROR(INDEX('EO Master Input'!$B$2:$B$5000,MATCH($M88,'EO Master Input'!$Y$2:$Y$5000,0)),"") -> 2020-035 | C88: =IFERROR(INDEX('EO Master Input'!$C$2:$C$5000,MATCH($M88,'EO Master Input'!$Y$2:$Y$5000,0)),"-") -> 52100 | D88: =IFERROR(INDEX('EO Master Input'!$D$2:$D$5000,MATCH($M88,'EO Master Input'!$Y$2:$Y$5000,0)),"") -> Energy, Minerals & Resources | E88: =IFERROR(INDEX('EO Master Input'!$A$2:$A$5000,MATCH($M88,'EO Master Input'!$Y$2:$Y$5000,0)),"") -> 2020 | F88: =IFERROR(INDEX('EO Master Input'!$F$2:$F$5000,MATCH($M88,'EO Master Input'!$Y$2:$Y$5000,0)),"") -> Fire | G88: =IFERROR(INDEX('EO Master Input'!$E$2:$E$5000,MATCH($M88,'EO Master Input'!$Y$2:$Y$5000,0)),"") -> Emergency Funds for Forestry Division of the Energy, Minerals and Natural Resources Department | H88: =IFERROR(INDEX('EO Master Input'!$H$2:$H$5000,MATCH($M88,'EO Master Input'!$Y$2:$Y$5000,0)),"") -> 750000 | I88: =IFERROR(INDEX('EO Master Input'!$S$2:$S$5000,MATCH($M88,'EO Master Input'!$Y$2:$Y$5000,0)),"") -> 750000 | J88: =IFERROR(INDEX('EO Master Input'!$N$2:$N$5000,MATCH($M88,'EO Master Input'!$Y$2:$Y$5000,0)),"") -> 0 | K88: =IFERROR(INDEX('EO Master Input'!$Q$2:$Q$5000,MATCH($M88,'EO Master Input'!$Y$2:$Y$5000,0)),"") -> 0 | L88: =IFERROR(INDEX('EO Master Input'!$O$2:$O$5000,MATCH($M88,'EO Master Input'!$Y$2:$Y$5000,0)),"") -> 0 | M88: 71
B89: =IFERROR(INDEX('EO Master Input'!$B$2:$B$5000,MATCH($M89,'EO Master Input'!$Y$2:$Y$5000,0)),"") -> 2020-036 | C89: =IFERROR(INDEX('EO Master Input'!$C$2:$C$5000,MATCH($M89,'EO Master Input'!$Y$2:$Y$5000,0)),"-") -> 0 | D89: =IFERROR(INDEX('EO Master Input'!$D$2:$D$5000,MATCH($M89,'EO Master Input'!$Y$2:$Y$5000,0)),"") -> No Agency | E89: =IFERROR(INDEX('EO Master Input'!$A$2:$A$5000,MATCH($M89,'EO Master Input'!$Y$2:$Y$5000,0)),"") -> 2020 | F89: =IFERROR(INDEX('EO Master Input'!$F$2:$F$5000,MATCH($M89,'EO Master Input'!$Y$2:$Y$5000,0)),"") -> Pandemic | G89: =IFERROR(INDEX('EO Master Input'!$E$2:$E$5000,MATCH($M89,'EO Master Input'!$Y$2:$Y$5000,0)),"") -> Renew PHO due to COVID | H89: =IFERROR(INDEX('EO Master Input'!$H$2:$H$5000,MATCH($M89,'EO Master Input'!$Y$2:$Y$5000,0)),"") -> 0 | I89: =IFERROR(INDEX('EO Master Input'!$S$2:$S$5000,MATCH($M89,'EO Master Input'!$Y$2:$Y$5000,0)),"") -> 0 | J89: =IFERROR(INDEX('EO Master Input'!$N$2:$N$5000,MATCH($M89,'EO Master Input'!$Y$2:$Y$5000,0)),"") -> 0 | K89: =IFERROR(INDEX('EO Master Input'!$Q$2:$Q$5000,MATCH($M89,'EO Master Input'!$Y$2:$Y$5000,0)),"") -> 0 | L89: =IFERROR(INDEX('EO Master Input'!$O$2:$O$5000,MATCH($M89,'EO Master Input'!$Y$2:$Y$5000,0)),"") -> 0 | M89: 72
B90: =IFERROR(INDEX('EO Master Input'!$B$2:$B$5000,MATCH($M90,'EO Master Input'!$Y$2:$Y$5000,0)),"") -> 2020-037 | C90: =IFERROR(INDEX('EO Master Input'!$C$2:$C$5000,MATCH($M90,'EO Master Input'!$Y$2:$Y$5000,0)),"-") -> 0 | D90: =IFERROR(INDEX('EO Master Input'!$D$2:$D$5000,MATCH($M90,'EO Master Input'!$Y$2:$Y$5000,0)),"") -> No Agency | E90: =IFERROR(INDEX('EO Master Input'!$A$2:$A$5000,MATCH($M90,'EO Master Input'!$Y$2:$Y$5000,0)),"") -> 2020 | F90: =IFERROR(INDEX('EO Master Input'!$F$2:$F$5000,MATCH($M90,'EO Master Input'!$Y$2:$Y$5000,0)),"") -> Pandemic | G90: =IFERROR(INDEX('EO Master Input'!$E$2:$E$5000,MATCH($M90,'EO Master Input'!$Y$2:$Y$5000,0)),"") -> Amended Order Directing Individuals Traveling to New Mexico Through an Airport to Self-Isolate or Self-Quarantine | H90: =IFERROR(INDEX('EO Master Input'!$H$2:$H$5000,MATCH($M90,'EO Master Input'!$Y$2:$Y$5000,0)),"") -> 0 | I90: =IFERROR(INDEX('EO Master Input'!$S$2:$S$5000,MATCH($M90,'EO Master Input'!$Y$2:$Y$5000,0)),"") -> 0 | J90: =IFERROR(INDEX('EO Master Input'!$N$2:$N$5000,MATCH($M90,'EO Master Input'!$Y$2:$Y$5000,0)),"") -> 0 | K90: =IFERROR(INDEX('EO Master Input'!$Q$2:$Q$5000,MATCH($M90,'EO Master Input'!$Y$2:$Y$5000,0)),"") -> 0 | L90: =IFERROR(INDEX('EO Master Input'!$O$2:$O$5000,MATCH($M90,'EO Master Input'!$Y$2:$Y$5000,0)),"") -> 0 | M90: 73
B91: =IFERROR(INDEX('EO Master Input'!$B$2:$B$5000,MATCH($M91,'EO Master Input'!$Y$2:$Y$5000,0)),"") -> 2020-038 | C91: =IFERROR(INDEX('EO Master Input'!$C$2:$C$5000,MATCH($M91,'EO Master Input'!$Y$2:$Y$5000,0)),"-") -> 0 | D91: =IFERROR(INDEX('EO Master Input'!$D$2:$D$5000,MATCH($M91,'EO Master Input'!$Y$2:$Y$5000,0)),"") -> No Agency | E91: =IFERROR(INDEX('EO Master Input'!$A$2:$A$5000,MATCH($M91,'EO Master Input'!$Y$2:$Y$5000,0)),"") -> 2020 | F91: =IFERROR(INDEX('EO Master Input'!$F$2:$F$5000,MATCH($M91,'EO Master Input'!$Y$2:$Y$5000,0)),"") -> Other | G91: =IFERROR(INDEX('EO Master Input'!$E$2:$E$5000,MATCH($M91,'EO Master Input'!$Y$2:$Y$5000,0)),"") -> Flags to Half Staff | H91: =IFERROR(INDEX('EO Master Input'!$H$2:$H$5000,MATCH($M91,'EO Master Input'!$Y$2:$Y$5000,0)),"") -> 0 | I91: =IFERROR(INDEX('EO Master Input'!$S$2:$S$5000,MATCH($M91,'EO Master Input'!$Y$2:$Y$5000,0)),"") -> 0 | J91: =IFERROR(INDEX('EO Master Input'!$N$2:$N$5000,MATCH($M91,'EO Master Input'!$Y$2:$Y$5000,0)),"") -> 0 | K91: =IFERROR(INDEX('EO Master Input'!$Q$2:$Q$5000,MATCH($M91,'EO Master Input'!$Y$2:$Y$5000,0)),"") -> 0 | L91: =IFERROR(INDEX('EO Master Input'!$O$2:$O$5000,MATCH($M91,'EO Master Input'!$Y$2:$Y$5000,0)),"") -> 0 | M91: 74
B92: =IFERROR(INDEX('EO Master Input'!$B$2:$B$5000,MATCH($M92,'EO Master Input'!$Y$2:$Y$5000,0)),"") -> 2020-039 | C92: =IFERROR(INDEX('EO Master Input'!$C$2:$C$5000,MATCH($M92,'EO Master Input'!$Y$2:$Y$5000,0)),"-") -> 0 | D92: =IFERROR(INDEX('EO Master Input'!$D$2:$D$5000,MATCH($M92,'EO Master Input'!$Y$2:$Y$5000,0)),"") -> No Agency | E92: =IFERROR(INDEX('EO Master Input'!$A$2:$A$5000,MATCH($M92,'EO Master Input'!$Y$2:$Y$5000,0)),"") -> 2020 | F92: =IFERROR(INDEX('EO Master Input'!$F$2:$F$5000,MATCH($M92,'EO Master Input'!$Y$2:$Y$5000,0)),"") -> Pandemic | G92: =IFERROR(INDEX('EO Master Input'!$E$2:$E$5000,MATCH($M92,'EO Master Input'!$Y$2:$Y$5000,0)),"") -> Extending Order Temporarily Permitting Notarial Acts Through Audio-Visual Technology Under Certain Conditions | H92: =IFERROR(INDEX('EO Master Input'!$H$2:$H$5000,MATCH($M92,'EO Master Input'!$Y$2:$Y$5000,0)),"") -> 0 | I92: =IFERROR(INDEX('EO Master Input'!$S$2:$S$5000,MATCH($M92,'EO Master Input'!$Y$2:$Y$5000,0)),"") -> 0 | J92: =IFERROR(INDEX('EO Master Input'!$N$2:$N$5000,MATCH($M92,'EO Master Input'!$Y$2:$Y$5000,0)),"") -> 0 | K92: =IFERROR(INDEX('EO Master Input'!$Q$2:$Q$5000,MATCH($M92,'EO Master Input'!$Y$2:$Y$5000,0)),"") -> 0 | L92: =IFERROR(INDEX('EO Master Input'!$O$2:$O$5000,MATCH($M92,'EO Master Input'!$Y$2:$Y$5000,0)),"") -> 0 | M92: 75
B93: =IFERROR(INDEX('EO Master Input'!$B$2:$B$5000,MATCH($M93,'EO Master Input'!$Y$2:$Y$5000,0)),"") -> 2020-040 | C93: =IFERROR(INDEX('EO Master Input'!$C$2:$C$5000,MATCH($M93,'EO Master Input'!$Y$2:$Y$5000,0)),"-") -> 0 | D93: =IFERROR(INDEX('EO Master Input'!$D$2:$D$5000,MATCH($M93,'EO Master Input'!$Y$2:$Y$5000,0)),"") -> No Agency | E93: =IFERROR(INDEX('EO Master Input'!$A$2:$A$5000,MATCH($M93,'EO Master Input'!$Y$2:$Y$5000,0)),"") -> 2020 | F93: =IFERROR(INDEX('EO Master Input'!$F$2:$F$5000,MATCH($M93,'EO Master Input'!$Y$2:$Y$5000,0)),"") -> Drought | G93: =IFERROR(INDEX('EO Master Input'!$E$2:$E$5000,MATCH($M93,'EO Master Input'!$Y$2:$Y$5000,0)),"") -> Declaring a Drought and Severe Fire Conditions | H93: =IFERROR(INDEX('EO Master Input'!$H$2:$H$5000,MATCH($M93,'EO Master Input'!$Y$2:$Y$5000,0)),"") -> 0 | I93: =IFERROR(INDEX('EO Master Input'!$S$2:$S$5000,MATCH($M93,'EO Master Input'!$Y$2:$Y$5000,0)),"") -> 0 | J93: =IFERROR(INDEX('EO Master Input'!$N$2:$N$5000,MATCH($M93,'EO Master Input'!$Y$2:$Y$5000,0)),"") -> 0 | K93: =IFERROR(INDEX('EO Master Input'!$Q$2:$Q$5000,MATCH($M93,'EO Master Input'!$Y$2:$Y$5000,0)),"") -> 0 | L93: =IFERROR(INDEX('EO Master Input'!$O$2:$O$5000,MATCH($M93,'EO Master Input'!$Y$2:$Y$5000,0)),"") -> 0 | M93: 76
B94: =IFERROR(INDEX('EO Master Input'!$B$2:$B$5000,MATCH($M94,'EO Master Input'!$Y$2:$Y$5000,0)),"") -> 2020-041 | C94: =IFERROR(INDEX('EO Master Input'!$C$2:$C$5000,MATCH($M94,'EO Master Input'!$Y$2:$Y$5000,0)),"-") -> 0 | D94: =IFERROR(INDEX('EO Master Input'!$D$2:$D$5000,MATCH($M94,'EO Master Input'!$Y$2:$Y$5000,0)),"") -> No Agency | E94: =IFERROR(INDEX('EO Master Input'!$A$2:$A$5000,MATCH($M94,'EO Master Input'!$Y$2:$Y$5000,0)),"") -> 2020 | F94: =IFERROR(INDEX('EO Master Input'!$F$2:$F$5000,MATCH($M94,'EO Master Input'!$Y$2:$Y$5000,0)),"") -> Other | G94: =IFERROR(INDEX('EO Master Input'!$E$2:$E$5000,MATCH($M94,'EO Master Input'!$Y$2:$Y$5000,0)),"") -> Flags to Half Staff | H94: =IFERROR(INDEX('EO Master Input'!$H$2:$H$5000,MATCH($M94,'EO Master Input'!$Y$2:$Y$5000,0)),"") -> 0 | I94: =IFERROR(INDEX('EO Master Input'!$S$2:$S$5000,MATCH($M94,'EO Master Input'!$Y$2:$Y$5000,0)),"") -> 0 | J94: =IFERROR(INDEX('EO Master Input'!$N$2:$N$5000,MATCH($M94,'EO Master Input'!$Y$2:$Y$5000,0)),"") -> 0 | K94: =IFERROR(INDEX('EO Master Input'!$Q$2:$Q$5000,MATCH($M94,'EO Master Input'!$Y$2:$Y$5000,0)),"") -> 0 | L94: =IFERROR(INDEX('EO Master Input'!$O$2:$O$5000,MATCH($M94,'EO Master Input'!$Y$2:$Y$5000,0)),"") -> 0 | M94: 77
B95: =IFERROR(INDEX('EO Master Input'!$B$2:$B$5000,MATCH($M95,'EO Master Input'!$Y$2:$Y$5000,0)),"") -> 2020-042 | C95: =IFERROR(INDEX('EO Master Input'!$C$2:$C$5000,MATCH($M95,'EO Master Input'!$Y$2:$Y$5000,0)),"-") -> 0 | D95: =IFERROR(INDEX('EO Master Input'!$D$2:$D$5000,MATCH($M95,'EO Master Input'!$Y$2:$Y$5000,0)),"") -> No Agency | E95: =IFERROR(INDEX('EO Master Input'!$A$2:$A$5000,MATCH($M95,'EO Master Input'!$Y$2:$Y$5000,0)),"") -> 2020 | F95: =IFERROR(INDEX('EO Master Input'!$F$2:$F$5000,MATCH($M95,'EO Master Input'!$Y$2:$Y$5000,0)),"") -> Other | G95: =IFERROR(INDEX('EO Master Input'!$E$2:$E$5000,MATCH($M95,'EO Master Input'!$Y$2:$Y$5000,0)),"") -> Flags to Half Staff | H95: =IFERROR(INDEX('EO Master Input'!$H$2:$H$5000,MATCH($M95,'EO Master Input'!$Y$2:$Y$5000,0)),"") -> 0 | I95: =IFERROR(INDEX('EO Master Input'!$S$2:$S$5000,MATCH($M95,'EO Master Input'!$Y$2:$Y$5000,0)),"") -> 0 | J95: =IFERROR(INDEX('EO Master Input'!$N$2:$N$5000,MATCH($M95,'EO Master Input'!$Y$2:$Y$5000,0)),"") -> 0 | K95: =IFERROR(INDEX('EO Master Input'!$Q$2:$Q$5000,MATCH($M95,'EO Master Input'!$Y$2:$Y$5000,0)),"") -> 0 | L95: =IFERROR(INDEX('EO Master Input'!$O$2:$O$5000,MATCH($M95,'EO Master Input'!$Y$2:$Y$5000,0)),"") -> 0 | M95: 78
B96: =IFERROR(INDEX('EO Master Input'!$B$2:$B$5000,MATCH($M96,'EO Master Input'!$Y$2:$Y$5000,0)),"") -> 2020-043 | C96: =IFERROR(INDEX('EO Master Input'!$C$2:$C$5000,MATCH($M96,'EO Master Input'!$Y$2:$Y$5000,0)),"-") -> 70500 | D96: =IFERROR(INDEX('EO Master Input'!$D$2:$D$5000,MATCH($M96,'EO Master Input'!$Y$2:$Y$5000,0)),"") -> Military Affairs Department | E96: =IFERROR(INDEX('EO Master Input'!$A$2:$A$5000,MATCH($M96,'EO Master Input'!$Y$2:$Y$5000,0)),"") -> 2020 | F96: =IFERROR(INDEX('EO Master Input'!$F$2:$F$5000,MATCH($M96,'EO Master Input'!$Y$2:$Y$5000,0)),"") -> Crime | G96: =IFERROR(INDEX('EO Master Input'!$E$2:$E$5000,MATCH($M96,'EO Master Input'!$Y$2:$Y$5000,0)),"") -> Authorizing Emergency funds for New Mexico National Guard Deployments in Fiscal Year 2021 | H96: =IFERROR(INDEX('EO Master Input'!$H$2:$H$5000,MATCH($M96,'EO Master Input'!$Y$2:$Y$5000,0)),"") -> 750000 | I96: =IFERROR(INDEX('EO Master Input'!$S$2:$S$5000,MATCH($M96,'EO Master Input'!$Y$2:$Y$5000,0)),"") -> 293413.17 | J96: =IFERROR(INDEX('EO Master Input'!$N$2:$N$5000,MATCH($M96,'EO Master Input'!$Y$2:$Y$5000,0)),"") -> 0 | K96: =IFERROR(INDEX('EO Master Input'!$Q$2:$Q$5000,MATCH($M96,'EO Master Input'!$Y$2:$Y$5000,0)),"") -> 456586.83 | L96: =IFERROR(INDEX('EO Master Input'!$O$2:$O$5000,MATCH($M96,'EO Master Input'!$Y$2:$Y$5000,0)),"") -> 729176.5 | M96: 79
B97: =IFERROR(INDEX('EO Master Input'!$B$2:$B$5000,MATCH($M97,'EO Master Input'!$Y$2:$Y$5000,0)),"") -> 2020-044 | C97: =IFERROR(INDEX('EO Master Input'!$C$2:$C$5000,MATCH($M97,'EO Master Input'!$Y$2:$Y$5000,0)),"-") -> 52100 | D97: =IFERROR(INDEX('EO Master Input'!$D$2:$D$5000,MATCH($M97,'EO Master Input'!$Y$2:$Y$5000,0)),"") -> Energy, Minerals & Resources | E97: =IFERROR(INDEX('EO Master Input'!$A$2:$A$5000,MATCH($M97,'EO Master Input'!$Y$2:$Y$5000,0)),"") -> 2020 | F97: =IFERROR(INDEX('EO Master Input'!$F$2:$F$5000,MATCH($M97,'EO Master Input'!$Y$2:$Y$5000,0)),"") -> Fire | G97: =IFERROR(INDEX('EO Master Input'!$E$2:$E$5000,MATCH($M97,'EO Master Input'!$Y$2:$Y$5000,0)),"") -> Emergency Funds for Forestry Division of the Energy, Minerals and Natural Resources Department | H97: =IFERROR(INDEX('EO Master Input'!$H$2:$H$5000,MATCH($M97,'EO Master Input'!$Y$2:$Y$5000,0)),"") -> 750000 | I97: =IFERROR(INDEX('EO Master Input'!$S$2:$S$5000,MATCH($M97,'EO Master Input'!$Y$2:$Y$5000,0)),"") -> 750000 | J97: =IFERROR(INDEX('EO Master Input'!$N$2:$N$5000,MATCH($M97,'EO Master Input'!$Y$2:$Y$5000,0)),"") -> 0 | K97: =IFERROR(INDEX('EO Master Input'!$Q$2:$Q$5000,MATCH($M97,'EO Master Input'!$Y$2:$Y$5000,0)),"") -> 0 | L97: =IFERROR(INDEX('EO Master Input'!$O$2:$O$5000,MATCH($M97,'EO Master Input'!$Y$2:$Y$5000,0)),"") -> 0 | M97: 80
B98: =IFERROR(INDEX('EO Master Input'!$B$2:$B$5000,MATCH($M98,'EO Master Input'!$Y$2:$Y$5000,0)),"") -> 2020-045 | C98: =IFERROR(INDEX('EO Master Input'!$C$2:$C$5000,MATCH($M98,'EO Master Input'!$Y$2:$Y$5000,0)),"-") -> 52100 | D98: =IFERROR(INDEX('EO Master Input'!$D$2:$D$5000,MATCH($M98,'EO Master Input'!$Y$2:$Y$5000,0)),"") -> Energy, Minerals & Resources | E98: =IFERROR(INDEX('EO Master Input'!$A$2:$A$5000,MATCH($M98,'EO Master Input'!$Y$2:$Y$5000,0)),"") -> 2020 | F98: =IFERROR(INDEX('EO Master Input'!$F$2:$F$5000,MATCH($M98,'EO Master Input'!$Y$2:$Y$5000,0)),"") -> Fire | G98: =IFERROR(INDEX('EO Master Input'!$E$2:$E$5000,MATCH($M98,'EO Master Input'!$Y$2:$Y$5000,0)),"") -> Emergency Funds for Forestry Division of the Energy, Minerals and Natural Resources Department | H98: =IFERROR(INDEX('EO Master Input'!$H$2:$H$5000,MATCH($M98,'EO Master Input'!$Y$2:$Y$5000,0)),"") -> 750000 | I98: =IFERROR(INDEX('EO Master Input'!$S$2:$S$5000,MATCH($M98,'EO Master Input'!$Y$2:$Y$5000,0)),"") -> 699708.46 | J98: =IFERROR(INDEX('EO Master Input'!$N$2:$N$5000,MATCH($M98,'EO Master Input'!$Y$2:$Y$5000,0)),"") -> 0 | K98: =IFERROR(INDEX('EO Master Input'!$Q$2:$Q$5000,MATCH($M98,'EO Master Input'!$Y$2:$Y$5000,0)),"") -> 50291.54 | L98: =IFERROR(INDEX('EO Master Input'!$O$2:$O$5000,MATCH($M98,'EO Master Input'!$Y$2:$Y$5000,0)),"") -> 0 | M98: 81
B99: =IFERROR(INDEX('EO Master Input'!$B$2:$B$5000,MATCH($M99,'EO Master Input'!$Y$2:$Y$5000,0)),"") -> 2020-046 | C99: =IFERROR(INDEX('EO Master Input'!$C$2:$C$5000,MATCH($M99,'EO Master Input'!$Y$2:$Y$5000,0)),"-") -> 52100 | D99: =IFERROR(INDEX('EO Master Input'!$D$2:$D$5000,MATCH($M99,'EO Master Input'!$Y$2:$Y$5000,0)),"") -> Energy, Minerals & Resources | E99: =IFERROR(INDEX('EO Master Input'!$A$2:$A$5000,MATCH($M99,'EO Master Input'!$Y$2:$Y$5000,0)),"") -> 2020 | F99: =IFERROR(INDEX('EO Master Input'!$F$2:$F$5000,MATCH($M99,'EO Master Input'!$Y$2:$Y$5000,0)),"") -> Fire | G99: =IFERROR(INDEX('EO Master Input'!$E$2:$E$5000,MATCH($M99,'EO Master Input'!$Y$2:$Y$5000,0)),"") -> Emergency Funds for Forestry Division of the Energy, Minerals and Natural Resources Department | H99: =IFERROR(INDEX('EO Master Input'!$H$2:$H$5000,MATCH($M99,'EO Master Input'!$Y$2:$Y$5000,0)),"") -> 750000 | I99: =IFERROR(INDEX('EO Master Input'!$S$2:$S$5000,MATCH($M99,'EO Master Input'!$Y$2:$Y$5000,0)),"") -> 750000 | J99: =IFERROR(INDEX('EO Master Input'!$N$2:$N$5000,MATCH($M99,'EO Master Input'!$Y$2:$Y$5000,0)),"") -> 0 | K99: =IFERROR(INDEX('EO Master Input'!$Q$2:$Q$5000,MATCH($M99,'EO Master Input'!$Y$2:$Y$5000,0)),"") -> 0 | L99: =IFERROR(INDEX('EO Master Input'!$O$2:$O$5000,MATCH($M99,'EO Master Input'!$Y$2:$Y$5000,0)),"") -> 0 | M99: 82
B100: =IFERROR(INDEX('EO Master Input'!$B$2:$B$5000,MATCH($M100,'EO Master Input'!$Y$2:$Y$5000,0)),"") -> 2020-047 | C100: =IFERROR(INDEX('EO Master Input'!$C$2:$C$5000,MATCH($M100,'EO Master Input'!$Y$2:$Y$5000,0)),"-") -> 52100 | D100: =IFERROR(INDEX('EO Master Input'!$D$2:$D$5000,MATCH($M100,'EO Master Input'!$Y$2:$Y$5000,0)),"") -> Energy, Minerals & Resources | E100: =IFERROR(INDEX('EO Master Input'!$A$2:$A$5000,MATCH($M100,'EO Master Input'!$Y$2:$Y$5000,0)),"") -> 2020 | F100: =IFERROR(INDEX('EO Master Input'!$F$2:$F$5000,MATCH($M100,'EO Master Input'!$Y$2:$Y$5000,0)),"") -> Fire | G100: =IFERROR(INDEX('EO Master Input'!$E$2:$E$5000,MATCH($M100,'EO Master Input'!$Y$2:$Y$5000,0)),"") -> Emergency Funds for Forestry Division of the Energy, Minerals and Natural Resources Department | H100: =IFERROR(INDEX('EO Master Input'!$H$2:$H$5000,MATCH($M100,'EO Master Input'!$Y$2:$Y$5000,0)),"") -> 750000 | I100: =IFERROR(INDEX('EO Master Input'!$S$2:$S$5000,MATCH($M100,'EO Master Input'!$Y$2:$Y$5000,0)),"") -> 750000 | J100: =IFERROR(INDEX('EO Master Input'!$N$2:$N$5000,MATCH($M100,'EO Master Input'!$Y$2:$Y$5000,0)),"") -> 0 | K100: =IFERROR(INDEX('EO Master Input'!$Q$2:$Q$5000,MATCH($M100,'EO Master Input'!$Y$2:$Y$5000,0)),"") -> 0 | L100: =IFERROR(INDEX('EO Master Input'!$O$2:$O$5000,MATCH($M100,'EO Master Input'!$Y$2:$Y$5000,0)),"") -> 0 | M100: 83
B101: =IFERROR(INDEX('EO Master Input'!$B$2:$B$5000,MATCH($M101,'EO Master Input'!$Y$2:$Y$5000,0)),"") -> 2020-048 | C101: =IFERROR(INDEX('EO Master Input'!$C$2:$C$5000,MATCH($M101,'EO Master Input'!$Y$2:$Y$5000,0)),"-") -> 52100 | D101: =IFERROR(INDEX('EO Master Input'!$D$2:$D$5000,MATCH($M101,'EO Master Input'!$Y$2:$Y$5000,0)),"") -> Energy, Minerals & Resources | E101: =IFERROR(INDEX('EO Master Input'!$A$2:$A$5000,MATCH($M101,'EO Master Input'!$Y$2:$Y$5000,0)),"") -> 2020 | F101: =IFERROR(INDEX('EO Master Input'!$F$2:$F$5000,MATCH($M101,'EO Master Input'!$Y$2:$Y$5000,0)),"") -> Fire | G101: =IFERROR(INDEX('EO Master Input'!$E$2:$E$5000,MATCH($M101,'EO Master Input'!$Y$2:$Y$5000,0)),"") -> Emergency Funds for Forestry Division of the Energy, Minerals and Natural Resources Department | H101: =IFERROR(INDEX('EO Master Input'!$H$2:$H$5000,MATCH($M101,'EO Master Input'!$Y$2:$Y$5000,0)),"") -> 750000 | I101: =IFERROR(INDEX('EO Master Input'!$S$2:$S$5000,MATCH($M101,'EO Master Input'!$Y$2:$Y$5000,0)),"") -> 750000 | J101: =IFERROR(INDEX('EO Master Input'!$N$2:$N$5000,MATCH($M101,'EO Master Input'!$Y$2:$Y$5000,0)),"") -> 0 | K101: =IFERROR(INDEX('EO Master Input'!$Q$2:$Q$5000,MATCH($M101,'EO Master Input'!$Y$2:$Y$5000,0)),"") -> 0 | L101: =IFERROR(INDEX('EO Master Input'!$O$2:$O$5000,MATCH($M101,'EO Master Input'!$Y$2:$Y$5000,0)),"") -> 0 | M101: 84
B102: =IFERROR(INDEX('EO Master Input'!$B$2:$B$5000,MATCH($M102,'EO Master Input'!$Y$2:$Y$5000,0)),"") -> 2020-049 | C102: =IFERROR(INDEX('EO Master Input'!$C$2:$C$5000,MATCH($M102,'EO Master Input'!$Y$2:$Y$5000,0)),"-") -> 52100 | D102: =IFERROR(INDEX('EO Master Input'!$D$2:$D$5000,MATCH($M102,'EO Master Input'!$Y$2:$Y$5000,0)),"") -> Energy, Minerals & Resources | E102: =IFERROR(INDEX('EO Master Input'!$A$2:$A$5000,MATCH($M102,'EO Master Input'!$Y$2:$Y$5000,0)),"") -> 2020 | F102: =IFERROR(INDEX('EO Master Input'!$F$2:$F$5000,MATCH($M102,'EO Master Input'!$Y$2:$Y$5000,0)),"") -> Fire | G102: =IFERROR(INDEX('EO Master Input'!$E$2:$E$5000,MATCH($M102,'EO Master Input'!$Y$2:$Y$5000,0)),"") -> Emergency Funds for Forestry Division of the Energy, Minerals and Natural Resources Department | H102: =IFERROR(INDEX('EO Master Input'!$H$2:$H$5000,MATCH($M102,'EO Master Input'!$Y$2:$Y$5000,0)),"") -> 750000 | I102: =IFERROR(INDEX('EO Master Input'!$S$2:$S$5000,MATCH($M102,'EO Master Input'!$Y$2:$Y$5000,0)),"") -> 750000 | J102: =IFERROR(INDEX('EO Master Input'!$N$2:$N$5000,MATCH($M102,'EO Master Input'!$Y$2:$Y$5000,0)),"") -> 0 | K102: =IFERROR(INDEX('EO Master Input'!$Q$2:$Q$5000,MATCH($M102,'EO Master Input'!$Y$2:$Y$5000,0)),"") -> 0 | L102: =IFERROR(INDEX('EO Master Input'!$O$2:$O$5000,MATCH($M102,'EO Master Input'!$Y$2:$Y$5000,0)),"") -> 0 | M102: 85
B103: =IFERROR(INDEX('EO Master Input'!$B$2:$B$5000,MATCH($M103,'EO Master Input'!$Y$2:$Y$5000,0)),"") -> 2020-050 | C103: =IFERROR(INDEX('EO Master Input'!$C$2:$C$5000,MATCH($M103,'EO Master Input'!$Y$2:$Y$5000,0)),"-") -> 52100 | D103: =IFERROR(INDEX('EO Master Input'!$D$2:$D$5000,MATCH($M103,'EO Master Input'!$Y$2:$Y$5000,0)),"") -> Energy, Minerals & Resources | E103: =IFERROR(INDEX('EO Master Input'!$A$2:$A$5000,MATCH($M103,'EO Master Input'!$Y$2:$Y$5000,0)),"") -> 2020 | F103: =IFERROR(INDEX('EO Master Input'!$F$2:$F$5000,MATCH($M103,'EO Master Input'!$Y$2:$Y$5000,0)),"") -> Fire | G103: =IFERROR(INDEX('EO Master Input'!$E$2:$E$5000,MATCH($M103,'EO Master Input'!$Y$2:$Y$5000,0)),"") -> Emergency Funds for Forestry Division of the Energy, Minerals and Natural Resources Department | H103: =IFERROR(INDEX('EO Master Input'!$H$2:$H$5000,MATCH($M103,'EO Master Input'!$Y$2:$Y$5000,0)),"") -> 750000 | I103: =IFERROR(INDEX('EO Master Input'!$S$2:$S$5000,MATCH($M103,'EO Master Input'!$Y$2:$Y$5000,0)),"") -> 750000 | J103: =IFERROR(INDEX('EO Master Input'!$N$2:$N$5000,MATCH($M103,'EO Master Input'!$Y$2:$Y$5000,0)),"") -> 0 | K103: =IFERROR(INDEX('EO Master Input'!$Q$2:$Q$5000,MATCH($M103,'EO Master Input'!$Y$2:$Y$5000,0)),"") -> 0 | L103: =IFERROR(INDEX('EO Master Input'!$O$2:$O$5000,MATCH($M103,'EO Master Input'!$Y$2:$Y$5000,0)),"") -> 0 | M103: 86
B104: =IFERROR(INDEX('EO Master Input'!$B$2:$B$5000,MATCH($M104,'EO Master Input'!$Y$2:$Y$5000,0)),"") -> 2020-051 | C104: =IFERROR(INDEX('EO Master Input'!$C$2:$C$5000,MATCH($M104,'EO Master Input'!$Y$2:$Y$5000,0)),"-") -> 52100 | D104: =IFERROR(INDEX('EO Master Input'!$D$2:$D$5000,MATCH($M104,'EO Master Input'!$Y$2:$Y$5000,0)),"") -> Energy, Minerals & Resources | E104: =IFERROR(INDEX('EO Master Input'!$A$2:$A$5000,MATCH($M104,'EO Master Input'!$Y$2:$Y$5000,0)),"") -> 2020 | F104: =IFERROR(INDEX('EO Master Input'!$F$2:$F$5000,MATCH($M104,'EO Master Input'!$Y$2:$Y$5000,0)),"") -> Fire | G104: =IFERROR(INDEX('EO Master Input'!$E$2:$E$5000,MATCH($M104,'EO Master Input'!$Y$2:$Y$5000,0)),"") -> Emergency Funds for Forestry Division of the Energy, Minerals and Natural Resources Department | H104: =IFERROR(INDEX('EO Master Input'!$H$2:$H$5000,MATCH($M104,'EO Master Input'!$Y$2:$Y$5000,0)),"") -> 750000 | I104: =IFERROR(INDEX('EO Master Input'!$S$2:$S$5000,MATCH($M104,'EO Master Input'!$Y$2:$Y$5000,0)),"") -> 750000 | J104: =IFERROR(INDEX('EO Master Input'!$N$2:$N$5000,MATCH($M104,'EO Master Input'!$Y$2:$Y$5000,0)),"") -> 0 | K104: =IFERROR(INDEX('EO Master Input'!$Q$2:$Q$5000,MATCH($M104,'EO Master Input'!$Y$2:$Y$5000,0)),"") -> 0 | L104: =IFERROR(INDEX('EO Master Input'!$O$2:$O$5000,MATCH($M104,'EO Master Input'!$Y$2:$Y$5000,0)),"") -> 0 | M104: 87
B105: =IFERROR(INDEX('EO Master Input'!$B$2:$B$5000,MATCH($M105,'EO Master Input'!$Y$2:$Y$5000,0)),"") -> 2020-052 | C105: =IFERROR(INDEX('EO Master Input'!$C$2:$C$5000,MATCH($M105,'EO Master Input'!$Y$2:$Y$5000,0)),"-") -> 52100 | D105: =IFERROR(INDEX('EO Master Input'!$D$2:$D$5000,MATCH($M105,'EO Master Input'!$Y$2:$Y$5000,0)),"") -> Energy, Minerals & Resources | E105: =IFERROR(INDEX('EO Master Input'!$A$2:$A$5000,MATCH($M105,'EO Master Input'!$Y$2:$Y$5000,0)),"") -> 2020 | F105: =IFERROR(INDEX('EO Master Input'!$F$2:$F$5000,MATCH($M105,'EO Master Input'!$Y$2:$Y$5000,0)),"") -> Fire | G105: =IFERROR(INDEX('EO Master Input'!$E$2:$E$5000,MATCH($M105,'EO Master Input'!$Y$2:$Y$5000,0)),"") -> Emergency Funds for Forestry Division of the Energy, Minerals and Natural Resources Department | H105: =IFERROR(INDEX('EO Master Input'!$H$2:$H$5000,MATCH($M105,'EO Master Input'!$Y$2:$Y$5000,0)),"") -> 750000 | I105: =IFERROR(INDEX('EO Master Input'!$S$2:$S$5000,MATCH($M105,'EO Master Input'!$Y$2:$Y$5000,0)),"") -> 750000 | J105: =IFERROR(INDEX('EO Master Input'!$N$2:$N$5000,MATCH($M105,'EO Master Input'!$Y$2:$Y$5000,0)),"") -> 0 | K105: =IFERROR(INDEX('EO Master Input'!$Q$2:$Q$5000,MATCH($M105,'EO Master Input'!$Y$2:$Y$5000,0)),"") -> 0 | L105: =IFERROR(INDEX('EO Master Input'!$O$2:$O$5000,MATCH($M105,'EO Master Input'!$Y$2:$Y$5000,0)),"") -> 0 | M105: 88
B106: =IFERROR(INDEX('EO Master Input'!$B$2:$B$5000,MATCH($M106,'EO Master Input'!$Y$2:$Y$5000,0)),"") -> 2020-053 | C106: =IFERROR(INDEX('EO Master Input'!$C$2:$C$5000,MATCH($M106,'EO Master Input'!$Y$2:$Y$5000,0)),"-") -> 0 | D106: =IFERROR(INDEX('EO Master Input'!$D$2:$D$5000,MATCH($M106,'EO Master Input'!$Y$2:$Y$5000,0)),"") -> No Agency | E106: =IFERROR(INDEX('EO Master Input'!$A$2:$A$5000,MATCH($M106,'EO Master Input'!$Y$2:$Y$5000,0)),"") -> 2020 | F106: =IFERROR(INDEX('EO Master Input'!$F$2:$F$5000,MATCH($M106,'EO Master Input'!$Y$2:$Y$5000,0)),"") -> Pandemic | G106: =IFERROR(INDEX('EO Master Input'!$E$2:$E$5000,MATCH($M106,'EO Master Input'!$Y$2:$Y$5000,0)),"") -> Renew PHO due to COVID | H106: =IFERROR(INDEX('EO Master Input'!$H$2:$H$5000,MATCH($M106,'EO Master Input'!$Y$2:$Y$5000,0)),"") -> 0 | I106: =IFERROR(INDEX('EO Master Input'!$S$2:$S$5000,MATCH($M106,'EO Master Input'!$Y$2:$Y$5000,0)),"") -> 0 | J106: =IFERROR(INDEX('EO Master Input'!$N$2:$N$5000,MATCH($M106,'EO Master Input'!$Y$2:$Y$5000,0)),"") -> 0 | K106: =IFERROR(INDEX('EO Master Input'!$Q$2:$Q$5000,MATCH($M106,'EO Master Input'!$Y$2:$Y$5000,0)),"") -> 0 | L106: =IFERROR(INDEX('EO Master Input'!$O$2:$O$5000,MATCH($M106,'EO Master Input'!$Y$2:$Y$5000,0)),"") -> 0 | M106: 89
B107: =IFERROR(INDEX('EO Master Input'!$B$2:$B$5000,MATCH($M107,'EO Master Input'!$Y$2:$Y$5000,0)),"") -> 2020-054 | C107: =IFERROR(INDEX('EO Master Input'!$C$2:$C$5000,MATCH($M107,'EO Master Input'!$Y$2:$Y$5000,0)),"-") -> 0 | D107: =IFERROR(INDEX('EO Master Input'!$D$2:$D$5000,MATCH($M107,'EO Master Input'!$Y$2:$Y$5000,0)),"") -> No Agency | E107: =IFERROR(INDEX('EO Master Input'!$A$2:$A$5000,MATCH($M107,'EO Master Input'!$Y$2:$Y$5000,0)),"") -> 2021 | F107: =IFERROR(INDEX('EO Master Input'!$F$2:$F$5000,MATCH($M107,'EO Master Input'!$Y$2:$Y$5000,0)),"") -> Pandemic | G107: =IFERROR(INDEX('EO Master Input'!$E$2:$E$5000,MATCH($M107,'EO Master Input'!$Y$2:$Y$5000,0)),"") -> Amended Order Directing Individuals traveling to New Mexico to self-isolate or self-quarantine | H107: =IFERROR(INDEX('EO Master Input'!$H$2:$H$5000,MATCH($M107,'EO Master Input'!$Y$2:$Y$5000,0)),"") -> 0 | I107: =IFERROR(INDEX('EO Master Input'!$S$2:$S$5000,MATCH($M107,'EO Master Input'!$Y$2:$Y$5000,0)),"") -> 0 | J107: =IFERROR(INDEX('EO Master Input'!$N$2:$N$5000,MATCH($M107,'EO Master Input'!$Y$2:$Y$5000,0)),"") -> 0 | K107: =IFERROR(INDEX('EO Master Input'!$Q$2:$Q$5000,MATCH($M107,'EO Master Input'!$Y$2:$Y$5000,0)),"") -> 0 | L107: =IFERROR(INDEX('EO Master Input'!$O$2:$O$5000,MATCH($M107,'EO Master Input'!$Y$2:$Y$5000,0)),"") -> 0 | M107: 90
B108: =IFERROR(INDEX('EO Master Input'!$B$2:$B$5000,MATCH($M108,'EO Master Input'!$Y$2:$Y$5000,0)),"") -> 2020-055 | C108: =IFERROR(INDEX('EO Master Input'!$C$2:$C$5000,MATCH($M108,'EO Master Input'!$Y$2:$Y$5000,0)),"-") -> 0 | D108: =IFERROR(INDEX('EO Master Input'!$D$2:$D$5000,MATCH($M108,'EO Master Input'!$Y$2:$Y$5000,0)),"") -> No Agency | E108: =IFERROR(INDEX('EO Master Input'!$A$2:$A$5000,MATCH($M108,'EO Master Input'!$Y$2:$Y$5000,0)),"") -> 2021 | F108: =IFERROR(INDEX('EO Master Input'!$F$2:$F$5000,MATCH($M108,'EO Master Input'!$Y$2:$Y$5000,0)),"") -> Pandemic | G108: =IFERROR(INDEX('EO Master Input'!$E$2:$E$5000,MATCH($M108,'EO Master Input'!$Y$2:$Y$5000,0)),"") -> Renew PHO due to COVID | H108: =IFERROR(INDEX('EO Master Input'!$H$2:$H$5000,MATCH($M108,'EO Master Input'!$Y$2:$Y$5000,0)),"") -> 0 | I108: =IFERROR(INDEX('EO Master Input'!$S$2:$S$5000,MATCH($M108,'EO Master Input'!$Y$2:$Y$5000,0)),"") -> 0 | J108: =IFERROR(INDEX('EO Master Input'!$N$2:$N$5000,MATCH($M108,'EO Master Input'!$Y$2:$Y$5000,0)),"") -> 0 | K108: =IFERROR(INDEX('EO Master Input'!$Q$2:$Q$5000,MATCH($M108,'EO Master Input'!$Y$2:$Y$5000,0)),"") -> 0 | L108: =IFERROR(INDEX('EO Master Input'!$O$2:$O$5000,MATCH($M108,'EO Master Input'!$Y$2:$Y$5000,0)),"") -> 0 | M108: 91
B109: =IFERROR(INDEX('EO Master Input'!$B$2:$B$5000,MATCH($M109,'EO Master Input'!$Y$2:$Y$5000,0)),"") -> 2020-056 | C109: =IFERROR(INDEX('EO Master Input'!$C$2:$C$5000,MATCH($M109,'EO Master Input'!$Y$2:$Y$5000,0)),"-") -> 0 | D109: =IFERROR(INDEX('EO Master Input'!$D$2:$D$5000,MATCH($M109,'EO Master Input'!$Y$2:$Y$5000,0)),"") -> No Agency | E109: =IFERROR(INDEX('EO Master Input'!$A$2:$A$5000,MATCH($M109,'EO Master Input'!$Y$2:$Y$5000,0)),"") -> 2021 | F109: =IFERROR(INDEX('EO Master Input'!$F$2:$F$5000,MATCH($M109,'EO Master Input'!$Y$2:$Y$5000,0)),"") -> Pandemic | G109: =IFERROR(INDEX('EO Master Input'!$E$2:$E$5000,MATCH($M109,'EO Master Input'!$Y$2:$Y$5000,0)),"") -> Amended Order directing individuals traveling to New Mexico to self-isolate or self-quarantine | H109: =IFERROR(INDEX('EO Master Input'!$H$2:$H$5000,MATCH($M109,'EO Master Input'!$Y$2:$Y$5000,0)),"") -> 0 | I109: =IFERROR(INDEX('EO Master Input'!$S$2:$S$5000,MATCH($M109,'EO Master Input'!$Y$2:$Y$5000,0)),"") -> 0 | J109: =IFERROR(INDEX('EO Master Input'!$N$2:$N$5000,MATCH($M109,'EO Master Input'!$Y$2:$Y$5000,0)),"") -> 0 | K109: =IFERROR(INDEX('EO Master Input'!$Q$2:$Q$5000,MATCH($M109,'EO Master Input'!$Y$2:$Y$5000,0)),"") -> 0 | L109: =IFERROR(INDEX('EO Master Input'!$O$2:$O$5000,MATCH($M109,'EO Master Input'!$Y$2:$Y$5000,0)),"") -> 0 | M109: 92
B110: =IFERROR(INDEX('EO Master Input'!$B$2:$B$5000,MATCH($M110,'EO Master Input'!$Y$2:$Y$5000,0)),"") -> 2020-057 | C110: =IFERROR(INDEX('EO Master Input'!$C$2:$C$5000,MATCH($M110,'EO Master Input'!$Y$2:$Y$5000,0)),"-") -> 79500 | D110: =IFERROR(INDEX('EO Master Input'!$D$2:$D$5000,MATCH($M110,'EO Master Input'!$Y$2:$Y$5000,0)),"") -> Homeland Sec. & Emerg. Mgmt. | E110: =IFERROR(INDEX('EO Master Input'!$A$2:$A$5000,MATCH($M110,'EO Master Input'!$Y$2:$Y$5000,0)),"") -> 2021 | F110: =IFERROR(INDEX('EO Master Input'!$F$2:$F$5000,MATCH($M110,'EO Master Input'!$Y$2:$Y$5000,0)),"") -> Flooding | G110: =IFERROR(INDEX('EO Master Input'!$E$2:$E$5000,MATCH($M110,'EO Master Input'!$Y$2:$Y$5000,0)),"") -> Flooding (Multiple Counties) | H110: =IFERROR(INDEX('EO Master Input'!$H$2:$H$5000,MATCH($M110,'EO Master Input'!$Y$2:$Y$5000,0)),"") -> 450000 | I110: =IFERROR(INDEX('EO Master Input'!$S$2:$S$5000,MATCH($M110,'EO Master Input'!$Y$2:$Y$5000,0)),"") -> 0 | J110: =IFERROR(INDEX('EO Master Input'!$N$2:$N$5000,MATCH($M110,'EO Master Input'!$Y$2:$Y$5000,0)),"") -> 0 | K110: =IFERROR(INDEX('EO Master Input'!$Q$2:$Q$5000,MATCH($M110,'EO Master Input'!$Y$2:$Y$5000,0)),"") -> 450000 | L110: =IFERROR(INDEX('EO Master Input'!$O$2:$O$5000,MATCH($M110,'EO Master Input'!$Y$2:$Y$5000,0)),"") -> 0 | M110: 93
B111: =IFERROR(INDEX('EO Master Input'!$B$2:$B$5000,MATCH($M111,'EO Master Input'!$Y$2:$Y$5000,0)),"") -> 2020-058 | C111: =IFERROR(INDEX('EO Master Input'!$C$2:$C$5000,MATCH($M111,'EO Master Input'!$Y$2:$Y$5000,0)),"-") -> 79500 | D111: =IFERROR(INDEX('EO Master Input'!$D$2:$D$5000,MATCH($M111,'EO Master Input'!$Y$2:$Y$5000,0)),"") -> Homeland Sec. & Emerg. Mgmt. | E111: =IFERROR(INDEX('EO Master Input'!$A$2:$A$5000,MATCH($M111,'EO Master Input'!$Y$2:$Y$5000,0)),"") -> 2021 | F111: =IFERROR(INDEX('EO Master Input'!$F$2:$F$5000,MATCH($M111,'EO Master Input'!$Y$2:$Y$5000,0)),"") -> Pandemic | G111: =IFERROR(INDEX('EO Master Input'!$E$2:$E$5000,MATCH($M111,'EO Master Input'!$Y$2:$Y$5000,0)),"") -> DHSEM COVID PHO | H111: =IFERROR(INDEX('EO Master Input'!$H$2:$H$5000,MATCH($M111,'EO Master Input'!$Y$2:$Y$5000,0)),"") -> 750000 | I111: =IFERROR(INDEX('EO Master Input'!$S$2:$S$5000,MATCH($M111,'EO Master Input'!$Y$2:$Y$5000,0)),"") -> 502997.33 | J111: =IFERROR(INDEX('EO Master Input'!$N$2:$N$5000,MATCH($M111,'EO Master Input'!$Y$2:$Y$5000,0)),"") -> 203503.78 | K111: =IFERROR(INDEX('EO Master Input'!$Q$2:$Q$5000,MATCH($M111,'EO Master Input'!$Y$2:$Y$5000,0)),"") -> 43498.89 | L111: =IFERROR(INDEX('EO Master Input'!$O$2:$O$5000,MATCH($M111,'EO Master Input'!$Y$2:$Y$5000,0)),"") -> 0 | M111: 94
B112: =IFERROR(INDEX('EO Master Input'!$B$2:$B$5000,MATCH($M112,'EO Master Input'!$Y$2:$Y$5000,0)),"") -> 2020-059 | C112: =IFERROR(INDEX('EO Master Input'!$C$2:$C$5000,MATCH($M112,'EO Master Input'!$Y$2:$Y$5000,0)),"-") -> 0 | D112: =IFERROR(INDEX('EO Master Input'!$D$2:$D$5000,MATCH($M112,'EO Master Input'!$Y$2:$Y$5000,0)),"") -> No Agency | E112: =IFERROR(INDEX('EO Master Input'!$A$2:$A$5000,MATCH($M112,'EO Master Input'!$Y$2:$Y$5000,0)),"") -> 2021 | F112: =IFERROR(INDEX('EO Master Input'!$F$2:$F$5000,MATCH($M112,'EO Master Input'!$Y$2:$Y$5000,0)),"") -> Pandemic | G112: =IFERROR(INDEX('EO Master Input'!$E$2:$E$5000,MATCH($M112,'EO Master Input'!$Y$2:$Y$5000,0)),"") -> Renew PHO due to COVID | H112: =IFERROR(INDEX('EO Master Input'!$H$2:$H$5000,MATCH($M112,'EO Master Input'!$Y$2:$Y$5000,0)),"") -> 0 | I112: =IFERROR(INDEX('EO Master Input'!$S$2:$S$5000,MATCH($M112,'EO Master Input'!$Y$2:$Y$5000,0)),"") -> 0 | J112: =IFERROR(INDEX('EO Master Input'!$N$2:$N$5000,MATCH($M112,'EO Master Input'!$Y$2:$Y$5000,0)),"") -> 0 | K112: =IFERROR(INDEX('EO Master Input'!$Q$2:$Q$5000,MATCH($M112,'EO Master Input'!$Y$2:$Y$5000,0)),"") -> 0 | L112: =IFERROR(INDEX('EO Master Input'!$O$2:$O$5000,MATCH($M112,'EO Master Input'!$Y$2:$Y$5000,0)),"") -> 0 | M112: 95
B113: =IFERROR(INDEX('EO Master Input'!$B$2:$B$5000,MATCH($M113,'EO Master Input'!$Y$2:$Y$5000,0)),"") -> 2020-060 | C113: =IFERROR(INDEX('EO Master Input'!$C$2:$C$5000,MATCH($M113,'EO Master Input'!$Y$2:$Y$5000,0)),"-") -> 52100 | D113: =IFERROR(INDEX('EO Master Input'!$D$2:$D$5000,MATCH($M113,'EO Master Input'!$Y$2:$Y$5000,0)),"") -> Energy, Minerals & Resources | E113: =IFERROR(INDEX('EO Master Input'!$A$2:$A$5000,MATCH($M113,'EO Master Input'!$Y$2:$Y$5000,0)),"") -> 2021 | F113: =IFERROR(INDEX('EO Master Input'!$F$2:$F$5000,MATCH($M113,'EO Master Input'!$Y$2:$Y$5000,0)),"") -> Fire | G113: =IFERROR(INDEX('EO Master Input'!$E$2:$E$5000,MATCH($M113,'EO Master Input'!$Y$2:$Y$5000,0)),"") -> Emergency Funds for Forestry Division of the Energy, Minerals and Natural Resources Department | H113: =IFERROR(INDEX('EO Master Input'!$H$2:$H$5000,MATCH($M113,'EO Master Input'!$Y$2:$Y$5000,0)),"") -> 750000 | I113: =IFERROR(INDEX('EO Master Input'!$S$2:$S$5000,MATCH($M113,'EO Master Input'!$Y$2:$Y$5000,0)),"") -> 750000 | J113: =IFERROR(INDEX('EO Master Input'!$N$2:$N$5000,MATCH($M113,'EO Master Input'!$Y$2:$Y$5000,0)),"") -> 0 | K113: =IFERROR(INDEX('EO Master Input'!$Q$2:$Q$5000,MATCH($M113,'EO Master Input'!$Y$2:$Y$5000,0)),"") -> 0 | L113: =IFERROR(INDEX('EO Master Input'!$O$2:$O$5000,MATCH($M113,'EO Master Input'!$Y$2:$Y$5000,0)),"") -> 0 | M113: 96
B114: =IFERROR(INDEX('EO Master Input'!$B$2:$B$5000,MATCH($M114,'EO Master Input'!$Y$2:$Y$5000,0)),"") -> 2020-061 | C114: =IFERROR(INDEX('EO Master Input'!$C$2:$C$5000,MATCH($M114,'EO Master Input'!$Y$2:$Y$5000,0)),"-") -> 52100 | D114: =IFERROR(INDEX('EO Master Input'!$D$2:$D$5000,MATCH($M114,'EO Master Input'!$Y$2:$Y$5000,0)),"") -> Energy, Minerals & Resources | E114: =IFERROR(INDEX('EO Master Input'!$A$2:$A$5000,MATCH($M114,'EO Master Input'!$Y$2:$Y$5000,0)),"") -> 2021 | F114: =IFERROR(INDEX('EO Master Input'!$F$2:$F$5000,MATCH($M114,'EO Master Input'!$Y$2:$Y$5000,0)),"") -> Fire | G114: =IFERROR(INDEX('EO Master Input'!$E$2:$E$5000,MATCH($M114,'EO Master Input'!$Y$2:$Y$5000,0)),"") -> Emergency Funds for Forestry Division of the Energy, Minerals and Natural Resources Department | H114: =IFERROR(INDEX('EO Master Input'!$H$2:$H$5000,MATCH($M114,'EO Master Input'!$Y$2:$Y$5000,0)),"") -> 750000 | I114: =IFERROR(INDEX('EO Master Input'!$S$2:$S$5000,MATCH($M114,'EO Master Input'!$Y$2:$Y$5000,0)),"") -> 750000 | J114: =IFERROR(INDEX('EO Master Input'!$N$2:$N$5000,MATCH($M114,'EO Master Input'!$Y$2:$Y$5000,0)),"") -> 0 | K114: =IFERROR(INDEX('EO Master Input'!$Q$2:$Q$5000,MATCH($M114,'EO Master Input'!$Y$2:$Y$5000,0)),"") -> 0 | L114: =IFERROR(INDEX('EO Master Input'!$O$2:$O$5000,MATCH($M114,'EO Master Input'!$Y$2:$Y$5000,0)),"") -> 0 | M114: 97
B115: =IFERROR(INDEX('EO Master Input'!$B$2:$B$5000,MATCH($M115,'EO Master Input'!$Y$2:$Y$5000,0)),"") -> 2020-062 | C115: =IFERROR(INDEX('EO Master Input'!$C$2:$C$5000,MATCH($M115,'EO Master Input'!$Y$2:$Y$5000,0)),"-") -> 0 | D115: =IFERROR(INDEX('EO Master Input'!$D$2:$D$5000,MATCH($M115,'EO Master Input'!$Y$2:$Y$5000,0)),"") -> No Agency | E115: =IFERROR(INDEX('EO Master Input'!$A$2:$A$5000,MATCH($M115,'EO Master Input'!$Y$2:$Y$5000,0)),"") -> 2021 | F115: =IFERROR(INDEX('EO Master Input'!$F$2:$F$5000,MATCH($M115,'EO Master Input'!$Y$2:$Y$5000,0)),"") -> Other | G115: =IFERROR(INDEX('EO Master Input'!$E$2:$E$5000,MATCH($M115,'EO Master Input'!$Y$2:$Y$5000,0)),"") -> Amended Order Establishing Paid Parental Leave for Eligible State Employees | H115: =IFERROR(INDEX('EO Master Input'!$H$2:$H$5000,MATCH($M115,'EO Master Input'!$Y$2:$Y$5000,0)),"") -> 0 | I115: =IFERROR(INDEX('EO Master Input'!$S$2:$S$5000,MATCH($M115,'EO Master Input'!$Y$2:$Y$5000,0)),"") -> 0 | J115: =IFERROR(INDEX('EO Master Input'!$N$2:$N$5000,MATCH($M115,'EO Master Input'!$Y$2:$Y$5000,0)),"") -> 0 | K115: =IFERROR(INDEX('EO Master Input'!$Q$2:$Q$5000,MATCH($M115,'EO Master Input'!$Y$2:$Y$5000,0)),"") -> 0 | L115: =IFERROR(INDEX('EO Master Input'!$O$2:$O$5000,MATCH($M115,'EO Master Input'!$Y$2:$Y$5000,0)),"") -> 0 | M115: 98
B116: =IFERROR(INDEX('EO Master Input'!$B$2:$B$5000,MATCH($M116,'EO Master Input'!$Y$2:$Y$5000,0)),"") -> 2020-063 | C116: =IFERROR(INDEX('EO Master Input'!$C$2:$C$5000,MATCH($M116,'EO Master Input'!$Y$2:$Y$5000,0)),"-") -> 0 | D116: =IFERROR(INDEX('EO Master Input'!$D$2:$D$5000,MATCH($M116,'EO Master Input'!$Y$2:$Y$5000,0)),"") -> No Agency | E116: =IFERROR(INDEX('EO Master Input'!$A$2:$A$5000,MATCH($M116,'EO Master Input'!$Y$2:$Y$5000,0)),"") -> 2021 | F116: =IFERROR(INDEX('EO Master Input'!$F$2:$F$5000,MATCH($M116,'EO Master Input'!$Y$2:$Y$5000,0)),"") -> Pandemic | G116: =IFERROR(INDEX('EO Master Input'!$E$2:$E$5000,MATCH($M116,'EO Master Input'!$Y$2:$Y$5000,0)),"") -> Second Amended Order Directing Individuals Traveling to New Mexico to Self-Isolate or Self-Quarantine | H116: =IFERROR(INDEX('EO Master Input'!$H$2:$H$5000,MATCH($M116,'EO Master Input'!$Y$2:$Y$5000,0)),"") -> 0 | I116: =IFERROR(INDEX('EO Master Input'!$S$2:$S$5000,MATCH($M116,'EO Master Input'!$Y$2:$Y$5000,0)),"") -> 0 | J116: =IFERROR(INDEX('EO Master Input'!$N$2:$N$5000,MATCH($M116,'EO Master Input'!$Y$2:$Y$5000,0)),"") -> 0 | K116: =IFERROR(INDEX('EO Master Input'!$Q$2:$Q$5000,MATCH($M116,'EO Master Input'!$Y$2:$Y$5000,0)),"") -> 0 | L116: =IFERROR(INDEX('EO Master Input'!$O$2:$O$5000,MATCH($M116,'EO Master Input'!$Y$2:$Y$5000,0)),"") -> 0 | M116: 99
B117: =IFERROR(INDEX('EO Master Input'!$B$2:$B$5000,MATCH($M117,'EO Master Input'!$Y$2:$Y$5000,0)),"") -> 2020-064 | C117: =IFERROR(INDEX('EO Master Input'!$C$2:$C$5000,MATCH($M117,'EO Master Input'!$Y$2:$Y$5000,0)),"-") -> 0 | D117: =IFERROR(INDEX('EO Master Input'!$D$2:$D$5000,MATCH($M117,'EO Master Input'!$Y$2:$Y$5000,0)),"") -> No Agency | E117: =IFERROR(INDEX('EO Master Input'!$A$2:$A$5000,MATCH($M117,'EO Master Input'!$Y$2:$Y$5000,0)),"") -> 2021 | F117: =IFERROR(INDEX('EO Master Input'!$F$2:$F$5000,MATCH($M117,'EO Master Input'!$Y$2:$Y$5000,0)),"") -> Pandemic | G117: =IFERROR(INDEX('EO Master Input'!$E$2:$E$5000,MATCH($M117,'EO Master Input'!$Y$2:$Y$5000,0)),"") -> Renew PHO due to COVID | H117: =IFERROR(INDEX('EO Master Input'!$H$2:$H$5000,MATCH($M117,'EO Master Input'!$Y$2:$Y$5000,0)),"") -> 0 | I117: =IFERROR(INDEX('EO Master Input'!$S$2:$S$5000,MATCH($M117,'EO Master Input'!$Y$2:$Y$5000,0)),"") -> 0 | J117: =IFERROR(INDEX('EO Master Input'!$N$2:$N$5000,MATCH($M117,'EO Master Input'!$Y$2:$Y$5000,0)),"") -> 0 | K117: =IFERROR(INDEX('EO Master Input'!$Q$2:$Q$5000,MATCH($M117,'EO Master Input'!$Y$2:$Y$5000,0)),"") -> 0 | L117: =IFERROR(INDEX('EO Master Input'!$O$2:$O$5000,MATCH($M117,'EO Master Input'!$Y$2:$Y$5000,0)),"") -> 0 | M117: 100
B118: =IFERROR(INDEX('EO Master Input'!$B$2:$B$5000,MATCH($M118,'EO Master Input'!$Y$2:$Y$5000,0)),"") -> 2020-065 | C118: =IFERROR(INDEX('EO Master Input'!$C$2:$C$5000,MATCH($M118,'EO Master Input'!$Y$2:$Y$5000,0)),"-") -> 0 | D118: =IFERROR(INDEX('EO Master Input'!$D$2:$D$5000,MATCH($M118,'EO Master Input'!$Y$2:$Y$5000,0)),"") -> No Agency | E118: =IFERROR(INDEX('EO Master Input'!$A$2:$A$5000,MATCH($M118,'EO Master Input'!$Y$2:$Y$5000,0)),"") -> 2021 | F118: =IFERROR(INDEX('EO Master Input'!$F$2:$F$5000,MATCH($M118,'EO Master Input'!$Y$2:$Y$5000,0)),"") -> Other | G118: =IFERROR(INDEX('EO Master Input'!$E$2:$E$5000,MATCH($M118,'EO Master Input'!$Y$2:$Y$5000,0)),"") -> Flags to Half Staff | H118: =IFERROR(INDEX('EO Master Input'!$H$2:$H$5000,MATCH($M118,'EO Master Input'!$Y$2:$Y$5000,0)),"") -> 0 | I118: =IFERROR(INDEX('EO Master Input'!$S$2:$S$5000,MATCH($M118,'EO Master Input'!$Y$2:$Y$5000,0)),"") -> 0 | J118: =IFERROR(INDEX('EO Master Input'!$N$2:$N$5000,MATCH($M118,'EO Master Input'!$Y$2:$Y$5000,0)),"") -> 0 | K118: =IFERROR(INDEX('EO Master Input'!$Q$2:$Q$5000,MATCH($M118,'EO Master Input'!$Y$2:$Y$5000,0)),"") -> 0 | L118: =IFERROR(INDEX('EO Master Input'!$O$2:$O$5000,MATCH($M118,'EO Master Input'!$Y$2:$Y$5000,0)),"") -> 0 | M118: 101
B119: =IFERROR(INDEX('EO Master Input'!$B$2:$B$5000,MATCH($M119,'EO Master Input'!$Y$2:$Y$5000,0)),"") -> 2020-066 | C119: =IFERROR(INDEX('EO Master Input'!$C$2:$C$5000,MATCH($M119,'EO Master Input'!$Y$2:$Y$5000,0)),"-") -> 79500 | D119: =IFERROR(INDEX('EO Master Input'!$D$2:$D$5000,MATCH($M119,'EO Master Input'!$Y$2:$Y$5000,0)),"") -> Homeland Sec. & Emerg. Mgmt. | E119: =IFERROR(INDEX('EO Master Input'!$A$2:$A$5000,MATCH($M119,'EO Master Input'!$Y$2:$Y$5000,0)),"") -> 2021 | F119: =IFERROR(INDEX('EO Master Input'!$F$2:$F$5000,MATCH($M119,'EO Master Input'!$Y$2:$Y$5000,0)),"") -> Fire | G119: =IFERROR(INDEX('EO Master Input'!$E$2:$E$5000,MATCH($M119,'EO Master Input'!$Y$2:$Y$5000,0)),"") -> Declaring an Emergency due to the effects of the wildfires in California and in support of relief | H119: =IFERROR(INDEX('EO Master Input'!$H$2:$H$5000,MATCH($M119,'EO Master Input'!$Y$2:$Y$5000,0)),"") -> 750000 | I119: =IFERROR(INDEX('EO Master Input'!$S$2:$S$5000,MATCH($M119,'EO Master Input'!$Y$2:$Y$5000,0)),"") -> 746000 | J119: =IFERROR(INDEX('EO Master Input'!$N$2:$N$5000,MATCH($M119,'EO Master Input'!$Y$2:$Y$5000,0)),"") -> 0 | K119: =IFERROR(INDEX('EO Master Input'!$Q$2:$Q$5000,MATCH($M119,'EO Master Input'!$Y$2:$Y$5000,0)),"") -> 4000 | L119: =IFERROR(INDEX('EO Master Input'!$O$2:$O$5000,MATCH($M119,'EO Master Input'!$Y$2:$Y$5000,0)),"") -> 0 | M119: 102
B120: =IFERROR(INDEX('EO Master Input'!$B$2:$B$5000,MATCH($M120,'EO Master Input'!$Y$2:$Y$5000,0)),"") -> 2020-067 | C120: =IFERROR(INDEX('EO Master Input'!$C$2:$C$5000,MATCH($M120,'EO Master Input'!$Y$2:$Y$5000,0)),"-") -> 52100 | D120: =IFERROR(INDEX('EO Master Input'!$D$2:$D$5000,MATCH($M120,'EO Master Input'!$Y$2:$Y$5000,0)),"") -> Energy, Minerals & Resources | E120: =IFERROR(INDEX('EO Master Input'!$A$2:$A$5000,MATCH($M120,'EO Master Input'!$Y$2:$Y$5000,0)),"") -> 2021 | F120: =IFERROR(INDEX('EO Master Input'!$F$2:$F$5000,MATCH($M120,'EO Master Input'!$Y$2:$Y$5000,0)),"") -> Fire | G120: =IFERROR(INDEX('EO Master Input'!$E$2:$E$5000,MATCH($M120,'EO Master Input'!$Y$2:$Y$5000,0)),"") -> Emergency Funds for Forestry Division of the Energy, Minerals and Natural Resources Department | H120: =IFERROR(INDEX('EO Master Input'!$H$2:$H$5000,MATCH($M120,'EO Master Input'!$Y$2:$Y$5000,0)),"") -> 750000 | I120: =IFERROR(INDEX('EO Master Input'!$S$2:$S$5000,MATCH($M120,'EO Master Input'!$Y$2:$Y$5000,0)),"") -> 750000 | J120: =IFERROR(INDEX('EO Master Input'!$N$2:$N$5000,MATCH($M120,'EO Master Input'!$Y$2:$Y$5000,0)),"") -> 0 | K120: =IFERROR(INDEX('EO Master Input'!$Q$2:$Q$5000,MATCH($M120,'EO Master Input'!$Y$2:$Y$5000,0)),"") -> 0 | L120: =IFERROR(INDEX('EO Master Input'!$O$2:$O$5000,MATCH($M120,'EO Master Input'!$Y$2:$Y$5000,0)),"") -> 0 | M120: 103
B121: =IFERROR(INDEX('EO Master Input'!$B$2:$B$5000,MATCH($M121,'EO Master Input'!$Y$2:$Y$5000,0)),"") -> 2020-068 | C121: =IFERROR(INDEX('EO Master Input'!$C$2:$C$5000,MATCH($M121,'EO Master Input'!$Y$2:$Y$5000,0)),"-") -> 52100 | D121: =IFERROR(INDEX('EO Master Input'!$D$2:$D$5000,MATCH($M121,'EO Master Input'!$Y$2:$Y$5000,0)),"") -> Energy, Minerals & Resources | E121: =IFERROR(INDEX('EO Master Input'!$A$2:$A$5000,MATCH($M121,'EO Master Input'!$Y$2:$Y$5000,0)),"") -> 2021 | F121: =IFERROR(INDEX('EO Master Input'!$F$2:$F$5000,MATCH($M121,'EO Master Input'!$Y$2:$Y$5000,0)),"") -> Fire | G121: =IFERROR(INDEX('EO Master Input'!$E$2:$E$5000,MATCH($M121,'EO Master Input'!$Y$2:$Y$5000,0)),"") -> Emergency Funds for Forestry Division of the Energy, Minerals and Natural Resources Department | H121: =IFERROR(INDEX('EO Master Input'!$H$2:$H$5000,MATCH($M121,'EO Master Input'!$Y$2:$Y$5000,0)),"") -> 750000 | I121: =IFERROR(INDEX('EO Master Input'!$S$2:$S$5000,MATCH($M121,'EO Master Input'!$Y$2:$Y$5000,0)),"") -> 750000 | J121: =IFERROR(INDEX('EO Master Input'!$N$2:$N$5000,MATCH($M121,'EO Master Input'!$Y$2:$Y$5000,0)),"") -> 0 | K121: =IFERROR(INDEX('EO Master Input'!$Q$2:$Q$5000,MATCH($M121,'EO Master Input'!$Y$2:$Y$5000,0)),"") -> 0 | L121: =IFERROR(INDEX('EO Master Input'!$O$2:$O$5000,MATCH($M121,'EO Master Input'!$Y$2:$Y$5000,0)),"") -> 0 | M121: 104
B122: =IFERROR(INDEX('EO Master Input'!$B$2:$B$5000,MATCH($M122,'EO Master Input'!$Y$2:$Y$5000,0)),"") -> 2020-069 | C122: =IFERROR(INDEX('EO Master Input'!$C$2:$C$5000,MATCH($M122,'EO Master Input'!$Y$2:$Y$5000,0)),"-") -> 52100 | D122: =IFERROR(INDEX('EO Master Input'!$D$2:$D$5000,MATCH($M122,'EO Master Input'!$Y$2:$Y$5000,0)),"") -> Energy, Minerals & Resources | E122: =IFERROR(INDEX('EO Master Input'!$A$2:$A$5000,MATCH($M122,'EO Master Input'!$Y$2:$Y$5000,0)),"") -> 2021 | F122: =IFERROR(INDEX('EO Master Input'!$F$2:$F$5000,MATCH($M122,'EO Master Input'!$Y$2:$Y$5000,0)),"") -> Fire | G122: =IFERROR(INDEX('EO Master Input'!$E$2:$E$5000,MATCH($M122,'EO Master Input'!$Y$2:$Y$5000,0)),"") -> Emergency Funds for Forestry Division of the Energy, Minerals and Natural Resources Department | H122: =IFERROR(INDEX('EO Master Input'!$H$2:$H$5000,MATCH($M122,'EO Master Input'!$Y$2:$Y$5000,0)),"") -> 750000 | I122: =IFERROR(INDEX('EO Master Input'!$S$2:$S$5000,MATCH($M122,'EO Master Input'!$Y$2:$Y$5000,0)),"") -> 750000 | J122: =IFERROR(INDEX('EO Master Input'!$N$2:$N$5000,MATCH($M122,'EO Master Input'!$Y$2:$Y$5000,0)),"") -> 0 | K122: =IFERROR(INDEX('EO Master Input'!$Q$2:$Q$5000,MATCH($M122,'EO Master Input'!$Y$2:$Y$5000,0)),"") -> 0 | L122: =IFERROR(INDEX('EO Master Input'!$O$2:$O$5000,MATCH($M122,'EO Master Input'!$Y$2:$Y$5000,0)),"") -> 0 | M122: 105
B123: =IFERROR(INDEX('EO Master Input'!$B$2:$B$5000,MATCH($M123,'EO Master Input'!$Y$2:$Y$5000,0)),"") -> 2020-070 | C123: =IFERROR(INDEX('EO Master Input'!$C$2:$C$5000,MATCH($M123,'EO Master Input'!$Y$2:$Y$5000,0)),"-") -> 52100 | D123: =IFERROR(INDEX('EO Master Input'!$D$2:$D$5000,MATCH($M123,'EO Master Input'!$Y$2:$Y$5000,0)),"") -> Energy, Minerals & Resources | E123: =IFERROR(INDEX('EO Master Input'!$A$2:$A$5000,MATCH($M123,'EO Master Input'!$Y$2:$Y$5000,0)),"") -> 2021 | F123: =IFERROR(INDEX('EO Master Input'!$F$2:$F$5000,MATCH($M123,'EO Master Input'!$Y$2:$Y$5000,0)),"") -> Fire | G123: =IFERROR(INDEX('EO Master Input'!$E$2:$E$5000,MATCH($M123,'EO Master Input'!$Y$2:$Y$5000,0)),"") -> Emergency Funds for Forestry Division of the Energy, Minerals and Natural Resources Department | H123: =IFERROR(INDEX('EO Master Input'!$H$2:$H$5000,MATCH($M123,'EO Master Input'!$Y$2:$Y$5000,0)),"") -> 750000 | I123: =IFERROR(INDEX('EO Master Input'!$S$2:$S$5000,MATCH($M123,'EO Master Input'!$Y$2:$Y$5000,0)),"") -> 750000 | J123: =IFERROR(INDEX('EO Master Input'!$N$2:$N$5000,MATCH($M123,'EO Master Input'!$Y$2:$Y$5000,0)),"") -> 0 | K123: =IFERROR(INDEX('EO Master Input'!$Q$2:$Q$5000,MATCH($M123,'EO Master Input'!$Y$2:$Y$5000,0)),"") -> 0 | L123: =IFERROR(INDEX('EO Master Input'!$O$2:$O$5000,MATCH($M123,'EO Master Input'!$Y$2:$Y$5000,0)),"") -> 0 | M123: 106
B124: =IFERROR(INDEX('EO Master Input'!$B$2:$B$5000,MATCH($M124,'EO Master Input'!$Y$2:$Y$5000,0)),"") -> 2020-071 | C124: =IFERROR(INDEX('EO Master Input'!$C$2:$C$5000,MATCH($M124,'EO Master Input'!$Y$2:$Y$5000,0)),"-") -> 52100 | D124: =IFERROR(INDEX('EO Master Input'!$D$2:$D$5000,MATCH($M124,'EO Master Input'!$Y$2:$Y$5000,0)),"") -> Energy, Minerals & Resources | E124: =IFERROR(INDEX('EO Master Input'!$A$2:$A$5000,MATCH($M124,'EO Master Input'!$Y$2:$Y$5000,0)),"") -> 2021 | F124: =IFERROR(INDEX('EO Master Input'!$F$2:$F$5000,MATCH($M124,'EO Master Input'!$Y$2:$Y$5000,0)),"") -> Fire | G124: =IFERROR(INDEX('EO Master Input'!$E$2:$E$5000,MATCH($M124,'EO Master Input'!$Y$2:$Y$5000,0)),"") -> Emergency Funds for Forestry Division of the Energy, Minerals and Natural Resources Department | H124: =IFERROR(INDEX('EO Master Input'!$H$2:$H$5000,MATCH($M124,'EO Master Input'!$Y$2:$Y$5000,0)),"") -> 750000 | I124: =IFERROR(INDEX('EO Master Input'!$S$2:$S$5000,MATCH($M124,'EO Master Input'!$Y$2:$Y$5000,0)),"") -> 750000 | J124: =IFERROR(INDEX('EO Master Input'!$N$2:$N$5000,MATCH($M124,'EO Master Input'!$Y$2:$Y$5000,0)),"") -> 0 | K124: =IFERROR(INDEX('EO Master Input'!$Q$2:$Q$5000,MATCH($M124,'EO Master Input'!$Y$2:$Y$5000,0)),"") -> 0 | L124: =IFERROR(INDEX('EO Master Input'!$O$2:$O$5000,MATCH($M124,'EO Master Input'!$Y$2:$Y$5000,0)),"") -> 0 | M124: 107
B125: =IFERROR(INDEX('EO Master Input'!$B$2:$B$5000,MATCH($M125,'EO Master Input'!$Y$2:$Y$5000,0)),"") -> 2020-072 | C125: =IFERROR(INDEX('EO Master Input'!$C$2:$C$5000,MATCH($M125,'EO Master Input'!$Y$2:$Y$5000,0)),"-") -> 0 | D125: =IFERROR(INDEX('EO Master Input'!$D$2:$D$5000,MATCH($M125,'EO Master Input'!$Y$2:$Y$5000,0)),"") -> No Agency | E125: =IFERROR(INDEX('EO Master Input'!$A$2:$A$5000,MATCH($M125,'EO Master Input'!$Y$2:$Y$5000,0)),"") -> 2021 | F125: =IFERROR(INDEX('EO Master Input'!$F$2:$F$5000,MATCH($M125,'EO Master Input'!$Y$2:$Y$5000,0)),"") -> Pandemic | G125: =IFERROR(INDEX('EO Master Input'!$E$2:$E$5000,MATCH($M125,'EO Master Input'!$Y$2:$Y$5000,0)),"") -> Third Amended Order Directing Individuals Traveling to New Mexico to Self-Isolate or Self-Quarantine | H125: =IFERROR(INDEX('EO Master Input'!$H$2:$H$5000,MATCH($M125,'EO Master Input'!$Y$2:$Y$5000,0)),"") -> 0 | I125: =IFERROR(INDEX('EO Master Input'!$S$2:$S$5000,MATCH($M125,'EO Master Input'!$Y$2:$Y$5000,0)),"") -> 0 | J125: =IFERROR(INDEX('EO Master Input'!$N$2:$N$5000,MATCH($M125,'EO Master Input'!$Y$2:$Y$5000,0)),"") -> 0 | K125: =IFERROR(INDEX('EO Master Input'!$Q$2:$Q$5000,MATCH($M125,'EO Master Input'!$Y$2:$Y$5000,0)),"") -> 0 | L125: =IFERROR(INDEX('EO Master Input'!$O$2:$O$5000,MATCH($M125,'EO Master Input'!$Y$2:$Y$5000,0)),"") -> 0 | M125: 108
B126: =IFERROR(INDEX('EO Master Input'!$B$2:$B$5000,MATCH($M126,'EO Master Input'!$Y$2:$Y$5000,0)),"") -> 2020-073 | C126: =IFERROR(INDEX('EO Master Input'!$C$2:$C$5000,MATCH($M126,'EO Master Input'!$Y$2:$Y$5000,0)),"-") -> 0 | D126: =IFERROR(INDEX('EO Master Input'!$D$2:$D$5000,MATCH($M126,'EO Master Input'!$Y$2:$Y$5000,0)),"") -> No Agency | E126: =IFERROR(INDEX('EO Master Input'!$A$2:$A$5000,MATCH($M126,'EO Master Input'!$Y$2:$Y$5000,0)),"") -> 2021 | F126: =IFERROR(INDEX('EO Master Input'!$F$2:$F$5000,MATCH($M126,'EO Master Input'!$Y$2:$Y$5000,0)),"") -> Pandemic | G126: =IFERROR(INDEX('EO Master Input'!$E$2:$E$5000,MATCH($M126,'EO Master Input'!$Y$2:$Y$5000,0)),"") -> Renew PHO due to COVID | H126: =IFERROR(INDEX('EO Master Input'!$H$2:$H$5000,MATCH($M126,'EO Master Input'!$Y$2:$Y$5000,0)),"") -> 0 | I126: =IFERROR(INDEX('EO Master Input'!$S$2:$S$5000,MATCH($M126,'EO Master Input'!$Y$2:$Y$5000,0)),"") -> 0 | J126: =IFERROR(INDEX('EO Master Input'!$N$2:$N$5000,MATCH($M126,'EO Master Input'!$Y$2:$Y$5000,0)),"") -> 0 | K126: =IFERROR(INDEX('EO Master Input'!$Q$2:$Q$5000,MATCH($M126,'EO Master Input'!$Y$2:$Y$5000,0)),"") -> 0 | L126: =IFERROR(INDEX('EO Master Input'!$O$2:$O$5000,MATCH($M126,'EO Master Input'!$Y$2:$Y$5000,0)),"") -> 0 | M126: 109
B127: =IFERROR(INDEX('EO Master Input'!$B$2:$B$5000,MATCH($M127,'EO Master Input'!$Y$2:$Y$5000,0)),"") -> 2020-074 | C127: =IFERROR(INDEX('EO Master Input'!$C$2:$C$5000,MATCH($M127,'EO Master Input'!$Y$2:$Y$5000,0)),"-") -> 0 | D127: =IFERROR(INDEX('EO Master Input'!$D$2:$D$5000,MATCH($M127,'EO Master Input'!$Y$2:$Y$5000,0)),"") -> No Agency | E127: =IFERROR(INDEX('EO Master Input'!$A$2:$A$5000,MATCH($M127,'EO Master Input'!$Y$2:$Y$5000,0)),"") -> 2021 | F127: =IFERROR(INDEX('EO Master Input'!$F$2:$F$5000,MATCH($M127,'EO Master Input'!$Y$2:$Y$5000,0)),"") -> Other | G127: =IFERROR(INDEX('EO Master Input'!$E$2:$E$5000,MATCH($M127,'EO Master Input'!$Y$2:$Y$5000,0)),"") -> Flags to Half Staff | H127: =IFERROR(INDEX('EO Master Input'!$H$2:$H$5000,MATCH($M127,'EO Master Input'!$Y$2:$Y$5000,0)),"") -> 0 | I127: =IFERROR(INDEX('EO Master Input'!$S$2:$S$5000,MATCH($M127,'EO Master Input'!$Y$2:$Y$5000,0)),"") -> 0 | J127: =IFERROR(INDEX('EO Master Input'!$N$2:$N$5000,MATCH($M127,'EO Master Input'!$Y$2:$Y$5000,0)),"") -> 0 | K127: =IFERROR(INDEX('EO Master Input'!$Q$2:$Q$5000,MATCH($M127,'EO Master Input'!$Y$2:$Y$5000,0)),"") -> 0 | L127: =IFERROR(INDEX('EO Master Input'!$O$2:$O$5000,MATCH($M127,'EO Master Input'!$Y$2:$Y$5000,0)),"") -> 0 | M127: 110
B128: =IFERROR(INDEX('EO Master Input'!$B$2:$B$5000,MATCH($M128,'EO Master Input'!$Y$2:$Y$5000,0)),"") -> 2020-075 | C128: =IFERROR(INDEX('EO Master Input'!$C$2:$C$5000,MATCH($M128,'EO Master Input'!$Y$2:$Y$5000,0)),"-") -> 0 | D128: =IFERROR(INDEX('EO Master Input'!$D$2:$D$5000,MATCH($M128,'EO Master Input'!$Y$2:$Y$5000,0)),"") -> No Agency | E128: =IFERROR(INDEX('EO Master Input'!$A$2:$A$5000,MATCH($M128,'EO Master Input'!$Y$2:$Y$5000,0)),"") -> 2021 | F128: =IFERROR(INDEX('EO Master Input'!$F$2:$F$5000,MATCH($M128,'EO Master Input'!$Y$2:$Y$5000,0)),"") -> Pandemic | G128: =IFERROR(INDEX('EO Master Input'!$E$2:$E$5000,MATCH($M128,'EO Master Input'!$Y$2:$Y$5000,0)),"") -> Fourth Amended order Directing Individuals Traveling to New Mexico to Self-Isolate or Self-quarantine | H128: =IFERROR(INDEX('EO Master Input'!$H$2:$H$5000,MATCH($M128,'EO Master Input'!$Y$2:$Y$5000,0)),"") -> 0 | I128: =IFERROR(INDEX('EO Master Input'!$S$2:$S$5000,MATCH($M128,'EO Master Input'!$Y$2:$Y$5000,0)),"") -> 0 | J128: =IFERROR(INDEX('EO Master Input'!$N$2:$N$5000,MATCH($M128,'EO Master Input'!$Y$2:$Y$5000,0)),"") -> 0 | K128: =IFERROR(INDEX('EO Master Input'!$Q$2:$Q$5000,MATCH($M128,'EO Master Input'!$Y$2:$Y$5000,0)),"") -> 0 | L128: =IFERROR(INDEX('EO Master Input'!$O$2:$O$5000,MATCH($M128,'EO Master Input'!$Y$2:$Y$5000,0)),"") -> 0 | M128: 111
B129: =IFERROR(INDEX('EO Master Input'!$B$2:$B$5000,MATCH($M129,'EO Master Input'!$Y$2:$Y$5000,0)),"") -> 2020-076 | C129: =IFERROR(INDEX('EO Master Input'!$C$2:$C$5000,MATCH($M129,'EO Master Input'!$Y$2:$Y$5000,0)),"-") -> 0 | D129: =IFERROR(INDEX('EO Master Input'!$D$2:$D$5000,MATCH($M129,'EO Master Input'!$Y$2:$Y$5000,0)),"") -> No Agency | E129: =IFERROR(INDEX('EO Master Input'!$A$2:$A$5000,MATCH($M129,'EO Master Input'!$Y$2:$Y$5000,0)),"") -> 2021 | F129: =IFERROR(INDEX('EO Master Input'!$F$2:$F$5000,MATCH($M129,'EO Master Input'!$Y$2:$Y$5000,0)),"") -> Other | G129: =IFERROR(INDEX('EO Master Input'!$E$2:$E$5000,MATCH($M129,'EO Master Input'!$Y$2:$Y$5000,0)),"") -> Flags to Half Staff | H129: =IFERROR(INDEX('EO Master Input'!$H$2:$H$5000,MATCH($M129,'EO Master Input'!$Y$2:$Y$5000,0)),"") -> 0 | I129: =IFERROR(INDEX('EO Master Input'!$S$2:$S$5000,MATCH($M129,'EO Master Input'!$Y$2:$Y$5000,0)),"") -> 0 | J129: =IFERROR(INDEX('EO Master Input'!$N$2:$N$5000,MATCH($M129,'EO Master Input'!$Y$2:$Y$5000,0)),"") -> 0 | K129: =IFERROR(INDEX('EO Master Input'!$Q$2:$Q$5000,MATCH($M129,'EO Master Input'!$Y$2:$Y$5000,0)),"") -> 0 | L129: =IFERROR(INDEX('EO Master Input'!$O$2:$O$5000,MATCH($M129,'EO Master Input'!$Y$2:$Y$5000,0)),"") -> 0 | M129: 112
B130: =IFERROR(INDEX('EO Master Input'!$B$2:$B$5000,MATCH($M130,'EO Master Input'!$Y$2:$Y$5000,0)),"") -> 2020-077 | C130: =IFERROR(INDEX('EO Master Input'!$C$2:$C$5000,MATCH($M130,'EO Master Input'!$Y$2:$Y$5000,0)),"-") -> 79500 | D130: =IFERROR(INDEX('EO Master Input'!$D$2:$D$5000,MATCH($M130,'EO Master Input'!$Y$2:$Y$5000,0)),"") -> Homeland Sec. & Emerg. Mgmt. | E130: =IFERROR(INDEX('EO Master Input'!$A$2:$A$5000,MATCH($M130,'EO Master Input'!$Y$2:$Y$5000,0)),"") -> 2021 | F130: =IFERROR(INDEX('EO Master Input'!$F$2:$F$5000,MATCH($M130,'EO Master Input'!$Y$2:$Y$5000,0)),"") -> Flooding | G130: =IFERROR(INDEX('EO Master Input'!$E$2:$E$5000,MATCH($M130,'EO Master Input'!$Y$2:$Y$5000,0)),"") -> Declaring a Disaster due to flooding in the Village of Williamsburg Located in Sierra County | H130: =IFERROR(INDEX('EO Master Input'!$H$2:$H$5000,MATCH($M130,'EO Master Input'!$Y$2:$Y$5000,0)),"") -> 750000 | I130: =IFERROR(INDEX('EO Master Input'!$S$2:$S$5000,MATCH($M130,'EO Master Input'!$Y$2:$Y$5000,0)),"") -> 62498.14 | J130: =IFERROR(INDEX('EO Master Input'!$N$2:$N$5000,MATCH($M130,'EO Master Input'!$Y$2:$Y$5000,0)),"") -> 0 | K130: =IFERROR(INDEX('EO Master Input'!$Q$2:$Q$5000,MATCH($M130,'EO Master Input'!$Y$2:$Y$5000,0)),"") -> 687501.86 | L130: =IFERROR(INDEX('EO Master Input'!$O$2:$O$5000,MATCH($M130,'EO Master Input'!$Y$2:$Y$5000,0)),"") -> 0 | M130: 113
B131: =IFERROR(INDEX('EO Master Input'!$B$2:$B$5000,MATCH($M131,'EO Master Input'!$Y$2:$Y$5000,0)),"") -> 2020-078 | C131: =IFERROR(INDEX('EO Master Input'!$C$2:$C$5000,MATCH($M131,'EO Master Input'!$Y$2:$Y$5000,0)),"-") -> 79500 | D131: =IFERROR(INDEX('EO Master Input'!$D$2:$D$5000,MATCH($M131,'EO Master Input'!$Y$2:$Y$5000,0)),"") -> Homeland Sec. & Emerg. Mgmt. | E131: =IFERROR(INDEX('EO Master Input'!$A$2:$A$5000,MATCH($M131,'EO Master Input'!$Y$2:$Y$5000,0)),"") -> 2021 | F131: =IFERROR(INDEX('EO Master Input'!$F$2:$F$5000,MATCH($M131,'EO Master Input'!$Y$2:$Y$5000,0)),"") -> Flooding | G131: =IFERROR(INDEX('EO Master Input'!$E$2:$E$5000,MATCH($M131,'EO Master Input'!$Y$2:$Y$5000,0)),"") -> Declaring a disaster due to Flooding in the City of Truth or Consequences located in Sierra County | H131: =IFERROR(INDEX('EO Master Input'!$H$2:$H$5000,MATCH($M131,'EO Master Input'!$Y$2:$Y$5000,0)),"") -> 750000 | I131: =IFERROR(INDEX('EO Master Input'!$S$2:$S$5000,MATCH($M131,'EO Master Input'!$Y$2:$Y$5000,0)),"") -> 1132.67 | J131: =IFERROR(INDEX('EO Master Input'!$N$2:$N$5000,MATCH($M131,'EO Master Input'!$Y$2:$Y$5000,0)),"") -> 150936 | K131: =IFERROR(INDEX('EO Master Input'!$Q$2:$Q$5000,MATCH($M131,'EO Master Input'!$Y$2:$Y$5000,0)),"") -> 597931.33 | L131: =IFERROR(INDEX('EO Master Input'!$O$2:$O$5000,MATCH($M131,'EO Master Input'!$Y$2:$Y$5000,0)),"") -> 0 | M131: 114
B132: =IFERROR(INDEX('EO Master Input'!$B$2:$B$5000,MATCH($M132,'EO Master Input'!$Y$2:$Y$5000,0)),"") -> 2020-079 | C132: =IFERROR(INDEX('EO Master Input'!$C$2:$C$5000,MATCH($M132,'EO Master Input'!$Y$2:$Y$5000,0)),"-") -> 79500 | D132: =IFERROR(INDEX('EO Master Input'!$D$2:$D$5000,MATCH($M132,'EO Master Input'!$Y$2:$Y$5000,0)),"") -> Homeland Sec. & Emerg. Mgmt. | E132: =IFERROR(INDEX('EO Master Input'!$A$2:$A$5000,MATCH($M132,'EO Master Input'!$Y$2:$Y$5000,0)),"") -> 2021 | F132: =IFERROR(INDEX('EO Master Input'!$F$2:$F$5000,MATCH($M132,'EO Master Input'!$Y$2:$Y$5000,0)),"") -> Flooding | G132: =IFERROR(INDEX('EO Master Input'!$E$2:$E$5000,MATCH($M132,'EO Master Input'!$Y$2:$Y$5000,0)),"") -> Declaring a Disaster due to Flooding in Socorro County | H132: =IFERROR(INDEX('EO Master Input'!$H$2:$H$5000,MATCH($M132,'EO Master Input'!$Y$2:$Y$5000,0)),"") -> 750000 | I132: =IFERROR(INDEX('EO Master Input'!$S$2:$S$5000,MATCH($M132,'EO Master Input'!$Y$2:$Y$5000,0)),"") -> 31190.56 | J132: =IFERROR(INDEX('EO Master Input'!$N$2:$N$5000,MATCH($M132,'EO Master Input'!$Y$2:$Y$5000,0)),"") -> 0 | K132: =IFERROR(INDEX('EO Master Input'!$Q$2:$Q$5000,MATCH($M132,'EO Master Input'!$Y$2:$Y$5000,0)),"") -> 718809.44 | L132: =IFERROR(INDEX('EO Master Input'!$O$2:$O$5000,MATCH($M132,'EO Master Input'!$Y$2:$Y$5000,0)),"") -> 718809.44 | M132: 115
B133: =IFERROR(INDEX('EO Master Input'!$B$2:$B$5000,MATCH($M133,'EO Master Input'!$Y$2:$Y$5000,0)),"") -> 2020-080 | C133: =IFERROR(INDEX('EO Master Input'!$C$2:$C$5000,MATCH($M133,'EO Master Input'!$Y$2:$Y$5000,0)),"-") -> 0 | D133: =IFERROR(INDEX('EO Master Input'!$D$2:$D$5000,MATCH($M133,'EO Master Input'!$Y$2:$Y$5000,0)),"") -> No Agency | E133: =IFERROR(INDEX('EO Master Input'!$A$2:$A$5000,MATCH($M133,'EO Master Input'!$Y$2:$Y$5000,0)),"") -> 2021 | F133: =IFERROR(INDEX('EO Master Input'!$F$2:$F$5000,MATCH($M133,'EO Master Input'!$Y$2:$Y$5000,0)),"") -> Pandemic | G133: =IFERROR(INDEX('EO Master Input'!$E$2:$E$5000,MATCH($M133,'EO Master Input'!$Y$2:$Y$5000,0)),"") -> Renew PHO due to COVID | H133: =IFERROR(INDEX('EO Master Input'!$H$2:$H$5000,MATCH($M133,'EO Master Input'!$Y$2:$Y$5000,0)),"") -> 0 | I133: =IFERROR(INDEX('EO Master Input'!$S$2:$S$5000,MATCH($M133,'EO Master Input'!$Y$2:$Y$5000,0)),"") -> 0 | J133: =IFERROR(INDEX('EO Master Input'!$N$2:$N$5000,MATCH($M133,'EO Master Input'!$Y$2:$Y$5000,0)),"") -> 0 | K133: =IFERROR(INDEX('EO Master Input'!$Q$2:$Q$5000,MATCH($M133,'EO Master Input'!$Y$2:$Y$5000,0)),"") -> 0 | L133: =IFERROR(INDEX('EO Master Input'!$O$2:$O$5000,MATCH($M133,'EO Master Input'!$Y$2:$Y$5000,0)),"") -> 0 | M133: 116
B134: =IFERROR(INDEX('EO Master Input'!$B$2:$B$5000,MATCH($M134,'EO Master Input'!$Y$2:$Y$5000,0)),"") -> 2020-081 | C134: =IFERROR(INDEX('EO Master Input'!$C$2:$C$5000,MATCH($M134,'EO Master Input'!$Y$2:$Y$5000,0)),"-") -> 0 | D134: =IFERROR(INDEX('EO Master Input'!$D$2:$D$5000,MATCH($M134,'EO Master Input'!$Y$2:$Y$5000,0)),"") -> No Agency | E134: =IFERROR(INDEX('EO Master Input'!$A$2:$A$5000,MATCH($M134,'EO Master Input'!$Y$2:$Y$5000,0)),"") -> 2021 | F134: =IFERROR(INDEX('EO Master Input'!$F$2:$F$5000,MATCH($M134,'EO Master Input'!$Y$2:$Y$5000,0)),"") -> Pandemic | G134: =IFERROR(INDEX('EO Master Input'!$E$2:$E$5000,MATCH($M134,'EO Master Input'!$Y$2:$Y$5000,0)),"") -> Renew PHO due to COVID | H134: =IFERROR(INDEX('EO Master Input'!$H$2:$H$5000,MATCH($M134,'EO Master Input'!$Y$2:$Y$5000,0)),"") -> 0 | I134: =IFERROR(INDEX('EO Master Input'!$S$2:$S$5000,MATCH($M134,'EO Master Input'!$Y$2:$Y$5000,0)),"") -> 0 | J134: =IFERROR(INDEX('EO Master Input'!$N$2:$N$5000,MATCH($M134,'EO Master Input'!$Y$2:$Y$5000,0)),"") -> 0 | K134: =IFERROR(INDEX('EO Master Input'!$Q$2:$Q$5000,MATCH($M134,'EO Master Input'!$Y$2:$Y$5000,0)),"") -> 0 | L134: =IFERROR(INDEX('EO Master Input'!$O$2:$O$5000,MATCH($M134,'EO Master Input'!$Y$2:$Y$5000,0)),"") -> 0 | M134: 117
B135: =IFERROR(INDEX('EO Master Input'!$B$2:$B$5000,MATCH($M135,'EO Master Input'!$Y$2:$Y$5000,0)),"") -> 2020-082 | C135: =IFERROR(INDEX('EO Master Input'!$C$2:$C$5000,MATCH($M135,'EO Master Input'!$Y$2:$Y$5000,0)),"-") -> 0 | D135: =IFERROR(INDEX('EO Master Input'!$D$2:$D$5000,MATCH($M135,'EO Master Input'!$Y$2:$Y$5000,0)),"") -> No Agency | E135: =IFERROR(INDEX('EO Master Input'!$A$2:$A$5000,MATCH($M135,'EO Master Input'!$Y$2:$Y$5000,0)),"") -> 2021 | F135: =IFERROR(INDEX('EO Master Input'!$F$2:$F$5000,MATCH($M135,'EO Master Input'!$Y$2:$Y$5000,0)),"") -> Other | G135: =IFERROR(INDEX('EO Master Input'!$E$2:$E$5000,MATCH($M135,'EO Master Input'!$Y$2:$Y$5000,0)),"") -> Flags to Half Staff | H135: =IFERROR(INDEX('EO Master Input'!$H$2:$H$5000,MATCH($M135,'EO Master Input'!$Y$2:$Y$5000,0)),"") -> 0 | I135: =IFERROR(INDEX('EO Master Input'!$S$2:$S$5000,MATCH($M135,'EO Master Input'!$Y$2:$Y$5000,0)),"") -> 0 | J135: =IFERROR(INDEX('EO Master Input'!$N$2:$N$5000,MATCH($M135,'EO Master Input'!$Y$2:$Y$5000,0)),"") -> 0 | K135: =IFERROR(INDEX('EO Master Input'!$Q$2:$Q$5000,MATCH($M135,'EO Master Input'!$Y$2:$Y$5000,0)),"") -> 0 | L135: =IFERROR(INDEX('EO Master Input'!$O$2:$O$5000,MATCH($M135,'EO Master Input'!$Y$2:$Y$5000,0)),"") -> 0 | M135: 118
B136: =IFERROR(INDEX('EO Master Input'!$B$2:$B$5000,MATCH($M136,'EO Master Input'!$Y$2:$Y$5000,0)),"") -> 2020-083 | C136: =IFERROR(INDEX('EO Master Input'!$C$2:$C$5000,MATCH($M136,'EO Master Input'!$Y$2:$Y$5000,0)),"-") -> 0 | D136: =IFERROR(INDEX('EO Master Input'!$D$2:$D$5000,MATCH($M136,'EO Master Input'!$Y$2:$Y$5000,0)),"") -> No Agency | E136: =IFERROR(INDEX('EO Master Input'!$A$2:$A$5000,MATCH($M136,'EO Master Input'!$Y$2:$Y$5000,0)),"") -> 2021 | F136: =IFERROR(INDEX('EO Master Input'!$F$2:$F$5000,MATCH($M136,'EO Master Input'!$Y$2:$Y$5000,0)),"") -> Pandemic | G136: =IFERROR(INDEX('EO Master Input'!$E$2:$E$5000,MATCH($M136,'EO Master Input'!$Y$2:$Y$5000,0)),"") -> Renew PHO due to COVID | H136: =IFERROR(INDEX('EO Master Input'!$H$2:$H$5000,MATCH($M136,'EO Master Input'!$Y$2:$Y$5000,0)),"") -> 0 | I136: =IFERROR(INDEX('EO Master Input'!$S$2:$S$5000,MATCH($M136,'EO Master Input'!$Y$2:$Y$5000,0)),"") -> 0 | J136: =IFERROR(INDEX('EO Master Input'!$N$2:$N$5000,MATCH($M136,'EO Master Input'!$Y$2:$Y$5000,0)),"") -> 0 | K136: =IFERROR(INDEX('EO Master Input'!$Q$2:$Q$5000,MATCH($M136,'EO Master Input'!$Y$2:$Y$5000,0)),"") -> 0 | L136: =IFERROR(INDEX('EO Master Input'!$O$2:$O$5000,MATCH($M136,'EO Master Input'!$Y$2:$Y$5000,0)),"") -> 0 | M136: 119
B137: =IFERROR(INDEX('EO Master Input'!$B$2:$B$5000,MATCH($M137,'EO Master Input'!$Y$2:$Y$5000,0)),"") -> 2020-084 | C137: =IFERROR(INDEX('EO Master Input'!$C$2:$C$5000,MATCH($M137,'EO Master Input'!$Y$2:$Y$5000,0)),"-") -> 0 | D137: =IFERROR(INDEX('EO Master Input'!$D$2:$D$5000,MATCH($M137,'EO Master Input'!$Y$2:$Y$5000,0)),"") -> No Agency | E137: =IFERROR(INDEX('EO Master Input'!$A$2:$A$5000,MATCH($M137,'EO Master Input'!$Y$2:$Y$5000,0)),"") -> 2021 | F137: =IFERROR(INDEX('EO Master Input'!$F$2:$F$5000,MATCH($M137,'EO Master Input'!$Y$2:$Y$5000,0)),"") -> Drought | G137: =IFERROR(INDEX('EO Master Input'!$E$2:$E$5000,MATCH($M137,'EO Master Input'!$Y$2:$Y$5000,0)),"") -> Drought Declaration | H137: =IFERROR(INDEX('EO Master Input'!$H$2:$H$5000,MATCH($M137,'EO Master Input'!$Y$2:$Y$5000,0)),"") -> 0 | I137: =IFERROR(INDEX('EO Master Input'!$S$2:$S$5000,MATCH($M137,'EO Master Input'!$Y$2:$Y$5000,0)),"") -> 0 | J137: =IFERROR(INDEX('EO Master Input'!$N$2:$N$5000,MATCH($M137,'EO Master Input'!$Y$2:$Y$5000,0)),"") -> 0 | K137: =IFERROR(INDEX('EO Master Input'!$Q$2:$Q$5000,MATCH($M137,'EO Master Input'!$Y$2:$Y$5000,0)),"") -> 0 | L137: =IFERROR(INDEX('EO Master Input'!$O$2:$O$5000,MATCH($M137,'EO Master Input'!$Y$2:$Y$5000,0)),"") -> 0 | M137: 120
B138: =IFERROR(INDEX('EO Master Input'!$B$2:$B$5000,MATCH($M138,'EO Master Input'!$Y$2:$Y$5000,0)),"") -> 2020-085 | C138: =IFERROR(INDEX('EO Master Input'!$C$2:$C$5000,MATCH($M138,'EO Master Input'!$Y$2:$Y$5000,0)),"-") -> 0 | D138: =IFERROR(INDEX('EO Master Input'!$D$2:$D$5000,MATCH($M138,'EO Master Input'!$Y$2:$Y$5000,0)),"") -> No Agency | E138: =IFERROR(INDEX('EO Master Input'!$A$2:$A$5000,MATCH($M138,'EO Master Input'!$Y$2:$Y$5000,0)),"") -> 2021 | F138: =IFERROR(INDEX('EO Master Input'!$F$2:$F$5000,MATCH($M138,'EO Master Input'!$Y$2:$Y$5000,0)),"") -> Pandemic | G138: =IFERROR(INDEX('EO Master Input'!$E$2:$E$5000,MATCH($M138,'EO Master Input'!$Y$2:$Y$5000,0)),"") -> Renew PHO due to COVID | H138: =IFERROR(INDEX('EO Master Input'!$H$2:$H$5000,MATCH($M138,'EO Master Input'!$Y$2:$Y$5000,0)),"") -> 0 | I138: =IFERROR(INDEX('EO Master Input'!$S$2:$S$5000,MATCH($M138,'EO Master Input'!$Y$2:$Y$5000,0)),"") -> 0 | J138: =IFERROR(INDEX('EO Master Input'!$N$2:$N$5000,MATCH($M138,'EO Master Input'!$Y$2:$Y$5000,0)),"") -> 0 | K138: =IFERROR(INDEX('EO Master Input'!$Q$2:$Q$5000,MATCH($M138,'EO Master Input'!$Y$2:$Y$5000,0)),"") -> 0 | L138: =IFERROR(INDEX('EO Master Input'!$O$2:$O$5000,MATCH($M138,'EO Master Input'!$Y$2:$Y$5000,0)),"") -> 0 | M138: 121
B139: =IFERROR(INDEX('EO Master Input'!$B$2:$B$5000,MATCH($M139,'EO Master Input'!$Y$2:$Y$5000,0)),"") -> 2021-001 | C139: =IFERROR(INDEX('EO Master Input'!$C$2:$C$5000,MATCH($M139,'EO Master Input'!$Y$2:$Y$5000,0)),"-") -> 0 | D139: =IFERROR(INDEX('EO Master Input'!$D$2:$D$5000,MATCH($M139,'EO Master Input'!$Y$2:$Y$5000,0)),"") -> No Agency | E139: =IFERROR(INDEX('EO Master Input'!$A$2:$A$5000,MATCH($M139,'EO Master Input'!$Y$2:$Y$5000,0)),"") -> 2021 | F139: =IFERROR(INDEX('EO Master Input'!$F$2:$F$5000,MATCH($M139,'EO Master Input'!$Y$2:$Y$5000,0)),"") -> Pandemic | G139: =IFERROR(INDEX('EO Master Input'!$E$2:$E$5000,MATCH($M139,'EO Master Input'!$Y$2:$Y$5000,0)),"") -> Renew PHO due to COVID | H139: =IFERROR(INDEX('EO Master Input'!$H$2:$H$5000,MATCH($M139,'EO Master Input'!$Y$2:$Y$5000,0)),"") -> 0 | I139: =IFERROR(INDEX('EO Master Input'!$S$2:$S$5000,MATCH($M139,'EO Master Input'!$Y$2:$Y$5000,0)),"") -> 0 | J139: =IFERROR(INDEX('EO Master Input'!$N$2:$N$5000,MATCH($M139,'EO Master Input'!$Y$2:$Y$5000,0)),"") -> 0 | K139: =IFERROR(INDEX('EO Master Input'!$Q$2:$Q$5000,MATCH($M139,'EO Master Input'!$Y$2:$Y$5000,0)),"") -> 0 | L139: =IFERROR(INDEX('EO Master Input'!$O$2:$O$5000,MATCH($M139,'EO Master Input'!$Y$2:$Y$5000,0)),"") -> 0 | M139: 122
B140: =IFERROR(INDEX('EO Master Input'!$B$2:$B$5000,MATCH($M140,'EO Master Input'!$Y$2:$Y$5000,0)),"") -> 2021-002 | C140: =IFERROR(INDEX('EO Master Input'!$C$2:$C$5000,MATCH($M140,'EO Master Input'!$Y$2:$Y$5000,0)),"-") -> 0 | D140: =IFERROR(INDEX('EO Master Input'!$D$2:$D$5000,MATCH($M140,'EO Master Input'!$Y$2:$Y$5000,0)),"") -> No Agency | E140: =IFERROR(INDEX('EO Master Input'!$A$2:$A$5000,MATCH($M140,'EO Master Input'!$Y$2:$Y$5000,0)),"") -> 2021 | F140: =IFERROR(INDEX('EO Master Input'!$F$2:$F$5000,MATCH($M140,'EO Master Input'!$Y$2:$Y$5000,0)),"") -> Crime | G140: =IFERROR(INDEX('EO Master Input'!$E$2:$E$5000,MATCH($M140,'EO Master Input'!$Y$2:$Y$5000,0)),"") -> Riots/Insurrrection | H140: =IFERROR(INDEX('EO Master Input'!$H$2:$H$5000,MATCH($M140,'EO Master Input'!$Y$2:$Y$5000,0)),"") -> 0 | I140: =IFERROR(INDEX('EO Master Input'!$S$2:$S$5000,MATCH($M140,'EO Master Input'!$Y$2:$Y$5000,0)),"") -> 0 | J140: =IFERROR(INDEX('EO Master Input'!$N$2:$N$5000,MATCH($M140,'EO Master Input'!$Y$2:$Y$5000,0)),"") -> 0 | K140: =IFERROR(INDEX('EO Master Input'!$Q$2:$Q$5000,MATCH($M140,'EO Master Input'!$Y$2:$Y$5000,0)),"") -> 0 | L140: =IFERROR(INDEX('EO Master Input'!$O$2:$O$5000,MATCH($M140,'EO Master Input'!$Y$2:$Y$5000,0)),"") -> 0 | M140: 123
B141: =IFERROR(INDEX('EO Master Input'!$B$2:$B$5000,MATCH($M141,'EO Master Input'!$Y$2:$Y$5000,0)),"") -> 2021-003 | C141: =IFERROR(INDEX('EO Master Input'!$C$2:$C$5000,MATCH($M141,'EO Master Input'!$Y$2:$Y$5000,0)),"-") -> 0 | D141: =IFERROR(INDEX('EO Master Input'!$D$2:$D$5000,MATCH($M141,'EO Master Input'!$Y$2:$Y$5000,0)),"") -> No Agency | E141: =IFERROR(INDEX('EO Master Input'!$A$2:$A$5000,MATCH($M141,'EO Master Input'!$Y$2:$Y$5000,0)),"") -> 2021 | F141: =IFERROR(INDEX('EO Master Input'!$F$2:$F$5000,MATCH($M141,'EO Master Input'!$Y$2:$Y$5000,0)),"") -> Other | G141: =IFERROR(INDEX('EO Master Input'!$E$2:$E$5000,MATCH($M141,'EO Master Input'!$Y$2:$Y$5000,0)),"") -> Ordering Flags to Half-Staff | H141: =IFERROR(INDEX('EO Master Input'!$H$2:$H$5000,MATCH($M141,'EO Master Input'!$Y$2:$Y$5000,0)),"") -> 0 | I141: =IFERROR(INDEX('EO Master Input'!$S$2:$S$5000,MATCH($M141,'EO Master Input'!$Y$2:$Y$5000,0)),"") -> 0 | J141: =IFERROR(INDEX('EO Master Input'!$N$2:$N$5000,MATCH($M141,'EO Master Input'!$Y$2:$Y$5000,0)),"") -> 0 | K141: =IFERROR(INDEX('EO Master Input'!$Q$2:$Q$5000,MATCH($M141,'EO Master Input'!$Y$2:$Y$5000,0)),"") -> 0 | L141: =IFERROR(INDEX('EO Master Input'!$O$2:$O$5000,MATCH($M141,'EO Master Input'!$Y$2:$Y$5000,0)),"") -> 0 | M141: 124
B142: =IFERROR(INDEX('EO Master Input'!$B$2:$B$5000,MATCH($M142,'EO Master Input'!$Y$2:$Y$5000,0)),"") -> 2021-004 | C142: =IFERROR(INDEX('EO Master Input'!$C$2:$C$5000,MATCH($M142,'EO Master Input'!$Y$2:$Y$5000,0)),"-") -> 0 | D142: =IFERROR(INDEX('EO Master Input'!$D$2:$D$5000,MATCH($M142,'EO Master Input'!$Y$2:$Y$5000,0)),"") -> No Agency | E142: =IFERROR(INDEX('EO Master Input'!$A$2:$A$5000,MATCH($M142,'EO Master Input'!$Y$2:$Y$5000,0)),"") -> 2021 | F142: =IFERROR(INDEX('EO Master Input'!$F$2:$F$5000,MATCH($M142,'EO Master Input'!$Y$2:$Y$5000,0)),"") -> Pandemic | G142: =IFERROR(INDEX('EO Master Input'!$E$2:$E$5000,MATCH($M142,'EO Master Input'!$Y$2:$Y$5000,0)),"") -> Renew PHO due to COVID | H142: =IFERROR(INDEX('EO Master Input'!$H$2:$H$5000,MATCH($M142,'EO Master Input'!$Y$2:$Y$5000,0)),"") -> 0 | I142: =IFERROR(INDEX('EO Master Input'!$S$2:$S$5000,MATCH($M142,'EO Master Input'!$Y$2:$Y$5000,0)),"") -> 0 | J142: =IFERROR(INDEX('EO Master Input'!$N$2:$N$5000,MATCH($M142,'EO Master Input'!$Y$2:$Y$5000,0)),"") -> 0 | K142: =IFERROR(INDEX('EO Master Input'!$Q$2:$Q$5000,MATCH($M142,'EO Master Input'!$Y$2:$Y$5000,0)),"") -> 0 | L142: =IFERROR(INDEX('EO Master Input'!$O$2:$O$5000,MATCH($M142,'EO Master Input'!$Y$2:$Y$5000,0)),"") -> 0 | M142: 125
B143: =IFERROR(INDEX('EO Master Input'!$B$2:$B$5000,MATCH($M143,'EO Master Input'!$Y$2:$Y$5000,0)),"") -> 2021-005 | C143: =IFERROR(INDEX('EO Master Input'!$C$2:$C$5000,MATCH($M143,'EO Master Input'!$Y$2:$Y$5000,0)),"-") -> 0 | D143: =IFERROR(INDEX('EO Master Input'!$D$2:$D$5000,MATCH($M143,'EO Master Input'!$Y$2:$Y$5000,0)),"") -> No Agency | E143: =IFERROR(INDEX('EO Master Input'!$A$2:$A$5000,MATCH($M143,'EO Master Input'!$Y$2:$Y$5000,0)),"") -> 2021 | F143: =IFERROR(INDEX('EO Master Input'!$F$2:$F$5000,MATCH($M143,'EO Master Input'!$Y$2:$Y$5000,0)),"") -> Other | G143: =IFERROR(INDEX('EO Master Input'!$E$2:$E$5000,MATCH($M143,'EO Master Input'!$Y$2:$Y$5000,0)),"") -> Ordering Flags to Half-Staff in Memorial of Officer Darian Jarrott | H143: =IFERROR(INDEX('EO Master Input'!$H$2:$H$5000,MATCH($M143,'EO Master Input'!$Y$2:$Y$5000,0)),"") -> 0 | I143: =IFERROR(INDEX('EO Master Input'!$S$2:$S$5000,MATCH($M143,'EO Master Input'!$Y$2:$Y$5000,0)),"") -> 0 | J143: =IFERROR(INDEX('EO Master Input'!$N$2:$N$5000,MATCH($M143,'EO Master Input'!$Y$2:$Y$5000,0)),"") -> 0 | K143: =IFERROR(INDEX('EO Master Input'!$Q$2:$Q$5000,MATCH($M143,'EO Master Input'!$Y$2:$Y$5000,0)),"") -> 0 | L143: =IFERROR(INDEX('EO Master Input'!$O$2:$O$5000,MATCH($M143,'EO Master Input'!$Y$2:$Y$5000,0)),"") -> 0 | M143: 126
B144: =IFERROR(INDEX('EO Master Input'!$B$2:$B$5000,MATCH($M144,'EO Master Input'!$Y$2:$Y$5000,0)),"") -> 2021-006 | C144: =IFERROR(INDEX('EO Master Input'!$C$2:$C$5000,MATCH($M144,'EO Master Input'!$Y$2:$Y$5000,0)),"-") -> 0 | D144: =IFERROR(INDEX('EO Master Input'!$D$2:$D$5000,MATCH($M144,'EO Master Input'!$Y$2:$Y$5000,0)),"") -> No Agency | E144: =IFERROR(INDEX('EO Master Input'!$A$2:$A$5000,MATCH($M144,'EO Master Input'!$Y$2:$Y$5000,0)),"") -> 2021 | F144: =IFERROR(INDEX('EO Master Input'!$F$2:$F$5000,MATCH($M144,'EO Master Input'!$Y$2:$Y$5000,0)),"") -> Other | G144: =IFERROR(INDEX('EO Master Input'!$E$2:$E$5000,MATCH($M144,'EO Master Input'!$Y$2:$Y$5000,0)),"") -> Rescinding EOs | H144: =IFERROR(INDEX('EO Master Input'!$H$2:$H$5000,MATCH($M144,'EO Master Input'!$Y$2:$Y$5000,0)),"") -> 0 | I144: =IFERROR(INDEX('EO Master Input'!$S$2:$S$5000,MATCH($M144,'EO Master Input'!$Y$2:$Y$5000,0)),"") -> 0 | J144: =IFERROR(INDEX('EO Master Input'!$N$2:$N$5000,MATCH($M144,'EO Master Input'!$Y$2:$Y$5000,0)),"") -> 0 | K144: =IFERROR(INDEX('EO Master Input'!$Q$2:$Q$5000,MATCH($M144,'EO Master Input'!$Y$2:$Y$5000,0)),"") -> 0 | L144: =IFERROR(INDEX('EO Master Input'!$O$2:$O$5000,MATCH($M144,'EO Master Input'!$Y$2:$Y$5000,0)),"") -> 0 | M144: 127
B145: =IFERROR(INDEX('EO Master Input'!$B$2:$B$5000,MATCH($M145,'EO Master Input'!$Y$2:$Y$5000,0)),"") -> 2021-007 | C145: =IFERROR(INDEX('EO Master Input'!$C$2:$C$5000,MATCH($M145,'EO Master Input'!$Y$2:$Y$5000,0)),"-") -> 0 | D145: =IFERROR(INDEX('EO Master Input'!$D$2:$D$5000,MATCH($M145,'EO Master Input'!$Y$2:$Y$5000,0)),"") -> No Agency | E145: =IFERROR(INDEX('EO Master Input'!$A$2:$A$5000,MATCH($M145,'EO Master Input'!$Y$2:$Y$5000,0)),"") -> 2021 | F145: =IFERROR(INDEX('EO Master Input'!$F$2:$F$5000,MATCH($M145,'EO Master Input'!$Y$2:$Y$5000,0)),"") -> Other | G145: =IFERROR(INDEX('EO Master Input'!$E$2:$E$5000,MATCH($M145,'EO Master Input'!$Y$2:$Y$5000,0)),"") -> Ordering Flags to Half-Staff in Memorial of the Honorable Gloria Vaughn | H145: =IFERROR(INDEX('EO Master Input'!$H$2:$H$5000,MATCH($M145,'EO Master Input'!$Y$2:$Y$5000,0)),"") -> 0 | I145: =IFERROR(INDEX('EO Master Input'!$S$2:$S$5000,MATCH($M145,'EO Master Input'!$Y$2:$Y$5000,0)),"") -> 0 | J145: =IFERROR(INDEX('EO Master Input'!$N$2:$N$5000,MATCH($M145,'EO Master Input'!$Y$2:$Y$5000,0)),"") -> 0 | K145: =IFERROR(INDEX('EO Master Input'!$Q$2:$Q$5000,MATCH($M145,'EO Master Input'!$Y$2:$Y$5000,0)),"") -> 0 | L145: =IFERROR(INDEX('EO Master Input'!$O$2:$O$5000,MATCH($M145,'EO Master Input'!$Y$2:$Y$5000,0)),"") -> 0 | M145: 128
B146: =IFERROR(INDEX('EO Master Input'!$B$2:$B$5000,MATCH($M146,'EO Master Input'!$Y$2:$Y$5000,0)),"") -> 2021-008 | C146: =IFERROR(INDEX('EO Master Input'!$C$2:$C$5000,MATCH($M146,'EO Master Input'!$Y$2:$Y$5000,0)),"-") -> 0 | D146: =IFERROR(INDEX('EO Master Input'!$D$2:$D$5000,MATCH($M146,'EO Master Input'!$Y$2:$Y$5000,0)),"") -> No Agency | E146: =IFERROR(INDEX('EO Master Input'!$A$2:$A$5000,MATCH($M146,'EO Master Input'!$Y$2:$Y$5000,0)),"") -> 2021 | F146: =IFERROR(INDEX('EO Master Input'!$F$2:$F$5000,MATCH($M146,'EO Master Input'!$Y$2:$Y$5000,0)),"") -> Other | G146: =IFERROR(INDEX('EO Master Input'!$E$2:$E$5000,MATCH($M146,'EO Master Input'!$Y$2:$Y$5000,0)),"") -> Renewing Order That Certain In-Person meetings are temporarily unlawful | H146: =IFERROR(INDEX('EO Master Input'!$H$2:$H$5000,MATCH($M146,'EO Master Input'!$Y$2:$Y$5000,0)),"") -> 0 | I146: =IFERROR(INDEX('EO Master Input'!$S$2:$S$5000,MATCH($M146,'EO Master Input'!$Y$2:$Y$5000,0)),"") -> 0 | J146: =IFERROR(INDEX('EO Master Input'!$N$2:$N$5000,MATCH($M146,'EO Master Input'!$Y$2:$Y$5000,0)),"") -> 0 | K146: =IFERROR(INDEX('EO Master Input'!$Q$2:$Q$5000,MATCH($M146,'EO Master Input'!$Y$2:$Y$5000,0)),"") -> 0 | L146: =IFERROR(INDEX('EO Master Input'!$O$2:$O$5000,MATCH($M146,'EO Master Input'!$Y$2:$Y$5000,0)),"") -> 0 | M146: 129
B147: =IFERROR(INDEX('EO Master Input'!$B$2:$B$5000,MATCH($M147,'EO Master Input'!$Y$2:$Y$5000,0)),"") -> 2021-009 | C147: =IFERROR(INDEX('EO Master Input'!$C$2:$C$5000,MATCH($M147,'EO Master Input'!$Y$2:$Y$5000,0)),"-") -> 0 | D147: =IFERROR(INDEX('EO Master Input'!$D$2:$D$5000,MATCH($M147,'EO Master Input'!$Y$2:$Y$5000,0)),"") -> No Agency | E147: =IFERROR(INDEX('EO Master Input'!$A$2:$A$5000,MATCH($M147,'EO Master Input'!$Y$2:$Y$5000,0)),"") -> 2021 | F147: =IFERROR(INDEX('EO Master Input'!$F$2:$F$5000,MATCH($M147,'EO Master Input'!$Y$2:$Y$5000,0)),"") -> Other | G147: =IFERROR(INDEX('EO Master Input'!$E$2:$E$5000,MATCH($M147,'EO Master Input'!$Y$2:$Y$5000,0)),"") -> Flags to Half Staff | H147: =IFERROR(INDEX('EO Master Input'!$H$2:$H$5000,MATCH($M147,'EO Master Input'!$Y$2:$Y$5000,0)),"") -> 0 | I147: =IFERROR(INDEX('EO Master Input'!$S$2:$S$5000,MATCH($M147,'EO Master Input'!$Y$2:$Y$5000,0)),"") -> 0 | J147: =IFERROR(INDEX('EO Master Input'!$N$2:$N$5000,MATCH($M147,'EO Master Input'!$Y$2:$Y$5000,0)),"") -> 0 | K147: =IFERROR(INDEX('EO Master Input'!$Q$2:$Q$5000,MATCH($M147,'EO Master Input'!$Y$2:$Y$5000,0)),"") -> 0 | L147: =IFERROR(INDEX('EO Master Input'!$O$2:$O$5000,MATCH($M147,'EO Master Input'!$Y$2:$Y$5000,0)),"") -> 0 | M147: 130
B148: =IFERROR(INDEX('EO Master Input'!$B$2:$B$5000,MATCH($M148,'EO Master Input'!$Y$2:$Y$5000,0)),"") -> 2021-010 | C148: =IFERROR(INDEX('EO Master Input'!$C$2:$C$5000,MATCH($M148,'EO Master Input'!$Y$2:$Y$5000,0)),"-") -> 0 | D148: =IFERROR(INDEX('EO Master Input'!$D$2:$D$5000,MATCH($M148,'EO Master Input'!$Y$2:$Y$5000,0)),"") -> No Agency | E148: =IFERROR(INDEX('EO Master Input'!$A$2:$A$5000,MATCH($M148,'EO Master Input'!$Y$2:$Y$5000,0)),"") -> 2021 | F148: =IFERROR(INDEX('EO Master Input'!$F$2:$F$5000,MATCH($M148,'EO Master Input'!$Y$2:$Y$5000,0)),"") -> Pandemic | G148: =IFERROR(INDEX('EO Master Input'!$E$2:$E$5000,MATCH($M148,'EO Master Input'!$Y$2:$Y$5000,0)),"") -> Renew PHO due to COVID | H148: =IFERROR(INDEX('EO Master Input'!$H$2:$H$5000,MATCH($M148,'EO Master Input'!$Y$2:$Y$5000,0)),"") -> 0 | I148: =IFERROR(INDEX('EO Master Input'!$S$2:$S$5000,MATCH($M148,'EO Master Input'!$Y$2:$Y$5000,0)),"") -> 0 | J148: =IFERROR(INDEX('EO Master Input'!$N$2:$N$5000,MATCH($M148,'EO Master Input'!$Y$2:$Y$5000,0)),"") -> 0 | K148: =IFERROR(INDEX('EO Master Input'!$Q$2:$Q$5000,MATCH($M148,'EO Master Input'!$Y$2:$Y$5000,0)),"") -> 0 | L148: =IFERROR(INDEX('EO Master Input'!$O$2:$O$5000,MATCH($M148,'EO Master Input'!$Y$2:$Y$5000,0)),"") -> 0 | M148: 131
B149: =IFERROR(INDEX('EO Master Input'!$B$2:$B$5000,MATCH($M149,'EO Master Input'!$Y$2:$Y$5000,0)),"") -> 2021-011 | C149: =IFERROR(INDEX('EO Master Input'!$C$2:$C$5000,MATCH($M149,'EO Master Input'!$Y$2:$Y$5000,0)),"-") -> 0 | D149: =IFERROR(INDEX('EO Master Input'!$D$2:$D$5000,MATCH($M149,'EO Master Input'!$Y$2:$Y$5000,0)),"") -> No Agency | E149: =IFERROR(INDEX('EO Master Input'!$A$2:$A$5000,MATCH($M149,'EO Master Input'!$Y$2:$Y$5000,0)),"") -> 2021 | F149: =IFERROR(INDEX('EO Master Input'!$F$2:$F$5000,MATCH($M149,'EO Master Input'!$Y$2:$Y$5000,0)),"") -> Pandemic | G149: =IFERROR(INDEX('EO Master Input'!$E$2:$E$5000,MATCH($M149,'EO Master Input'!$Y$2:$Y$5000,0)),"") -> Renew PHO due to COVID | H149: =IFERROR(INDEX('EO Master Input'!$H$2:$H$5000,MATCH($M149,'EO Master Input'!$Y$2:$Y$5000,0)),"") -> 0 | I149: =IFERROR(INDEX('EO Master Input'!$S$2:$S$5000,MATCH($M149,'EO Master Input'!$Y$2:$Y$5000,0)),"") -> 0 | J149: =IFERROR(INDEX('EO Master Input'!$N$2:$N$5000,MATCH($M149,'EO Master Input'!$Y$2:$Y$5000,0)),"") -> 0 | K149: =IFERROR(INDEX('EO Master Input'!$Q$2:$Q$5000,MATCH($M149,'EO Master Input'!$Y$2:$Y$5000,0)),"") -> 0 | L149: =IFERROR(INDEX('EO Master Input'!$O$2:$O$5000,MATCH($M149,'EO Master Input'!$Y$2:$Y$5000,0)),"") -> 0 | M149: 132
B150: =IFERROR(INDEX('EO Master Input'!$B$2:$B$5000,MATCH($M150,'EO Master Input'!$Y$2:$Y$5000,0)),"") -> 2021-012 | C150: =IFERROR(INDEX('EO Master Input'!$C$2:$C$5000,MATCH($M150,'EO Master Input'!$Y$2:$Y$5000,0)),"-") -> 0 | D150: =IFERROR(INDEX('EO Master Input'!$D$2:$D$5000,MATCH($M150,'EO Master Input'!$Y$2:$Y$5000,0)),"") -> No Agency | E150: =IFERROR(INDEX('EO Master Input'!$A$2:$A$5000,MATCH($M150,'EO Master Input'!$Y$2:$Y$5000,0)),"") -> 2021 | F150: =IFERROR(INDEX('EO Master Input'!$F$2:$F$5000,MATCH($M150,'EO Master Input'!$Y$2:$Y$5000,0)),"") -> Pandemic | G150: =IFERROR(INDEX('EO Master Input'!$E$2:$E$5000,MATCH($M150,'EO Master Input'!$Y$2:$Y$5000,0)),"") -> Renew PHO due to COVID | H150: =IFERROR(INDEX('EO Master Input'!$H$2:$H$5000,MATCH($M150,'EO Master Input'!$Y$2:$Y$5000,0)),"") -> 0 | I150: =IFERROR(INDEX('EO Master Input'!$S$2:$S$5000,MATCH($M150,'EO Master Input'!$Y$2:$Y$5000,0)),"") -> 0 | J150: =IFERROR(INDEX('EO Master Input'!$N$2:$N$5000,MATCH($M150,'EO Master Input'!$Y$2:$Y$5000,0)),"") -> 0 | K150: =IFERROR(INDEX('EO Master Input'!$Q$2:$Q$5000,MATCH($M150,'EO Master Input'!$Y$2:$Y$5000,0)),"") -> 0 | L150: =IFERROR(INDEX('EO Master Input'!$O$2:$O$5000,MATCH($M150,'EO Master Input'!$Y$2:$Y$5000,0)),"") -> 0 | M150: 133
B151: =IFERROR(INDEX('EO Master Input'!$B$2:$B$5000,MATCH($M151,'EO Master Input'!$Y$2:$Y$5000,0)),"") -> 2021-013 | C151: =IFERROR(INDEX('EO Master Input'!$C$2:$C$5000,MATCH($M151,'EO Master Input'!$Y$2:$Y$5000,0)),"-") -> 0 | D151: =IFERROR(INDEX('EO Master Input'!$D$2:$D$5000,MATCH($M151,'EO Master Input'!$Y$2:$Y$5000,0)),"") -> No Agency | E151: =IFERROR(INDEX('EO Master Input'!$A$2:$A$5000,MATCH($M151,'EO Master Input'!$Y$2:$Y$5000,0)),"") -> 2021 | F151: =IFERROR(INDEX('EO Master Input'!$F$2:$F$5000,MATCH($M151,'EO Master Input'!$Y$2:$Y$5000,0)),"") -> Other | G151: =IFERROR(INDEX('EO Master Input'!$E$2:$E$5000,MATCH($M151,'EO Master Input'!$Y$2:$Y$5000,0)),"") -> Establishing the New Mexico Missing and Murdered Indigenous Women and Relatives Task Force | H151: =IFERROR(INDEX('EO Master Input'!$H$2:$H$5000,MATCH($M151,'EO Master Input'!$Y$2:$Y$5000,0)),"") -> 0 | I151: =IFERROR(INDEX('EO Master Input'!$S$2:$S$5000,MATCH($M151,'EO Master Input'!$Y$2:$Y$5000,0)),"") -> 0 | J151: =IFERROR(INDEX('EO Master Input'!$N$2:$N$5000,MATCH($M151,'EO Master Input'!$Y$2:$Y$5000,0)),"") -> 0 | K151: =IFERROR(INDEX('EO Master Input'!$Q$2:$Q$5000,MATCH($M151,'EO Master Input'!$Y$2:$Y$5000,0)),"") -> 0 | L151: =IFERROR(INDEX('EO Master Input'!$O$2:$O$5000,MATCH($M151,'EO Master Input'!$Y$2:$Y$5000,0)),"") -> 0 | M151: 134
B152: =IFERROR(INDEX('EO Master Input'!$B$2:$B$5000,MATCH($M152,'EO Master Input'!$Y$2:$Y$5000,0)),"") -> 2021-014 | C152: =IFERROR(INDEX('EO Master Input'!$C$2:$C$5000,MATCH($M152,'EO Master Input'!$Y$2:$Y$5000,0)),"-") -> 52100 | D152: =IFERROR(INDEX('EO Master Input'!$D$2:$D$5000,MATCH($M152,'EO Master Input'!$Y$2:$Y$5000,0)),"") -> Energy, Minerals & Resources | E152: =IFERROR(INDEX('EO Master Input'!$A$2:$A$5000,MATCH($M152,'EO Master Input'!$Y$2:$Y$5000,0)),"") -> 2021 | F152: =IFERROR(INDEX('EO Master Input'!$F$2:$F$5000,MATCH($M152,'EO Master Input'!$Y$2:$Y$5000,0)),"") -> Fire | G152: =IFERROR(INDEX('EO Master Input'!$E$2:$E$5000,MATCH($M152,'EO Master Input'!$Y$2:$Y$5000,0)),"") -> Wildfires | H152: =IFERROR(INDEX('EO Master Input'!$H$2:$H$5000,MATCH($M152,'EO Master Input'!$Y$2:$Y$5000,0)),"") -> 750000 | I152: =IFERROR(INDEX('EO Master Input'!$S$2:$S$5000,MATCH($M152,'EO Master Input'!$Y$2:$Y$5000,0)),"") -> 750000 | J152: =IFERROR(INDEX('EO Master Input'!$N$2:$N$5000,MATCH($M152,'EO Master Input'!$Y$2:$Y$5000,0)),"") -> 0 | K152: =IFERROR(INDEX('EO Master Input'!$Q$2:$Q$5000,MATCH($M152,'EO Master Input'!$Y$2:$Y$5000,0)),"") -> 0 | L152: =IFERROR(INDEX('EO Master Input'!$O$2:$O$5000,MATCH($M152,'EO Master Input'!$Y$2:$Y$5000,0)),"") -> 2275868.9 | M152: 135
B153: =IFERROR(INDEX('EO Master Input'!$B$2:$B$5000,MATCH($M153,'EO Master Input'!$Y$2:$Y$5000,0)),"") -> 2021-015 | C153: =IFERROR(INDEX('EO Master Input'!$C$2:$C$5000,MATCH($M153,'EO Master Input'!$Y$2:$Y$5000,0)),"-") -> 52100 | D153: =IFERROR(INDEX('EO Master Input'!$D$2:$D$5000,MATCH($M153,'EO Master Input'!$Y$2:$Y$5000,0)),"") -> Energy, Minerals & Resources | E153: =IFERROR(INDEX('EO Master Input'!$A$2:$A$5000,MATCH($M153,'EO Master Input'!$Y$2:$Y$5000,0)),"") -> 2021 | F153: =IFERROR(INDEX('EO Master Input'!$F$2:$F$5000,MATCH($M153,'EO Master Input'!$Y$2:$Y$5000,0)),"") -> Fire | G153: =IFERROR(INDEX('EO Master Input'!$E$2:$E$5000,MATCH($M153,'EO Master Input'!$Y$2:$Y$5000,0)),"") -> Wildfires | H153: =IFERROR(INDEX('EO Master Input'!$H$2:$H$5000,MATCH($M153,'EO Master Input'!$Y$2:$Y$5000,0)),"") -> 750000 | I153: =IFERROR(INDEX('EO Master Input'!$S$2:$S$5000,MATCH($M153,'EO Master Input'!$Y$2:$Y$5000,0)),"") -> 750000 | J153: =IFERROR(INDEX('EO Master Input'!$N$2:$N$5000,MATCH($M153,'EO Master Input'!$Y$2:$Y$5000,0)),"") -> 0 | K153: =IFERROR(INDEX('EO Master Input'!$Q$2:$Q$5000,MATCH($M153,'EO Master Input'!$Y$2:$Y$5000,0)),"") -> 0 | L153: =IFERROR(INDEX('EO Master Input'!$O$2:$O$5000,MATCH($M153,'EO Master Input'!$Y$2:$Y$5000,0)),"") -> 0 | M153: 136
B154: =IFERROR(INDEX('EO Master Input'!$B$2:$B$5000,MATCH($M154,'EO Master Input'!$Y$2:$Y$5000,0)),"") -> 2021-016 | C154: =IFERROR(INDEX('EO Master Input'!$C$2:$C$5000,MATCH($M154,'EO Master Input'!$Y$2:$Y$5000,0)),"-") -> 52100 | D154: =IFERROR(INDEX('EO Master Input'!$D$2:$D$5000,MATCH($M154,'EO Master Input'!$Y$2:$Y$5000,0)),"") -> Energy, Minerals & Resources | E154: =IFERROR(INDEX('EO Master Input'!$A$2:$A$5000,MATCH($M154,'EO Master Input'!$Y$2:$Y$5000,0)),"") -> 2021 | F154: =IFERROR(INDEX('EO Master Input'!$F$2:$F$5000,MATCH($M154,'EO Master Input'!$Y$2:$Y$5000,0)),"") -> Fire | G154: =IFERROR(INDEX('EO Master Input'!$E$2:$E$5000,MATCH($M154,'EO Master Input'!$Y$2:$Y$5000,0)),"") -> Wildfires | H154: =IFERROR(INDEX('EO Master Input'!$H$2:$H$5000,MATCH($M154,'EO Master Input'!$Y$2:$Y$5000,0)),"") -> 750000 | I154: =IFERROR(INDEX('EO Master Input'!$S$2:$S$5000,MATCH($M154,'EO Master Input'!$Y$2:$Y$5000,0)),"") -> 750000 | J154: =IFERROR(INDEX('EO Master Input'!$N$2:$N$5000,MATCH($M154,'EO Master Input'!$Y$2:$Y$5000,0)),"") -> 0 | K154: =IFERROR(INDEX('EO Master Input'!$Q$2:$Q$5000,MATCH($M154,'EO Master Input'!$Y$2:$Y$5000,0)),"") -> 1.164153218e-10 | L154: =IFERROR(INDEX('EO Master Input'!$O$2:$O$5000,MATCH($M154,'EO Master Input'!$Y$2:$Y$5000,0)),"") -> 0 | M154: 137
B155: =IFERROR(INDEX('EO Master Input'!$B$2:$B$5000,MATCH($M155,'EO Master Input'!$Y$2:$Y$5000,0)),"") -> 2021-017 | C155: =IFERROR(INDEX('EO Master Input'!$C$2:$C$5000,MATCH($M155,'EO Master Input'!$Y$2:$Y$5000,0)),"-") -> 52100 | D155: =IFERROR(INDEX('EO Master Input'!$D$2:$D$5000,MATCH($M155,'EO Master Input'!$Y$2:$Y$5000,0)),"") -> Energy, Minerals & Resources | E155: =IFERROR(INDEX('EO Master Input'!$A$2:$A$5000,MATCH($M155,'EO Master Input'!$Y$2:$Y$5000,0)),"") -> 2021 | F155: =IFERROR(INDEX('EO Master Input'!$F$2:$F$5000,MATCH($M155,'EO Master Input'!$Y$2:$Y$5000,0)),"") -> Fire | G155: =IFERROR(INDEX('EO Master Input'!$E$2:$E$5000,MATCH($M155,'EO Master Input'!$Y$2:$Y$5000,0)),"") -> Wildfires | H155: =IFERROR(INDEX('EO Master Input'!$H$2:$H$5000,MATCH($M155,'EO Master Input'!$Y$2:$Y$5000,0)),"") -> 750000 | I155: =IFERROR(INDEX('EO Master Input'!$S$2:$S$5000,MATCH($M155,'EO Master Input'!$Y$2:$Y$5000,0)),"") -> 750000 | J155: =IFERROR(INDEX('EO Master Input'!$N$2:$N$5000,MATCH($M155,'EO Master Input'!$Y$2:$Y$5000,0)),"") -> 0 | K155: =IFERROR(INDEX('EO Master Input'!$Q$2:$Q$5000,MATCH($M155,'EO Master Input'!$Y$2:$Y$5000,0)),"") -> 0 | L155: =IFERROR(INDEX('EO Master Input'!$O$2:$O$5000,MATCH($M155,'EO Master Input'!$Y$2:$Y$5000,0)),"") -> 0 | M155: 138
B156: =IFERROR(INDEX('EO Master Input'!$B$2:$B$5000,MATCH($M156,'EO Master Input'!$Y$2:$Y$5000,0)),"") -> 2021-018 | C156: =IFERROR(INDEX('EO Master Input'!$C$2:$C$5000,MATCH($M156,'EO Master Input'!$Y$2:$Y$5000,0)),"-") -> 52100 | D156: =IFERROR(INDEX('EO Master Input'!$D$2:$D$5000,MATCH($M156,'EO Master Input'!$Y$2:$Y$5000,0)),"") -> Energy, Minerals & Resources | E156: =IFERROR(INDEX('EO Master Input'!$A$2:$A$5000,MATCH($M156,'EO Master Input'!$Y$2:$Y$5000,0)),"") -> 2021 | F156: =IFERROR(INDEX('EO Master Input'!$F$2:$F$5000,MATCH($M156,'EO Master Input'!$Y$2:$Y$5000,0)),"") -> Fire | G156: =IFERROR(INDEX('EO Master Input'!$E$2:$E$5000,MATCH($M156,'EO Master Input'!$Y$2:$Y$5000,0)),"") -> Wildfires | H156: =IFERROR(INDEX('EO Master Input'!$H$2:$H$5000,MATCH($M156,'EO Master Input'!$Y$2:$Y$5000,0)),"") -> 750000 | I156: =IFERROR(INDEX('EO Master Input'!$S$2:$S$5000,MATCH($M156,'EO Master Input'!$Y$2:$Y$5000,0)),"") -> 750000 | J156: =IFERROR(INDEX('EO Master Input'!$N$2:$N$5000,MATCH($M156,'EO Master Input'!$Y$2:$Y$5000,0)),"") -> 0 | K156: =IFERROR(INDEX('EO Master Input'!$Q$2:$Q$5000,MATCH($M156,'EO Master Input'!$Y$2:$Y$5000,0)),"") -> 0 | L156: =IFERROR(INDEX('EO Master Input'!$O$2:$O$5000,MATCH($M156,'EO Master Input'!$Y$2:$Y$5000,0)),"") -> 588 | M156: 139
B157: =IFERROR(INDEX('EO Master Input'!$B$2:$B$5000,MATCH($M157,'EO Master Input'!$Y$2:$Y$5000,0)),"") -> 2021-019 | C157: =IFERROR(INDEX('EO Master Input'!$C$2:$C$5000,MATCH($M157,'EO Master Input'!$Y$2:$Y$5000,0)),"-") -> 52100 | D157: =IFERROR(INDEX('EO Master Input'!$D$2:$D$5000,MATCH($M157,'EO Master Input'!$Y$2:$Y$5000,0)),"") -> Energy, Minerals & Resources | E157: =IFERROR(INDEX('EO Master Input'!$A$2:$A$5000,MATCH($M157,'EO Master Input'!$Y$2:$Y$5000,0)),"") -> 2021 | F157: =IFERROR(INDEX('EO Master Input'!$F$2:$F$5000,MATCH($M157,'EO Master Input'!$Y$2:$Y$5000,0)),"") -> Fire | G157: =IFERROR(INDEX('EO Master Input'!$E$2:$E$5000,MATCH($M157,'EO Master Input'!$Y$2:$Y$5000,0)),"") -> Wildfires | H157: =IFERROR(INDEX('EO Master Input'!$H$2:$H$5000,MATCH($M157,'EO Master Input'!$Y$2:$Y$5000,0)),"") -> 750000 | I157: =IFERROR(INDEX('EO Master Input'!$S$2:$S$5000,MATCH($M157,'EO Master Input'!$Y$2:$Y$5000,0)),"") -> 750000 | J157: =IFERROR(INDEX('EO Master Input'!$N$2:$N$5000,MATCH($M157,'EO Master Input'!$Y$2:$Y$5000,0)),"") -> 0 | K157: =IFERROR(INDEX('EO Master Input'!$Q$2:$Q$5000,MATCH($M157,'EO Master Input'!$Y$2:$Y$5000,0)),"") -> 0 | L157: =IFERROR(INDEX('EO Master Input'!$O$2:$O$5000,MATCH($M157,'EO Master Input'!$Y$2:$Y$5000,0)),"") -> 2529.8 | M157: 140
B158: =IFERROR(INDEX('EO Master Input'!$B$2:$B$5000,MATCH($M158,'EO Master Input'!$Y$2:$Y$5000,0)),"") -> 2021-020 | C158: =IFERROR(INDEX('EO Master Input'!$C$2:$C$5000,MATCH($M158,'EO Master Input'!$Y$2:$Y$5000,0)),"-") -> 52100 | D158: =IFERROR(INDEX('EO Master Input'!$D$2:$D$5000,MATCH($M158,'EO Master Input'!$Y$2:$Y$5000,0)),"") -> Energy, Minerals & Resources | E158: =IFERROR(INDEX('EO Master Input'!$A$2:$A$5000,MATCH($M158,'EO Master Input'!$Y$2:$Y$5000,0)),"") -> 2021 | F158: =IFERROR(INDEX('EO Master Input'!$F$2:$F$5000,MATCH($M158,'EO Master Input'!$Y$2:$Y$5000,0)),"") -> Fire | G158: =IFERROR(INDEX('EO Master Input'!$E$2:$E$5000,MATCH($M158,'EO Master Input'!$Y$2:$Y$5000,0)),"") -> Wildfires | H158: =IFERROR(INDEX('EO Master Input'!$H$2:$H$5000,MATCH($M158,'EO Master Input'!$Y$2:$Y$5000,0)),"") -> 750000 | I158: =IFERROR(INDEX('EO Master Input'!$S$2:$S$5000,MATCH($M158,'EO Master Input'!$Y$2:$Y$5000,0)),"") -> 750000 | J158: =IFERROR(INDEX('EO Master Input'!$N$2:$N$5000,MATCH($M158,'EO Master Input'!$Y$2:$Y$5000,0)),"") -> 0 | K158: =IFERROR(INDEX('EO Master Input'!$Q$2:$Q$5000,MATCH($M158,'EO Master Input'!$Y$2:$Y$5000,0)),"") -> 0 | L158: =IFERROR(INDEX('EO Master Input'!$O$2:$O$5000,MATCH($M158,'EO Master Input'!$Y$2:$Y$5000,0)),"") -> 0 | M158: 141
B159: =IFERROR(INDEX('EO Master Input'!$B$2:$B$5000,MATCH($M159,'EO Master Input'!$Y$2:$Y$5000,0)),"") -> 2021-021 | C159: =IFERROR(INDEX('EO Master Input'!$C$2:$C$5000,MATCH($M159,'EO Master Input'!$Y$2:$Y$5000,0)),"-") -> 52100 | D159: =IFERROR(INDEX('EO Master Input'!$D$2:$D$5000,MATCH($M159,'EO Master Input'!$Y$2:$Y$5000,0)),"") -> Energy, Minerals & Resources | E159: =IFERROR(INDEX('EO Master Input'!$A$2:$A$5000,MATCH($M159,'EO Master Input'!$Y$2:$Y$5000,0)),"") -> 2021 | F159: =IFERROR(INDEX('EO Master Input'!$F$2:$F$5000,MATCH($M159,'EO Master Input'!$Y$2:$Y$5000,0)),"") -> Fire | G159: =IFERROR(INDEX('EO Master Input'!$E$2:$E$5000,MATCH($M159,'EO Master Input'!$Y$2:$Y$5000,0)),"") -> Wildfires | H159: =IFERROR(INDEX('EO Master Input'!$H$2:$H$5000,MATCH($M159,'EO Master Input'!$Y$2:$Y$5000,0)),"") -> 750000 | I159: =IFERROR(INDEX('EO Master Input'!$S$2:$S$5000,MATCH($M159,'EO Master Input'!$Y$2:$Y$5000,0)),"") -> 750000 | J159: =IFERROR(INDEX('EO Master Input'!$N$2:$N$5000,MATCH($M159,'EO Master Input'!$Y$2:$Y$5000,0)),"") -> 0 | K159: =IFERROR(INDEX('EO Master Input'!$Q$2:$Q$5000,MATCH($M159,'EO Master Input'!$Y$2:$Y$5000,0)),"") -> 0 | L159: =IFERROR(INDEX('EO Master Input'!$O$2:$O$5000,MATCH($M159,'EO Master Input'!$Y$2:$Y$5000,0)),"") -> 0 | M159: 142
B160: =IFERROR(INDEX('EO Master Input'!$B$2:$B$5000,MATCH($M160,'EO Master Input'!$Y$2:$Y$5000,0)),"") -> 2021-022 | C160: =IFERROR(INDEX('EO Master Input'!$C$2:$C$5000,MATCH($M160,'EO Master Input'!$Y$2:$Y$5000,0)),"-") -> 0 | D160: =IFERROR(INDEX('EO Master Input'!$D$2:$D$5000,MATCH($M160,'EO Master Input'!$Y$2:$Y$5000,0)),"") -> No Agency | E160: =IFERROR(INDEX('EO Master Input'!$A$2:$A$5000,MATCH($M160,'EO Master Input'!$Y$2:$Y$5000,0)),"") -> 2021 | F160: =IFERROR(INDEX('EO Master Input'!$F$2:$F$5000,MATCH($M160,'EO Master Input'!$Y$2:$Y$5000,0)),"") -> Other | G160: =IFERROR(INDEX('EO Master Input'!$E$2:$E$5000,MATCH($M160,'EO Master Input'!$Y$2:$Y$5000,0)),"") -> Flags to Half Staff | H160: =IFERROR(INDEX('EO Master Input'!$H$2:$H$5000,MATCH($M160,'EO Master Input'!$Y$2:$Y$5000,0)),"") -> 0 | I160: =IFERROR(INDEX('EO Master Input'!$S$2:$S$5000,MATCH($M160,'EO Master Input'!$Y$2:$Y$5000,0)),"") -> 0 | J160: =IFERROR(INDEX('EO Master Input'!$N$2:$N$5000,MATCH($M160,'EO Master Input'!$Y$2:$Y$5000,0)),"") -> 0 | K160: =IFERROR(INDEX('EO Master Input'!$Q$2:$Q$5000,MATCH($M160,'EO Master Input'!$Y$2:$Y$5000,0)),"") -> 0 | L160: =IFERROR(INDEX('EO Master Input'!$O$2:$O$5000,MATCH($M160,'EO Master Input'!$Y$2:$Y$5000,0)),"") -> 0 | M160: 143
B161: =IFERROR(INDEX('EO Master Input'!$B$2:$B$5000,MATCH($M161,'EO Master Input'!$Y$2:$Y$5000,0)),"") -> 2021-023 | C161: =IFERROR(INDEX('EO Master Input'!$C$2:$C$5000,MATCH($M161,'EO Master Input'!$Y$2:$Y$5000,0)),"-") -> 0 | D161: =IFERROR(INDEX('EO Master Input'!$D$2:$D$5000,MATCH($M161,'EO Master Input'!$Y$2:$Y$5000,0)),"") -> No Agency | E161: =IFERROR(INDEX('EO Master Input'!$A$2:$A$5000,MATCH($M161,'EO Master Input'!$Y$2:$Y$5000,0)),"") -> 2021 | F161: =IFERROR(INDEX('EO Master Input'!$F$2:$F$5000,MATCH($M161,'EO Master Input'!$Y$2:$Y$5000,0)),"") -> Pandemic | G161: =IFERROR(INDEX('EO Master Input'!$E$2:$E$5000,MATCH($M161,'EO Master Input'!$Y$2:$Y$5000,0)),"") -> Renew PHO due to COVID | H161: =IFERROR(INDEX('EO Master Input'!$H$2:$H$5000,MATCH($M161,'EO Master Input'!$Y$2:$Y$5000,0)),"") -> 0 | I161: =IFERROR(INDEX('EO Master Input'!$S$2:$S$5000,MATCH($M161,'EO Master Input'!$Y$2:$Y$5000,0)),"") -> 0 | J161: =IFERROR(INDEX('EO Master Input'!$N$2:$N$5000,MATCH($M161,'EO Master Input'!$Y$2:$Y$5000,0)),"") -> 0 | K161: =IFERROR(INDEX('EO Master Input'!$Q$2:$Q$5000,MATCH($M161,'EO Master Input'!$Y$2:$Y$5000,0)),"") -> 0 | L161: =IFERROR(INDEX('EO Master Input'!$O$2:$O$5000,MATCH($M161,'EO Master Input'!$Y$2:$Y$5000,0)),"") -> 0 | M161: 144
B162: =IFERROR(INDEX('EO Master Input'!$B$2:$B$5000,MATCH($M162,'EO Master Input'!$Y$2:$Y$5000,0)),"") -> 2021-024 | C162: =IFERROR(INDEX('EO Master Input'!$C$2:$C$5000,MATCH($M162,'EO Master Input'!$Y$2:$Y$5000,0)),"-") -> 0 | D162: =IFERROR(INDEX('EO Master Input'!$D$2:$D$5000,MATCH($M162,'EO Master Input'!$Y$2:$Y$5000,0)),"") -> No Agency | E162: =IFERROR(INDEX('EO Master Input'!$A$2:$A$5000,MATCH($M162,'EO Master Input'!$Y$2:$Y$5000,0)),"") -> 2021 | F162: =IFERROR(INDEX('EO Master Input'!$F$2:$F$5000,MATCH($M162,'EO Master Input'!$Y$2:$Y$5000,0)),"") -> Other | G162: =IFERROR(INDEX('EO Master Input'!$E$2:$E$5000,MATCH($M162,'EO Master Input'!$Y$2:$Y$5000,0)),"") -> Flags to Half Staff | H162: =IFERROR(INDEX('EO Master Input'!$H$2:$H$5000,MATCH($M162,'EO Master Input'!$Y$2:$Y$5000,0)),"") -> 0 | I162: =IFERROR(INDEX('EO Master Input'!$S$2:$S$5000,MATCH($M162,'EO Master Input'!$Y$2:$Y$5000,0)),"") -> 0 | J162: =IFERROR(INDEX('EO Master Input'!$N$2:$N$5000,MATCH($M162,'EO Master Input'!$Y$2:$Y$5000,0)),"") -> 0 | K162: =IFERROR(INDEX('EO Master Input'!$Q$2:$Q$5000,MATCH($M162,'EO Master Input'!$Y$2:$Y$5000,0)),"") -> 0 | L162: =IFERROR(INDEX('EO Master Input'!$O$2:$O$5000,MATCH($M162,'EO Master Input'!$Y$2:$Y$5000,0)),"") -> 0 | M162: 145
B163: =IFERROR(INDEX('EO Master Input'!$B$2:$B$5000,MATCH($M163,'EO Master Input'!$Y$2:$Y$5000,0)),"") -> 2021-025 | C163: =IFERROR(INDEX('EO Master Input'!$C$2:$C$5000,MATCH($M163,'EO Master Input'!$Y$2:$Y$5000,0)),"-") -> 79500 | D163: =IFERROR(INDEX('EO Master Input'!$D$2:$D$5000,MATCH($M163,'EO Master Input'!$Y$2:$Y$5000,0)),"") -> Homeland Sec. & Emerg. Mgmt. | E163: =IFERROR(INDEX('EO Master Input'!$A$2:$A$5000,MATCH($M163,'EO Master Input'!$Y$2:$Y$5000,0)),"") -> 2021 | F163: =IFERROR(INDEX('EO Master Input'!$F$2:$F$5000,MATCH($M163,'EO Master Input'!$Y$2:$Y$5000,0)),"") -> Flooding | G163: =IFERROR(INDEX('EO Master Input'!$E$2:$E$5000,MATCH($M163,'EO Master Input'!$Y$2:$Y$5000,0)),"") -> Flooding (Chavez County) | H163: =IFERROR(INDEX('EO Master Input'!$H$2:$H$5000,MATCH($M163,'EO Master Input'!$Y$2:$Y$5000,0)),"") -> 750000 | I163: =IFERROR(INDEX('EO Master Input'!$S$2:$S$5000,MATCH($M163,'EO Master Input'!$Y$2:$Y$5000,0)),"") -> 76964.2 | J163: =IFERROR(INDEX('EO Master Input'!$N$2:$N$5000,MATCH($M163,'EO Master Input'!$Y$2:$Y$5000,0)),"") -> 0 | K163: =IFERROR(INDEX('EO Master Input'!$Q$2:$Q$5000,MATCH($M163,'EO Master Input'!$Y$2:$Y$5000,0)),"") -> 673035.8 | L163: =IFERROR(INDEX('EO Master Input'!$O$2:$O$5000,MATCH($M163,'EO Master Input'!$Y$2:$Y$5000,0)),"") -> 673035.8 | M163: 146
B164: =IFERROR(INDEX('EO Master Input'!$B$2:$B$5000,MATCH($M164,'EO Master Input'!$Y$2:$Y$5000,0)),"") -> 2021-026 | C164: =IFERROR(INDEX('EO Master Input'!$C$2:$C$5000,MATCH($M164,'EO Master Input'!$Y$2:$Y$5000,0)),"-") -> 79500 | D164: =IFERROR(INDEX('EO Master Input'!$D$2:$D$5000,MATCH($M164,'EO Master Input'!$Y$2:$Y$5000,0)),"") -> Homeland Sec. & Emerg. Mgmt. | E164: =IFERROR(INDEX('EO Master Input'!$A$2:$A$5000,MATCH($M164,'EO Master Input'!$Y$2:$Y$5000,0)),"") -> 2021 | F164: =IFERROR(INDEX('EO Master Input'!$F$2:$F$5000,MATCH($M164,'EO Master Input'!$Y$2:$Y$5000,0)),"") -> Flooding | G164: =IFERROR(INDEX('EO Master Input'!$E$2:$E$5000,MATCH($M164,'EO Master Input'!$Y$2:$Y$5000,0)),"") -> Flooding (Lincoln County) | H164: =IFERROR(INDEX('EO Master Input'!$H$2:$H$5000,MATCH($M164,'EO Master Input'!$Y$2:$Y$5000,0)),"") -> 750000 | I164: =IFERROR(INDEX('EO Master Input'!$S$2:$S$5000,MATCH($M164,'EO Master Input'!$Y$2:$Y$5000,0)),"") -> 22630.63 | J164: =IFERROR(INDEX('EO Master Input'!$N$2:$N$5000,MATCH($M164,'EO Master Input'!$Y$2:$Y$5000,0)),"") -> 161869.17 | K164: =IFERROR(INDEX('EO Master Input'!$Q$2:$Q$5000,MATCH($M164,'EO Master Input'!$Y$2:$Y$5000,0)),"") -> 565500.2 | L164: =IFERROR(INDEX('EO Master Input'!$O$2:$O$5000,MATCH($M164,'EO Master Input'!$Y$2:$Y$5000,0)),"") -> 0 | M164: 147
B165: =IFERROR(INDEX('EO Master Input'!$B$2:$B$5000,MATCH($M165,'EO Master Input'!$Y$2:$Y$5000,0)),"") -> 2021-027 | C165: =IFERROR(INDEX('EO Master Input'!$C$2:$C$5000,MATCH($M165,'EO Master Input'!$Y$2:$Y$5000,0)),"-") -> 79500 | D165: =IFERROR(INDEX('EO Master Input'!$D$2:$D$5000,MATCH($M165,'EO Master Input'!$Y$2:$Y$5000,0)),"") -> Homeland Sec. & Emerg. Mgmt. | E165: =IFERROR(INDEX('EO Master Input'!$A$2:$A$5000,MATCH($M165,'EO Master Input'!$Y$2:$Y$5000,0)),"") -> 2021 | F165: =IFERROR(INDEX('EO Master Input'!$F$2:$F$5000,MATCH($M165,'EO Master Input'!$Y$2:$Y$5000,0)),"") -> Flooding | G165: =IFERROR(INDEX('EO Master Input'!$E$2:$E$5000,MATCH($M165,'EO Master Input'!$Y$2:$Y$5000,0)),"") -> Flooding (Roswell) | H165: =IFERROR(INDEX('EO Master Input'!$H$2:$H$5000,MATCH($M165,'EO Master Input'!$Y$2:$Y$5000,0)),"") -> 750000 | I165: =IFERROR(INDEX('EO Master Input'!$S$2:$S$5000,MATCH($M165,'EO Master Input'!$Y$2:$Y$5000,0)),"") -> 226196.11 | J165: =IFERROR(INDEX('EO Master Input'!$N$2:$N$5000,MATCH($M165,'EO Master Input'!$Y$2:$Y$5000,0)),"") -> 295179.8 | K165: =IFERROR(INDEX('EO Master Input'!$Q$2:$Q$5000,MATCH($M165,'EO Master Input'!$Y$2:$Y$5000,0)),"") -> 228624.09 | L165: =IFERROR(INDEX('EO Master Input'!$O$2:$O$5000,MATCH($M165,'EO Master Input'!$Y$2:$Y$5000,0)),"") -> 0 | M165: 148
B166: =IFERROR(INDEX('EO Master Input'!$B$2:$B$5000,MATCH($M166,'EO Master Input'!$Y$2:$Y$5000,0)),"") -> 2021-028 | C166: =IFERROR(INDEX('EO Master Input'!$C$2:$C$5000,MATCH($M166,'EO Master Input'!$Y$2:$Y$5000,0)),"-") -> 0 | D166: =IFERROR(INDEX('EO Master Input'!$D$2:$D$5000,MATCH($M166,'EO Master Input'!$Y$2:$Y$5000,0)),"") -> No Agency | E166: =IFERROR(INDEX('EO Master Input'!$A$2:$A$5000,MATCH($M166,'EO Master Input'!$Y$2:$Y$5000,0)),"") -> 2021 | F166: =IFERROR(INDEX('EO Master Input'!$F$2:$F$5000,MATCH($M166,'EO Master Input'!$Y$2:$Y$5000,0)),"") -> Other | G166: =IFERROR(INDEX('EO Master Input'!$E$2:$E$5000,MATCH($M166,'EO Master Input'!$Y$2:$Y$5000,0)),"") -> Declaring a drought statewide | H166: =IFERROR(INDEX('EO Master Input'!$H$2:$H$5000,MATCH($M166,'EO Master Input'!$Y$2:$Y$5000,0)),"") -> 0 | I166: =IFERROR(INDEX('EO Master Input'!$S$2:$S$5000,MATCH($M166,'EO Master Input'!$Y$2:$Y$5000,0)),"") -> 0 | J166: =IFERROR(INDEX('EO Master Input'!$N$2:$N$5000,MATCH($M166,'EO Master Input'!$Y$2:$Y$5000,0)),"") -> 0 | K166: =IFERROR(INDEX('EO Master Input'!$Q$2:$Q$5000,MATCH($M166,'EO Master Input'!$Y$2:$Y$5000,0)),"") -> 0 | L166: =IFERROR(INDEX('EO Master Input'!$O$2:$O$5000,MATCH($M166,'EO Master Input'!$Y$2:$Y$5000,0)),"") -> 0 | M166: 149
B167: =IFERROR(INDEX('EO Master Input'!$B$2:$B$5000,MATCH($M167,'EO Master Input'!$Y$2:$Y$5000,0)),"") -> 2021-029 | C167: =IFERROR(INDEX('EO Master Input'!$C$2:$C$5000,MATCH($M167,'EO Master Input'!$Y$2:$Y$5000,0)),"-") -> 70500 | D167: =IFERROR(INDEX('EO Master Input'!$D$2:$D$5000,MATCH($M167,'EO Master Input'!$Y$2:$Y$5000,0)),"") -> Military Affairs Department | E167: =IFERROR(INDEX('EO Master Input'!$A$2:$A$5000,MATCH($M167,'EO Master Input'!$Y$2:$Y$5000,0)),"") -> 2021 | F167: =IFERROR(INDEX('EO Master Input'!$F$2:$F$5000,MATCH($M167,'EO Master Input'!$Y$2:$Y$5000,0)),"") -> Crime | G167: =IFERROR(INDEX('EO Master Input'!$E$2:$E$5000,MATCH($M167,'EO Master Input'!$Y$2:$Y$5000,0)),"") -> Authorizing Emergency Funds for New Mexico National Guard Deployments in Fiscal Year 2022 | H167: =IFERROR(INDEX('EO Master Input'!$H$2:$H$5000,MATCH($M167,'EO Master Input'!$Y$2:$Y$5000,0)),"") -> 750000 | I167: =IFERROR(INDEX('EO Master Input'!$S$2:$S$5000,MATCH($M167,'EO Master Input'!$Y$2:$Y$5000,0)),"") -> 741890.87 | J167: =IFERROR(INDEX('EO Master Input'!$N$2:$N$5000,MATCH($M167,'EO Master Input'!$Y$2:$Y$5000,0)),"") -> 0 | K167: =IFERROR(INDEX('EO Master Input'!$Q$2:$Q$5000,MATCH($M167,'EO Master Input'!$Y$2:$Y$5000,0)),"") -> 8109.13 | L167: =IFERROR(INDEX('EO Master Input'!$O$2:$O$5000,MATCH($M167,'EO Master Input'!$Y$2:$Y$5000,0)),"") -> 171937.06 | M167: 150
B168: =IFERROR(INDEX('EO Master Input'!$B$2:$B$5000,MATCH($M168,'EO Master Input'!$Y$2:$Y$5000,0)),"") -> 2021-030 | C168: =IFERROR(INDEX('EO Master Input'!$C$2:$C$5000,MATCH($M168,'EO Master Input'!$Y$2:$Y$5000,0)),"-") -> 0 | D168: =IFERROR(INDEX('EO Master Input'!$D$2:$D$5000,MATCH($M168,'EO Master Input'!$Y$2:$Y$5000,0)),"") -> No Agency | E168: =IFERROR(INDEX('EO Master Input'!$A$2:$A$5000,MATCH($M168,'EO Master Input'!$Y$2:$Y$5000,0)),"") -> 2021 | F168: =IFERROR(INDEX('EO Master Input'!$F$2:$F$5000,MATCH($M168,'EO Master Input'!$Y$2:$Y$5000,0)),"") -> Pandemic | G168: =IFERROR(INDEX('EO Master Input'!$E$2:$E$5000,MATCH($M168,'EO Master Input'!$Y$2:$Y$5000,0)),"") -> Renew PHO due to COVID | H168: =IFERROR(INDEX('EO Master Input'!$H$2:$H$5000,MATCH($M168,'EO Master Input'!$Y$2:$Y$5000,0)),"") -> 0 | I168: =IFERROR(INDEX('EO Master Input'!$S$2:$S$5000,MATCH($M168,'EO Master Input'!$Y$2:$Y$5000,0)),"") -> 0 | J168: =IFERROR(INDEX('EO Master Input'!$N$2:$N$5000,MATCH($M168,'EO Master Input'!$Y$2:$Y$5000,0)),"") -> 0 | K168: =IFERROR(INDEX('EO Master Input'!$Q$2:$Q$5000,MATCH($M168,'EO Master Input'!$Y$2:$Y$5000,0)),"") -> 0 | L168: =IFERROR(INDEX('EO Master Input'!$O$2:$O$5000,MATCH($M168,'EO Master Input'!$Y$2:$Y$5000,0)),"") -> 0 | M168: 151
B169: =IFERROR(INDEX('EO Master Input'!$B$2:$B$5000,MATCH($M169,'EO Master Input'!$Y$2:$Y$5000,0)),"") -> 2021-031 | C169: =IFERROR(INDEX('EO Master Input'!$C$2:$C$5000,MATCH($M169,'EO Master Input'!$Y$2:$Y$5000,0)),"-") -> 52100 | D169: =IFERROR(INDEX('EO Master Input'!$D$2:$D$5000,MATCH($M169,'EO Master Input'!$Y$2:$Y$5000,0)),"") -> Energy, Minerals & Resources | E169: =IFERROR(INDEX('EO Master Input'!$A$2:$A$5000,MATCH($M169,'EO Master Input'!$Y$2:$Y$5000,0)),"") -> 2021 | F169: =IFERROR(INDEX('EO Master Input'!$F$2:$F$5000,MATCH($M169,'EO Master Input'!$Y$2:$Y$5000,0)),"") -> Fire | G169: =IFERROR(INDEX('EO Master Input'!$E$2:$E$5000,MATCH($M169,'EO Master Input'!$Y$2:$Y$5000,0)),"") -> Wildfires | H169: =IFERROR(INDEX('EO Master Input'!$H$2:$H$5000,MATCH($M169,'EO Master Input'!$Y$2:$Y$5000,0)),"") -> 750000 | I169: =IFERROR(INDEX('EO Master Input'!$S$2:$S$5000,MATCH($M169,'EO Master Input'!$Y$2:$Y$5000,0)),"") -> 750000 | J169: =IFERROR(INDEX('EO Master Input'!$N$2:$N$5000,MATCH($M169,'EO Master Input'!$Y$2:$Y$5000,0)),"") -> 0 | K169: =IFERROR(INDEX('EO Master Input'!$Q$2:$Q$5000,MATCH($M169,'EO Master Input'!$Y$2:$Y$5000,0)),"") -> 0 | L169: =IFERROR(INDEX('EO Master Input'!$O$2:$O$5000,MATCH($M169,'EO Master Input'!$Y$2:$Y$5000,0)),"") -> 0 | M169: 152
B170: =IFERROR(INDEX('EO Master Input'!$B$2:$B$5000,MATCH($M170,'EO Master Input'!$Y$2:$Y$5000,0)),"") -> 2021-032 | C170: =IFERROR(INDEX('EO Master Input'!$C$2:$C$5000,MATCH($M170,'EO Master Input'!$Y$2:$Y$5000,0)),"-") -> 52100 | D170: =IFERROR(INDEX('EO Master Input'!$D$2:$D$5000,MATCH($M170,'EO Master Input'!$Y$2:$Y$5000,0)),"") -> Energy, Minerals & Resources | E170: =IFERROR(INDEX('EO Master Input'!$A$2:$A$5000,MATCH($M170,'EO Master Input'!$Y$2:$Y$5000,0)),"") -> 2021 | F170: =IFERROR(INDEX('EO Master Input'!$F$2:$F$5000,MATCH($M170,'EO Master Input'!$Y$2:$Y$5000,0)),"") -> Fire | G170: =IFERROR(INDEX('EO Master Input'!$E$2:$E$5000,MATCH($M170,'EO Master Input'!$Y$2:$Y$5000,0)),"") -> Wildfires | H170: =IFERROR(INDEX('EO Master Input'!$H$2:$H$5000,MATCH($M170,'EO Master Input'!$Y$2:$Y$5000,0)),"") -> 750000 | I170: =IFERROR(INDEX('EO Master Input'!$S$2:$S$5000,MATCH($M170,'EO Master Input'!$Y$2:$Y$5000,0)),"") -> 750000 | J170: =IFERROR(INDEX('EO Master Input'!$N$2:$N$5000,MATCH($M170,'EO Master Input'!$Y$2:$Y$5000,0)),"") -> 0 | K170: =IFERROR(INDEX('EO Master Input'!$Q$2:$Q$5000,MATCH($M170,'EO Master Input'!$Y$2:$Y$5000,0)),"") -> 0 | L170: =IFERROR(INDEX('EO Master Input'!$O$2:$O$5000,MATCH($M170,'EO Master Input'!$Y$2:$Y$5000,0)),"") -> 6137.02 | M170: 153
B171: =IFERROR(INDEX('EO Master Input'!$B$2:$B$5000,MATCH($M171,'EO Master Input'!$Y$2:$Y$5000,0)),"") -> 2021-033 | C171: =IFERROR(INDEX('EO Master Input'!$C$2:$C$5000,MATCH($M171,'EO Master Input'!$Y$2:$Y$5000,0)),"-") -> 52100 | D171: =IFERROR(INDEX('EO Master Input'!$D$2:$D$5000,MATCH($M171,'EO Master Input'!$Y$2:$Y$5000,0)),"") -> Energy, Minerals & Resources | E171: =IFERROR(INDEX('EO Master Input'!$A$2:$A$5000,MATCH($M171,'EO Master Input'!$Y$2:$Y$5000,0)),"") -> 2021 | F171: =IFERROR(INDEX('EO Master Input'!$F$2:$F$5000,MATCH($M171,'EO Master Input'!$Y$2:$Y$5000,0)),"") -> Fire | G171: =IFERROR(INDEX('EO Master Input'!$E$2:$E$5000,MATCH($M171,'EO Master Input'!$Y$2:$Y$5000,0)),"") -> Wildfires | H171: =IFERROR(INDEX('EO Master Input'!$H$2:$H$5000,MATCH($M171,'EO Master Input'!$Y$2:$Y$5000,0)),"") -> 750000 | I171: =IFERROR(INDEX('EO Master Input'!$S$2:$S$5000,MATCH($M171,'EO Master Input'!$Y$2:$Y$5000,0)),"") -> 750000 | J171: =IFERROR(INDEX('EO Master Input'!$N$2:$N$5000,MATCH($M171,'EO Master Input'!$Y$2:$Y$5000,0)),"") -> 0 | K171: =IFERROR(INDEX('EO Master Input'!$Q$2:$Q$5000,MATCH($M171,'EO Master Input'!$Y$2:$Y$5000,0)),"") -> 0 | L171: =IFERROR(INDEX('EO Master Input'!$O$2:$O$5000,MATCH($M171,'EO Master Input'!$Y$2:$Y$5000,0)),"") -> 0 | M171: 154
B172: =IFERROR(INDEX('EO Master Input'!$B$2:$B$5000,MATCH($M172,'EO Master Input'!$Y$2:$Y$5000,0)),"") -> 2021-034 | C172: =IFERROR(INDEX('EO Master Input'!$C$2:$C$5000,MATCH($M172,'EO Master Input'!$Y$2:$Y$5000,0)),"-") -> 52100 | D172: =IFERROR(INDEX('EO Master Input'!$D$2:$D$5000,MATCH($M172,'EO Master Input'!$Y$2:$Y$5000,0)),"") -> Energy, Minerals & Resources | E172: =IFERROR(INDEX('EO Master Input'!$A$2:$A$5000,MATCH($M172,'EO Master Input'!$Y$2:$Y$5000,0)),"") -> 2021 | F172: =IFERROR(INDEX('EO Master Input'!$F$2:$F$5000,MATCH($M172,'EO Master Input'!$Y$2:$Y$5000,0)),"") -> Fire | G172: =IFERROR(INDEX('EO Master Input'!$E$2:$E$5000,MATCH($M172,'EO Master Input'!$Y$2:$Y$5000,0)),"") -> Wildfires | H172: =IFERROR(INDEX('EO Master Input'!$H$2:$H$5000,MATCH($M172,'EO Master Input'!$Y$2:$Y$5000,0)),"") -> 750000 | I172: =IFERROR(INDEX('EO Master Input'!$S$2:$S$5000,MATCH($M172,'EO Master Input'!$Y$2:$Y$5000,0)),"") -> 750000 | J172: =IFERROR(INDEX('EO Master Input'!$N$2:$N$5000,MATCH($M172,'EO Master Input'!$Y$2:$Y$5000,0)),"") -> 0 | K172: =IFERROR(INDEX('EO Master Input'!$Q$2:$Q$5000,MATCH($M172,'EO Master Input'!$Y$2:$Y$5000,0)),"") -> 0 | L172: =IFERROR(INDEX('EO Master Input'!$O$2:$O$5000,MATCH($M172,'EO Master Input'!$Y$2:$Y$5000,0)),"") -> 0 | M172: 155
B173: =IFERROR(INDEX('EO Master Input'!$B$2:$B$5000,MATCH($M173,'EO Master Input'!$Y$2:$Y$5000,0)),"") -> 2021-035 | C173: =IFERROR(INDEX('EO Master Input'!$C$2:$C$5000,MATCH($M173,'EO Master Input'!$Y$2:$Y$5000,0)),"-") -> 52100 | D173: =IFERROR(INDEX('EO Master Input'!$D$2:$D$5000,MATCH($M173,'EO Master Input'!$Y$2:$Y$5000,0)),"") -> Energy, Minerals & Resources | E173: =IFERROR(INDEX('EO Master Input'!$A$2:$A$5000,MATCH($M173,'EO Master Input'!$Y$2:$Y$5000,0)),"") -> 2021 | F173: =IFERROR(INDEX('EO Master Input'!$F$2:$F$5000,MATCH($M173,'EO Master Input'!$Y$2:$Y$5000,0)),"") -> Fire | G173: =IFERROR(INDEX('EO Master Input'!$E$2:$E$5000,MATCH($M173,'EO Master Input'!$Y$2:$Y$5000,0)),"") -> Wildfires | H173: =IFERROR(INDEX('EO Master Input'!$H$2:$H$5000,MATCH($M173,'EO Master Input'!$Y$2:$Y$5000,0)),"") -> 750000 | I173: =IFERROR(INDEX('EO Master Input'!$S$2:$S$5000,MATCH($M173,'EO Master Input'!$Y$2:$Y$5000,0)),"") -> 750000 | J173: =IFERROR(INDEX('EO Master Input'!$N$2:$N$5000,MATCH($M173,'EO Master Input'!$Y$2:$Y$5000,0)),"") -> 0 | K173: =IFERROR(INDEX('EO Master Input'!$Q$2:$Q$5000,MATCH($M173,'EO Master Input'!$Y$2:$Y$5000,0)),"") -> 0 | L173: =IFERROR(INDEX('EO Master Input'!$O$2:$O$5000,MATCH($M173,'EO Master Input'!$Y$2:$Y$5000,0)),"") -> 0 | M173: 156
B174: =IFERROR(INDEX('EO Master Input'!$B$2:$B$5000,MATCH($M174,'EO Master Input'!$Y$2:$Y$5000,0)),"") -> 2021-036 | C174: =IFERROR(INDEX('EO Master Input'!$C$2:$C$5000,MATCH($M174,'EO Master Input'!$Y$2:$Y$5000,0)),"-") -> 52100 | D174: =IFERROR(INDEX('EO Master Input'!$D$2:$D$5000,MATCH($M174,'EO Master Input'!$Y$2:$Y$5000,0)),"") -> Energy, Minerals & Resources | E174: =IFERROR(INDEX('EO Master Input'!$A$2:$A$5000,MATCH($M174,'EO Master Input'!$Y$2:$Y$5000,0)),"") -> 2021 | F174: =IFERROR(INDEX('EO Master Input'!$F$2:$F$5000,MATCH($M174,'EO Master Input'!$Y$2:$Y$5000,0)),"") -> Fire | G174: =IFERROR(INDEX('EO Master Input'!$E$2:$E$5000,MATCH($M174,'EO Master Input'!$Y$2:$Y$5000,0)),"") -> Wildfires | H174: =IFERROR(INDEX('EO Master Input'!$H$2:$H$5000,MATCH($M174,'EO Master Input'!$Y$2:$Y$5000,0)),"") -> 750000 | I174: =IFERROR(INDEX('EO Master Input'!$S$2:$S$5000,MATCH($M174,'EO Master Input'!$Y$2:$Y$5000,0)),"") -> 750000 | J174: =IFERROR(INDEX('EO Master Input'!$N$2:$N$5000,MATCH($M174,'EO Master Input'!$Y$2:$Y$5000,0)),"") -> 0 | K174: =IFERROR(INDEX('EO Master Input'!$Q$2:$Q$5000,MATCH($M174,'EO Master Input'!$Y$2:$Y$5000,0)),"") -> 0 | L174: =IFERROR(INDEX('EO Master Input'!$O$2:$O$5000,MATCH($M174,'EO Master Input'!$Y$2:$Y$5000,0)),"") -> 0 | M174: 157
B175: =IFERROR(INDEX('EO Master Input'!$B$2:$B$5000,MATCH($M175,'EO Master Input'!$Y$2:$Y$5000,0)),"") -> 2021-037 | C175: =IFERROR(INDEX('EO Master Input'!$C$2:$C$5000,MATCH($M175,'EO Master Input'!$Y$2:$Y$5000,0)),"-") -> 52100 | D175: =IFERROR(INDEX('EO Master Input'!$D$2:$D$5000,MATCH($M175,'EO Master Input'!$Y$2:$Y$5000,0)),"") -> Energy, Minerals & Resources | E175: =IFERROR(INDEX('EO Master Input'!$A$2:$A$5000,MATCH($M175,'EO Master Input'!$Y$2:$Y$5000,0)),"") -> 2021 | F175: =IFERROR(INDEX('EO Master Input'!$F$2:$F$5000,MATCH($M175,'EO Master Input'!$Y$2:$Y$5000,0)),"") -> Fire | G175: =IFERROR(INDEX('EO Master Input'!$E$2:$E$5000,MATCH($M175,'EO Master Input'!$Y$2:$Y$5000,0)),"") -> Wildfires | H175: =IFERROR(INDEX('EO Master Input'!$H$2:$H$5000,MATCH($M175,'EO Master Input'!$Y$2:$Y$5000,0)),"") -> 750000 | I175: =IFERROR(INDEX('EO Master Input'!$S$2:$S$5000,MATCH($M175,'EO Master Input'!$Y$2:$Y$5000,0)),"") -> 750000 | J175: =IFERROR(INDEX('EO Master Input'!$N$2:$N$5000,MATCH($M175,'EO Master Input'!$Y$2:$Y$5000,0)),"") -> 0 | K175: =IFERROR(INDEX('EO Master Input'!$Q$2:$Q$5000,MATCH($M175,'EO Master Input'!$Y$2:$Y$5000,0)),"") -> 0 | L175: =IFERROR(INDEX('EO Master Input'!$O$2:$O$5000,MATCH($M175,'EO Master Input'!$Y$2:$Y$5000,0)),"") -> 0 | M175: 158
B176: =IFERROR(INDEX('EO Master Input'!$B$2:$B$5000,MATCH($M176,'EO Master Input'!$Y$2:$Y$5000,0)),"") -> 2021-038 | C176: =IFERROR(INDEX('EO Master Input'!$C$2:$C$5000,MATCH($M176,'EO Master Input'!$Y$2:$Y$5000,0)),"-") -> 52100 | D176: =IFERROR(INDEX('EO Master Input'!$D$2:$D$5000,MATCH($M176,'EO Master Input'!$Y$2:$Y$5000,0)),"") -> Energy, Minerals & Resources | E176: =IFERROR(INDEX('EO Master Input'!$A$2:$A$5000,MATCH($M176,'EO Master Input'!$Y$2:$Y$5000,0)),"") -> 2021 | F176: =IFERROR(INDEX('EO Master Input'!$F$2:$F$5000,MATCH($M176,'EO Master Input'!$Y$2:$Y$5000,0)),"") -> Fire | G176: =IFERROR(INDEX('EO Master Input'!$E$2:$E$5000,MATCH($M176,'EO Master Input'!$Y$2:$Y$5000,0)),"") -> Wildfires | H176: =IFERROR(INDEX('EO Master Input'!$H$2:$H$5000,MATCH($M176,'EO Master Input'!$Y$2:$Y$5000,0)),"") -> 750000 | I176: =IFERROR(INDEX('EO Master Input'!$S$2:$S$5000,MATCH($M176,'EO Master Input'!$Y$2:$Y$5000,0)),"") -> 750000 | J176: =IFERROR(INDEX('EO Master Input'!$N$2:$N$5000,MATCH($M176,'EO Master Input'!$Y$2:$Y$5000,0)),"") -> 0 | K176: =IFERROR(INDEX('EO Master Input'!$Q$2:$Q$5000,MATCH($M176,'EO Master Input'!$Y$2:$Y$5000,0)),"") -> 0 | L176: =IFERROR(INDEX('EO Master Input'!$O$2:$O$5000,MATCH($M176,'EO Master Input'!$Y$2:$Y$5000,0)),"") -> 0 | M176: 159
B177: =IFERROR(INDEX('EO Master Input'!$B$2:$B$5000,MATCH($M177,'EO Master Input'!$Y$2:$Y$5000,0)),"") -> 2021-039 | C177: =IFERROR(INDEX('EO Master Input'!$C$2:$C$5000,MATCH($M177,'EO Master Input'!$Y$2:$Y$5000,0)),"-") -> 52100 | D177: =IFERROR(INDEX('EO Master Input'!$D$2:$D$5000,MATCH($M177,'EO Master Input'!$Y$2:$Y$5000,0)),"") -> Energy, Minerals & Resources | E177: =IFERROR(INDEX('EO Master Input'!$A$2:$A$5000,MATCH($M177,'EO Master Input'!$Y$2:$Y$5000,0)),"") -> 2021 | F177: =IFERROR(INDEX('EO Master Input'!$F$2:$F$5000,MATCH($M177,'EO Master Input'!$Y$2:$Y$5000,0)),"") -> Fire | G177: =IFERROR(INDEX('EO Master Input'!$E$2:$E$5000,MATCH($M177,'EO Master Input'!$Y$2:$Y$5000,0)),"") -> Wildfires | H177: =IFERROR(INDEX('EO Master Input'!$H$2:$H$5000,MATCH($M177,'EO Master Input'!$Y$2:$Y$5000,0)),"") -> 750000 | I177: =IFERROR(INDEX('EO Master Input'!$S$2:$S$5000,MATCH($M177,'EO Master Input'!$Y$2:$Y$5000,0)),"") -> 750000 | J177: =IFERROR(INDEX('EO Master Input'!$N$2:$N$5000,MATCH($M177,'EO Master Input'!$Y$2:$Y$5000,0)),"") -> 0 | K177: =IFERROR(INDEX('EO Master Input'!$Q$2:$Q$5000,MATCH($M177,'EO Master Input'!$Y$2:$Y$5000,0)),"") -> 0 | L177: =IFERROR(INDEX('EO Master Input'!$O$2:$O$5000,MATCH($M177,'EO Master Input'!$Y$2:$Y$5000,0)),"") -> 18205.31 | M177: 160
B178: =IFERROR(INDEX('EO Master Input'!$B$2:$B$5000,MATCH($M178,'EO Master Input'!$Y$2:$Y$5000,0)),"") -> 2021-040 | C178: =IFERROR(INDEX('EO Master Input'!$C$2:$C$5000,MATCH($M178,'EO Master Input'!$Y$2:$Y$5000,0)),"-") -> 79500 | D178: =IFERROR(INDEX('EO Master Input'!$D$2:$D$5000,MATCH($M178,'EO Master Input'!$Y$2:$Y$5000,0)),"") -> Homeland Sec. & Emerg. Mgmt. | E178: =IFERROR(INDEX('EO Master Input'!$A$2:$A$5000,MATCH($M178,'EO Master Input'!$Y$2:$Y$5000,0)),"") -> 2022 | F178: =IFERROR(INDEX('EO Master Input'!$F$2:$F$5000,MATCH($M178,'EO Master Input'!$Y$2:$Y$5000,0)),"") -> Flooding | G178: =IFERROR(INDEX('EO Master Input'!$E$2:$E$5000,MATCH($M178,'EO Master Input'!$Y$2:$Y$5000,0)),"") -> Flooding (Valencia County) | H178: =IFERROR(INDEX('EO Master Input'!$H$2:$H$5000,MATCH($M178,'EO Master Input'!$Y$2:$Y$5000,0)),"") -> 750000 | I178: =IFERROR(INDEX('EO Master Input'!$S$2:$S$5000,MATCH($M178,'EO Master Input'!$Y$2:$Y$5000,0)),"") -> 503289.79 | J178: =IFERROR(INDEX('EO Master Input'!$N$2:$N$5000,MATCH($M178,'EO Master Input'!$Y$2:$Y$5000,0)),"") -> 0 | K178: =IFERROR(INDEX('EO Master Input'!$Q$2:$Q$5000,MATCH($M178,'EO Master Input'!$Y$2:$Y$5000,0)),"") -> 246710.21 | L178: =IFERROR(INDEX('EO Master Input'!$O$2:$O$5000,MATCH($M178,'EO Master Input'!$Y$2:$Y$5000,0)),"") -> 0 | M178: 161
B179: =IFERROR(INDEX('EO Master Input'!$B$2:$B$5000,MATCH($M179,'EO Master Input'!$Y$2:$Y$5000,0)),"") -> 2021-041 | C179: =IFERROR(INDEX('EO Master Input'!$C$2:$C$5000,MATCH($M179,'EO Master Input'!$Y$2:$Y$5000,0)),"-") -> 79500 | D179: =IFERROR(INDEX('EO Master Input'!$D$2:$D$5000,MATCH($M179,'EO Master Input'!$Y$2:$Y$5000,0)),"") -> Homeland Sec. & Emerg. Mgmt. | E179: =IFERROR(INDEX('EO Master Input'!$A$2:$A$5000,MATCH($M179,'EO Master Input'!$Y$2:$Y$5000,0)),"") -> 2022 | F179: =IFERROR(INDEX('EO Master Input'!$F$2:$F$5000,MATCH($M179,'EO Master Input'!$Y$2:$Y$5000,0)),"") -> Flooding | G179: =IFERROR(INDEX('EO Master Input'!$E$2:$E$5000,MATCH($M179,'EO Master Input'!$Y$2:$Y$5000,0)),"") -> Flooding (Eddy County) | H179: =IFERROR(INDEX('EO Master Input'!$H$2:$H$5000,MATCH($M179,'EO Master Input'!$Y$2:$Y$5000,0)),"") -> 750000 | I179: =IFERROR(INDEX('EO Master Input'!$S$2:$S$5000,MATCH($M179,'EO Master Input'!$Y$2:$Y$5000,0)),"") -> 0 | J179: =IFERROR(INDEX('EO Master Input'!$N$2:$N$5000,MATCH($M179,'EO Master Input'!$Y$2:$Y$5000,0)),"") -> 0 | K179: =IFERROR(INDEX('EO Master Input'!$Q$2:$Q$5000,MATCH($M179,'EO Master Input'!$Y$2:$Y$5000,0)),"") -> 750000 | L179: =IFERROR(INDEX('EO Master Input'!$O$2:$O$5000,MATCH($M179,'EO Master Input'!$Y$2:$Y$5000,0)),"") -> 0 | M179: 162
B180: =IFERROR(INDEX('EO Master Input'!$B$2:$B$5000,MATCH($M180,'EO Master Input'!$Y$2:$Y$5000,0)),"") -> 2021-042 | C180: =IFERROR(INDEX('EO Master Input'!$C$2:$C$5000,MATCH($M180,'EO Master Input'!$Y$2:$Y$5000,0)),"-") -> 79500 | D180: =IFERROR(INDEX('EO Master Input'!$D$2:$D$5000,MATCH($M180,'EO Master Input'!$Y$2:$Y$5000,0)),"") -> Homeland Sec. & Emerg. Mgmt. | E180: =IFERROR(INDEX('EO Master Input'!$A$2:$A$5000,MATCH($M180,'EO Master Input'!$Y$2:$Y$5000,0)),"") -> 2022 | F180: =IFERROR(INDEX('EO Master Input'!$F$2:$F$5000,MATCH($M180,'EO Master Input'!$Y$2:$Y$5000,0)),"") -> Flooding | G180: =IFERROR(INDEX('EO Master Input'!$E$2:$E$5000,MATCH($M180,'EO Master Input'!$Y$2:$Y$5000,0)),"") -> Flooding (Belen) | H180: =IFERROR(INDEX('EO Master Input'!$H$2:$H$5000,MATCH($M180,'EO Master Input'!$Y$2:$Y$5000,0)),"") -> 750000 | I180: =IFERROR(INDEX('EO Master Input'!$S$2:$S$5000,MATCH($M180,'EO Master Input'!$Y$2:$Y$5000,0)),"") -> 1587.56 | J180: =IFERROR(INDEX('EO Master Input'!$N$2:$N$5000,MATCH($M180,'EO Master Input'!$Y$2:$Y$5000,0)),"") -> 282000 | K180: =IFERROR(INDEX('EO Master Input'!$Q$2:$Q$5000,MATCH($M180,'EO Master Input'!$Y$2:$Y$5000,0)),"") -> 466412.44 | L180: =IFERROR(INDEX('EO Master Input'!$O$2:$O$5000,MATCH($M180,'EO Master Input'!$Y$2:$Y$5000,0)),"") -> 0 | M180: 163
B181: =IFERROR(INDEX('EO Master Input'!$B$2:$B$5000,MATCH($M181,'EO Master Input'!$Y$2:$Y$5000,0)),"") -> 2021-043 | C181: =IFERROR(INDEX('EO Master Input'!$C$2:$C$5000,MATCH($M181,'EO Master Input'!$Y$2:$Y$5000,0)),"-") -> 0 | D181: =IFERROR(INDEX('EO Master Input'!$D$2:$D$5000,MATCH($M181,'EO Master Input'!$Y$2:$Y$5000,0)),"") -> No Agency | E181: =IFERROR(INDEX('EO Master Input'!$A$2:$A$5000,MATCH($M181,'EO Master Input'!$Y$2:$Y$5000,0)),"") -> 2022 | F181: =IFERROR(INDEX('EO Master Input'!$F$2:$F$5000,MATCH($M181,'EO Master Input'!$Y$2:$Y$5000,0)),"") -> Other | G181: =IFERROR(INDEX('EO Master Input'!$E$2:$E$5000,MATCH($M181,'EO Master Input'!$Y$2:$Y$5000,0)),"") -> Ordering Flags to Half-Staff in Memorial of Volunteer Firefighter Janet Tracy | H181: =IFERROR(INDEX('EO Master Input'!$H$2:$H$5000,MATCH($M181,'EO Master Input'!$Y$2:$Y$5000,0)),"") -> 0 | I181: =IFERROR(INDEX('EO Master Input'!$S$2:$S$5000,MATCH($M181,'EO Master Input'!$Y$2:$Y$5000,0)),"") -> 0 | J181: =IFERROR(INDEX('EO Master Input'!$N$2:$N$5000,MATCH($M181,'EO Master Input'!$Y$2:$Y$5000,0)),"") -> 0 | K181: =IFERROR(INDEX('EO Master Input'!$Q$2:$Q$5000,MATCH($M181,'EO Master Input'!$Y$2:$Y$5000,0)),"") -> 0 | L181: =IFERROR(INDEX('EO Master Input'!$O$2:$O$5000,MATCH($M181,'EO Master Input'!$Y$2:$Y$5000,0)),"") -> 0 | M181: 164
B182: =IFERROR(INDEX('EO Master Input'!$B$2:$B$5000,MATCH($M182,'EO Master Input'!$Y$2:$Y$5000,0)),"") -> 2021-044 | C182: =IFERROR(INDEX('EO Master Input'!$C$2:$C$5000,MATCH($M182,'EO Master Input'!$Y$2:$Y$5000,0)),"-") -> 0 | D182: =IFERROR(INDEX('EO Master Input'!$D$2:$D$5000,MATCH($M182,'EO Master Input'!$Y$2:$Y$5000,0)),"") -> No Agency | E182: =IFERROR(INDEX('EO Master Input'!$A$2:$A$5000,MATCH($M182,'EO Master Input'!$Y$2:$Y$5000,0)),"") -> 2022 | F182: =IFERROR(INDEX('EO Master Input'!$F$2:$F$5000,MATCH($M182,'EO Master Input'!$Y$2:$Y$5000,0)),"") -> Pandemic | G182: =IFERROR(INDEX('EO Master Input'!$E$2:$E$5000,MATCH($M182,'EO Master Input'!$Y$2:$Y$5000,0)),"") -> Renew PHO due to COVID | H182: =IFERROR(INDEX('EO Master Input'!$H$2:$H$5000,MATCH($M182,'EO Master Input'!$Y$2:$Y$5000,0)),"") -> 0 | I182: =IFERROR(INDEX('EO Master Input'!$S$2:$S$5000,MATCH($M182,'EO Master Input'!$Y$2:$Y$5000,0)),"") -> 0 | J182: =IFERROR(INDEX('EO Master Input'!$N$2:$N$5000,MATCH($M182,'EO Master Input'!$Y$2:$Y$5000,0)),"") -> 0 | K182: =IFERROR(INDEX('EO Master Input'!$Q$2:$Q$5000,MATCH($M182,'EO Master Input'!$Y$2:$Y$5000,0)),"") -> 0 | L182: =IFERROR(INDEX('EO Master Input'!$O$2:$O$5000,MATCH($M182,'EO Master Input'!$Y$2:$Y$5000,0)),"") -> 0 | M182: 165
B183: =IFERROR(INDEX('EO Master Input'!$B$2:$B$5000,MATCH($M183,'EO Master Input'!$Y$2:$Y$5000,0)),"") -> 2021-045 | C183: =IFERROR(INDEX('EO Master Input'!$C$2:$C$5000,MATCH($M183,'EO Master Input'!$Y$2:$Y$5000,0)),"-") -> 0 | D183: =IFERROR(INDEX('EO Master Input'!$D$2:$D$5000,MATCH($M183,'EO Master Input'!$Y$2:$Y$5000,0)),"") -> No Agency | E183: =IFERROR(INDEX('EO Master Input'!$A$2:$A$5000,MATCH($M183,'EO Master Input'!$Y$2:$Y$5000,0)),"") -> 2022 | F183: =IFERROR(INDEX('EO Master Input'!$F$2:$F$5000,MATCH($M183,'EO Master Input'!$Y$2:$Y$5000,0)),"") -> Pandemic | G183: =IFERROR(INDEX('EO Master Input'!$E$2:$E$5000,MATCH($M183,'EO Master Input'!$Y$2:$Y$5000,0)),"") -> Requiring State Employees to Comply with certain Public Health Requirements | H183: =IFERROR(INDEX('EO Master Input'!$H$2:$H$5000,MATCH($M183,'EO Master Input'!$Y$2:$Y$5000,0)),"") -> 0 | I183: =IFERROR(INDEX('EO Master Input'!$S$2:$S$5000,MATCH($M183,'EO Master Input'!$Y$2:$Y$5000,0)),"") -> 0 | J183: =IFERROR(INDEX('EO Master Input'!$N$2:$N$5000,MATCH($M183,'EO Master Input'!$Y$2:$Y$5000,0)),"") -> 0 | K183: =IFERROR(INDEX('EO Master Input'!$Q$2:$Q$5000,MATCH($M183,'EO Master Input'!$Y$2:$Y$5000,0)),"") -> 0 | L183: =IFERROR(INDEX('EO Master Input'!$O$2:$O$5000,MATCH($M183,'EO Master Input'!$Y$2:$Y$5000,0)),"") -> 0 | M183: 166
B184: =IFERROR(INDEX('EO Master Input'!$B$2:$B$5000,MATCH($M184,'EO Master Input'!$Y$2:$Y$5000,0)),"") -> 2021-046 | C184: =IFERROR(INDEX('EO Master Input'!$C$2:$C$5000,MATCH($M184,'EO Master Input'!$Y$2:$Y$5000,0)),"-") -> 0 | D184: =IFERROR(INDEX('EO Master Input'!$D$2:$D$5000,MATCH($M184,'EO Master Input'!$Y$2:$Y$5000,0)),"") -> No Agency | E184: =IFERROR(INDEX('EO Master Input'!$A$2:$A$5000,MATCH($M184,'EO Master Input'!$Y$2:$Y$5000,0)),"") -> 2022 | F184: =IFERROR(INDEX('EO Master Input'!$F$2:$F$5000,MATCH($M184,'EO Master Input'!$Y$2:$Y$5000,0)),"") -> Pandemic | G184: =IFERROR(INDEX('EO Master Input'!$E$2:$E$5000,MATCH($M184,'EO Master Input'!$Y$2:$Y$5000,0)),"") -> Amended Order Requiring State Employees to Comply with Certain Public Health Requirements | H184: =IFERROR(INDEX('EO Master Input'!$H$2:$H$5000,MATCH($M184,'EO Master Input'!$Y$2:$Y$5000,0)),"") -> 0 | I184: =IFERROR(INDEX('EO Master Input'!$S$2:$S$5000,MATCH($M184,'EO Master Input'!$Y$2:$Y$5000,0)),"") -> 0 | J184: =IFERROR(INDEX('EO Master Input'!$N$2:$N$5000,MATCH($M184,'EO Master Input'!$Y$2:$Y$5000,0)),"") -> 0 | K184: =IFERROR(INDEX('EO Master Input'!$Q$2:$Q$5000,MATCH($M184,'EO Master Input'!$Y$2:$Y$5000,0)),"") -> 0 | L184: =IFERROR(INDEX('EO Master Input'!$O$2:$O$5000,MATCH($M184,'EO Master Input'!$Y$2:$Y$5000,0)),"") -> 0 | M184: 167
B185: =IFERROR(INDEX('EO Master Input'!$B$2:$B$5000,MATCH($M185,'EO Master Input'!$Y$2:$Y$5000,0)),"") -> 2021-047 | C185: =IFERROR(INDEX('EO Master Input'!$C$2:$C$5000,MATCH($M185,'EO Master Input'!$Y$2:$Y$5000,0)),"-") -> 79500 | D185: =IFERROR(INDEX('EO Master Input'!$D$2:$D$5000,MATCH($M185,'EO Master Input'!$Y$2:$Y$5000,0)),"") -> Homeland Sec. & Emerg. Mgmt. | E185: =IFERROR(INDEX('EO Master Input'!$A$2:$A$5000,MATCH($M185,'EO Master Input'!$Y$2:$Y$5000,0)),"") -> 2022 | F185: =IFERROR(INDEX('EO Master Input'!$F$2:$F$5000,MATCH($M185,'EO Master Input'!$Y$2:$Y$5000,0)),"") -> Flooding | G185: =IFERROR(INDEX('EO Master Input'!$E$2:$E$5000,MATCH($M185,'EO Master Input'!$Y$2:$Y$5000,0)),"") -> Flooding (Dona Ana County) | H185: =IFERROR(INDEX('EO Master Input'!$H$2:$H$5000,MATCH($M185,'EO Master Input'!$Y$2:$Y$5000,0)),"") -> 750000 | I185: =IFERROR(INDEX('EO Master Input'!$S$2:$S$5000,MATCH($M185,'EO Master Input'!$Y$2:$Y$5000,0)),"") -> 551774.75 | J185: =IFERROR(INDEX('EO Master Input'!$N$2:$N$5000,MATCH($M185,'EO Master Input'!$Y$2:$Y$5000,0)),"") -> 0 | K185: =IFERROR(INDEX('EO Master Input'!$Q$2:$Q$5000,MATCH($M185,'EO Master Input'!$Y$2:$Y$5000,0)),"") -> 198225.25 | L185: =IFERROR(INDEX('EO Master Input'!$O$2:$O$5000,MATCH($M185,'EO Master Input'!$Y$2:$Y$5000,0)),"") -> 0 | M185: 168
B186: =IFERROR(INDEX('EO Master Input'!$B$2:$B$5000,MATCH($M186,'EO Master Input'!$Y$2:$Y$5000,0)),"") -> 2021-048 | C186: =IFERROR(INDEX('EO Master Input'!$C$2:$C$5000,MATCH($M186,'EO Master Input'!$Y$2:$Y$5000,0)),"-") -> 0 | D186: =IFERROR(INDEX('EO Master Input'!$D$2:$D$5000,MATCH($M186,'EO Master Input'!$Y$2:$Y$5000,0)),"") -> No Agency | E186: =IFERROR(INDEX('EO Master Input'!$A$2:$A$5000,MATCH($M186,'EO Master Input'!$Y$2:$Y$5000,0)),"") -> 2022 | F186: =IFERROR(INDEX('EO Master Input'!$F$2:$F$5000,MATCH($M186,'EO Master Input'!$Y$2:$Y$5000,0)),"") -> Other | G186: =IFERROR(INDEX('EO Master Input'!$E$2:$E$5000,MATCH($M186,'EO Master Input'!$Y$2:$Y$5000,0)),"") -> Directing Executive Departments to Collect Voluntary self-identification information | H186: =IFERROR(INDEX('EO Master Input'!$H$2:$H$5000,MATCH($M186,'EO Master Input'!$Y$2:$Y$5000,0)),"") -> 0 | I186: =IFERROR(INDEX('EO Master Input'!$S$2:$S$5000,MATCH($M186,'EO Master Input'!$Y$2:$Y$5000,0)),"") -> 0 | J186: =IFERROR(INDEX('EO Master Input'!$N$2:$N$5000,MATCH($M186,'EO Master Input'!$Y$2:$Y$5000,0)),"") -> 0 | K186: =IFERROR(INDEX('EO Master Input'!$Q$2:$Q$5000,MATCH($M186,'EO Master Input'!$Y$2:$Y$5000,0)),"") -> 0 | L186: =IFERROR(INDEX('EO Master Input'!$O$2:$O$5000,MATCH($M186,'EO Master Input'!$Y$2:$Y$5000,0)),"") -> 0 | M186: 169
B187: =IFERROR(INDEX('EO Master Input'!$B$2:$B$5000,MATCH($M187,'EO Master Input'!$Y$2:$Y$5000,0)),"") -> 2021-049 | C187: =IFERROR(INDEX('EO Master Input'!$C$2:$C$5000,MATCH($M187,'EO Master Input'!$Y$2:$Y$5000,0)),"-") -> 0 | D187: =IFERROR(INDEX('EO Master Input'!$D$2:$D$5000,MATCH($M187,'EO Master Input'!$Y$2:$Y$5000,0)),"") -> No Agency | E187: =IFERROR(INDEX('EO Master Input'!$A$2:$A$5000,MATCH($M187,'EO Master Input'!$Y$2:$Y$5000,0)),"") -> 2022 | F187: =IFERROR(INDEX('EO Master Input'!$F$2:$F$5000,MATCH($M187,'EO Master Input'!$Y$2:$Y$5000,0)),"") -> Pandemic | G187: =IFERROR(INDEX('EO Master Input'!$E$2:$E$5000,MATCH($M187,'EO Master Input'!$Y$2:$Y$5000,0)),"") -> Renew PHO due to COVID | H187: =IFERROR(INDEX('EO Master Input'!$H$2:$H$5000,MATCH($M187,'EO Master Input'!$Y$2:$Y$5000,0)),"") -> 0 | I187: =IFERROR(INDEX('EO Master Input'!$S$2:$S$5000,MATCH($M187,'EO Master Input'!$Y$2:$Y$5000,0)),"") -> 0 | J187: =IFERROR(INDEX('EO Master Input'!$N$2:$N$5000,MATCH($M187,'EO Master Input'!$Y$2:$Y$5000,0)),"") -> 0 | K187: =IFERROR(INDEX('EO Master Input'!$Q$2:$Q$5000,MATCH($M187,'EO Master Input'!$Y$2:$Y$5000,0)),"") -> 0 | L187: =IFERROR(INDEX('EO Master Input'!$O$2:$O$5000,MATCH($M187,'EO Master Input'!$Y$2:$Y$5000,0)),"") -> 0 | M187: 170
B188: =IFERROR(INDEX('EO Master Input'!$B$2:$B$5000,MATCH($M188,'EO Master Input'!$Y$2:$Y$5000,0)),"") -> 2021-050 | C188: =IFERROR(INDEX('EO Master Input'!$C$2:$C$5000,MATCH($M188,'EO Master Input'!$Y$2:$Y$5000,0)),"-") -> 79500 | D188: =IFERROR(INDEX('EO Master Input'!$D$2:$D$5000,MATCH($M188,'EO Master Input'!$Y$2:$Y$5000,0)),"") -> Homeland Sec. & Emerg. Mgmt. | E188: =IFERROR(INDEX('EO Master Input'!$A$2:$A$5000,MATCH($M188,'EO Master Input'!$Y$2:$Y$5000,0)),"") -> 2022 | F188: =IFERROR(INDEX('EO Master Input'!$F$2:$F$5000,MATCH($M188,'EO Master Input'!$Y$2:$Y$5000,0)),"") -> Flooding | G188: =IFERROR(INDEX('EO Master Input'!$E$2:$E$5000,MATCH($M188,'EO Master Input'!$Y$2:$Y$5000,0)),"") -> Flooding (Mora County) | H188: =IFERROR(INDEX('EO Master Input'!$H$2:$H$5000,MATCH($M188,'EO Master Input'!$Y$2:$Y$5000,0)),"") -> 750000 | I188: =IFERROR(INDEX('EO Master Input'!$S$2:$S$5000,MATCH($M188,'EO Master Input'!$Y$2:$Y$5000,0)),"") -> 64787.46 | J188: =IFERROR(INDEX('EO Master Input'!$N$2:$N$5000,MATCH($M188,'EO Master Input'!$Y$2:$Y$5000,0)),"") -> 0 | K188: =IFERROR(INDEX('EO Master Input'!$Q$2:$Q$5000,MATCH($M188,'EO Master Input'!$Y$2:$Y$5000,0)),"") -> 685212.54 | L188: =IFERROR(INDEX('EO Master Input'!$O$2:$O$5000,MATCH($M188,'EO Master Input'!$Y$2:$Y$5000,0)),"") -> 685212.54 | M188: 171
B189: =IFERROR(INDEX('EO Master Input'!$B$2:$B$5000,MATCH($M189,'EO Master Input'!$Y$2:$Y$5000,0)),"") -> 2021-051 | C189: =IFERROR(INDEX('EO Master Input'!$C$2:$C$5000,MATCH($M189,'EO Master Input'!$Y$2:$Y$5000,0)),"-") -> 79500 | D189: =IFERROR(INDEX('EO Master Input'!$D$2:$D$5000,MATCH($M189,'EO Master Input'!$Y$2:$Y$5000,0)),"") -> Homeland Sec. & Emerg. Mgmt. | E189: =IFERROR(INDEX('EO Master Input'!$A$2:$A$5000,MATCH($M189,'EO Master Input'!$Y$2:$Y$5000,0)),"") -> 2022 | F189: =IFERROR(INDEX('EO Master Input'!$F$2:$F$5000,MATCH($M189,'EO Master Input'!$Y$2:$Y$5000,0)),"") -> Flooding | G189: =IFERROR(INDEX('EO Master Input'!$E$2:$E$5000,MATCH($M189,'EO Master Input'!$Y$2:$Y$5000,0)),"") -> Flooding (Ruidoso) | H189: =IFERROR(INDEX('EO Master Input'!$H$2:$H$5000,MATCH($M189,'EO Master Input'!$Y$2:$Y$5000,0)),"") -> 750000 | I189: =IFERROR(INDEX('EO Master Input'!$S$2:$S$5000,MATCH($M189,'EO Master Input'!$Y$2:$Y$5000,0)),"") -> 5851.97 | J189: =IFERROR(INDEX('EO Master Input'!$N$2:$N$5000,MATCH($M189,'EO Master Input'!$Y$2:$Y$5000,0)),"") -> 0 | K189: =IFERROR(INDEX('EO Master Input'!$Q$2:$Q$5000,MATCH($M189,'EO Master Input'!$Y$2:$Y$5000,0)),"") -> 744148.03 | L189: =IFERROR(INDEX('EO Master Input'!$O$2:$O$5000,MATCH($M189,'EO Master Input'!$Y$2:$Y$5000,0)),"") -> 0 | M189: 172
B190: =IFERROR(INDEX('EO Master Input'!$B$2:$B$5000,MATCH($M190,'EO Master Input'!$Y$2:$Y$5000,0)),"") -> 2021-052 | C190: =IFERROR(INDEX('EO Master Input'!$C$2:$C$5000,MATCH($M190,'EO Master Input'!$Y$2:$Y$5000,0)),"-") -> 0 | D190: =IFERROR(INDEX('EO Master Input'!$D$2:$D$5000,MATCH($M190,'EO Master Input'!$Y$2:$Y$5000,0)),"") -> No Agency | E190: =IFERROR(INDEX('EO Master Input'!$A$2:$A$5000,MATCH($M190,'EO Master Input'!$Y$2:$Y$5000,0)),"") -> 2022 | F190: =IFERROR(INDEX('EO Master Input'!$F$2:$F$5000,MATCH($M190,'EO Master Input'!$Y$2:$Y$5000,0)),"") -> Other | G190: =IFERROR(INDEX('EO Master Input'!$E$2:$E$5000,MATCH($M190,'EO Master Input'!$Y$2:$Y$5000,0)),"") -> Protecting New Mexico's Lands, Watersheds, Wildlife, and Natural Heritage | H190: =IFERROR(INDEX('EO Master Input'!$H$2:$H$5000,MATCH($M190,'EO Master Input'!$Y$2:$Y$5000,0)),"") -> 0 | I190: =IFERROR(INDEX('EO Master Input'!$S$2:$S$5000,MATCH($M190,'EO Master Input'!$Y$2:$Y$5000,0)),"") -> 0 | J190: =IFERROR(INDEX('EO Master Input'!$N$2:$N$5000,MATCH($M190,'EO Master Input'!$Y$2:$Y$5000,0)),"") -> 0 | K190: =IFERROR(INDEX('EO Master Input'!$Q$2:$Q$5000,MATCH($M190,'EO Master Input'!$Y$2:$Y$5000,0)),"") -> 0 | L190: =IFERROR(INDEX('EO Master Input'!$O$2:$O$5000,MATCH($M190,'EO Master Input'!$Y$2:$Y$5000,0)),"") -> 0 | M190: 173
B191: =IFERROR(INDEX('EO Master Input'!$B$2:$B$5000,MATCH($M191,'EO Master Input'!$Y$2:$Y$5000,0)),"") -> 2021-053 | C191: =IFERROR(INDEX('EO Master Input'!$C$2:$C$5000,MATCH($M191,'EO Master Input'!$Y$2:$Y$5000,0)),"-") -> 79500 | D191: =IFERROR(INDEX('EO Master Input'!$D$2:$D$5000,MATCH($M191,'EO Master Input'!$Y$2:$Y$5000,0)),"") -> Homeland Sec. & Emerg. Mgmt. | E191: =IFERROR(INDEX('EO Master Input'!$A$2:$A$5000,MATCH($M191,'EO Master Input'!$Y$2:$Y$5000,0)),"") -> 2022 | F191: =IFERROR(INDEX('EO Master Input'!$F$2:$F$5000,MATCH($M191,'EO Master Input'!$Y$2:$Y$5000,0)),"") -> Flooding | G191: =IFERROR(INDEX('EO Master Input'!$E$2:$E$5000,MATCH($M191,'EO Master Input'!$Y$2:$Y$5000,0)),"") -> Flooding (Rio Arriba County) | H191: =IFERROR(INDEX('EO Master Input'!$H$2:$H$5000,MATCH($M191,'EO Master Input'!$Y$2:$Y$5000,0)),"") -> 750000 | I191: =IFERROR(INDEX('EO Master Input'!$S$2:$S$5000,MATCH($M191,'EO Master Input'!$Y$2:$Y$5000,0)),"") -> 12478.3 | J191: =IFERROR(INDEX('EO Master Input'!$N$2:$N$5000,MATCH($M191,'EO Master Input'!$Y$2:$Y$5000,0)),"") -> 0 | K191: =IFERROR(INDEX('EO Master Input'!$Q$2:$Q$5000,MATCH($M191,'EO Master Input'!$Y$2:$Y$5000,0)),"") -> 737521.7 | L191: =IFERROR(INDEX('EO Master Input'!$O$2:$O$5000,MATCH($M191,'EO Master Input'!$Y$2:$Y$5000,0)),"") -> 737521.7 | M191: 174
B192: =IFERROR(INDEX('EO Master Input'!$B$2:$B$5000,MATCH($M192,'EO Master Input'!$Y$2:$Y$5000,0)),"") -> 2021-054 | C192: =IFERROR(INDEX('EO Master Input'!$C$2:$C$5000,MATCH($M192,'EO Master Input'!$Y$2:$Y$5000,0)),"-") -> 0 | D192: =IFERROR(INDEX('EO Master Input'!$D$2:$D$5000,MATCH($M192,'EO Master Input'!$Y$2:$Y$5000,0)),"") -> No Agency | E192: =IFERROR(INDEX('EO Master Input'!$A$2:$A$5000,MATCH($M192,'EO Master Input'!$Y$2:$Y$5000,0)),"") -> 2022 | F192: =IFERROR(INDEX('EO Master Input'!$F$2:$F$5000,MATCH($M192,'EO Master Input'!$Y$2:$Y$5000,0)),"") -> Pandemic | G192: =IFERROR(INDEX('EO Master Input'!$E$2:$E$5000,MATCH($M192,'EO Master Input'!$Y$2:$Y$5000,0)),"") -> Renew PHO due to COVID | H192: =IFERROR(INDEX('EO Master Input'!$H$2:$H$5000,MATCH($M192,'EO Master Input'!$Y$2:$Y$5000,0)),"") -> 0 | I192: =IFERROR(INDEX('EO Master Input'!$S$2:$S$5000,MATCH($M192,'EO Master Input'!$Y$2:$Y$5000,0)),"") -> 0 | J192: =IFERROR(INDEX('EO Master Input'!$N$2:$N$5000,MATCH($M192,'EO Master Input'!$Y$2:$Y$5000,0)),"") -> 0 | K192: =IFERROR(INDEX('EO Master Input'!$Q$2:$Q$5000,MATCH($M192,'EO Master Input'!$Y$2:$Y$5000,0)),"") -> 0 | L192: =IFERROR(INDEX('EO Master Input'!$O$2:$O$5000,MATCH($M192,'EO Master Input'!$Y$2:$Y$5000,0)),"") -> 0 | M192: 175
B193: =IFERROR(INDEX('EO Master Input'!$B$2:$B$5000,MATCH($M193,'EO Master Input'!$Y$2:$Y$5000,0)),"") -> 2021-055 | C193: =IFERROR(INDEX('EO Master Input'!$C$2:$C$5000,MATCH($M193,'EO Master Input'!$Y$2:$Y$5000,0)),"-") -> 0 | D193: =IFERROR(INDEX('EO Master Input'!$D$2:$D$5000,MATCH($M193,'EO Master Input'!$Y$2:$Y$5000,0)),"") -> No Agency | E193: =IFERROR(INDEX('EO Master Input'!$A$2:$A$5000,MATCH($M193,'EO Master Input'!$Y$2:$Y$5000,0)),"") -> 2022 | F193: =IFERROR(INDEX('EO Master Input'!$F$2:$F$5000,MATCH($M193,'EO Master Input'!$Y$2:$Y$5000,0)),"") -> Other | G193: =IFERROR(INDEX('EO Master Input'!$E$2:$E$5000,MATCH($M193,'EO Master Input'!$Y$2:$Y$5000,0)),"") -> Rescinding EOs | H193: =IFERROR(INDEX('EO Master Input'!$H$2:$H$5000,MATCH($M193,'EO Master Input'!$Y$2:$Y$5000,0)),"") -> 0 | I193: =IFERROR(INDEX('EO Master Input'!$S$2:$S$5000,MATCH($M193,'EO Master Input'!$Y$2:$Y$5000,0)),"") -> 0 | J193: =IFERROR(INDEX('EO Master Input'!$N$2:$N$5000,MATCH($M193,'EO Master Input'!$Y$2:$Y$5000,0)),"") -> 0 | K193: =IFERROR(INDEX('EO Master Input'!$Q$2:$Q$5000,MATCH($M193,'EO Master Input'!$Y$2:$Y$5000,0)),"") -> 0 | L193: =IFERROR(INDEX('EO Master Input'!$O$2:$O$5000,MATCH($M193,'EO Master Input'!$Y$2:$Y$5000,0)),"") -> 0 | M193: 176
B194: =IFERROR(INDEX('EO Master Input'!$B$2:$B$5000,MATCH($M194,'EO Master Input'!$Y$2:$Y$5000,0)),"") -> 2021-056 | C194: =IFERROR(INDEX('EO Master Input'!$C$2:$C$5000,MATCH($M194,'EO Master Input'!$Y$2:$Y$5000,0)),"-") -> 79500 | D194: =IFERROR(INDEX('EO Master Input'!$D$2:$D$5000,MATCH($M194,'EO Master Input'!$Y$2:$Y$5000,0)),"") -> Homeland Sec. & Emerg. Mgmt. | E194: =IFERROR(INDEX('EO Master Input'!$A$2:$A$5000,MATCH($M194,'EO Master Input'!$Y$2:$Y$5000,0)),"") -> 2022 | F194: =IFERROR(INDEX('EO Master Input'!$F$2:$F$5000,MATCH($M194,'EO Master Input'!$Y$2:$Y$5000,0)),"") -> Flooding | G194: =IFERROR(INDEX('EO Master Input'!$E$2:$E$5000,MATCH($M194,'EO Master Input'!$Y$2:$Y$5000,0)),"") -> Flooding (Dona Ana County) | H194: =IFERROR(INDEX('EO Master Input'!$H$2:$H$5000,MATCH($M194,'EO Master Input'!$Y$2:$Y$5000,0)),"") -> 750000 | I194: =IFERROR(INDEX('EO Master Input'!$S$2:$S$5000,MATCH($M194,'EO Master Input'!$Y$2:$Y$5000,0)),"") -> 3189.65 | J194: =IFERROR(INDEX('EO Master Input'!$N$2:$N$5000,MATCH($M194,'EO Master Input'!$Y$2:$Y$5000,0)),"") -> 0 | K194: =IFERROR(INDEX('EO Master Input'!$Q$2:$Q$5000,MATCH($M194,'EO Master Input'!$Y$2:$Y$5000,0)),"") -> 746810.35 | L194: =IFERROR(INDEX('EO Master Input'!$O$2:$O$5000,MATCH($M194,'EO Master Input'!$Y$2:$Y$5000,0)),"") -> 0 | M194: 177
B195: =IFERROR(INDEX('EO Master Input'!$B$2:$B$5000,MATCH($M195,'EO Master Input'!$Y$2:$Y$5000,0)),"") -> 2021-057 | C195: =IFERROR(INDEX('EO Master Input'!$C$2:$C$5000,MATCH($M195,'EO Master Input'!$Y$2:$Y$5000,0)),"-") -> 0 | D195: =IFERROR(INDEX('EO Master Input'!$D$2:$D$5000,MATCH($M195,'EO Master Input'!$Y$2:$Y$5000,0)),"") -> No Agency | E195: =IFERROR(INDEX('EO Master Input'!$A$2:$A$5000,MATCH($M195,'EO Master Input'!$Y$2:$Y$5000,0)),"") -> 2022 | F195: =IFERROR(INDEX('EO Master Input'!$F$2:$F$5000,MATCH($M195,'EO Master Input'!$Y$2:$Y$5000,0)),"") -> Pandemic | G195: =IFERROR(INDEX('EO Master Input'!$E$2:$E$5000,MATCH($M195,'EO Master Input'!$Y$2:$Y$5000,0)),"") -> Second Amended Order Requiring State Employees to Comply with Certain Public Health Requirements | H195: =IFERROR(INDEX('EO Master Input'!$H$2:$H$5000,MATCH($M195,'EO Master Input'!$Y$2:$Y$5000,0)),"") -> 0 | I195: =IFERROR(INDEX('EO Master Input'!$S$2:$S$5000,MATCH($M195,'EO Master Input'!$Y$2:$Y$5000,0)),"") -> 0 | J195: =IFERROR(INDEX('EO Master Input'!$N$2:$N$5000,MATCH($M195,'EO Master Input'!$Y$2:$Y$5000,0)),"") -> 0 | K195: =IFERROR(INDEX('EO Master Input'!$Q$2:$Q$5000,MATCH($M195,'EO Master Input'!$Y$2:$Y$5000,0)),"") -> 0 | L195: =IFERROR(INDEX('EO Master Input'!$O$2:$O$5000,MATCH($M195,'EO Master Input'!$Y$2:$Y$5000,0)),"") -> 0 | M195: 178
B196: =IFERROR(INDEX('EO Master Input'!$B$2:$B$5000,MATCH($M196,'EO Master Input'!$Y$2:$Y$5000,0)),"") -> 2021-058 | C196: =IFERROR(INDEX('EO Master Input'!$C$2:$C$5000,MATCH($M196,'EO Master Input'!$Y$2:$Y$5000,0)),"-") -> 0 | D196: =IFERROR(INDEX('EO Master Input'!$D$2:$D$5000,MATCH($M196,'EO Master Input'!$Y$2:$Y$5000,0)),"") -> No Agency | E196: =IFERROR(INDEX('EO Master Input'!$A$2:$A$5000,MATCH($M196,'EO Master Input'!$Y$2:$Y$5000,0)),"") -> 2022 | F196: =IFERROR(INDEX('EO Master Input'!$F$2:$F$5000,MATCH($M196,'EO Master Input'!$Y$2:$Y$5000,0)),"") -> Pandemic | G196: =IFERROR(INDEX('EO Master Input'!$E$2:$E$5000,MATCH($M196,'EO Master Input'!$Y$2:$Y$5000,0)),"") -> Renew PHO due to COVID | H196: =IFERROR(INDEX('EO Master Input'!$H$2:$H$5000,MATCH($M196,'EO Master Input'!$Y$2:$Y$5000,0)),"") -> 0 | I196: =IFERROR(INDEX('EO Master Input'!$S$2:$S$5000,MATCH($M196,'EO Master Input'!$Y$2:$Y$5000,0)),"") -> 0 | J196: =IFERROR(INDEX('EO Master Input'!$N$2:$N$5000,MATCH($M196,'EO Master Input'!$Y$2:$Y$5000,0)),"") -> 0 | K196: =IFERROR(INDEX('EO Master Input'!$Q$2:$Q$5000,MATCH($M196,'EO Master Input'!$Y$2:$Y$5000,0)),"") -> 0 | L196: =IFERROR(INDEX('EO Master Input'!$O$2:$O$5000,MATCH($M196,'EO Master Input'!$Y$2:$Y$5000,0)),"") -> 0 | M196: 179
B197: =IFERROR(INDEX('EO Master Input'!$B$2:$B$5000,MATCH($M197,'EO Master Input'!$Y$2:$Y$5000,0)),"") -> 2021-059 | C197: =IFERROR(INDEX('EO Master Input'!$C$2:$C$5000,MATCH($M197,'EO Master Input'!$Y$2:$Y$5000,0)),"-") -> 0 | D197: =IFERROR(INDEX('EO Master Input'!$D$2:$D$5000,MATCH($M197,'EO Master Input'!$Y$2:$Y$5000,0)),"") -> No Agency | E197: =IFERROR(INDEX('EO Master Input'!$A$2:$A$5000,MATCH($M197,'EO Master Input'!$Y$2:$Y$5000,0)),"") -> 2022 | F197: =IFERROR(INDEX('EO Master Input'!$F$2:$F$5000,MATCH($M197,'EO Master Input'!$Y$2:$Y$5000,0)),"") -> Pandemic | G197: =IFERROR(INDEX('EO Master Input'!$E$2:$E$5000,MATCH($M197,'EO Master Input'!$Y$2:$Y$5000,0)),"") -> Establish Credentialing in Response to Medical Staff Shortages | H197: =IFERROR(INDEX('EO Master Input'!$H$2:$H$5000,MATCH($M197,'EO Master Input'!$Y$2:$Y$5000,0)),"") -> 0 | I197: =IFERROR(INDEX('EO Master Input'!$S$2:$S$5000,MATCH($M197,'EO Master Input'!$Y$2:$Y$5000,0)),"") -> 0 | J197: =IFERROR(INDEX('EO Master Input'!$N$2:$N$5000,MATCH($M197,'EO Master Input'!$Y$2:$Y$5000,0)),"") -> 0 | K197: =IFERROR(INDEX('EO Master Input'!$Q$2:$Q$5000,MATCH($M197,'EO Master Input'!$Y$2:$Y$5000,0)),"") -> 0 | L197: =IFERROR(INDEX('EO Master Input'!$O$2:$O$5000,MATCH($M197,'EO Master Input'!$Y$2:$Y$5000,0)),"") -> 0 | M197: 180
B198: =IFERROR(INDEX('EO Master Input'!$B$2:$B$5000,MATCH($M198,'EO Master Input'!$Y$2:$Y$5000,0)),"") -> 2021-060 | C198: =IFERROR(INDEX('EO Master Input'!$C$2:$C$5000,MATCH($M198,'EO Master Input'!$Y$2:$Y$5000,0)),"-") -> 0 | D198: =IFERROR(INDEX('EO Master Input'!$D$2:$D$5000,MATCH($M198,'EO Master Input'!$Y$2:$Y$5000,0)),"") -> No Agency | E198: =IFERROR(INDEX('EO Master Input'!$A$2:$A$5000,MATCH($M198,'EO Master Input'!$Y$2:$Y$5000,0)),"") -> 2022 | F198: =IFERROR(INDEX('EO Master Input'!$F$2:$F$5000,MATCH($M198,'EO Master Input'!$Y$2:$Y$5000,0)),"") -> Other | G198: =IFERROR(INDEX('EO Master Input'!$E$2:$E$5000,MATCH($M198,'EO Master Input'!$Y$2:$Y$5000,0)),"") -> Eliminating and Reducing Unnecessary Regulatory Burdens and Costs | H198: =IFERROR(INDEX('EO Master Input'!$H$2:$H$5000,MATCH($M198,'EO Master Input'!$Y$2:$Y$5000,0)),"") -> 0 | I198: =IFERROR(INDEX('EO Master Input'!$S$2:$S$5000,MATCH($M198,'EO Master Input'!$Y$2:$Y$5000,0)),"") -> 0 | J198: =IFERROR(INDEX('EO Master Input'!$N$2:$N$5000,MATCH($M198,'EO Master Input'!$Y$2:$Y$5000,0)),"") -> 0 | K198: =IFERROR(INDEX('EO Master Input'!$Q$2:$Q$5000,MATCH($M198,'EO Master Input'!$Y$2:$Y$5000,0)),"") -> 0 | L198: =IFERROR(INDEX('EO Master Input'!$O$2:$O$5000,MATCH($M198,'EO Master Input'!$Y$2:$Y$5000,0)),"") -> 0 | M198: 181
B199: =IFERROR(INDEX('EO Master Input'!$B$2:$B$5000,MATCH($M199,'EO Master Input'!$Y$2:$Y$5000,0)),"") -> 2021-061 | C199: =IFERROR(INDEX('EO Master Input'!$C$2:$C$5000,MATCH($M199,'EO Master Input'!$Y$2:$Y$5000,0)),"-") -> 0 | D199: =IFERROR(INDEX('EO Master Input'!$D$2:$D$5000,MATCH($M199,'EO Master Input'!$Y$2:$Y$5000,0)),"") -> No Agency | E199: =IFERROR(INDEX('EO Master Input'!$A$2:$A$5000,MATCH($M199,'EO Master Input'!$Y$2:$Y$5000,0)),"") -> 2022 | F199: =IFERROR(INDEX('EO Master Input'!$F$2:$F$5000,MATCH($M199,'EO Master Input'!$Y$2:$Y$5000,0)),"") -> Pandemic | G199: =IFERROR(INDEX('EO Master Input'!$E$2:$E$5000,MATCH($M199,'EO Master Input'!$Y$2:$Y$5000,0)),"") -> Renew PHO due to COVID | H199: =IFERROR(INDEX('EO Master Input'!$H$2:$H$5000,MATCH($M199,'EO Master Input'!$Y$2:$Y$5000,0)),"") -> 0 | I199: =IFERROR(INDEX('EO Master Input'!$S$2:$S$5000,MATCH($M199,'EO Master Input'!$Y$2:$Y$5000,0)),"") -> 0 | J199: =IFERROR(INDEX('EO Master Input'!$N$2:$N$5000,MATCH($M199,'EO Master Input'!$Y$2:$Y$5000,0)),"") -> 0 | K199: =IFERROR(INDEX('EO Master Input'!$Q$2:$Q$5000,MATCH($M199,'EO Master Input'!$Y$2:$Y$5000,0)),"") -> 0 | L199: =IFERROR(INDEX('EO Master Input'!$O$2:$O$5000,MATCH($M199,'EO Master Input'!$Y$2:$Y$5000,0)),"") -> 0 | M199: 182
B200: =IFERROR(INDEX('EO Master Input'!$B$2:$B$5000,MATCH($M200,'EO Master Input'!$Y$2:$Y$5000,0)),"") -> 2021-062 | C200: =IFERROR(INDEX('EO Master Input'!$C$2:$C$5000,MATCH($M200,'EO Master Input'!$Y$2:$Y$5000,0)),"-") -> 0 | D200: =IFERROR(INDEX('EO Master Input'!$D$2:$D$5000,MATCH($M200,'EO Master Input'!$Y$2:$Y$5000,0)),"") -> No Agency | E200: =IFERROR(INDEX('EO Master Input'!$A$2:$A$5000,MATCH($M200,'EO Master Input'!$Y$2:$Y$5000,0)),"") -> 2022 | F200: =IFERROR(INDEX('EO Master Input'!$F$2:$F$5000,MATCH($M200,'EO Master Input'!$Y$2:$Y$5000,0)),"") -> Pandemic | G200: =IFERROR(INDEX('EO Master Input'!$E$2:$E$5000,MATCH($M200,'EO Master Input'!$Y$2:$Y$5000,0)),"") -> Renew PHO due to COVID | H200: =IFERROR(INDEX('EO Master Input'!$H$2:$H$5000,MATCH($M200,'EO Master Input'!$Y$2:$Y$5000,0)),"") -> 0 | I200: =IFERROR(INDEX('EO Master Input'!$S$2:$S$5000,MATCH($M200,'EO Master Input'!$Y$2:$Y$5000,0)),"") -> 0 | J200: =IFERROR(INDEX('EO Master Input'!$N$2:$N$5000,MATCH($M200,'EO Master Input'!$Y$2:$Y$5000,0)),"") -> 0 | K200: =IFERROR(INDEX('EO Master Input'!$Q$2:$Q$5000,MATCH($M200,'EO Master Input'!$Y$2:$Y$5000,0)),"") -> 0 | L200: =IFERROR(INDEX('EO Master Input'!$O$2:$O$5000,MATCH($M200,'EO Master Input'!$Y$2:$Y$5000,0)),"") -> 0 | M200: 183
B201: =IFERROR(INDEX('EO Master Input'!$B$2:$B$5000,MATCH($M201,'EO Master Input'!$Y$2:$Y$5000,0)),"") -> 2021-063 | C201: =IFERROR(INDEX('EO Master Input'!$C$2:$C$5000,MATCH($M201,'EO Master Input'!$Y$2:$Y$5000,0)),"-") -> 0 | D201: =IFERROR(INDEX('EO Master Input'!$D$2:$D$5000,MATCH($M201,'EO Master Input'!$Y$2:$Y$5000,0)),"") -> No Agency | E201: =IFERROR(INDEX('EO Master Input'!$A$2:$A$5000,MATCH($M201,'EO Master Input'!$Y$2:$Y$5000,0)),"") -> 2022 | F201: =IFERROR(INDEX('EO Master Input'!$F$2:$F$5000,MATCH($M201,'EO Master Input'!$Y$2:$Y$5000,0)),"") -> Pandemic | G201: =IFERROR(INDEX('EO Master Input'!$E$2:$E$5000,MATCH($M201,'EO Master Input'!$Y$2:$Y$5000,0)),"") -> Establish Credentialing in Response to Medical Staff Shortages | H201: =IFERROR(INDEX('EO Master Input'!$H$2:$H$5000,MATCH($M201,'EO Master Input'!$Y$2:$Y$5000,0)),"") -> 0 | I201: =IFERROR(INDEX('EO Master Input'!$S$2:$S$5000,MATCH($M201,'EO Master Input'!$Y$2:$Y$5000,0)),"") -> 0 | J201: =IFERROR(INDEX('EO Master Input'!$N$2:$N$5000,MATCH($M201,'EO Master Input'!$Y$2:$Y$5000,0)),"") -> 0 | K201: =IFERROR(INDEX('EO Master Input'!$Q$2:$Q$5000,MATCH($M201,'EO Master Input'!$Y$2:$Y$5000,0)),"") -> 0 | L201: =IFERROR(INDEX('EO Master Input'!$O$2:$O$5000,MATCH($M201,'EO Master Input'!$Y$2:$Y$5000,0)),"") -> 0 | M201: 184
B202: =IFERROR(INDEX('EO Master Input'!$B$2:$B$5000,MATCH($M202,'EO Master Input'!$Y$2:$Y$5000,0)),"") -> 2021-064 | C202: =IFERROR(INDEX('EO Master Input'!$C$2:$C$5000,MATCH($M202,'EO Master Input'!$Y$2:$Y$5000,0)),"-") -> 79500 | D202: =IFERROR(INDEX('EO Master Input'!$D$2:$D$5000,MATCH($M202,'EO Master Input'!$Y$2:$Y$5000,0)),"") -> Homeland Sec. & Emerg. Mgmt. | E202: =IFERROR(INDEX('EO Master Input'!$A$2:$A$5000,MATCH($M202,'EO Master Input'!$Y$2:$Y$5000,0)),"") -> 2022 | F202: =IFERROR(INDEX('EO Master Input'!$F$2:$F$5000,MATCH($M202,'EO Master Input'!$Y$2:$Y$5000,0)),"") -> Flooding | G202: =IFERROR(INDEX('EO Master Input'!$E$2:$E$5000,MATCH($M202,'EO Master Input'!$Y$2:$Y$5000,0)),"") -> Flooding (Catron County) | H202: =IFERROR(INDEX('EO Master Input'!$H$2:$H$5000,MATCH($M202,'EO Master Input'!$Y$2:$Y$5000,0)),"") -> 750000 | I202: =IFERROR(INDEX('EO Master Input'!$S$2:$S$5000,MATCH($M202,'EO Master Input'!$Y$2:$Y$5000,0)),"") -> 449.05 | J202: =IFERROR(INDEX('EO Master Input'!$N$2:$N$5000,MATCH($M202,'EO Master Input'!$Y$2:$Y$5000,0)),"") -> 0 | K202: =IFERROR(INDEX('EO Master Input'!$Q$2:$Q$5000,MATCH($M202,'EO Master Input'!$Y$2:$Y$5000,0)),"") -> 749550.95 | L202: =IFERROR(INDEX('EO Master Input'!$O$2:$O$5000,MATCH($M202,'EO Master Input'!$Y$2:$Y$5000,0)),"") -> 0 | M202: 185
B203: =IFERROR(INDEX('EO Master Input'!$B$2:$B$5000,MATCH($M203,'EO Master Input'!$Y$2:$Y$5000,0)),"") -> 2021-065 | C203: =IFERROR(INDEX('EO Master Input'!$C$2:$C$5000,MATCH($M203,'EO Master Input'!$Y$2:$Y$5000,0)),"-") -> 79500 | D203: =IFERROR(INDEX('EO Master Input'!$D$2:$D$5000,MATCH($M203,'EO Master Input'!$Y$2:$Y$5000,0)),"") -> Homeland Sec. & Emerg. Mgmt. | E203: =IFERROR(INDEX('EO Master Input'!$A$2:$A$5000,MATCH($M203,'EO Master Input'!$Y$2:$Y$5000,0)),"") -> 2022 | F203: =IFERROR(INDEX('EO Master Input'!$F$2:$F$5000,MATCH($M203,'EO Master Input'!$Y$2:$Y$5000,0)),"") -> Flooding | G203: =IFERROR(INDEX('EO Master Input'!$E$2:$E$5000,MATCH($M203,'EO Master Input'!$Y$2:$Y$5000,0)),"") -> Flooding (Socorro County) | H203: =IFERROR(INDEX('EO Master Input'!$H$2:$H$5000,MATCH($M203,'EO Master Input'!$Y$2:$Y$5000,0)),"") -> 750000 | I203: =IFERROR(INDEX('EO Master Input'!$S$2:$S$5000,MATCH($M203,'EO Master Input'!$Y$2:$Y$5000,0)),"") -> 94909.01 | J203: =IFERROR(INDEX('EO Master Input'!$N$2:$N$5000,MATCH($M203,'EO Master Input'!$Y$2:$Y$5000,0)),"") -> 0 | K203: =IFERROR(INDEX('EO Master Input'!$Q$2:$Q$5000,MATCH($M203,'EO Master Input'!$Y$2:$Y$5000,0)),"") -> 655090.99 | L203: =IFERROR(INDEX('EO Master Input'!$O$2:$O$5000,MATCH($M203,'EO Master Input'!$Y$2:$Y$5000,0)),"") -> 655090.99 | M203: 186
B204: =IFERROR(INDEX('EO Master Input'!$B$2:$B$5000,MATCH($M204,'EO Master Input'!$Y$2:$Y$5000,0)),"") -> 2021-066 | C204: =IFERROR(INDEX('EO Master Input'!$C$2:$C$5000,MATCH($M204,'EO Master Input'!$Y$2:$Y$5000,0)),"-") -> 0 | D204: =IFERROR(INDEX('EO Master Input'!$D$2:$D$5000,MATCH($M204,'EO Master Input'!$Y$2:$Y$5000,0)),"") -> No Agency | E204: =IFERROR(INDEX('EO Master Input'!$A$2:$A$5000,MATCH($M204,'EO Master Input'!$Y$2:$Y$5000,0)),"") -> 2022 | F204: =IFERROR(INDEX('EO Master Input'!$F$2:$F$5000,MATCH($M204,'EO Master Input'!$Y$2:$Y$5000,0)),"") -> Pandemic | G204: =IFERROR(INDEX('EO Master Input'!$E$2:$E$5000,MATCH($M204,'EO Master Input'!$Y$2:$Y$5000,0)),"") -> Third Amended Order Requiring State Employees to Comply with Certain Public Health Requirements | H204: =IFERROR(INDEX('EO Master Input'!$H$2:$H$5000,MATCH($M204,'EO Master Input'!$Y$2:$Y$5000,0)),"") -> 0 | I204: =IFERROR(INDEX('EO Master Input'!$S$2:$S$5000,MATCH($M204,'EO Master Input'!$Y$2:$Y$5000,0)),"") -> 0 | J204: =IFERROR(INDEX('EO Master Input'!$N$2:$N$5000,MATCH($M204,'EO Master Input'!$Y$2:$Y$5000,0)),"") -> 0 | K204: =IFERROR(INDEX('EO Master Input'!$Q$2:$Q$5000,MATCH($M204,'EO Master Input'!$Y$2:$Y$5000,0)),"") -> 0 | L204: =IFERROR(INDEX('EO Master Input'!$O$2:$O$5000,MATCH($M204,'EO Master Input'!$Y$2:$Y$5000,0)),"") -> 0 | M204: 187
... 4826 more rows

Sheet EO Breakdown Summary (hidden)
A1: EO Breakdown Summary
A3: Agency Summary
A4: Agency | B4: EO Count | C4: Authorized Amount | D4: Linked Budget | E4: Remaining Budget
A5: Unspecified | B5: =COUNTIF('EO Master Input'!$D:$D,A5) -> 0 | C5: =SUMIF('EO Master Input'!$D:$D,A5,'EO Master Input'!$H:$H) -> 0 | D5: =SUMIF('EO Linked'!$D:$D,A5,'EO Linked'!$K:$K) -> 0 | E5: =SUMIF('EO Linked'!$D:$D,A5,'EO Linked'!$P:$P) -> 0
A6: Homeland Sec. & Emerg. Mgmt. | B6: =COUNTIF('EO Master Input'!$D:$D,A6) -> 503 | C6: =SUMIF('EO Master Input'!$D:$D,A6,'EO Master Input'!$H:$H) -> 376775607 | D6: =SUMIF('EO Linked'!$D:$D,A6,'EO Linked'!$K:$K) -> 372354607 | E6: =SUMIF('EO Linked'!$D:$D,A6,'EO Linked'!$P:$P) -> 68247453.55
A7: Energy, Minerals & Resources | B7: =COUNTIF('EO Master Input'!$D:$D,A7) -> 195 | C7: =SUMIF('EO Master Input'!$D:$D,A7,'EO Master Input'!$H:$H) -> 146250000 | D7: =SUMIF('EO Linked'!$D:$D,A7,'EO Linked'!$K:$K) -> 125250000 | E7: =SUMIF('EO Linked'!$D:$D,A7,'EO Linked'!$P:$P) -> 29949724.49
A8: Department of Transportation | B8: =COUNTIF('EO Master Input'!$D:$D,A8) -> 146 | C8: =SUMIF('EO Master Input'!$D:$D,A8,'EO Master Input'!$H:$H) -> 109500000 | D8: =SUMIF('EO Linked'!$D:$D,A8,'EO Linked'!$K:$K) -> 108000000 | E8: =SUMIF('EO Linked'!$D:$D,A8,'EO Linked'!$P:$P) -> 2957815.85
A9: Military Affairs Department | B9: =COUNTIF('EO Master Input'!$D:$D,A9) -> 54 | C9: =SUMIF('EO Master Input'!$D:$D,A9,'EO Master Input'!$H:$H) -> 35240000 | D9: =SUMIF('EO Linked'!$D:$D,A9,'EO Linked'!$K:$K) -> 34490000 | E9: =SUMIF('EO Linked'!$D:$D,A9,'EO Linked'!$P:$P) -> 4080962.99
A10: Department of Health | B10: =COUNTIF('EO Master Input'!$D:$D,A10) -> 8 | C10: =SUMIF('EO Master Input'!$D:$D,A10,'EO Master Input'!$H:$H) -> 30830000 | D10: =SUMIF('EO Linked'!$D:$D,A10,'EO Linked'!$K:$K) -> 30830000 | E10: =SUMIF('EO Linked'!$D:$D,A10,'EO Linked'!$P:$P) -> 8019226.11
A11: Health Care Authority | B11: =COUNTIF('EO Master Input'!$D:$D,A11) -> 40 | C11: =SUMIF('EO Master Input'!$D:$D,A11,'EO Master Input'!$H:$H) -> 30000000 | D11: =SUMIF('EO Linked'!$D:$D,A11,'EO Linked'!$K:$K) -> 30000000 | E11: =SUMIF('EO Linked'!$D:$D,A11,'EO Linked'!$P:$P) -> 1913879
A12: Department of Public Safety | B12: =COUNTIF('EO Master Input'!$D:$D,A12) -> 12 | C12: =SUMIF('EO Master Input'!$D:$D,A12,'EO Master Input'!$H:$H) -> 7563000 | D12: =SUMIF('EO Linked'!$D:$D,A12,'EO Linked'!$K:$K) -> 7563000 | E12: =SUMIF('EO Linked'!$D:$D,A12,'EO Linked'!$P:$P) -> 169.93
A13: No Agency | B13: =COUNTIF('EO Master Input'!$D:$D,A13) -> 205 | C13: =SUMIF('EO Master Input'!$D:$D,A13,'EO Master Input'!$H:$H) -> 2250000 | D13: =SUMIF('EO Linked'!$D:$D,A13,'EO Linked'!$K:$K) -> 0 | E13: =SUMIF('EO Linked'!$D:$D,A13,'EO Linked'!$P:$P) -> 2250000
A14: NM Environment Department | B14: =COUNTIF('EO Master Input'!$D:$D,A14) -> 2 | C14: =SUMIF('EO Master Input'!$D:$D,A14,'EO Master Input'!$H:$H) -> 850000 | D14: =SUMIF('EO Linked'!$D:$D,A14,'EO Linked'!$K:$K) -> 850000 | E14: =SUMIF('EO Linked'!$D:$D,A14,'EO Linked'!$P:$P) -> 179004.01
A15: Aging and Long Term Services | B15: =COUNTIF('EO Master Input'!$D:$D,A15) -> 1 | C15: =SUMIF('EO Master Input'!$D:$D,A15,'EO Master Input'!$H:$H) -> 750000 | D15: =SUMIF('EO Linked'!$D:$D,A15,'EO Linked'!$K:$K) -> 750000 | E15: =SUMIF('EO Linked'!$D:$D,A15,'EO Linked'!$P:$P) -> 31259.85
A16: Children, Youth & Family Dept | B16: =COUNTIF('EO Master Input'!$D:$D,A16) -> 4 | C16: =SUMIF('EO Master Input'!$D:$D,A16,'EO Master Input'!$H:$H) -> 750000 | D16: =SUMIF('EO Linked'!$D:$D,A16,'EO Linked'!$K:$K) -> 750000 | E16: =SUMIF('EO Linked'!$D:$D,A16,'EO Linked'!$P:$P) -> 312073.75
A17: Public Education Department | B17: =COUNTIF('EO Master Input'!$D:$D,A17) -> 1 | C17: =SUMIF('EO Master Input'!$D:$D,A17,'EO Master Input'!$H:$H) -> 750000 | D17: =SUMIF('EO Linked'!$D:$D,A17,'EO Linked'!$K:$K) -> 750000 | E17: =SUMIF('EO Linked'!$D:$D,A17,'EO Linked'!$P:$P) -> 92514.65
A18: Public Regulation Commission | B18: =COUNTIF('EO Master Input'!$D:$D,A18) -> 1 | C18: =SUMIF('EO Master Input'!$D:$D,A18,'EO Master Input'!$H:$H) -> 0 | D18: =SUMIF('EO Linked'!$D:$D,A18,'EO Linked'!$K:$K) -> 0 | E18: =SUMIF('EO Linked'!$D:$D,A18,'EO Linked'!$P:$P) -> 0
A21: Purpose / Use Summary
A22: Purpose | B22: EO Count | C22: Authorized Amount | D22: Linked Budget | E22: Remaining Budget
A23: Unspecified | B23: =COUNTIF('EO Master Input'!$E:$E,A23) -> 0 | C23: =SUMIF('EO Master Input'!$E:$E,A23,'EO Master Input'!$H:$H) -> 0 | D23: =SUMIF('EO Linked'!$E:$E,A23,'EO Linked'!$K:$K) -> 0 | E23: =SUMIF('EO Linked'!$E:$E,A23,'EO Linked'!$P:$P) -> 0
A24: South Fork and Salt Fires | B24: =COUNTIF('EO Master Input'!$E:$E,A24) -> 263 | C24: =SUMIF('EO Master Input'!$E:$E,A24,'EO Master Input'!$H:$H) -> 197250000 | D24: =SUMIF('EO Linked'!$E:$E,A24,'EO Linked'!$K:$K) -> 197250000 | E24: =SUMIF('EO Linked'!$E:$E,A24,'EO Linked'!$P:$P) -> 8891170.71
A25: Wildfires | B25: =COUNTIF('EO Master Input'!$E:$E,A25) -> 230 | C25: =SUMIF('EO Master Input'!$E:$E,A25,'EO Master Input'!$H:$H) -> 170490000 | D25: =SUMIF('EO Linked'!$E:$E,A25,'EO Linked'!$K:$K) -> 149490000 | E25: =SUMIF('EO Linked'!$E:$E,A25,'EO Linked'!$P:$P) -> 31593877.14
A26: Flooding (Chaves County) | B26: =COUNTIF('EO Master Input'!$E:$E,A26) -> 89 | C26: =SUMIF('EO Master Input'!$E:$E,A26,'EO Master Input'!$H:$H) -> 66750000 | D26: =SUMIF('EO Linked'!$E:$E,A26,'EO Linked'!$K:$K) -> 66750000 | E26: =SUMIF('EO Linked'!$E:$E,A26,'EO Linked'!$P:$P) -> 4180790.92
A27: Emergency Fire Suppression | B27: =COUNTIF('EO Master Input'!$E:$E,A27) -> 48 | C27: =SUMIF('EO Master Input'!$E:$E,A27,'EO Master Input'!$H:$H) -> 36000000 | D27: =SUMIF('EO Linked'!$E:$E,A27,'EO Linked'!$K:$K) -> 36000000 | E27: =SUMIF('EO Linked'!$E:$E,A27,'EO Linked'!$P:$P) -> 1715060.23
A28: DOH COVID PHO | B28: =COUNTIF('EO Master Input'!$E:$E,A28) -> 3 | C28: =SUMIF('EO Master Input'!$E:$E,A28,'EO Master Input'!$H:$H) -> 30750000 | D28: =SUMIF('EO Linked'!$E:$E,A28,'EO Linked'!$K:$K) -> 30750000 | E28: =SUMIF('EO Linked'!$E:$E,A28,'EO Linked'!$P:$P) -> 8004123.99
A29: SNAP Benefits | B29: =COUNTIF('EO Master Input'!$E:$E,A29) -> 40 | C29: =SUMIF('EO Master Input'!$E:$E,A29,'EO Master Input'!$H:$H) -> 30000000 | D29: =SUMIF('EO Linked'!$E:$E,A29,'EO Linked'!$K:$K) -> 30000000 | E29: =SUMIF('EO Linked'!$E:$E,A29,'EO Linked'!$P:$P) -> 1913879
A30: Flooding (lincoln county) | B30: =COUNTIF('EO Master Input'!$E:$E,A30) -> 28 | C30: =SUMIF('EO Master Input'!$E:$E,A30,'EO Master Input'!$H:$H) -> 21000000 | D30: =SUMIF('EO Linked'!$E:$E,A30,'EO Linked'!$K:$K) -> 21000000 | E30: =SUMIF('EO Linked'!$E:$E,A30,'EO Linked'!$P:$P) -> 2170217.88
A31: Lincoln County Flooding | B31: =COUNTIF('EO Master Input'!$E:$E,A31) -> 20 | C31: =SUMIF('EO Master Input'!$E:$E,A31,'EO Master Input'!$H:$H) -> 15000000 | D31: =SUMIF('EO Linked'!$E:$E,A31,'EO Linked'!$K:$K) -> 15000000 | E31: =SUMIF('EO Linked'!$E:$E,A31,'EO Linked'!$P:$P) -> 0
A32: San Miguel/Mora Co Flooding and Fires | B32: =COUNTIF('EO Master Input'!$E:$E,A32) -> 20 | C32: =SUMIF('EO Master Input'!$E:$E,A32,'EO Master Input'!$H:$H) -> 15000000 | D32: =SUMIF('EO Linked'!$E:$E,A32,'EO Linked'!$K:$K) -> 15000000 | E32: =SUMIF('EO Linked'!$E:$E,A32,'EO Linked'!$P:$P) -> 375507.98
A33: Emergency Funds for Forestry Division of the Energy, Minerals and Natural Resources Department | B33: =COUNTIF('EO Master Input'!$E:$E,A33) -> 9 | C33: =SUMIF('EO Master Input'!$E:$E,A33,'EO Master Input'!$H:$H) -> 6750000 | D33: =SUMIF('EO Linked'!$E:$E,A33,'EO Linked'!$K:$K) -> 6750000 | E33: =SUMIF('EO Linked'!$E:$E,A33,'EO Linked'!$P:$P) -> -1.164153218e-10
A34: Chaves County Flooding | B34: =COUNTIF('EO Master Input'!$E:$E,A34) -> 15 | C34: =SUMIF('EO Master Input'!$E:$E,A34,'EO Master Input'!$H:$H) -> 10750000 | D34: =SUMIF('EO Linked'!$E:$E,A34,'EO Linked'!$K:$K) -> 10000000 | E34: =SUMIF('EO Linked'!$E:$E,A34,'EO Linked'!$P:$P) -> 1554676.24
A35: Additional emergency funds for DOT | B35: =COUNTIF('EO Master Input'!$E:$E,A35) -> 14 | C35: =SUMIF('EO Master Input'!$E:$E,A35,'EO Master Input'!$H:$H) -> 10500000 | D35: =SUMIF('EO Linked'!$E:$E,A35,'EO Linked'!$K:$K) -> 10500000 | E35: =SUMIF('EO Linked'!$E:$E,A35,'EO Linked'!$P:$P) -> 0
A36: NG in Albuquerque | B36: =COUNTIF('EO Master Input'!$E:$E,A36) -> 13 | C36: =SUMIF('EO Master Input'!$E:$E,A36,'EO Master Input'!$H:$H) -> 9550000 | D36: =SUMIF('EO Linked'!$E:$E,A36,'EO Linked'!$K:$K) -> 9550000 | E36: =SUMIF('EO Linked'!$E:$E,A36,'EO Linked'!$P:$P) -> 1520.01
A37: Trout Fire (DHSEM) | B37: =COUNTIF('EO Master Input'!$E:$E,A37) -> 11 | C37: =SUMIF('EO Master Input'!$E:$E,A37,'EO Master Input'!$H:$H) -> 8250000 | D37: =SUMIF('EO Linked'!$E:$E,A37,'EO Linked'!$K:$K) -> 8250000 | E37: =SUMIF('EO Linked'!$E:$E,A37,'EO Linked'!$P:$P) -> 5004286.76
A38: DHSEM Wildfire Additional Funds EMAC | B38: =COUNTIF('EO Master Input'!$E:$E,A38) -> 10 | C38: =SUMIF('EO Master Input'!$E:$E,A38,'EO Master Input'!$H:$H) -> 7500000 | D38: =SUMIF('EO Linked'!$E:$E,A38,'EO Linked'!$K:$K) -> 6000000 | E38: =SUMIF('EO Linked'!$E:$E,A38,'EO Linked'!$P:$P) -> 7362411.79
A39: Renew PHO due to Drug Abuse | B39: =COUNTIF('EO Master Input'!$E:$E,A39) -> 15 | C39: =SUMIF('EO Master Input'!$E:$E,A39,'EO Master Input'!$H:$H) -> 5500000 | D39: =SUMIF('EO Linked'!$E:$E,A39,'EO Linked'!$K:$K) -> 4000000 | E39: =SUMIF('EO Linked'!$E:$E,A39,'EO Linked'!$P:$P) -> 1679004.01
A40: Renew PHO due to Gun Violence | B40: =COUNTIF('EO Master Input'!$E:$E,A40) -> 16 | C40: =SUMIF('EO Master Input'!$E:$E,A40,'EO Master Input'!$H:$H) -> 5243000 | D40: =SUMIF('EO Linked'!$E:$E,A40,'EO Linked'!$K:$K) -> 4493000 | E40: =SUMIF('EO Linked'!$E:$E,A40,'EO Linked'!$P:$P) -> 765272.05
A41: Winter Storm (Mulitple Counties) | B41: =COUNTIF('EO Master Input'!$E:$E,A41) -> 1 | C41: =SUMIF('EO Master Input'!$E:$E,A41,'EO Master Input'!$H:$H) -> 5150000 | D41: =SUMIF('EO Linked'!$E:$E,A41,'EO Linked'!$K:$K) -> 5150000 | E41: =SUMIF('EO Linked'!$E:$E,A41,'EO Linked'!$P:$P) -> 1519095.43
A42: NG in Rio Arriba County, Santa Fe County, Espanola, etc. | B42: =COUNTIF('EO Master Input'!$E:$E,A42) -> 6 | C42: =SUMIF('EO Master Input'!$E:$E,A42,'EO Master Input'!$H:$H) -> 4500000 | D42: =SUMIF('EO Linked'!$E:$E,A42,'EO Linked'!$K:$K) -> 4500000 | E42: =SUMIF('EO Linked'!$E:$E,A42,'EO Linked'!$P:$P) -> 285531.25
A43: Severe Storm (Curry County) | B43: =COUNTIF('EO Master Input'!$E:$E,A43) -> 5 | C43: =SUMIF('EO Master Input'!$E:$E,A43,'EO Master Input'!$H:$H) -> 3750000 | D43: =SUMIF('EO Linked'!$E:$E,A43,'EO Linked'!$K:$K) -> 3750000 | E43: =SUMIF('EO Linked'!$E:$E,A43,'EO Linked'!$P:$P) -> 1165008.68
A44: National Guard COVID | B44: =COUNTIF('EO Master Input'!$E:$E,A44) -> 5 | C44: =SUMIF('EO Master Input'!$E:$E,A44,'EO Master Input'!$H:$H) -> 3250000 | D44: =SUMIF('EO Linked'!$E:$E,A44,'EO Linked'!$K:$K) -> 3250000 | E44: =SUMIF('EO Linked'!$E:$E,A44,'EO Linked'!$P:$P) -> 276037.17
A45: Flooding (Lincoln County) | B45: =COUNTIF('EO Master Input'!$E:$E,A45) -> 28 | C45: =SUMIF('EO Master Input'!$E:$E,A45,'EO Master Input'!$H:$H) -> 21000000 | D45: =SUMIF('EO Linked'!$E:$E,A45,'EO Linked'!$K:$K) -> 21000000 | E45: =SUMIF('EO Linked'!$E:$E,A45,'EO Linked'!$P:$P) -> 2170217.88
A46: Flooding (Rio Arriba County) | B46: =COUNTIF('EO Master Input'!$E:$E,A46) -> 4 | C46: =SUMIF('EO Master Input'!$E:$E,A46,'EO Master Input'!$H:$H) -> 2650000 | D46: =SUMIF('EO Linked'!$E:$E,A46,'EO Linked'!$K:$K) -> 2650000 | E46: =SUMIF('EO Linked'!$E:$E,A46,'EO Linked'!$P:$P) -> 1680596.18
A47: Flooding (Rio Arriba and Sandoval County) | B47: =COUNTIF('EO Master Input'!$E:$E,A47) -> 1 | C47: =SUMIF('EO Master Input'!$E:$E,A47,'EO Master Input'!$H:$H) -> 2500000 | D47: =SUMIF('EO Linked'!$E:$E,A47,'EO Linked'!$K:$K) -> 2500000 | E47: =SUMIF('EO Linked'!$E:$E,A47,'EO Linked'!$P:$P) -> 1472765.08
A48: DHSEM COVID PHO | B48: =COUNTIF('EO Master Input'!$E:$E,A48) -> 3 | C48: =SUMIF('EO Master Input'!$E:$E,A48,'EO Master Input'!$H:$H) -> 2250000 | D48: =SUMIF('EO Linked'!$E:$E,A48,'EO Linked'!$K:$K) -> 2250000 | E48: =SUMIF('EO Linked'!$E:$E,A48,'EO Linked'!$P:$P) -> 495604.42
A49: Crime in (Rio Arriba County, Santa Fe County, Espanola, etc.) | B49: =COUNTIF('EO Master Input'!$E:$E,A49) -> 4 | C49: =SUMIF('EO Master Input'!$E:$E,A49,'EO Master Input'!$H:$H) -> 3000000 | D49: =SUMIF('EO Linked'!$E:$E,A49,'EO Linked'!$K:$K) -> 2250000 | E49: =SUMIF('EO Linked'!$E:$E,A49,'EO Linked'!$P:$P) -> 2896523.77
A50: Flooding (Dona Ana County) | B50: =COUNTIF('EO Master Input'!$E:$E,A50) -> 3 | C50: =SUMIF('EO Master Input'!$E:$E,A50,'EO Master Input'!$H:$H) -> 2250000 | D50: =SUMIF('EO Linked'!$E:$E,A50,'EO Linked'!$K:$K) -> 2250000 | E50: =SUMIF('EO Linked'!$E:$E,A50,'EO Linked'!$P:$P) -> 1695035.6
A51: Flooding (City of Las Vegas) | B51: =COUNTIF('EO Master Input'!$E:$E,A51) -> 3 | C51: =SUMIF('EO Master Input'!$E:$E,A51,'EO Master Input'!$H:$H) -> 2250000 | D51: =SUMIF('EO Linked'!$E:$E,A51,'EO Linked'!$K:$K) -> 2250000 | E51: =SUMIF('EO Linked'!$E:$E,A51,'EO Linked'!$P:$P) -> -1950000
A52: Flooding (Mora County) | B52: =COUNTIF('EO Master Input'!$E:$E,A52) -> 3 | C52: =SUMIF('EO Master Input'!$E:$E,A52,'EO Master Input'!$H:$H) -> 2250000 | D52: =SUMIF('EO Linked'!$E:$E,A52,'EO Linked'!$K:$K) -> 2250000 | E52: =SUMIF('EO Linked'!$E:$E,A52,'EO Linked'!$P:$P) -> 2106828.19
A53: Las Vegas Ash and Fire Debris Additional Funding | B53: =COUNTIF('EO Master Input'!$E:$E,A53) -> 3 | C53: =SUMIF('EO Master Input'!$E:$E,A53,'EO Master Input'!$H:$H) -> 2250000 | D53: =SUMIF('EO Linked'!$E:$E,A53,'EO Linked'!$K:$K) -> 2250000 | E53: =SUMIF('EO Linked'!$E:$E,A53,'EO Linked'!$P:$P) -> 445123.67
A54: DECLARING A STATE OF EMERGENCY DUE TO FLOODING IN CURRY AND EDDY COUNTIES AND PROVIDING EMERGENCY FUNDING | B54: =COUNTIF('EO Master Input'!$E:$E,A54) -> 1 | C54: =SUMIF('EO Master Input'!$E:$E,A54,'EO Master Input'!$H:$H) -> 2000000 | D54: =SUMIF('EO Linked'!$E:$E,A54,'EO Linked'!$K:$K) -> 2000000 | E54: =SUMIF('EO Linked'!$E:$E,A54,'EO Linked'!$P:$P) -> 1537933.78
A55: Flooding (Guadalupe County) | B55: =COUNTIF('EO Master Input'!$E:$E,A55) -> 2 | C55: =SUMIF('EO Master Input'!$E:$E,A55,'EO Master Input'!$H:$H) -> 1500000 | D55: =SUMIF('EO Linked'!$E:$E,A55,'EO Linked'!$K:$K) -> 1500000 | E55: =SUMIF('EO Linked'!$E:$E,A55,'EO Linked'!$P:$P) -> 1500000
A56: Las Tusas Fire | B56: =COUNTIF('EO Master Input'!$E:$E,A56) -> 2 | C56: =SUMIF('EO Master Input'!$E:$E,A56,'EO Master Input'!$H:$H) -> 1500000 | D56: =SUMIF('EO Linked'!$E:$E,A56,'EO Linked'!$K:$K) -> 1500000 | E56: =SUMIF('EO Linked'!$E:$E,A56,'EO Linked'!$P:$P) -> 1427696.7
A57: Flooding (Catron County) | B57: =COUNTIF('EO Master Input'!$E:$E,A57) -> 2 | C57: =SUMIF('EO Master Input'!$E:$E,A57,'EO Master Input'!$H:$H) -> 1500000 | D57: =SUMIF('EO Linked'!$E:$E,A57,'EO Linked'!$K:$K) -> 1500000 | E57: =SUMIF('EO Linked'!$E:$E,A57,'EO Linked'!$P:$P) -> 1499522.4
A58: Civil Support | B58: =COUNTIF('EO Master Input'!$E:$E,A58) -> 2 | C58: =SUMIF('EO Master Input'!$E:$E,A58,'EO Master Input'!$H:$H) -> 1500000 | D58: =SUMIF('EO Linked'!$E:$E,A58,'EO Linked'!$K:$K) -> 750000 | E58: =SUMIF('EO Linked'!$E:$E,A58,'EO Linked'!$P:$P) -> 898790.01
A59: Flags to Half Staff | B59: =COUNTIF('EO Master Input'!$E:$E,A59) -> 42 | C59: =SUMIF('EO Master Input'!$E:$E,A59,'EO Master Input'!$H:$H) -> 0 | D59: =SUMIF('EO Linked'!$E:$E,A59,'EO Linked'!$K:$K) -> 0 | E59: =SUMIF('EO Linked'!$E:$E,A59,'EO Linked'!$P:$P) -> 0
A60: Additional Emergency Funds for NM NG | B60: =COUNTIF('EO Master Input'!$E:$E,A60) -> 2 | C60: =SUMIF('EO Master Input'!$E:$E,A60,'EO Master Input'!$H:$H) -> 1500000 | D60: =SUMIF('EO Linked'!$E:$E,A60,'EO Linked'!$K:$K) -> 1500000 | E60: =SUMIF('EO Linked'!$E:$E,A60,'EO Linked'!$P:$P) -> 46582.15
A61: National Guard | B61: =COUNTIF('EO Master Input'!$E:$E,A61) -> 3 | C61: =SUMIF('EO Master Input'!$E:$E,A61,'EO Master Input'!$H:$H) -> 1250000 | D61: =SUMIF('EO Linked'!$E:$E,A61,'EO Linked'!$K:$K) -> 1250000 | E61: =SUMIF('EO Linked'!$E:$E,A61,'EO Linked'!$P:$P) -> 990.48
A62: Grant County Flooding Additional Funding | B62: =COUNTIF('EO Master Input'!$E:$E,A62) -> 2 | C62: =SUMIF('EO Master Input'!$E:$E,A62,'EO Master Input'!$H:$H) -> 1050000 | D62: =SUMIF('EO Linked'!$E:$E,A62,'EO Linked'!$K:$K) -> 1050000 | E62: =SUMIF('EO Linked'!$E:$E,A62,'EO Linked'!$P:$P) -> 300000
A63: NG COVID PHO | B63: =COUNTIF('EO Master Input'!$E:$E,A63) -> 2 | C63: =SUMIF('EO Master Input'!$E:$E,A63,'EO Master Input'!$H:$H) -> 1000000 | D63: =SUMIF('EO Linked'!$E:$E,A63,'EO Linked'!$K:$K) -> 1000000 | E63: =SUMIF('EO Linked'!$E:$E,A63,'EO Linked'!$P:$P) -> 0
A64: Flooding (Hidalgo, Luna and Socorro Counties) | B64: =COUNTIF('EO Master Input'!$E:$E,A64) -> 1 | C64: =SUMIF('EO Master Input'!$E:$E,A64,'EO Master Input'!$H:$H) -> 1000000 | D64: =SUMIF('EO Linked'!$E:$E,A64,'EO Linked'!$K:$K) -> 1000000 | E64: =SUMIF('EO Linked'!$E:$E,A64,'EO Linked'!$P:$P) -> 984504.5
A65: Flooding (Socorro County) | B65: =COUNTIF('EO Master Input'!$E:$E,A65) -> 2 | C65: =SUMIF('EO Master Input'!$E:$E,A65,'EO Master Input'!$H:$H) -> 1000000 | D65: =SUMIF('EO Linked'!$E:$E,A65,'EO Linked'!$K:$K) -> 1000000 | E65: =SUMIF('EO Linked'!$E:$E,A65,'EO Linked'!$P:$P) -> 861664.79
A66: Additional funds for DHSEM | B66: =COUNTIF('EO Master Input'!$E:$E,A66) -> 2 | C66: =SUMIF('EO Master Input'!$E:$E,A66,'EO Master Input'!$H:$H) -> 914606.96 | D66: =SUMIF('EO Linked'!$E:$E,A66,'EO Linked'!$K:$K) -> 914606.96 | E66: =SUMIF('EO Linked'!$E:$E,A66,'EO Linked'!$P:$P) -> 100000
A67: Snow Squall | B67: =COUNTIF('EO Master Input'!$E:$E,A67) -> 2 | C67: =SUMIF('EO Master Input'!$E:$E,A67,'EO Master Input'!$H:$H) -> 800000 | D67: =SUMIF('EO Linked'!$E:$E,A67,'EO Linked'!$K:$K) -> 800000 | E67: =SUMIF('EO Linked'!$E:$E,A67,'EO Linked'!$P:$P) -> 272749.68
A68: Declaring a disaster due to Flooding in the City of Truth or Consequences located in Sierra County | B68: =COUNTIF('EO Master Input'!$E:$E,A68) -> 1 | C68: =SUMIF('EO Master Input'!$E:$E,A68,'EO Master Input'!$H:$H) -> 750000 | D68: =SUMIF('EO Linked'!$E:$E,A68,'EO Linked'!$K:$K) -> 750000 | E68: =SUMIF('EO Linked'!$E:$E,A68,'EO Linked'!$P:$P) -> 597931.33
A69: Crime (Rio Arriba County, Santa Fe County) | B69: =COUNTIF('EO Master Input'!$E:$E,A69) -> 1 | C69: =SUMIF('EO Master Input'!$E:$E,A69,'EO Master Input'!$H:$H) -> 750000 | D69: =SUMIF('EO Linked'!$E:$E,A69,'EO Linked'!$K:$K) -> 750000 | E69: =SUMIF('EO Linked'!$E:$E,A69,'EO Linked'!$P:$P) -> 50000
A70: DHSEM Wildfire Assistance EMAC | B70: =COUNTIF('EO Master Input'!$E:$E,A70) -> 1 | C70: =SUMIF('EO Master Input'!$E:$E,A70,'EO Master Input'!$H:$H) -> 750000 | D70: =SUMIF('EO Linked'!$E:$E,A70,'EO Linked'!$K:$K) -> 750000 | E70: =SUMIF('EO Linked'!$E:$E,A70,'EO Linked'!$P:$P) -> 728526.39
A71: Declaring a Drought and Severe Fire Conditions | B71: =COUNTIF('EO Master Input'!$E:$E,A71) -> 1 | C71: =SUMIF('EO Master Input'!$E:$E,A71,'EO Master Input'!$H:$H) -> 0 | D71: =SUMIF('EO Linked'!$E:$E,A71,'EO Linked'!$K:$K) -> 0 | E71: =SUMIF('EO Linked'!$E:$E,A71,'EO Linked'!$P:$P) -> 0
A72: Declaring a Disaster due to flooding in the Village of Williamsburg Located in Sierra County | B72: =COUNTIF('EO Master Input'!$E:$E,A72) -> 1 | C72: =SUMIF('EO Master Input'!$E:$E,A72,'EO Master Input'!$H:$H) -> 750000 | D72: =SUMIF('EO Linked'!$E:$E,A72,'EO Linked'!$K:$K) -> 750000 | E72: =SUMIF('EO Linked'!$E:$E,A72,'EO Linked'!$P:$P) -> 687501.86
A73: Declaring an Emergency due to the effects of the wildfires in California and in support of relief | B73: =COUNTIF('EO Master Input'!$E:$E,A73) -> 1 | C73: =SUMIF('EO Master Input'!$E:$E,A73,'EO Master Input'!$H:$H) -> 750000 | D73: =SUMIF('EO Linked'!$E:$E,A73,'EO Linked'!$K:$K) -> 750000 | E73: =SUMIF('EO Linked'!$E:$E,A73,'EO Linked'!$P:$P) -> 4000
A74: Curry County Severe Storm | B74: =COUNTIF('EO Master Input'!$E:$E,A74) -> 1 | C74: =SUMIF('EO Master Input'!$E:$E,A74,'EO Master Input'!$H:$H) -> 750000 | D74: =SUMIF('EO Linked'!$E:$E,A74,'EO Linked'!$K:$K) -> 750000 | E74: =SUMIF('EO Linked'!$E:$E,A74,'EO Linked'!$P:$P) -> 76398.74
A75: Crime Rio Arriba communities | B75: =COUNTIF('EO Master Input'!$E:$E,A75) -> 1 | C75: =SUMIF('EO Master Input'!$E:$E,A75,'EO Master Input'!$H:$H) -> 750000 | D75: =SUMIF('EO Linked'!$E:$E,A75,'EO Linked'!$K:$K) -> 750000 | E75: =SUMIF('EO Linked'!$E:$E,A75,'EO Linked'!$P:$P) -> 100000
A76: ALTSD COVID PHO | B76: =COUNTIF('EO Master Input'!$E:$E,A76) -> 1 | C76: =SUMIF('EO Master Input'!$E:$E,A76,'EO Master Input'!$H:$H) -> 750000 | D76: =SUMIF('EO Linked'!$E:$E,A76,'EO Linked'!$K:$K) -> 750000 | E76: =SUMIF('EO Linked'!$E:$E,A76,'EO Linked'!$P:$P) -> 31259.85
A77: Authorizing Emergency funds for New Mexico National Guard Deployments in Fiscal Year 2021 | B77: =COUNTIF('EO Master Input'!$E:$E,A77) -> 1 | C77: =SUMIF('EO Master Input'!$E:$E,A77,'EO Master Input'!$H:$H) -> 750000 | D77: =SUMIF('EO Linked'!$E:$E,A77,'EO Linked'!$K:$K) -> 750000 | E77: =SUMIF('EO Linked'!$E:$E,A77,'EO Linked'!$P:$P) -> 456586.83
A78: CYFD CPVOD PHO | B78: =COUNTIF('EO Master Input'!$E:$E,A78) -> 1 | C78: =SUMIF('EO Master Input'!$E:$E,A78,'EO Master Input'!$H:$H) -> 750000 | D78: =SUMIF('EO Linked'!$E:$E,A78,'EO Linked'!$K:$K) -> 750000 | E78: =SUMIF('EO Linked'!$E:$E,A78,'EO Linked'!$P:$P) -> 312073.75
A79: Authorizing Emergency Funds for New Mexico National Guard Deployments in Fiscal Year 2022 | B79: =COUNTIF('EO Master Input'!$E:$E,A79) -> 1 | C79: =SUMIF('EO Master Input'!$E:$E,A79,'EO Master Input'!$H:$H) -> 750000 | D79: =SUMIF('EO Linked'!$E:$E,A79,'EO Linked'!$K:$K) -> 750000 | E79: =SUMIF('EO Linked'!$E:$E,A79,'EO Linked'!$P:$P) -> 8109.13
A80: Directing All Executive Agencies to Afford a Presumption of a Compensable Occupational Disease | B80: =COUNTIF('EO Master Input'!$E:$E,A80) -> 0 | C80: =SUMIF('EO Master Input'!$E:$E,A80,'EO Master Input'!$H:$H) -> 0 | D80: =SUMIF('EO Linked'!$E:$E,A80,'EO Linked'!$K:$K) -> 0 | E80: =SUMIF('EO Linked'!$E:$E,A80,'EO Linked'!$P:$P) -> 0
A81: Declaring a Disaster due to Flooding in Socorro County | B81: =COUNTIF('EO Master Input'!$E:$E,A81) -> 1 | C81: =SUMIF('EO Master Input'!$E:$E,A81,'EO Master Input'!$H:$H) -> 750000 | D81: =SUMIF('EO Linked'!$E:$E,A81,'EO Linked'!$K:$K) -> 750000 | E81: =SUMIF('EO Linked'!$E:$E,A81,'EO Linked'!$P:$P) -> 718809.44
A82: Desert Willow Complex Fire | B82: =COUNTIF('EO Master Input'!$E:$E,A82) -> 1 | C82: =SUMIF('EO Master Input'!$E:$E,A82,'EO Master Input'!$H:$H) -> 750000 | D82: =SUMIF('EO Linked'!$E:$E,A82,'EO Linked'!$K:$K) -> 750000 | E82: =SUMIF('EO Linked'!$E:$E,A82,'EO Linked'!$P:$P) -> 735660.89
A83: Granting City of Gallup’s Request for Declaration of Emergency | B83: =COUNTIF('EO Master Input'!$E:$E,A83) -> 1 | C83: =SUMIF('EO Master Input'!$E:$E,A83,'EO Master Input'!$H:$H) -> 0 | D83: =SUMIF('EO Linked'!$E:$E,A83,'EO Linked'!$K:$K) -> 0 | E83: =SUMIF('EO Linked'!$E:$E,A83,'EO Linked'!$P:$P) -> 0
A84: NG Deployments in 2024 | B84: =COUNTIF('EO Master Input'!$E:$E,A84) -> 2 | C84: =SUMIF('EO Master Input'!$E:$E,A84,'EO Master Input'!$H:$H) -> 750000 | D84: =SUMIF('EO Linked'!$E:$E,A84,'EO Linked'!$K:$K) -> 750000 | E84: =SUMIF('EO Linked'!$E:$E,A84,'EO Linked'!$P:$P) -> 107620.1
A85: Flooding (statewide) | B85: =COUNTIF('EO Master Input'!$E:$E,A85) -> 1 | C85: =SUMIF('EO Master Input'!$E:$E,A85,'EO Master Input'!$H:$H) -> 750000 | D85: =SUMIF('EO Linked'!$E:$E,A85,'EO Linked'!$K:$K) -> 750000 | E85: =SUMIF('EO Linked'!$E:$E,A85,'EO Linked'!$P:$P) -> 750000
A86: Flooding (Ruidoso) | B86: =COUNTIF('EO Master Input'!$E:$E,A86) -> 1 | C86: =SUMIF('EO Master Input'!$E:$E,A86,'EO Master Input'!$H:$H) -> 750000 | D86: =SUMIF('EO Linked'!$E:$E,A86,'EO Linked'!$K:$K) -> 750000 | E86: =SUMIF('EO Linked'!$E:$E,A86,'EO Linked'!$P:$P) -> 744148.03
A87: Flooding (Valencia County) | B87: =COUNTIF('EO Master Input'!$E:$E,A87) -> 1 | C87: =SUMIF('EO Master Input'!$E:$E,A87,'EO Master Input'!$H:$H) -> 750000 | D87: =SUMIF('EO Linked'!$E:$E,A87,'EO Linked'!$K:$K) -> 750000 | E87: =SUMIF('EO Linked'!$E:$E,A87,'EO Linked'!$P:$P) -> 246710.21
A88: Wildfires (lincoln county) | B88: =COUNTIF('EO Master Input'!$E:$E,A88) -> 1 | C88: =SUMIF('EO Master Input'!$E:$E,A88,'EO Master Input'!$H:$H) -> 750000 | D88: =SUMIF('EO Linked'!$E:$E,A88,'EO Linked'!$K:$K) -> 750000 | E88: =SUMIF('EO Linked'!$E:$E,A88,'EO Linked'!$P:$P) -> 1278023.52
A89: Rio Grande Fire (Valencia County) | B89: =COUNTIF('EO Master Input'!$E:$E,A89) -> 1 | C89: =SUMIF('EO Master Input'!$E:$E,A89,'EO Master Input'!$H:$H) -> 750000 | D89: =SUMIF('EO Linked'!$E:$E,A89,'EO Linked'!$K:$K) -> 750000 | E89: =SUMIF('EO Linked'!$E:$E,A89,'EO Linked'!$P:$P) -> 746021.06
A90: PED COVID PHO | B90: =COUNTIF('EO Master Input'!$E:$E,A90) -> 1 | C90: =SUMIF('EO Master Input'!$E:$E,A90,'EO Master Input'!$H:$H) -> 750000 | D90: =SUMIF('EO Linked'!$E:$E,A90,'EO Linked'!$K:$K) -> 750000 | E90: =SUMIF('EO Linked'!$E:$E,A90,'EO Linked'!$P:$P) -> 92514.65
A91: Soccoro Co Electrical Co Power Outage | B91: =COUNTIF('EO Master Input'!$E:$E,A91) -> 1 | C91: =SUMIF('EO Master Input'!$E:$E,A91,'EO Master Input'!$H:$H) -> 750000 | D91: =SUMIF('EO Linked'!$E:$E,A91,'EO Linked'!$K:$K) -> 750000 | E91: =SUMIF('EO Linked'!$E:$E,A91,'EO Linked'!$P:$P) -> 750000
A92: Severe Weather Event | B92: =COUNTIF('EO Master Input'!$E:$E,A92) -> 1 | C92: =SUMIF('EO Master Input'!$E:$E,A92,'EO Master Input'!$H:$H) -> 750000 | D92: =SUMIF('EO Linked'!$E:$E,A92,'EO Linked'!$K:$K) -> 750000 | E92: =SUMIF('EO Linked'!$E:$E,A92,'EO Linked'!$P:$P) -> 748230.02
A93: Trout Fire (NMNG) | B93: =COUNTIF('EO Master Input'!$E:$E,A93) -> 1 | C93: =SUMIF('EO Master Input'!$E:$E,A93,'EO Master Input'!$H:$H) -> 750000 | D93: =SUMIF('EO Linked'!$E:$E,A93,'EO Linked'!$K:$K) -> 750000 | E93: =SUMIF('EO Linked'!$E:$E,A93,'EO Linked'!$P:$P) -> 226801.86
A94: Storms | B94: =COUNTIF('EO Master Input'!$E:$E,A94) -> 1 | C94: =SUMIF('EO Master Input'!$E:$E,A94,'EO Master Input'!$H:$H) -> 750000 | D94: =SUMIF('EO Linked'!$E:$E,A94,'EO Linked'!$K:$K) -> 750000 | E94: =SUMIF('EO Linked'!$E:$E,A94,'EO Linked'!$P:$P) -> 277990.87
A95: Seven Springs Fire | B95: =COUNTIF('EO Master Input'!$E:$E,A95) -> 1 | C95: =SUMIF('EO Master Input'!$E:$E,A95,'EO Master Input'!$H:$H) -> 750000 | D95: =SUMIF('EO Linked'!$E:$E,A95,'EO Linked'!$K:$K) -> 750000 | E95: =SUMIF('EO Linked'!$E:$E,A95,'EO Linked'!$P:$P) -> 750000
A96: San Juan Co Bloomfield Irrigation | B96: =COUNTIF('EO Master Input'!$E:$E,A96) -> 1 | C96: =SUMIF('EO Master Input'!$E:$E,A96,'EO Master Input'!$H:$H) -> 750000 | D96: =SUMIF('EO Linked'!$E:$E,A96,'EO Linked'!$K:$K) -> 750000 | E96: =SUMIF('EO Linked'!$E:$E,A96,'EO Linked'!$P:$P) -> 0
A97: Sandoval County Flooding | B97: =COUNTIF('EO Master Input'!$E:$E,A97) -> 1 | C97: =SUMIF('EO Master Input'!$E:$E,A97,'EO Master Input'!$H:$H) -> 750000 | D97: =SUMIF('EO Linked'!$E:$E,A97,'EO Linked'!$K:$K) -> 750000 | E97: =SUMIF('EO Linked'!$E:$E,A97,'EO Linked'!$P:$P) -> 710325.72
A98: Renew PHO due to COVID | B98: =COUNTIF('EO Master Input'!$E:$E,A98) -> 34 | C98: =SUMIF('EO Master Input'!$E:$E,A98,'EO Master Input'!$H:$H) -> 0 | D98: =SUMIF('EO Linked'!$E:$E,A98,'EO Linked'!$K:$K) -> 0 | E98: =SUMIF('EO Linked'!$E:$E,A98,'EO Linked'!$P:$P) -> 0
A99: National Guard Funds | B99: =COUNTIF('EO Master Input'!$E:$E,A99) -> 1 | C99: =SUMIF('EO Master Input'!$E:$E,A99,'EO Master Input'!$H:$H) -> 750000 | D99: =SUMIF('EO Linked'!$E:$E,A99,'EO Linked'!$K:$K) -> 750000 | E99: =SUMIF('EO Linked'!$E:$E,A99,'EO Linked'!$P:$P) -> 11107.91
A100: Quay County Flooding | B100: =COUNTIF('EO Master Input'!$E:$E,A100) -> 1 | C100: =SUMIF('EO Master Input'!$E:$E,A100,'EO Master Input'!$H:$H) -> 750000 | D100: =SUMIF('EO Linked'!$E:$E,A100,'EO Linked'!$K:$K) -> 750000 | E100: =SUMIF('EO Linked'!$E:$E,A100,'EO Linked'!$P:$P) -> 152047.8
A101: Flooding (Roswell) | B101: =COUNTIF('EO Master Input'!$E:$E,A101) -> 1 | C101: =SUMIF('EO Master Input'!$E:$E,A101,'EO Master Input'!$H:$H) -> 750000 | D101: =SUMIF('EO Linked'!$E:$E,A101,'EO Linked'!$K:$K) -> 750000 | E101: =SUMIF('EO Linked'!$E:$E,A101,'EO Linked'!$P:$P) -> 228624.09
A102: Flooding (Sierra County) | B102: =COUNTIF('EO Master Input'!$E:$E,A102) -> 1 | C102: =SUMIF('EO Master Input'!$E:$E,A102,'EO Master Input'!$H:$H) -> 750000 | D102: =SUMIF('EO Linked'!$E:$E,A102,'EO Linked'!$K:$K) -> 750000 | E102: =SUMIF('EO Linked'!$E:$E,A102,'EO Linked'!$P:$P) -> 635515.56
A103: Flooding (Eddy County) | B103: =COUNTIF('EO Master Input'!$E:$E,A103) -> 1 | C103: =SUMIF('EO Master Input'!$E:$E,A103,'EO Master Input'!$H:$H) -> 750000 | D103: =SUMIF('EO Linked'!$E:$E,A103,'EO Linked'!$K:$K) -> 750000 | E103: =SUMIF('EO Linked'!$E:$E,A103,'EO Linked'!$P:$P) -> 750000
A104: Flooding (San Miguel) | B104: =COUNTIF('EO Master Input'!$E:$E,A104) -> 1 | C104: =SUMIF('EO Master Input'!$E:$E,A104,'EO Master Input'!$H:$H) -> 750000 | D104: =SUMIF('EO Linked'!$E:$E,A104,'EO Linked'!$K:$K) -> 0 | E104: =SUMIF('EO Linked'!$E:$E,A104,'EO Linked'!$P:$P) -> 750000
A105: Flooding (San Juan County) | B105: =COUNTIF('EO Master Input'!$E:$E,A105) -> 1 | C105: =SUMIF('EO Master Input'!$E:$E,A105,'EO Master Input'!$H:$H) -> 750000 | D105: =SUMIF('EO Linked'!$E:$E,A105,'EO Linked'!$K:$K) -> 750000 | E105: =SUMIF('EO Linked'!$E:$E,A105,'EO Linked'!$P:$P) -> 750000
A106: Flooding (McKinley County | B106: =COUNTIF('EO Master Input'!$E:$E,A106) -> 1 | C106: =SUMIF('EO Master Input'!$E:$E,A106,'EO Master Input'!$H:$H) -> 750000 | D106: =SUMIF('EO Linked'!$E:$E,A106,'EO Linked'!$K:$K) -> 0 | E106: =SUMIF('EO Linked'!$E:$E,A106,'EO Linked'!$P:$P) -> 750000
A107: Flooding (Luna County) | B107: =COUNTIF('EO Master Input'!$E:$E,A107) -> 1 | C107: =SUMIF('EO Master Input'!$E:$E,A107,'EO Master Input'!$H:$H) -> 750000 | D107: =SUMIF('EO Linked'!$E:$E,A107,'EO Linked'!$K:$K) -> 0 | E107: =SUMIF('EO Linked'!$E:$E,A107,'EO Linked'!$P:$P) -> 750000
A108: Flooding (Chavez County) | B108: =COUNTIF('EO Master Input'!$E:$E,A108) -> 1 | C108: =SUMIF('EO Master Input'!$E:$E,A108,'EO Master Input'!$H:$H) -> 750000 | D108: =SUMIF('EO Linked'!$E:$E,A108,'EO Linked'!$K:$K) -> 750000 | E108: =SUMIF('EO Linked'!$E:$E,A108,'EO Linked'!$P:$P) -> 673035.8
A109: Flooding (Belen) | B109: =COUNTIF('EO Master Input'!$E:$E,A109) -> 1 | C109: =SUMIF('EO Master Input'!$E:$E,A109,'EO Master Input'!$H:$H) -> 750000 | D109: =SUMIF('EO Linked'!$E:$E,A109,'EO Linked'!$K:$K) -> 750000 | E109: =SUMIF('EO Linked'!$E:$E,A109,'EO Linked'!$P:$P) -> 466412.44
A110: Flooding (DeBaca County) | B110: =COUNTIF('EO Master Input'!$E:$E,A110) -> 1 | C110: =SUMIF('EO Master Input'!$E:$E,A110,'EO Master Input'!$H:$H) -> 750000 | D110: =SUMIF('EO Linked'!$E:$E,A110,'EO Linked'!$K:$K) -> 750000 | E110: =SUMIF('EO Linked'!$E:$E,A110,'EO Linked'!$P:$P) -> 744297.7
A111: Flooding (Hidalgo County) | B111: =COUNTIF('EO Master Input'!$E:$E,A111) -> 1 | C111: =SUMIF('EO Master Input'!$E:$E,A111,'EO Master Input'!$H:$H) -> 750000 | D111: =SUMIF('EO Linked'!$E:$E,A111,'EO Linked'!$K:$K) -> 750000 | E111: =SUMIF('EO Linked'!$E:$E,A111,'EO Linked'!$P:$P) -> 572079.11
A112: Flooding (Grant County) | B112: =COUNTIF('EO Master Input'!$E:$E,A112) -> 1 | C112: =SUMIF('EO Master Input'!$E:$E,A112,'EO Master Input'!$H:$H) -> 750000 | D112: =SUMIF('EO Linked'!$E:$E,A112,'EO Linked'!$K:$K) -> 750000 | E112: =SUMIF('EO Linked'!$E:$E,A112,'EO Linked'!$P:$P) -> 39247.64
A113: NG Deployments in FY2025 | B113: =COUNTIF('EO Master Input'!$E:$E,A113) -> 1 | C113: =SUMIF('EO Master Input'!$E:$E,A113,'EO Master Input'!$H:$H) -> 500000 | D113: =SUMIF('EO Linked'!$E:$E,A113,'EO Linked'!$K:$K) -> 500000 | E113: =SUMIF('EO Linked'!$E:$E,A113,'EO Linked'!$P:$P) -> 4356.88
A114: Water Leak (Rio Arriba County) | B114: =COUNTIF('EO Master Input'!$E:$E,A114) -> 1 | C114: =SUMIF('EO Master Input'!$E:$E,A114,'EO Master Input'!$H:$H) -> 450000 | D114: =SUMIF('EO Linked'!$E:$E,A114,'EO Linked'!$K:$K) -> 450000 | E114: =SUMIF('EO Linked'!$E:$E,A114,'EO Linked'!$P:$P) -> 187474.64
A115: Flooding (Multiple Counties) | B115: =COUNTIF('EO Master Input'!$E:$E,A115) -> 1 | C115: =SUMIF('EO Master Input'!$E:$E,A115,'EO Master Input'!$H:$H) -> 450000 | D115: =SUMIF('EO Linked'!$E:$E,A115,'EO Linked'!$K:$K) -> 0 | E115: =SUMIF('EO Linked'!$E:$E,A115,'EO Linked'!$P:$P) -> 450000
A116: Additional funds for NM NG | B116: =COUNTIF('EO Master Input'!$E:$E,A116) -> 2 | C116: =SUMIF('EO Master Input'!$E:$E,A116,'EO Master Input'!$H:$H) -> 440000 | D116: =SUMIF('EO Linked'!$E:$E,A116,'EO Linked'!$K:$K) -> 440000 | E116: =SUMIF('EO Linked'!$E:$E,A116,'EO Linked'!$P:$P) -> 106776.62
A117: Flooding (Laguna) | B117: =COUNTIF('EO Master Input'!$E:$E,A117) -> 1 | C117: =SUMIF('EO Master Input'!$E:$E,A117,'EO Master Input'!$H:$H) -> 300000 | D117: =SUMIF('EO Linked'!$E:$E,A117,'EO Linked'!$K:$K) -> 300000 | E117: =SUMIF('EO Linked'!$E:$E,A117,'EO Linked'!$P:$P) -> 245676.93
A118: NG Deployments in FY2024/25 | B118: =COUNTIF('EO Master Input'!$E:$E,A118) -> 1 | C118: =SUMIF('EO Master Input'!$E:$E,A118,'EO Master Input'!$H:$H) -> 750000 | D118: =SUMIF('EO Linked'!$E:$E,A118,'EO Linked'!$K:$K) -> 750000 | E118: =SUMIF('EO Linked'!$E:$E,A118,'EO Linked'!$P:$P) -> 253258.89
A119: Flooding (Zia Pueblo) | B119: =COUNTIF('EO Master Input'!$E:$E,A119) -> 1 | C119: =SUMIF('EO Master Input'!$E:$E,A119,'EO Master Input'!$H:$H) -> 250000 | D119: =SUMIF('EO Linked'!$E:$E,A119,'EO Linked'!$K:$K) -> 250000 | E119: =SUMIF('EO Linked'!$E:$E,A119,'EO Linked'!$P:$P) -> 250000
A120: Well Outages in Torrance County | B120: =COUNTIF('EO Master Input'!$E:$E,A120) -> 1 | C120: =SUMIF('EO Master Input'!$E:$E,A120,'EO Master Input'!$H:$H) -> 250000 | D120: =SUMIF('EO Linked'!$E:$E,A120,'EO Linked'!$K:$K) -> 250000 | E120: =SUMIF('EO Linked'!$E:$E,A120,'EO Linked'!$P:$P) -> 50000
A121: WIldfires | B121: =COUNTIF('EO Master Input'!$E:$E,A121) -> 230 | C121: =SUMIF('EO Master Input'!$E:$E,A121,'EO Master Input'!$H:$H) -> 170490000 | D121: =SUMIF('EO Linked'!$E:$E,A121,'EO Linked'!$K:$K) -> 149490000 | E121: =SUMIF('EO Linked'!$E:$E,A121,'EO Linked'!$P:$P) -> 31593877.14
A122: Declaring a Continuing State of Emergency Due to Flooding in Roosevelt County and Providing Additional Relief Funding | B122: =COUNTIF('EO Master Input'!$E:$E,A122) -> 1 | C122: =SUMIF('EO Master Input'!$E:$E,A122,'EO Master Input'!$H:$H) -> 221000 | D122: =SUMIF('EO Linked'!$E:$E,A122,'EO Linked'!$K:$K) -> 0 | E122: =SUMIF('EO Linked'!$E:$E,A122,'EO Linked'!$P:$P) -> 221000
A123: Severe Weather (Mora County) | B123: =COUNTIF('EO Master Input'!$E:$E,A123) -> 1 | C123: =SUMIF('EO Master Input'!$E:$E,A123,'EO Master Input'!$H:$H) -> 200000 | D123: =SUMIF('EO Linked'!$E:$E,A123,'EO Linked'!$K:$K) -> 200000 | E123: =SUMIF('EO Linked'!$E:$E,A123,'EO Linked'!$P:$P) -> 30544.6
A124: Winter Weather | B124: =COUNTIF('EO Master Input'!$E:$E,A124) -> 1 | C124: =SUMIF('EO Master Input'!$E:$E,A124,'EO Master Input'!$H:$H) -> 200000 | D124: =SUMIF('EO Linked'!$E:$E,A124,'EO Linked'!$K:$K) -> 200000 | E124: =SUMIF('EO Linked'!$E:$E,A124,'EO Linked'!$P:$P) -> 194961.6
A125: Farmington Mass Shooting | B125: =COUNTIF('EO Master Input'!$E:$E,A125) -> 1 | C125: =SUMIF('EO Master Input'!$E:$E,A125,'EO Master Input'!$H:$H) -> 100000 | D125: =SUMIF('EO Linked'!$E:$E,A125,'EO Linked'!$K:$K) -> 100000 | E125: =SUMIF('EO Linked'!$E:$E,A125,'EO Linked'!$P:$P) -> 42640.82
A126: Guadalupe County Fires | B126: =COUNTIF('EO Master Input'!$E:$E,A126) -> 1 | C126: =SUMIF('EO Master Input'!$E:$E,A126,'EO Master Input'!$H:$H) -> 50000 | D126: =SUMIF('EO Linked'!$E:$E,A126,'EO Linked'!$K:$K) -> 50000 | E126: =SUMIF('EO Linked'!$E:$E,A126,'EO Linked'!$P:$P) -> 8377.15
A127: Complete Count Commission | B127: =COUNTIF('EO Master Input'!$E:$E,A127) -> 1 | C127: =SUMIF('EO Master Input'!$E:$E,A127,'EO Master Input'!$H:$H) -> 0 | D127: =SUMIF('EO Linked'!$E:$E,A127,'EO Linked'!$K:$K) -> 0 | E127: =SUMIF('EO Linked'!$E:$E,A127,'EO Linked'!$P:$P) -> 0
A128: Cybersecurity Planning Committee | B128: =COUNTIF('EO Master Input'!$E:$E,A128) -> 1 | C128: =SUMIF('EO Master Input'!$E:$E,A128,'EO Master Input'!$H:$H) -> 0 | D128: =SUMIF('EO Linked'!$E:$E,A128,'EO Linked'!$K:$K) -> 0 | E128: =SUMIF('EO Linked'!$E:$E,A128,'EO Linked'!$P:$P) -> 0
A129: Creates Office of Special Education | B129: =COUNTIF('EO Master Input'!$E:$E,A129) -> 1 | C129: =SUMIF('EO Master Input'!$E:$E,A129,'EO Master Input'!$H:$H) -> 0 | D129: =SUMIF('EO Linked'!$E:$E,A129,'EO Linked'!$K:$K) -> 0 | E129: =SUMIF('EO Linked'!$E:$E,A129,'EO Linked'!$P:$P) -> 0
A130: Amended Order Establishing Paid Parental Leave for Eligible State Employees | B130: =COUNTIF('EO Master Input'!$E:$E,A130) -> 1 | C130: =SUMIF('EO Master Input'!$E:$E,A130,'EO Master Input'!$H:$H) -> 0 | D130: =SUMIF('EO Linked'!$E:$E,A130,'EO Linked'!$K:$K) -> 0 | E130: =SUMIF('EO Linked'!$E:$E,A130,'EO Linked'!$P:$P) -> 0
A131: Amended Order Directing Individuals traveling to New Mexico to self-isolate or self-quarantine | B131: =COUNTIF('EO Master Input'!$E:$E,A131) -> 2 | C131: =SUMIF('EO Master Input'!$E:$E,A131,'EO Master Input'!$H:$H) -> 0 | D131: =SUMIF('EO Linked'!$E:$E,A131,'EO Linked'!$K:$K) -> 0 | E131: =SUMIF('EO Linked'!$E:$E,A131,'EO Linked'!$P:$P) -> 0
A132: Amended Order Directing Individuals Traveling to New Mexico Through an Airport to Self-Isolate or Self-Quarantine | B132: =COUNTIF('EO Master Input'!$E:$E,A132) -> 1 | C132: =SUMIF('EO Master Input'!$E:$E,A132,'EO Master Input'!$H:$H) -> 0 | D132: =SUMIF('EO Linked'!$E:$E,A132,'EO Linked'!$K:$K) -> 0 | E132: =SUMIF('EO Linked'!$E:$E,A132,'EO Linked'!$P:$P) -> 0
A133: Amend Flags to half-staff (Ofc. Hare) | B133: =COUNTIF('EO Master Input'!$E:$E,A133) -> 1 | C133: =SUMIF('EO Master Input'!$E:$E,A133,'EO Master Input'!$H:$H) -> 0 | D133: =SUMIF('EO Linked'!$E:$E,A133,'EO Linked'!$K:$K) -> 0 | E133: =SUMIF('EO Linked'!$E:$E,A133,'EO Linked'!$P:$P) -> 0
A134: Alternative Work Schedules | B134: =COUNTIF('EO Master Input'!$E:$E,A134) -> 1 | C134: =SUMIF('EO Master Input'!$E:$E,A134,'EO Master Input'!$H:$H) -> 0 | D134: =SUMIF('EO Linked'!$E:$E,A134,'EO Linked'!$K:$K) -> 0 | E134: =SUMIF('EO Linked'!$E:$E,A134,'EO Linked'!$P:$P) -> 0
A135: Amending and Rescinding EO's | B135: =COUNTIF('EO Master Input'!$E:$E,A135) -> 1 | C135: =SUMIF('EO Master Input'!$E:$E,A135,'EO Master Input'!$H:$H) -> 0 | D135: =SUMIF('EO Linked'!$E:$E,A135,'EO Linked'!$K:$K) -> 0 | E135: =SUMIF('EO Linked'!$E:$E,A135,'EO Linked'!$P:$P) -> 0
A136: Ash and Debris from South fork and Salt Fires | B136: =COUNTIF('EO Master Input'!$E:$E,A136) -> 1 | C136: =SUMIF('EO Master Input'!$E:$E,A136,'EO Master Input'!$H:$H) -> 0 | D136: =SUMIF('EO Linked'!$E:$E,A136,'EO Linked'!$K:$K) -> 0 | E136: =SUMIF('EO Linked'!$E:$E,A136,'EO Linked'!$P:$P) -> 0
A137: Amended Order Requiring State Employees to Comply with Certain Public Health Requirements | B137: =COUNTIF('EO Master Input'!$E:$E,A137) -> 1 | C137: =SUMIF('EO Master Input'!$E:$E,A137,'EO Master Input'!$H:$H) -> 0 | D137: =SUMIF('EO Linked'!$E:$E,A137,'EO Linked'!$K:$K) -> 0 | E137: =SUMIF('EO Linked'!$E:$E,A137,'EO Linked'!$P:$P) -> 0
A138: CYFD Organizational Chart changes | B138: =COUNTIF('EO Master Input'!$E:$E,A138) -> 1 | C138: =SUMIF('EO Master Input'!$E:$E,A138,'EO Master Input'!$H:$H) -> 0 | D138: =SUMIF('EO Linked'!$E:$E,A138,'EO Linked'!$K:$K) -> 0 | E138: =SUMIF('EO Linked'!$E:$E,A138,'EO Linked'!$P:$P) -> 0
A139: Amended Order directing individuals traveling to New Mexico to self-isolate or self-quarantine | B139: =COUNTIF('EO Master Input'!$E:$E,A139) -> 2 | C139: =SUMIF('EO Master Input'!$E:$E,A139,'EO Master Input'!$H:$H) -> 0 | D139: =SUMIF('EO Linked'!$E:$E,A139,'EO Linked'!$K:$K) -> 0 | E139: =SUMIF('EO Linked'!$E:$E,A139,'EO Linked'!$P:$P) -> 0
A140: Childcare | B140: =COUNTIF('EO Master Input'!$E:$E,A140) -> 2 | C140: =SUMIF('EO Master Input'!$E:$E,A140,'EO Master Input'!$H:$H) -> 0 | D140: =SUMIF('EO Linked'!$E:$E,A140,'EO Linked'!$K:$K) -> 0 | E140: =SUMIF('EO Linked'!$E:$E,A140,'EO Linked'!$P:$P) -> 0
A141: Climate Change and Energy Waste | B141: =COUNTIF('EO Master Input'!$E:$E,A141) -> 1 | C141: =SUMIF('EO Master Input'!$E:$E,A141,'EO Master Input'!$H:$H) -> 0 | D141: =SUMIF('EO Linked'!$E:$E,A141,'EO Linked'!$K:$K) -> 0 | E141: =SUMIF('EO Linked'!$E:$E,A141,'EO Linked'!$P:$P) -> 0
A142: Commuting the Sentences of Incarcerated Individuals | B142: =COUNTIF('EO Master Input'!$E:$E,A142) -> 0 | C142: =SUMIF('EO Master Input'!$E:$E,A142,'EO Master Input'!$H:$H) -> 0 | D142: =SUMIF('EO Linked'!$E:$E,A142,'EO Linked'!$K:$K) -> 0 | E142: =SUMIF('EO Linked'!$E:$E,A142,'EO Linked'!$P:$P) -> 0
A143: Creates Housing Investment Council | B143: =COUNTIF('EO Master Input'!$E:$E,A143) -> 1 | C143: =SUMIF('EO Master Input'!$E:$E,A143,'EO Master Input'!$H:$H) -> 0 | D143: =SUMIF('EO Linked'!$E:$E,A143,'EO Linked'!$K:$K) -> 0 | E143: =SUMIF('EO Linked'!$E:$E,A143,'EO Linked'!$P:$P) -> 0
A144: Create Tribal Advisory Council | B144: =COUNTIF('EO Master Input'!$E:$E,A144) -> 1 | C144: =SUMIF('EO Master Input'!$E:$E,A144,'EO Master Input'!$H:$H) -> 0 | D144: =SUMIF('EO Linked'!$E:$E,A144,'EO Linked'!$K:$K) -> 0 | E144: =SUMIF('EO Linked'!$E:$E,A144,'EO Linked'!$P:$P) -> 0
A145: Adopting workfroce definition of antisemitism | B145: =COUNTIF('EO Master Input'!$E:$E,A145) -> 1 | C145: =SUMIF('EO Master Input'!$E:$E,A145,'EO Master Input'!$H:$H) -> 0 | D145: =SUMIF('EO Linked'!$E:$E,A145,'EO Linked'!$K:$K) -> 0 | E145: =SUMIF('EO Linked'!$E:$E,A145,'EO Linked'!$P:$P) -> 0
A146: Establishing Tribal Advisory Council | B146: =COUNTIF('EO Master Input'!$E:$E,A146) -> 1 | C146: =SUMIF('EO Master Input'!$E:$E,A146,'EO Master Input'!$H:$H) -> 0 | D146: =SUMIF('EO Linked'!$E:$E,A146,'EO Linked'!$K:$K) -> 0 | E146: =SUMIF('EO Linked'!$E:$E,A146,'EO Linked'!$P:$P) -> 0
A147: Establish Credentialing in Response to Medical Staff Shortages | B147: =COUNTIF('EO Master Input'!$E:$E,A147) -> 3 | C147: =SUMIF('EO Master Input'!$E:$E,A147,'EO Master Input'!$H:$H) -> 0 | D147: =SUMIF('EO Linked'!$E:$E,A147,'EO Linked'!$K:$K) -> 0 | E147: =SUMIF('EO Linked'!$E:$E,A147,'EO Linked'!$P:$P) -> 0
A148: Drought and fire conditions statewide | B148: =COUNTIF('EO Master Input'!$E:$E,A148) -> 2 | C148: =SUMIF('EO Master Input'!$E:$E,A148,'EO Master Input'!$H:$H) -> 0 | D148: =SUMIF('EO Linked'!$E:$E,A148,'EO Linked'!$K:$K) -> 0 | E148: =SUMIF('EO Linked'!$E:$E,A148,'EO Linked'!$P:$P) -> 0
A149: Eliminating and Reducing Unnecessary Regulatory Burdens and Costs | B149: =COUNTIF('EO Master Input'!$E:$E,A149) -> 1 | C149: =SUMIF('EO Master Input'!$E:$E,A149,'EO Master Input'!$H:$H) -> 0 | D149: =SUMIF('EO Linked'!$E:$E,A149,'EO Linked'!$K:$K) -> 0 | E149: =SUMIF('EO Linked'!$E:$E,A149,'EO Linked'!$P:$P) -> 0
A150: Drought Declaration | B150: =COUNTIF('EO Master Input'!$E:$E,A150) -> 3 | C150: =SUMIF('EO Master Input'!$E:$E,A150,'EO Master Input'!$H:$H) -> 0 | D150: =SUMIF('EO Linked'!$E:$E,A150,'EO Linked'!$K:$K) -> 0 | E150: =SUMIF('EO Linked'!$E:$E,A150,'EO Linked'!$P:$P) -> 0
A151: Drought Conditions (statewide) | B151: =COUNTIF('EO Master Input'!$E:$E,A151) -> 1 | C151: =SUMIF('EO Master Input'!$E:$E,A151,'EO Master Input'!$H:$H) -> 0 | D151: =SUMIF('EO Linked'!$E:$E,A151,'EO Linked'!$K:$K) -> 0 | E151: =SUMIF('EO Linked'!$E:$E,A151,'EO Linked'!$P:$P) -> 0
A152: Directing the Motor Vehicle Division of the Taxation and Revenue Department to Temporarily Waive All Late | B152: =COUNTIF('EO Master Input'!$E:$E,A152) -> 0 | C152: =SUMIF('EO Master Input'!$E:$E,A152,'EO Master Input'!$H:$H) -> 0 | D152: =SUMIF('EO Linked'!$E:$E,A152,'EO Linked'!$K:$K) -> 0 | E152: =SUMIF('EO Linked'!$E:$E,A152,'EO Linked'!$P:$P) -> 0
A153: Directing the New Mexico Department of Transportation to Create Emergency Expedited Special Permits | B153: =COUNTIF('EO Master Input'!$E:$E,A153) -> 1 | C153: =SUMIF('EO Master Input'!$E:$E,A153,'EO Master Input'!$H:$H) -> 0 | D153: =SUMIF('EO Linked'!$E:$E,A153,'EO Linked'!$K:$K) -> 0 | E153: =SUMIF('EO Linked'!$E:$E,A153,'EO Linked'!$P:$P) -> 0
A154: Directing Executive Departments to Collect Voluntary self-identification information | B154: =COUNTIF('EO Master Input'!$E:$E,A154) -> 1 | C154: =SUMIF('EO Master Input'!$E:$E,A154,'EO Master Input'!$H:$H) -> 0 | D154: =SUMIF('EO Linked'!$E:$E,A154,'EO Linked'!$K:$K) -> 0 | E154: =SUMIF('EO Linked'!$E:$E,A154,'EO Linked'!$P:$P) -> 0
A155: Declaring a drought statewide | B155: =COUNTIF('EO Master Input'!$E:$E,A155) -> 1 | C155: =SUMIF('EO Master Input'!$E:$E,A155,'EO Master Input'!$H:$H) -> 0 | D155: =SUMIF('EO Linked'!$E:$E,A155,'EO Linked'!$K:$K) -> 0 | E155: =SUMIF('EO Linked'!$E:$E,A155,'EO Linked'!$P:$P) -> 0
A156: Creates Veterans Advisory Council | B156: =COUNTIF('EO Master Input'!$E:$E,A156) -> 1 | C156: =SUMIF('EO Master Input'!$E:$E,A156,'EO Master Input'!$H:$H) -> 0 | D156: =SUMIF('EO Linked'!$E:$E,A156,'EO Linked'!$K:$K) -> 0 | E156: =SUMIF('EO Linked'!$E:$E,A156,'EO Linked'!$P:$P) -> 0
A157: Highway Damage | B157: =COUNTIF('EO Master Input'!$E:$E,A157) -> 1 | C157: =SUMIF('EO Master Input'!$E:$E,A157,'EO Master Input'!$H:$H) -> 0 | D157: =SUMIF('EO Linked'!$E:$E,A157,'EO Linked'!$K:$K) -> 0 | E157: =SUMIF('EO Linked'!$E:$E,A157,'EO Linked'!$P:$P) -> 0
A158: Memorial | B158: =COUNTIF('EO Master Input'!$E:$E,A158) -> 4 | C158: =SUMIF('EO Master Input'!$E:$E,A158,'EO Master Input'!$H:$H) -> 0 | D158: =SUMIF('EO Linked'!$E:$E,A158,'EO Linked'!$K:$K) -> 0 | E158: =SUMIF('EO Linked'!$E:$E,A158,'EO Linked'!$P:$P) -> 0
A159: Granting City of Gallup’s Second Request for Declaration of Emergency | B159: =COUNTIF('EO Master Input'!$E:$E,A159) -> 1 | C159: =SUMIF('EO Master Input'!$E:$E,A159,'EO Master Input'!$H:$H) -> 0 | D159: =SUMIF('EO Linked'!$E:$E,A159,'EO Linked'!$K:$K) -> 0 | E159: =SUMIF('EO Linked'!$E:$E,A159,'EO Linked'!$P:$P) -> 0
A160: Imagination Library | B160: =COUNTIF('EO Master Input'!$E:$E,A160) -> 1 | C160: =SUMIF('EO Master Input'!$E:$E,A160,'EO Master Input'!$H:$H) -> 0 | D160: =SUMIF('EO Linked'!$E:$E,A160,'EO Linked'!$K:$K) -> 0 | E160: =SUMIF('EO Linked'!$E:$E,A160,'EO Linked'!$P:$P) -> 0
A161: Expidite permits | B161: =COUNTIF('EO Master Input'!$E:$E,A161) -> 1 | C161: =SUMIF('EO Master Input'!$E:$E,A161,'EO Master Input'!$H:$H) -> 0 | D161: =SUMIF('EO Linked'!$E:$E,A161,'EO Linked'!$K:$K) -> 0 | E161: =SUMIF('EO Linked'!$E:$E,A161,'EO Linked'!$P:$P) -> 0
A162: Establishing the Early Childhood Council | B162: =COUNTIF('EO Master Input'!$E:$E,A162) -> 2 | C162: =SUMIF('EO Master Input'!$E:$E,A162,'EO Master Input'!$H:$H) -> 0 | D162: =SUMIF('EO Linked'!$E:$E,A162,'EO Linked'!$K:$K) -> 0 | E162: =SUMIF('EO Linked'!$E:$E,A162,'EO Linked'!$P:$P) -> 0
A163: Exterem Risk Task Force | B163: =COUNTIF('EO Master Input'!$E:$E,A163) -> 1 | C163: =SUMIF('EO Master Input'!$E:$E,A163,'EO Master Input'!$H:$H) -> 0 | D163: =SUMIF('EO Linked'!$E:$E,A163,'EO Linked'!$K:$K) -> 0 | E163: =SUMIF('EO Linked'!$E:$E,A163,'EO Linked'!$P:$P) -> 0
A164: Fitness & Wellness | B164: =COUNTIF('EO Master Input'!$E:$E,A164) -> 1 | C164: =SUMIF('EO Master Input'!$E:$E,A164,'EO Master Input'!$H:$H) -> 0 | D164: =SUMIF('EO Linked'!$E:$E,A164,'EO Linked'!$K:$K) -> 0 | E164: =SUMIF('EO Linked'!$E:$E,A164,'EO Linked'!$P:$P) -> 0
A165: Extending Order Temporarily Permitting Notarial Acts Through Audio-Visual Technology Under Certain Conditions | B165: =COUNTIF('EO Master Input'!$E:$E,A165) -> 1 | C165: =SUMIF('EO Master Input'!$E:$E,A165,'EO Master Input'!$H:$H) -> 0 | D165: =SUMIF('EO Linked'!$E:$E,A165,'EO Linked'!$K:$K) -> 0 | E165: =SUMIF('EO Linked'!$E:$E,A165,'EO Linked'!$P:$P) -> 0
A166: Granting City of Gallup’s Third Request for Declaration of Emergency | B166: =COUNTIF('EO Master Input'!$E:$E,A166) -> 1 | C166: =SUMIF('EO Master Input'!$E:$E,A166,'EO Master Input'!$H:$H) -> 0 | D166: =SUMIF('EO Linked'!$E:$E,A166,'EO Linked'!$K:$K) -> 0 | E166: =SUMIF('EO Linked'!$E:$E,A166,'EO Linked'!$P:$P) -> 0
A167: Fourth Amended order Directing Individuals Traveling to New Mexico to Self-Isolate or Self-quarantine | B167: =COUNTIF('EO Master Input'!$E:$E,A167) -> 1 | C167: =SUMIF('EO Master Input'!$E:$E,A167,'EO Master Input'!$H:$H) -> 0 | D167: =SUMIF('EO Linked'!$E:$E,A167,'EO Linked'!$K:$K) -> 0 | E167: =SUMIF('EO Linked'!$E:$E,A167,'EO Linked'!$P:$P) -> 0
A168: Freezing temperatures | B168: =COUNTIF('EO Master Input'!$E:$E,A168) -> 1 | C168: =SUMIF('EO Master Input'!$E:$E,A168,'EO Master Input'!$H:$H) -> 0 | D168: =SUMIF('EO Linked'!$E:$E,A168,'EO Linked'!$K:$K) -> 0 | E168: =SUMIF('EO Linked'!$E:$E,A168,'EO Linked'!$P:$P) -> 0
A169: Fugitive Apprehension Unit | B169: =COUNTIF('EO Master Input'!$E:$E,A169) -> 1 | C169: =SUMIF('EO Master Input'!$E:$E,A169,'EO Master Input'!$H:$H) -> 0 | D169: =SUMIF('EO Linked'!$E:$E,A169,'EO Linked'!$K:$K) -> 0 | E169: =SUMIF('EO Linked'!$E:$E,A169,'EO Linked'!$P:$P) -> 0
